Workbook

Sheet Formulacion
A1: Hoja | B1: Tipo1 | C1: Tipo2 | D1: Tipo3 | E1: Tipo4 | F1: Fecha | G1: Materiales | H1: MObra | I1: Postes | J1: Conductor | K1: VolumenZanja | L1: CostoTotal | M1: Cantidad | N1: CostoReferencia | O1: FactorAsimetria | P1: Condicion | Q1: Valor | R1: rango | S1: Codigo | T1: FactorEficienciaCantidad | U1: m2 | V1: CantMobPCComOt | W1: CantTrbtOtC
A2: AINAP | F2: SI | G2: SI | H2: SI | I2: NA | J2: NA | K2: NA | L2: NA | M2: NA | N2: NA | O2: 0.9 | P2: NA | Q2: NA | R2: NA | S2: NA | T2: 1 | U2: NA | V2: NA | W2: NA
A3: CEQOT | F3: SI | G3: SI | H3: NA | I3: NA | J3: NA | K3: NA | L3: SI | M3: NA | N3: NA | O3: =O2 -> 0.9 | P3: NA | Q3: NA | R3: NA | S3: NA | T3: 1 | U3: NA | V3: NA | W3: SI
A4: CMEDI | F4: SI | G4: SI | H4: NA | I4: NA | J4: NA | K4: NA | L4: NA | M4: NA | N4: NA | O4: =O3 -> 0.9 | P4: NA | Q4: NA | R4: NA | S4: NA | T4: 1 | U4: NA | V4: NA | W4: SI
A5: CMESM | F5: SI | G5: SI | H5: SI | I5: NA | J5: NA | K5: NA | L5: SI | M5: NA | N5: NA | O5: 0.9 | P5: NA | Q5: NA | R5: NA | S5: NA | T5: 1 | U5: NA | V5: NA | W5: NA
A6: DACBT | F6: SI | G6: SI | H6: SI | I6: NA | J6: NA | K6: NA | L6: NA | M6: NA | N6: NA | O6: 0.9 | P6: NA | Q6: NA | R6: NA | S6: NA | T6: 1 | U6: NA | V6: NA | W6: NA
A7: DCRMM | F7: SI | G7: SI | H7: SI | I7: NA | J7: NA | K7: NA | L7: SI | M7: NA | N7: NA | O7: 0.9 | P7: NA | Q7: NA | R7: NA | S7: NA | T7: 1 | U7: NA | V7: NA | W7: NA
A8: DEQDM | F8: SI | G8: NA | H8: NA | I8: NA | J8: NA | K8: NA | L8: SI | M8: NA | N8: NA | O8: 0.9 | P8: NA | Q8: NA | R8: NA | S8: NA | T8: 1 | U8: NA | V8: NA | W8: SI
A9: DEQMC | F9: SI | G9: NA | H9: NA | I9: NA | J9: NA | K9: NA | L9: SI | M9: NA | N9: NA | O9: 0.9 | P9: NA | Q9: NA | R9: NA | S9: NA | T9: 1 | U9: NA | V9: SI | W9: NA
A10: DEQOT | F10: SI | G10: SI | H10: SI | I10: NA | J10: NA | K10: NA | L10: SI | M10: NA | N10: NA | O10: 0.9 | P10: NA | Q10: NA | R10: NA | S10: NA | T10: 1 | U10: NA | V10: SI | W10: NA
A11: DLAAT-115 | B11: DLA | F11: SI | G11: SI | H11: SI | I11: SI | J11: SI | K11: NA | L11: SI | M11: Conductor | N11: SI | O11: 0.9 | P11: vano | Q11: 100 | R11: 0.3 | S11: NA | T11: 1 | U11: NA | V11: NA | W11: NA
A12: DLAAT-230 | B12: DLA | F12: SI | G12: SI | H12: SI | I12: SI | J12: SI | K12: NA | L12: SI | M12: Conductor | N12: SI | O12: 0.9 | P12: vano | Q12: 60 | R12: 0.3 | S12: NA | T12: 1 | U12: NA | V12: NA | W12: NA
A13: DLABT | B13: DLA | F13: SI | G13: SI | H13: SI | I13: SI | J13: SI | K13: NA | L13: SI | M13: Conductor | N13: SI | O13: 0.9 | P13: vano | Q13: 30 | R13: 0.3 | S13: 0206170220032403 | T13: 1 | U13: NA | V13: NA | W13: NA
A14: DLAMT-13,8 | B14: DLA | F14: SI | G14: SI | H14: SI | I14: SI | J14: SI | K14: NA | L14: SI | M14: Conductor | N14: SI | O14: 0.9 | P14: vano | Q14: 45 | R14: 0.3 | S14: 0209200223022603 | T14: 1 | U14: NA | V14: NA | W14: NA
A15: DLAMT-34,5 | B15: DLA | F15: SI | G15: SI | H15: SI | I15: SI | J15: SI | K15: NA | L15: SI | M15: Conductor | N15: SI | O15: 0.9 | P15: vano | Q15: 45 | R15: 0.3 | S15: 0209200223022603 | T15: 1 | U15: NA | V15: NA | W15: NA
A16: DLAMT-Otras | B16: DLA | F16: SI | G16: SI | H16: SI | I16: SI | J16: SI | K16: NA | L16: SI | M16: Conductor | N16: SI | O16: 0.9 | P16: vano | Q16: 45 | R16: 0.3 | S16: 0209200223022603 | T16: 1 | U16: NA | V16: NA | W16: NA
A17: DLSAT-115 | B17: DLS | F17: SI | G17: SI | H17: SI | I17: NA | J17: SI | K17: NA | L17: SI | M17: NA | N17: NA | O17: 0.9 | P17: NA | Q17: NA | R17: NA | S17: NA | T17: 1 | U17: NA | V17: NA | W17: NA
A18: DLSAT-230 | B18: DLS | F18: SI | G18: SI | H18: SI | I18: NA | J18: SI | K18: NA | L18: SI | M18: NA | N18: NA | O18: 0.9 | P18: NA | Q18: NA | R18: NA | S18: NA | T18: 1 | U18: NA | V18: NA | W18: NA
A19: DLSBT | B19: DLS | F19: SI | G19: SI | H19: SI | I19: NA | J19: SI | K19: NA | L19: SI | M19: Conductor | N19: SI | O19: 0.9 | P19: VolumenZanja | Q19: 1000 | R19: 0.5 | S19: 020624022703 | T19: 1 | U19: NA | V19: NA | W19: NA
A20: DLSMT-13,8 | B20: DLS | F20: SI | G20: SI | H20: SI | I20: NA | J20: SI | K20: NA | L20: SI | M20: Conductor | N20: SI | O20: 0.9 | P20: VolumenZanja | Q20: 1000 | R20: 0.5 | S20: 020826043103 | T20: 1 | U20: NA | V20: NA | W20: NA
A21: DLSMT-34,5 | B21: DLS | F21: SI | G21: SI | H21: SI | I21: NA | J21: SI | K21: NA | L21: SI | M21: NA | N21: SI | O21: 0.9 | P21: NA | Q21: 1000 | R21: 0.5 | S21: NA | T21: 1 | U21: NA | V21: NA | W21: NA
A22: DLSMT-Otras | B22: DLS | F22: SI | G22: SI | H22: SI | I22: NA | J22: SI | K22: NA | L22: SI | M22: NA | N22: NA | O22: 0.9 | P22: NA | Q22: NA | R22: NA | S22: NA | T22: 1 | U22: NA | V22: NA | W22: NA
A23: DTRAM-115 | F23: SI | G23: NA | H23: NA | I23: NA | J23: NA | K23: NA | L23: SI | M23: NA | N23: NA | O23: 0.9 | P23: NA | Q23: NA | R23: NA | S23: NA | T23: 1 | U23: NA | V23: NA | W23: NA
A24: DTRAM-230 | F24: SI | G24: NA | H24: NA | I24: NA | J24: NA | K24: NA | L24: SI | M24: NA | N24: NA | O24: 0.9 | P24: NA | Q24: NA | R24: NA | S24: NA | T24: 1 | U24: NA | V24: NA | W24: NA
A25: DTRMB-13,8 | F25: SI | G25: SI | H25: SI | I25: NA | J25: NA | K25: NA | L25: SI | M25: CantTrbtOtC | N25: SI | O25: 0.9 | P25: NA | Q25: NA | R25: NA | S25: 02081106 | T25: 1 | U25: NA | V25: NA | W25: SI
A26: DTRMB-34,5 | F26: SI | G26: SI | H26: SI | I26: NA | J26: NA | K26: NA | L26: SI | M26: CantTrbtOtC | N26: SI | O26: 0.9 | P26: NA | Q26: NA | R26: NA | S26: 02081106 | T26: 1 | U26: NA | V26: NA | W26: SI
A27: DTRMB-Otras | F27: SI | G27: SI | H27: SI | I27: NA | J27: NA | K27: NA | L27: SI | M27: CantTrbtOtC | N27: SI | O27: 0.9 | P27: NA | Q27: NA | R27: NA | S27: 02081106 | T27: 1 | U27: NA | V27: NA | W27: SI
A28: DTRMM-13,8 | F28: SI | G28: NA | H28: NA | I28: NA | J28: NA | K28: NA | L28: SI | M28: NA | N28: NA | O28: 0.9 | P28: NA | Q28: NA | R28: NA | S28: NA | T28: 1 | U28: NA | V28: NA | W28: NA
A29: DTRMM-34,5 | F29: SI | G29: NA | H29: NA | I29: NA | J29: NA | K29: NA | L29: SI | M29: NA | N29: NA | O29: 0.9 | P29: NA | Q29: NA | R29: NA | S29: NA | T29: 1 | U29: NA | V29: NA | W29: NA
A30: DTRMM-Otras | F30: SI | G30: NA | H30: NA | I30: NA | J30: NA | K30: NA | L30: SI | M30: NA | N30: NA | O30: 0.9 | P30: NA | Q30: NA | R30: NA | S30: NA | T30: 1 | U30: NA | V30: NA | W30: NA
A31: PEDYM | F31: SI | G31: NA | H31: NA | I31: NA | J31: NA | K31: NA | L31: NA | M31: NA | N31: NA | O31: 0.9 | P31: NA | Q31: NA | R31: NA | S31: NA | T31: 1 | U31: SI | V31: NA | W31: NA
A32: PEQCM | F32: SI | G32: NA | H32: NA | I32: NA | J32: NA | K32: NA | L32: NA | M32: NA | N32: NA | O32: 0.9 | P32: NA | Q32: NA | R32: NA | S32: NA | T32: 1 | U32: NA | V32: SI | W32: NA
A33: PEQCO | F33: SI | G33: NA | H33: NA | I33: NA | J33: NA | K33: NA | L33: NA | M33: NA | N33: NA | O33: 0.9 | P33: NA | Q33: NA | R33: NA | S33: NA | T33: 1 | U33: NA | V33: SI | W33: NA
A34: PEQOT | F34: SI | G34: NA | H34: NA | I34: NA | J34: NA | K34: NA | L34: NA | M34: NA | N34: NA | O34: 0.9 | P34: NA | Q34: NA | R34: NA | S34: NA | T34: 1 | U34: NA | V34: Si | W34: NA
A35: PEQTC | F35: SI | G35: NA | H35: NA | I35: NA | J35: NA | K35: NA | L35: NA | M35: NA | N35: NA | O35: 0.9 | P35: NA | Q35: NA | R35: NA | S35: NA | T35: 1 | U35: NA | V35: NA | W35: NA
A36: PMOBI | F36: SI | G36: NA | H36: NA | I36: NA | J36: NA | K36: NA | L36: NA | M36: NA | N36: NA | O36: 0.9 | P36: NA | Q36: NA | R36: NA | S36: NA | T36: 1 | U36: NA | V36: Si | W36: NA
A37: PPLIN | F37: SI | G37: NA | H37: NA | I37: NA | J37: NA | K37: NA | L37: NA | M37: NA | N37: NA | O37: 0.9 | P37: NA | Q37: NA | R37: NA | S37: NA | T37: 1 | U37: NA | V37: NA | W37: NA
A38: PTERR | F38: SI | G38: NA | H38: NA | I38: NA | J38: NA | K38: NA | L38: NA | M38: m2 | N38: Si | O38: 0.9 | P38: NA | Q38: NA | R38: NA | S38: NA | T38: 1 | U38: SI | V38: NA | W38: NA

Sheet Parametros
A1: Parámetro | B1: Valor
A2: FechaMin | B2: 2021-12-31
A3: FechaMax | B3: 2022-06-30
A4: MaterialesMin | B4: 0
A5: MObraMin | B5: 0.01
A6: MObraMax | B6: 0.99
A7: PosteInicio | B7: 17
A8: PosteFin | B8: 19
A9: PosteInicioBT | B9: 14
A10: PosteFinBT | B10: 16
A11: DLA | B11: 50
A12: DLS | B12: 20
A13: CondInicio | B13: 11
A14: CondFin | B14: 15
A15: CondInicioBT | B15: 8
A16: CondFinBT | B16: 12
A17: ZanjaInicio | B17: 18
A18: ZanjaFin | B18: 21
A19: ZanjaInicioBT | B19: 15
A20: ZanjaFinBT | B20: 18
A21: CostoTotalMin | B21: 100
A22: PostesMin | B22: 2
A23: FactorAsig | B23: 0.5
A24: m2Inicio | B24: 15
A25: m2Fin | B25: 20
A26: m2Min | B26: 0 | C26: <=
A27: PEDYM | B27: 1
A28: PTERR | B28: 0
A29: CantMobPCComOtMin | B29: 0 | C29: <=
A30: CantTrbtOtCMin | B30: 0 | C30: >
A31: MDOmin | B31: 0

Sheet Datos
A1: Archivo | B1: Hoja | C1: CódigoProyecto | D1: CódigoDescriptivo | E1: Fecha | F1: ÁreaGeográfica | G1: Cant | H1: SumOfMateriales$ | I1: SumOfManoObra$ | J1: SumOfIngenieria$ | K1: SumOfExtras$ | L1: SumOfFinancieros$ | M1: SumOfDerechos$ | N1: SumOfCostoTotal$ | O1: FirstOfFila | P1: SumOfATR$ | Q1: Postes | R1: Conductor | S1: Vano | T1: VolumenZanja | U1: Unidad | V1: m2 | W1: CantMobPCComOt | X1: CantTrbtOtC | Y1: Cant | Z1: m2 | AA1: Fecha | AB1: Materiales | AC1: Mobra | AD1: CostoTotal | AE1: Postes | AF1: Conductor | AG1: Finv | AH1: Inversiones | AJ1: Condicion | AK1: Valor | AL1: Rango | AN1: Codigo | AV1: CostoReferencia | AW1: Cantidad | AX1: CostoReal | AY1: FactorEficienciaPrecio | AZ1: FactorAsimetria | BA1: FactorEficienciaCantidad | BB1: CostoEficiente
A2: Edechi Proy con cta 2022 I | B2: AINAP | C2: AINAPBO | D2: AINAPS007A00000000 | E2: 2022-06-30 | F2: BOCAS DEL TORO | H2: 1371.67 | I2: 301.1 | K2: 0 | N2: 1672.77 | P2: 0 | Q2: =IF(OR(VLOOKUP($B2,Formulacion!$A:$BE,MATCH(Q$1,Formulacion!$1:$1,0),FALSE)="NA",$D2=0),"NA",IF($B2="DLABT",MID($D2,PosteInicioBT,PosteFinBT-PosteInicioBT+1)*1,MID($D2,PosteInicio,PosteFin-PosteInicio+1)*1)) -> NA | R2: =IF(OR(VLOOKUP($B2,Formulacion!$A:$BE,MATCH(R$1,Formulacion!$1:$1,0),FALSE)="NA",$D2=0),"NA",IF(OR($B2="DLABT",$B2="DLSBT"),MID($D2,CondInicioBT,CondFinBT-CondInicioBT+1)*1,MID($D2,CondInicio,CondFin-CondInicio+1)*1)) -> NA | S2: =IF(Q2="NA","NA",IF(Q2=0,"SP",R2/Q2)) -> NA | T2: =IF(OR(VLOOKUP($B2,Formulacion!$A:$BE,MATCH(T$1,Formulacion!$1:$1,0),FALSE)="NA",$D2=0),"NA",IF($B2="DLSBT",MID($D2,ZanjaInicioBT,ZanjaFinBT-ZanjaInicioBT+1)*1,MID($D2,ZanjaInicio,ZanjaFin-ZanjaInicio+1)*1)) -> NA | U2: 1 | V2: =IF(OR(VLOOKUP($B2,Formulacion!$A:$BE,MATCH(V$1,Formulacion!$1:$1,0),FALSE)="NA",$D2=0),"NA",MID($D2,m2Inicio+INDIRECT(B2),m2Fin-m2Inicio+1)*1) -> NA | W2: =IF(OR(VLOOKUP($B2,Formulacion!$A:$BE,MATCH(W$1,Formulacion!$1:$1,0),FALSE)="NA",$D2=0),"NA",RIGHT($D2,4)*1) -> NA | X2: =IF(OR(VLOOKUP($B2,Formulacion!$A:$BE,MATCH(X$1,Formulacion!$1:$1,0),FALSE)="NA",$D2=0),"NA",RIGHT($D2,3)*1) -> NA | Y2: =IF(OR(AND(W2="NA",X2="NA"),AND(W2="NA",X2>CantTrbtOtCMin),AND(W2>CantTrbtOtCMin,X2="NA")),1,0) -> 1 | Z2: =IF(VLOOKUP($B2,Formulacion!$A:$BE,MATCH(Z$1,Formulacion!$1:$1,0),FALSE)="NA",1,IF(V2<=m2Min,0,1)) -> 1 | AA2: =IF(VLOOKUP($B2,Formulacion!$A:$BE,MATCH(AA$1,Formulacion!$1:$1,0),FALSE)="NA",1,IF(OR(E2<=FechaMin,E2>FechaMax),0,1)) -> 1 | AB2: =IF(VLOOKUP($B2,Formulacion!$A:$BE,MATCH(AB$1,Formulacion!$1:$1,0),FALSE)="NA",1,IF(H2<=MaterialesMin,0,1)) -> 1 | AC2: =IF(VLOOKUP($B2,Formulacion!$A:$BE,MATCH(AC$1,Formulacion!$1:$1,0),FALSE)="NA",1,IF(N2=0,0,IF(OR(I2/N2<=MObraMin,I2/N2>=MObraMax),MDOmin,1))) -> 1 | AD2: =IF(VLOOKUP($B2,Formulacion!$A:$BE,MATCH(AD$1,Formulacion!$1:$1,0),FALSE)="NA",1,IF(N2<=CostoTotalMin,0,1)) -> 1 | AE2: =IF(VLOOKUP($B2,Formulacion!$A:$BE,MATCH(AE$1,Formulacion!$1:$1,0),FALSE)="NA",1,IF(Q2<=PostesMin,0,1)) -> 1 | AF2: =IF(VLOOKUP($B2,Formulacion!$A:$BE,MATCH(AF$1,Formulacion!$1:$1,0),FALSE)="NA",1,IF(R2<=INDIRECT(VLOOKUP(B2,Formulacion!$A:$BE,2,FALSE)),0,1)) -> 1 | AG2: =Y2*Z2*AA2*AB2*AC2*AD2*MAX(AE2,AF2) -> 1 | AH2: =N2*AG2 -> 1672.77 | AI2: =IF(OR(E2<=FechaMin,E2>FechaMax),0,1) -> 1 | AJ2: =IF(VLOOKUP($B2,Formulacion!$A:$BE,MATCH(AJ$1,Formulacion!$1:$1,0),FALSE)="NA","NA",HLOOKUP(VLOOKUP($B2,Formulacion!$A:$BE,MATCH(AJ$1,Formulacion!$1:$1,0),FALSE),$Q:$Z,ROW(AJ2),FALSE)) -> NA | AK2: =IF(VLOOKUP($B2,Formulacion!$A:$BE,MATCH(AK$1,Formulacion!$1:$1,0),FALSE)="NA",1,VLOOKUP($B2,Formulacion!$A:$BE,MATCH(AK$1,Formulacion!$1:$1,0),FALSE)) -> 1 | AL2: =IF(VLOOKUP($B2,Formulacion!$A:$BE,MATCH(AL$1,Formulacion!$1:$1,0),FALSE)="NA",1,VLOOKUP($B2,Formulacion!$A:$BE,MATCH(AL$1,Formulacion!$1:$1,0),FALSE)) -> 1 | AM2: =IF(AJ2="NA",1,IF(AJ2<=AK2*(1+AL2),"CU","NC")) -> 1 | AN2: =IF(VLOOKUP($B2,Formulacion!$A:$BE,MATCH(AN$1,Formulacion!$1:$1,0),FALSE)="NA","NA",IF(D2=0,"",VLOOKUP($B2,Formulacion!$A:$BE,MATCH(AN$1,Formulacion!$1:$1,0),FALSE))) -> NA | AO2: =IF(OR(MID(AN2,1,2)="",MID(AN2,1,2)="NA"),"X",MID(D2,MID(AN2,1,2),MID(AN2,3,2))) -> X | AP2: =IF(MID(AN2,5,2)="","",MID(D2,MID(AN2,5,2),MID(AN2,7,2))) ->  | AQ2: =IF(MID(AN2,9,2)="","",MID(D2,MID(AN2,9,2),MID(AN2,11,2))) ->  | AR2: =IF(MID(AN2,13,2)="","",MID(D2,MID(AN2,13,2),MID(AN2,15,2))) ->  | AS2: =IF(MID(AN2,17,2)="","",MID(D2,MID(AN2,17,2),MID(AN2,19,2))) ->  | AT2: =IF(MID(AN2,21,2)="","",MID(D2,MID(AN2,21,2),MID(AN2,23,2))) ->  | AU2: =IF(MID(AN2,25,2)="","",MID(D2,MID(AN2,25,2),MID(AN2,27,2))) ->  | AV2: NA | AW2: =IF(VLOOKUP($B2,Formulacion!$A:$BE,MATCH(AW$1,Formulacion!$1:$1,0),FALSE)="NA","NA",HLOOKUP(VLOOKUP($B2,Formulacion!$A:$BE,MATCH(AW$1,Formulacion!$1:$1,0),FALSE),$Q:$Z,ROW(AW2),FALSE)) -> NA | AX2: =IF(AV2="NA","NA",IF(AW2=0,0,N2/AW2)) -> NA | AY2: =IFERROR(IF(OR(AX2="NA",AM2="NC"),1,IF(AX2<AV2,1,AV2/AX2)),100%) -> 1 | AZ2: =IF(VLOOKUP($B2,Formulacion!$A:$BE,MATCH(AZ$1,Formulacion!$1:$1,0),FALSE)="NA",1,VLOOKUP($B2,Formulacion!$A:$BE,MATCH(AZ$1,Formulacion!$1:$1,0),FALSE)) -> 0.9 | BA2: =IF(VLOOKUP($B2,Formulacion!$A:$BE,MATCH(BA$1,Formulacion!$1:$1,0),FALSE)="NA",1,VLOOKUP($B2,Formulacion!$A:$BE,MATCH(BA$1,Formulacion!$1:$1,0),FALSE)) -> 1 | BB2: =AH2*AY2*AZ2*BA2 -> 1505.493
A3: Edechi Proy con cta 2022 I | B3: CMEDI | C3: EC-CMEDI-BOCASDELTORO | D3: CMEDIMBSNO815 | E3: 2022-06-30 | F3: Chiriqui | H3: 29323.39 | I3: 11448.84 | K3: 0 | N3: 40772.23 | P3: 0 | Q3: =IF(OR(VLOOKUP($B3,Formulacion!$A:$BE,MATCH(Q$1,Formulacion!$1:$1,0),FALSE)="NA",$D3=0),"NA",IF($B3="DLABT",MID($D3,PosteInicioBT,PosteFinBT-PosteInicioBT+1)*1,MID($D3,PosteInicio,PosteFin-PosteInicio+1)*1)) -> NA | R3: =IF(OR(VLOOKUP($B3,Formulacion!$A:$BE,MATCH(R$1,Formulacion!$1:$1,0),FALSE)="NA",$D3=0),"NA",IF(OR($B3="DLABT",$B3="DLSBT"),MID($D3,CondInicioBT,CondFinBT-CondInicioBT+1)*1,MID($D3,CondInicio,CondFin-CondInicio+1)*1)) -> NA | S3: =IF(Q3="NA","NA",IF(Q3=0,"SP",R3/Q3)) -> NA | T3: =IF(OR(VLOOKUP($B3,Formulacion!$A:$BE,MATCH(T$1,Formulacion!$1:$1,0),FALSE)="NA",$D3=0),"NA",IF($B3="DLSBT",MID($D3,ZanjaInicioBT,ZanjaFinBT-ZanjaInicioBT+1)*1,MID($D3,ZanjaInicio,ZanjaFin-ZanjaInicio+1)*1)) -> NA | U3: 1 | V3: =IF(OR(VLOOKUP($B3,Formulacion!$A:$BE,MATCH(V$1,Formulacion!$1:$1,0),FALSE)="NA",$D3=0),"NA",MID($D3,m2Inicio+INDIRECT(B3),m2Fin-m2Inicio+1)*1) -> NA | W3: =IF(OR(VLOOKUP($B3,Formulacion!$A:$BE,MATCH(W$1,Formulacion!$1:$1,0),FALSE)="NA",$D3=0),"NA",RIGHT($D3,4)*1) -> NA | X3: =IF(OR(VLOOKUP($B3,Formulacion!$A:$BE,MATCH(X$1,Formulacion!$1:$1,0),FALSE)="NA",$D3=0),"NA",RIGHT($D3,3)*1) -> 815 | Y3: =IF(OR(AND(W3="NA",X3="NA"),AND(W3="NA",X3>CantTrbtOtCMin),AND(W3>CantTrbtOtCMin,X3="NA")),1,0) -> 1 | Z3: =IF(VLOOKUP($B3,Formulacion!$A:$BE,MATCH(Z$1,Formulacion!$1:$1,0),FALSE)="NA",1,IF(V3<=m2Min,0,1)) -> 1 | AA3: =IF(VLOOKUP($B3,Formulacion!$A:$BE,MATCH(AA$1,Formulacion!$1:$1,0),FALSE)="NA",1,IF(OR(E3<=FechaMin,E3>FechaMax),0,1)) -> 1 | AB3: =IF(VLOOKUP($B3,Formulacion!$A:$BE,MATCH(AB$1,Formulacion!$1:$1,0),FALSE)="NA",1,IF(H3<=MaterialesMin,0,1)) -> 1 | AC3: =IF(VLOOKUP($B3,Formulacion!$A:$BE,MATCH(AC$1,Formulacion!$1:$1,0),FALSE)="NA",1,IF(N3=0,0,IF(OR(I3/N3<=MObraMin,I3/N3>=MObraMax),MDOmin,1))) -> 1 | AD3: =IF(VLOOKUP($B3,Formulacion!$A:$BE,MATCH(AD$1,Formulacion!$1:$1,0),FALSE)="NA",1,IF(N3<=CostoTotalMin,0,1)) -> 1 | AE3: =IF(VLOOKUP($B3,Formulacion!$A:$BE,MATCH(AE$1,Formulacion!$1:$1,0),FALSE)="NA",1,IF(Q3<=PostesMin,0,1)) -> 1 | AF3: =IF(VLOOKUP($B3,Formulacion!$A:$BE,MATCH(AF$1,Formulacion!$1:$1,0),FALSE)="NA",1,IF(R3<=INDIRECT(VLOOKUP(B3,Formulacion!$A:$BE,2,FALSE)),0,1)) -> 1 | AG3: =Y3*Z3*AA3*AB3*AC3*AD3*MAX(AE3,AF3) -> 1 | AH3: =N3*AG3 -> 40772.23 | AI3: 1 | AJ3: =IF(VLOOKUP($B3,Formulacion!$A:$BE,MATCH(AJ$1,Formulacion!$1:$1,0),FALSE)="NA","NA",HLOOKUP(VLOOKUP($B3,Formulacion!$A:$BE,MATCH(AJ$1,Formulacion!$1:$1,0),FALSE),$Q:$Z,ROW(AJ3),FALSE)) -> NA | AK3: =IF(VLOOKUP($B3,Formulacion!$A:$BE,MATCH(AK$1,Formulacion!$1:$1,0),FALSE)="NA",1,VLOOKUP($B3,Formulacion!$A:$BE,MATCH(AK$1,Formulacion!$1:$1,0),FALSE)) -> 1 | AL3: =IF(VLOOKUP($B3,Formulacion!$A:$BE,MATCH(AL$1,Formulacion!$1:$1,0),FALSE)="NA",1,VLOOKUP($B3,Formulacion!$A:$BE,MATCH(AL$1,Formulacion!$1:$1,0),FALSE)) -> 1 | AM3: =IF(AJ3="NA",1,IF(AJ3<=AK3*(1+AL3),"CU","NC")) -> 1 | AN3: =IF(VLOOKUP($B3,Formulacion!$A:$BE,MATCH(AN$1,Formulacion!$1:$1,0),FALSE)="NA","NA",IF(D3=0,"",VLOOKUP($B3,Formulacion!$A:$BE,MATCH(AN$1,Formulacion!$1:$1,0),FALSE))) -> NA | AO3: =IF(OR(MID(AN3,1,2)="",MID(AN3,1,2)="NA"),"X",MID(D3,MID(AN3,1,2),MID(AN3,3,2))) -> X | AP3: =IF(MID(AN3,5,2)="","",MID(D3,MID(AN3,5,2),MID(AN3,7,2))) ->  | AQ3: =IF(MID(AN3,9,2)="","",MID(D3,MID(AN3,9,2),MID(AN3,11,2))) ->  | AR3: =IF(MID(AN3,13,2)="","",MID(D3,MID(AN3,13,2),MID(AN3,15,2))) ->  | AS3: =IF(MID(AN3,17,2)="","",MID(D3,MID(AN3,17,2),MID(AN3,19,2))) ->  | AT3: =IF(MID(AN3,21,2)="","",MID(D3,MID(AN3,21,2),MID(AN3,23,2))) ->  | AU3: =IF(MID(AN3,25,2)="","",MID(D3,MID(AN3,25,2),MID(AN3,27,2))) ->  | AV3: NA | AW3: =IF(VLOOKUP($B3,Formulacion!$A:$BE,MATCH(AW$1,Formulacion!$1:$1,0),FALSE)="NA","NA",HLOOKUP(VLOOKUP($B3,Formulacion!$A:$BE,MATCH(AW$1,Formulacion!$1:$1,0),FALSE),$Q:$Z,ROW(AW3),FALSE)) -> NA | AX3: =IF(AV3="NA","NA",IF(AW3=0,0,N3/AW3)) -> NA | AY3: =AY2 -> 1 | AZ3: =IF(VLOOKUP($B3,Formulacion!$A:$BE,MATCH(AZ$1,Formulacion!$1:$1,0),FALSE)="NA",1,VLOOKUP($B3,Formulacion!$A:$BE,MATCH(AZ$1,Formulacion!$1:$1,0),FALSE)) -> 0.9 | BA3: =IF(VLOOKUP($B3,Formulacion!$A:$BE,MATCH(BA$1,Formulacion!$1:$1,0),FALSE)="NA",1,VLOOKUP($B3,Formulacion!$A:$BE,MATCH(BA$1,Formulacion!$1:$1,0),FALSE)) -> 1 | BB3: =AH3*AY3*AZ3*BA3 -> 36695.007
A4: Edechi Proy con cta 2022 I | B4: CMEDI | C4: EC-CMEDI-BOCASDELTORO | D4: CMEDIMBDNO007 | E4: 2022-06-30 | F4: Chiriqui | H4: 3847.77 | I4: 102.61 | K4: 0 | N4: 3950.38 | P4: 0 | Q4: =IF(OR(VLOOKUP($B4,Formulacion!$A:$BE,MATCH(Q$1,Formulacion!$1:$1,0),FALSE)="NA",$D4=0),"NA",IF($B4="DLABT",MID($D4,PosteInicioBT,PosteFinBT-PosteInicioBT+1)*1,MID($D4,PosteInicio,PosteFin-PosteInicio+1)*1)) -> NA | R4: =IF(OR(VLOOKUP($B4,Formulacion!$A:$BE,MATCH(R$1,Formulacion!$1:$1,0),FALSE)="NA",$D4=0),"NA",IF(OR($B4="DLABT",$B4="DLSBT"),MID($D4,CondInicioBT,CondFinBT-CondInicioBT+1)*1,MID($D4,CondInicio,CondFin-CondInicio+1)*1)) -> NA | S4: NA | T4: =IF(OR(VLOOKUP($B4,Formulacion!$A:$BE,MATCH(T$1,Formulacion!$1:$1,0),FALSE)="NA",$D4=0),"NA",IF($B4="DLSBT",MID($D4,ZanjaInicioBT,ZanjaFinBT-ZanjaInicioBT+1)*1,MID($D4,ZanjaInicio,ZanjaFin-ZanjaInicio+1)*1)) -> NA | U4: 1 | V4: =IF(OR(VLOOKUP($B4,Formulacion!$A:$BE,MATCH(V$1,Formulacion!$1:$1,0),FALSE)="NA",$D4=0),"NA",MID($D4,m2Inicio+INDIRECT(B4),m2Fin-m2Inicio+1)*1) -> NA | W4: =IF(OR(VLOOKUP($B4,Formulacion!$A:$BE,MATCH(W$1,Formulacion!$1:$1,0),FALSE)="NA",$D4=0),"NA",RIGHT($D4,4)*1) -> NA | X4: =IF(OR(VLOOKUP($B4,Formulacion!$A:$BE,MATCH(X$1,Formulacion!$1:$1,0),FALSE)="NA",$D4=0),"NA",RIGHT($D4,3)*1) -> 7 | Y4: 1 | Z4: =IF(VLOOKUP($B4,Formulacion!$A:$BE,MATCH(Z$1,Formulacion!$1:$1,0),FALSE)="NA",1,IF(V4<=m2Min,0,1)) -> 1 | AA4: =IF(VLOOKUP($B4,Formulacion!$A:$BE,MATCH(AA$1,Formulacion!$1:$1,0),FALSE)="NA",1,IF(OR(E4<=FechaMin,E4>FechaMax),0,1)) -> 1 | AB4: =IF(VLOOKUP($B4,Formulacion!$A:$BE,MATCH(AB$1,Formulacion!$1:$1,0),FALSE)="NA",1,IF(H4<=MaterialesMin,0,1)) -> 1 | AC4: =IF(VLOOKUP($B4,Formulacion!$A:$BE,MATCH(AC$1,Formulacion!$1:$1,0),FALSE)="NA",1,IF(N4=0,0,IF(OR(I4/N4<=MObraMin,I4/N4>=MObraMax),MDOmin,1))) -> 1 | AD4: =IF(VLOOKUP($B4,Formulacion!$A:$BE,MATCH(AD$1,Formulacion!$1:$1,0),FALSE)="NA",1,IF(N4<=CostoTotalMin,0,1)) -> 1 | AE4: =IF(VLOOKUP($B4,Formulacion!$A:$BE,MATCH(AE$1,Formulacion!$1:$1,0),FALSE)="NA",1,IF(Q4<=PostesMin,0,1)) -> 1 | AF4: =IF(VLOOKUP($B4,Formulacion!$A:$BE,MATCH(AF$1,Formulacion!$1:$1,0),FALSE)="NA",1,IF(R4<=INDIRECT(VLOOKUP(B4,Formulacion!$A:$BE,2,FALSE)),0,1)) -> 1 | AG4: 1 | AH4: 3950.38 | AI4: 1 | AJ4: =IF(VLOOKUP($B4,Formulacion!$A:$BE,MATCH(AJ$1,Formulacion!$1:$1,0),FALSE)="NA","NA",HLOOKUP(VLOOKUP($B4,Formulacion!$A:$BE,MATCH(AJ$1,Formulacion!$1:$1,0),FALSE),$Q:$Z,ROW(AJ4),FALSE)) -> NA | AK4: =IF(VLOOKUP($B4,Formulacion!$A:$BE,MATCH(AK$1,Formulacion!$1:$1,0),FALSE)="NA",1,VLOOKUP($B4,Formulacion!$A:$BE,MATCH(AK$1,Formulacion!$1:$1,0),FALSE)) -> 1 | AL4: =IF(VLOOKUP($B4,Formulacion!$A:$BE,MATCH(AL$1,Formulacion!$1:$1,0),FALSE)="NA",1,VLOOKUP($B4,Formulacion!$A:$BE,MATCH(AL$1,Formulacion!$1:$1,0),FALSE)) -> 1 | AM4: 1 | AN4: =IF(VLOOKUP($B4,Formulacion!$A:$BE,MATCH(AN$1,Formulacion!$1:$1,0),FALSE)="NA","NA",IF(D4=0,"",VLOOKUP($B4,Formulacion!$A:$BE,MATCH(AN$1,Formulacion!$1:$1,0),FALSE))) -> NA | AO4: X | AV4: NA | AW4: =IF(VLOOKUP($B4,Formulacion!$A:$BE,MATCH(AW$1,Formulacion!$1:$1,0),FALSE)="NA","NA",HLOOKUP(VLOOKUP($B4,Formulacion!$A:$BE,MATCH(AW$1,Formulacion!$1:$1,0),FALSE),$Q:$Z,ROW(AW4),FALSE)) -> NA | AX4: NA | AY4: =AY3 -> 1 | AZ4: =IF(VLOOKUP($B4,Formulacion!$A:$BE,MATCH(AZ$1,Formulacion!$1:$1,0),FALSE)="NA",1,VLOOKUP($B4,Formulacion!$A:$BE,MATCH(AZ$1,Formulacion!$1:$1,0),FALSE)) -> 0.9 | BA4: =IF(VLOOKUP($B4,Formulacion!$A:$BE,MATCH(BA$1,Formulacion!$1:$1,0),FALSE)="NA",1,VLOOKUP($B4,Formulacion!$A:$BE,MATCH(BA$1,Formulacion!$1:$1,0),FALSE)) -> 1 | BB4: 3555.342
A5: Edechi Proy con cta 2022 I | B5: CMEDI | C5: EC-CMEDI-BOCASDELTORO | D5: CMEDITBDTI002 | E5: 2022-06-30 | F5: Chiriqui | H5: 2254.07 | I5: 96.66 | K5: 0 | N5: 2350.73 | P5: 0 | Q5: =IF(OR(VLOOKUP($B5,Formulacion!$A:$BE,MATCH(Q$1,Formulacion!$1:$1,0),FALSE)="NA",$D5=0),"NA",IF($B5="DLABT",MID($D5,PosteInicioBT,PosteFinBT-PosteInicioBT+1)*1,MID($D5,PosteInicio,PosteFin-PosteInicio+1)*1)) -> NA | R5: =IF(OR(VLOOKUP($B5,Formulacion!$A:$BE,MATCH(R$1,Formulacion!$1:$1,0),FALSE)="NA",$D5=0),"NA",IF(OR($B5="DLABT",$B5="DLSBT"),MID($D5,CondInicioBT,CondFinBT-CondInicioBT+1)*1,MID($D5,CondInicio,CondFin-CondInicio+1)*1)) -> NA | S5: NA | T5: =IF(OR(VLOOKUP($B5,Formulacion!$A:$BE,MATCH(T$1,Formulacion!$1:$1,0),FALSE)="NA",$D5=0),"NA",IF($B5="DLSBT",MID($D5,ZanjaInicioBT,ZanjaFinBT-ZanjaInicioBT+1)*1,MID($D5,ZanjaInicio,ZanjaFin-ZanjaInicio+1)*1)) -> NA | U5: 1 | V5: =IF(OR(VLOOKUP($B5,Formulacion!$A:$BE,MATCH(V$1,Formulacion!$1:$1,0),FALSE)="NA",$D5=0),"NA",MID($D5,m2Inicio+INDIRECT(B5),m2Fin-m2Inicio+1)*1) -> NA | W5: =IF(OR(VLOOKUP($B5,Formulacion!$A:$BE,MATCH(W$1,Formulacion!$1:$1,0),FALSE)="NA",$D5=0),"NA",RIGHT($D5,4)*1) -> NA | X5: =IF(OR(VLOOKUP($B5,Formulacion!$A:$BE,MATCH(X$1,Formulacion!$1:$1,0),FALSE)="NA",$D5=0),"NA",RIGHT($D5,3)*1) -> 2 | Y5: 1 | Z5: =IF(VLOOKUP($B5,Formulacion!$A:$BE,MATCH(Z$1,Formulacion!$1:$1,0),FALSE)="NA",1,IF(V5<=m2Min,0,1)) -> 1 | AA5: =IF(VLOOKUP($B5,Formulacion!$A:$BE,MATCH(AA$1,Formulacion!$1:$1,0),FALSE)="NA",1,IF(OR(E5<=FechaMin,E5>FechaMax),0,1)) -> 1 | AB5: =IF(VLOOKUP($B5,Formulacion!$A:$BE,MATCH(AB$1,Formulacion!$1:$1,0),FALSE)="NA",1,IF(H5<=MaterialesMin,0,1)) -> 1 | AC5: =IF(VLOOKUP($B5,Formulacion!$A:$BE,MATCH(AC$1,Formulacion!$1:$1,0),FALSE)="NA",1,IF(N5=0,0,IF(OR(I5/N5<=MObraMin,I5/N5>=MObraMax),MDOmin,1))) -> 1 | AD5: =IF(VLOOKUP($B5,Formulacion!$A:$BE,MATCH(AD$1,Formulacion!$1:$1,0),FALSE)="NA",1,IF(N5<=CostoTotalMin,0,1)) -> 1 | AE5: =IF(VLOOKUP($B5,Formulacion!$A:$BE,MATCH(AE$1,Formulacion!$1:$1,0),FALSE)="NA",1,IF(Q5<=PostesMin,0,1)) -> 1 | AF5: =IF(VLOOKUP($B5,Formulacion!$A:$BE,MATCH(AF$1,Formulacion!$1:$1,0),FALSE)="NA",1,IF(R5<=INDIRECT(VLOOKUP(B5,Formulacion!$A:$BE,2,FALSE)),0,1)) -> 1 | AG5: 1 | AH5: 2350.73 | AI5: 1 | AJ5: =IF(VLOOKUP($B5,Formulacion!$A:$BE,MATCH(AJ$1,Formulacion!$1:$1,0),FALSE)="NA","NA",HLOOKUP(VLOOKUP($B5,Formulacion!$A:$BE,MATCH(AJ$1,Formulacion!$1:$1,0),FALSE),$Q:$Z,ROW(AJ5),FALSE)) -> NA | AK5: =IF(VLOOKUP($B5,Formulacion!$A:$BE,MATCH(AK$1,Formulacion!$1:$1,0),FALSE)="NA",1,VLOOKUP($B5,Formulacion!$A:$BE,MATCH(AK$1,Formulacion!$1:$1,0),FALSE)) -> 1 | AL5: =IF(VLOOKUP($B5,Formulacion!$A:$BE,MATCH(AL$1,Formulacion!$1:$1,0),FALSE)="NA",1,VLOOKUP($B5,Formulacion!$A:$BE,MATCH(AL$1,Formulacion!$1:$1,0),FALSE)) -> 1 | AM5: 1 | AN5: =IF(VLOOKUP($B5,Formulacion!$A:$BE,MATCH(AN$1,Formulacion!$1:$1,0),FALSE)="NA","NA",IF(D5=0,"",VLOOKUP($B5,Formulacion!$A:$BE,MATCH(AN$1,Formulacion!$1:$1,0),FALSE))) -> NA | AO5: X | AV5: NA | AW5: =IF(VLOOKUP($B5,Formulacion!$A:$BE,MATCH(AW$1,Formulacion!$1:$1,0),FALSE)="NA","NA",HLOOKUP(VLOOKUP($B5,Formulacion!$A:$BE,MATCH(AW$1,Formulacion!$1:$1,0),FALSE),$Q:$Z,ROW(AW5),FALSE)) -> NA | AX5: NA | AY5: 1 | AZ5: =IF(VLOOKUP($B5,Formulacion!$A:$BE,MATCH(AZ$1,Formulacion!$1:$1,0),FALSE)="NA",1,VLOOKUP($B5,Formulacion!$A:$BE,MATCH(AZ$1,Formulacion!$1:$1,0),FALSE)) -> 0.9 | BA5: =IF(VLOOKUP($B5,Formulacion!$A:$BE,MATCH(BA$1,Formulacion!$1:$1,0),FALSE)="NA",1,VLOOKUP($B5,Formulacion!$A:$BE,MATCH(BA$1,Formulacion!$1:$1,0),FALSE)) -> 1 | BB5: 2115.657
A6: Edechi Proy con cta 2022 I | B6: CMEDI | C6: EC-CMEDI-BOCASDELTORO | D6: CMEDITMTTT001 | E6: 2022-06-30 | F6: Chiriqui | H6: 4092.76 | I6: 114.9 | K6: 0 | N6: 4207.66 | P6: 0 | Q6: =IF(OR(VLOOKUP($B6,Formulacion!$A:$BE,MATCH(Q$1,Formulacion!$1:$1,0),FALSE)="NA",$D6=0),"NA",IF($B6="DLABT",MID($D6,PosteInicioBT,PosteFinBT-PosteInicioBT+1)*1,MID($D6,PosteInicio,PosteFin-PosteInicio+1)*1)) -> NA | R6: =IF(OR(VLOOKUP($B6,Formulacion!$A:$BE,MATCH(R$1,Formulacion!$1:$1,0),FALSE)="NA",$D6=0),"NA",IF(OR($B6="DLABT",$B6="DLSBT"),MID($D6,CondInicioBT,CondFinBT-CondInicioBT+1)*1,MID($D6,CondInicio,CondFin-CondInicio+1)*1)) -> NA | S6: NA | T6: =IF(OR(VLOOKUP($B6,Formulacion!$A:$BE,MATCH(T$1,Formulacion!$1:$1,0),FALSE)="NA",$D6=0),"NA",IF($B6="DLSBT",MID($D6,ZanjaInicioBT,ZanjaFinBT-ZanjaInicioBT+1)*1,MID($D6,ZanjaInicio,ZanjaFin-ZanjaInicio+1)*1)) -> NA | U6: 1 | V6: =IF(OR(VLOOKUP($B6,Formulacion!$A:$BE,MATCH(V$1,Formulacion!$1:$1,0),FALSE)="NA",$D6=0),"NA",MID($D6,m2Inicio+INDIRECT(B6),m2Fin-m2Inicio+1)*1) -> NA | W6: =IF(OR(VLOOKUP($B6,Formulacion!$A:$BE,MATCH(W$1,Formulacion!$1:$1,0),FALSE)="NA",$D6=0),"NA",RIGHT($D6,4)*1) -> NA | X6: =IF(OR(VLOOKUP($B6,Formulacion!$A:$BE,MATCH(X$1,Formulacion!$1:$1,0),FALSE)="NA",$D6=0),"NA",RIGHT($D6,3)*1) -> 1 | Y6: 1 | Z6: =IF(VLOOKUP($B6,Formulacion!$A:$BE,MATCH(Z$1,Formulacion!$1:$1,0),FALSE)="NA",1,IF(V6<=m2Min,0,1)) -> 1 | AA6: =IF(VLOOKUP($B6,Formulacion!$A:$BE,MATCH(AA$1,Formulacion!$1:$1,0),FALSE)="NA",1,IF(OR(E6<=FechaMin,E6>FechaMax),0,1)) -> 1 | AB6: =IF(VLOOKUP($B6,Formulacion!$A:$BE,MATCH(AB$1,Formulacion!$1:$1,0),FALSE)="NA",1,IF(H6<=MaterialesMin,0,1)) -> 1 | AC6: =IF(VLOOKUP($B6,Formulacion!$A:$BE,MATCH(AC$1,Formulacion!$1:$1,0),FALSE)="NA",1,IF(N6=0,0,IF(OR(I6/N6<=MObraMin,I6/N6>=MObraMax),MDOmin,1))) -> 1 | AD6: =IF(VLOOKUP($B6,Formulacion!$A:$BE,MATCH(AD$1,Formulacion!$1:$1,0),FALSE)="NA",1,IF(N6<=CostoTotalMin,0,1)) -> 1 | AE6: =IF(VLOOKUP($B6,Formulacion!$A:$BE,MATCH(AE$1,Formulacion!$1:$1,0),FALSE)="NA",1,IF(Q6<=PostesMin,0,1)) -> 1 | AF6: =IF(VLOOKUP($B6,Formulacion!$A:$BE,MATCH(AF$1,Formulacion!$1:$1,0),FALSE)="NA",1,IF(R6<=INDIRECT(VLOOKUP(B6,Formulacion!$A:$BE,2,FALSE)),0,1)) -> 1 | AG6: 1 | AH6: 4207.66 | AI6: 1 | AJ6: =IF(VLOOKUP($B6,Formulacion!$A:$BE,MATCH(AJ$1,Formulacion!$1:$1,0),FALSE)="NA","NA",HLOOKUP(VLOOKUP($B6,Formulacion!$A:$BE,MATCH(AJ$1,Formulacion!$1:$1,0),FALSE),$Q:$Z,ROW(AJ6),FALSE)) -> NA | AK6: =IF(VLOOKUP($B6,Formulacion!$A:$BE,MATCH(AK$1,Formulacion!$1:$1,0),FALSE)="NA",1,VLOOKUP($B6,Formulacion!$A:$BE,MATCH(AK$1,Formulacion!$1:$1,0),FALSE)) -> 1 | AL6: =IF(VLOOKUP($B6,Formulacion!$A:$BE,MATCH(AL$1,Formulacion!$1:$1,0),FALSE)="NA",1,VLOOKUP($B6,Formulacion!$A:$BE,MATCH(AL$1,Formulacion!$1:$1,0),FALSE)) -> 1 | AM6: 1 | AN6: =IF(VLOOKUP($B6,Formulacion!$A:$BE,MATCH(AN$1,Formulacion!$1:$1,0),FALSE)="NA","NA",IF(D6=0,"",VLOOKUP($B6,Formulacion!$A:$BE,MATCH(AN$1,Formulacion!$1:$1,0),FALSE))) -> NA | AO6: X | AV6: NA | AW6: =IF(VLOOKUP($B6,Formulacion!$A:$BE,MATCH(AW$1,Formulacion!$1:$1,0),FALSE)="NA","NA",HLOOKUP(VLOOKUP($B6,Formulacion!$A:$BE,MATCH(AW$1,Formulacion!$1:$1,0),FALSE),$Q:$Z,ROW(AW6),FALSE)) -> NA | AX6: NA | AY6: 1 | AZ6: =IF(VLOOKUP($B6,Formulacion!$A:$BE,MATCH(AZ$1,Formulacion!$1:$1,0),FALSE)="NA",1,VLOOKUP($B6,Formulacion!$A:$BE,MATCH(AZ$1,Formulacion!$1:$1,0),FALSE)) -> 0.9 | BA6: =IF(VLOOKUP($B6,Formulacion!$A:$BE,MATCH(BA$1,Formulacion!$1:$1,0),FALSE)="NA",1,VLOOKUP($B6,Formulacion!$A:$BE,MATCH(BA$1,Formulacion!$1:$1,0),FALSE)) -> 1 | BB6: 3786.894
A7: Edechi Proy con cta 2022 I | B7: PEQCO | C7: EC-5000-01 | D7: PEQCOO0001 | E7: 2022-06-30 | F7: Chiriqui | H7: 14358.91 | I7: 0 | K7: 0 | N7: 14358.91 | P7: 0 | Q7: =IF(OR(VLOOKUP($B7,Formulacion!$A:$BE,MATCH(Q$1,Formulacion!$1:$1,0),FALSE)="NA",$D7=0),"NA",IF($B7="DLABT",MID($D7,PosteInicioBT,PosteFinBT-PosteInicioBT+1)*1,MID($D7,PosteInicio,PosteFin-PosteInicio+1)*1)) -> NA | R7: =IF(OR(VLOOKUP($B7,Formulacion!$A:$BE,MATCH(R$1,Formulacion!$1:$1,0),FALSE)="NA",$D7=0),"NA",IF(OR($B7="DLABT",$B7="DLSBT"),MID($D7,CondInicioBT,CondFinBT-CondInicioBT+1)*1,MID($D7,CondInicio,CondFin-CondInicio+1)*1)) -> NA | S7: NA | T7: =IF(OR(VLOOKUP($B7,Formulacion!$A:$BE,MATCH(T$1,Formulacion!$1:$1,0),FALSE)="NA",$D7=0),"NA",IF($B7="DLSBT",MID($D7,ZanjaInicioBT,ZanjaFinBT-ZanjaInicioBT+1)*1,MID($D7,ZanjaInicio,ZanjaFin-ZanjaInicio+1)*1)) -> NA | U7: 1 | V7: =IF(OR(VLOOKUP($B7,Formulacion!$A:$BE,MATCH(V$1,Formulacion!$1:$1,0),FALSE)="NA",$D7=0),"NA",MID($D7,m2Inicio+INDIRECT(B7),m2Fin-m2Inicio+1)*1) -> NA | W7: =IF(OR(VLOOKUP($B7,Formulacion!$A:$BE,MATCH(W$1,Formulacion!$1:$1,0),FALSE)="NA",$D7=0),"NA",RIGHT($D7,4)*1) -> 1 | X7: =IF(OR(VLOOKUP($B7,Formulacion!$A:$BE,MATCH(X$1,Formulacion!$1:$1,0),FALSE)="NA",$D7=0),"NA",RIGHT($D7,3)*1) -> NA | Y7: 1 | Z7: =IF(VLOOKUP($B7,Formulacion!$A:$BE,MATCH(Z$1,Formulacion!$1:$1,0),FALSE)="NA",1,IF(V7<=m2Min,0,1)) -> 1 | AA7: =IF(VLOOKUP($B7,Formulacion!$A:$BE,MATCH(AA$1,Formulacion!$1:$1,0),FALSE)="NA",1,IF(OR(E7<=FechaMin,E7>FechaMax),0,1)) -> 1 | AB7: =IF(VLOOKUP($B7,Formulacion!$A:$BE,MATCH(AB$1,Formulacion!$1:$1,0),FALSE)="NA",1,IF(H7<=MaterialesMin,0,1)) -> 1 | AC7: =IF(VLOOKUP($B7,Formulacion!$A:$BE,MATCH(AC$1,Formulacion!$1:$1,0),FALSE)="NA",1,IF(N7=0,0,IF(OR(I7/N7<=MObraMin,I7/N7>=MObraMax),MDOmin,1))) -> 1 | AD7: =IF(VLOOKUP($B7,Formulacion!$A:$BE,MATCH(AD$1,Formulacion!$1:$1,0),FALSE)="NA",1,IF(N7<=CostoTotalMin,0,1)) -> 1 | AE7: =IF(VLOOKUP($B7,Formulacion!$A:$BE,MATCH(AE$1,Formulacion!$1:$1,0),FALSE)="NA",1,IF(Q7<=PostesMin,0,1)) -> 1 | AF7: =IF(VLOOKUP($B7,Formulacion!$A:$BE,MATCH(AF$1,Formulacion!$1:$1,0),FALSE)="NA",1,IF(R7<=INDIRECT(VLOOKUP(B7,Formulacion!$A:$BE,2,FALSE)),0,1)) -> 1 | AG7: 1 | AH7: 14358.91 | AI7: 1 | AJ7: =IF(VLOOKUP($B7,Formulacion!$A:$BE,MATCH(AJ$1,Formulacion!$1:$1,0),FALSE)="NA","NA",HLOOKUP(VLOOKUP($B7,Formulacion!$A:$BE,MATCH(AJ$1,Formulacion!$1:$1,0),FALSE),$Q:$Z,ROW(AJ7),FALSE)) -> NA | AK7: =IF(VLOOKUP($B7,Formulacion!$A:$BE,MATCH(AK$1,Formulacion!$1:$1,0),FALSE)="NA",1,VLOOKUP($B7,Formulacion!$A:$BE,MATCH(AK$1,Formulacion!$1:$1,0),FALSE)) -> 1 | AL7: =IF(VLOOKUP($B7,Formulacion!$A:$BE,MATCH(AL$1,Formulacion!$1:$1,0),FALSE)="NA",1,VLOOKUP($B7,Formulacion!$A:$BE,MATCH(AL$1,Formulacion!$1:$1,0),FALSE)) -> 1 | AM7: 1 | AN7: =IF(VLOOKUP($B7,Formulacion!$A:$BE,MATCH(AN$1,Formulacion!$1:$1,0),FALSE)="NA","NA",IF(D7=0,"",VLOOKUP($B7,Formulacion!$A:$BE,MATCH(AN$1,Formulacion!$1:$1,0),FALSE))) -> NA | AO7: X | AV7: NA | AW7: =IF(VLOOKUP($B7,Formulacion!$A:$BE,MATCH(AW$1,Formulacion!$1:$1,0),FALSE)="NA","NA",HLOOKUP(VLOOKUP($B7,Formulacion!$A:$BE,MATCH(AW$1,Formulacion!$1:$1,0),FALSE),$Q:$Z,ROW(AW7),FALSE)) -> NA | AX7: NA | AY7: 1 | AZ7: =IF(VLOOKUP($B7,Formulacion!$A:$BE,MATCH(AZ$1,Formulacion!$1:$1,0),FALSE)="NA",1,VLOOKUP($B7,Formulacion!$A:$BE,MATCH(AZ$1,Formulacion!$1:$1,0),FALSE)) -> 0.9 | BA7: =IF(VLOOKUP($B7,Formulacion!$A:$BE,MATCH(BA$1,Formulacion!$1:$1,0),FALSE)="NA",1,VLOOKUP($B7,Formulacion!$A:$BE,MATCH(BA$1,Formulacion!$1:$1,0),FALSE)) -> 1 | BB7: 12923.019
A8: Edechi Proy con cta 2022 I | B8: PPLIN | C8: EC-1500-03 | D8: PPLINAI | E8: 2022-06-30 | F8: Chiriqui | H8: 130089.76 | I8: 0 | K8: 0 | N8: 130089.76 | P8: 0 | Q8: =IF(OR(VLOOKUP($B8,Formulacion!$A:$BE,MATCH(Q$1,Formulacion!$1:$1,0),FALSE)="NA",$D8=0),"NA",IF($B8="DLABT",MID($D8,PosteInicioBT,PosteFinBT-PosteInicioBT+1)*1,MID($D8,PosteInicio,PosteFin-PosteInicio+1)*1)) -> NA | R8: =IF(OR(VLOOKUP($B8,Formulacion!$A:$BE,MATCH(R$1,Formulacion!$1:$1,0),FALSE)="NA",$D8=0),"NA",IF(OR($B8="DLABT",$B8="DLSBT"),MID($D8,CondInicioBT,CondFinBT-CondInicioBT+1)*1,MID($D8,CondInicio,CondFin-CondInicio+1)*1)) -> NA | S8: NA | T8: =IF(OR(VLOOKUP($B8,Formulacion!$A:$BE,MATCH(T$1,Formulacion!$1:$1,0),FALSE)="NA",$D8=0),"NA",IF($B8="DLSBT",MID($D8,ZanjaInicioBT,ZanjaFinBT-ZanjaInicioBT+1)*1,MID($D8,ZanjaInicio,ZanjaFin-ZanjaInicio+1)*1)) -> NA | U8: 1 | V8: =IF(OR(VLOOKUP($B8,Formulacion!$A:$BE,MATCH(V$1,Formulacion!$1:$1,0),FALSE)="NA",$D8=0),"NA",MID($D8,m2Inicio+INDIRECT(B8),m2Fin-m2Inicio+1)*1) -> NA | W8: =IF(OR(VLOOKUP($B8,Formulacion!$A:$BE,MATCH(W$1,Formulacion!$1:$1,0),FALSE)="NA",$D8=0),"NA",RIGHT($D8,4)*1) -> NA | X8: =IF(OR(VLOOKUP($B8,Formulacion!$A:$BE,MATCH(X$1,Formulacion!$1:$1,0),FALSE)="NA",$D8=0),"NA",RIGHT($D8,3)*1) -> NA | Y8: 1 | Z8: =IF(VLOOKUP($B8,Formulacion!$A:$BE,MATCH(Z$1,Formulacion!$1:$1,0),FALSE)="NA",1,IF(V8<=m2Min,0,1)) -> 1 | AA8: =IF(VLOOKUP($B8,Formulacion!$A:$BE,MATCH(AA$1,Formulacion!$1:$1,0),FALSE)="NA",1,IF(OR(E8<=FechaMin,E8>FechaMax),0,1)) -> 1 | AB8: =IF(VLOOKUP($B8,Formulacion!$A:$BE,MATCH(AB$1,Formulacion!$1:$1,0),FALSE)="NA",1,IF(H8<=MaterialesMin,0,1)) -> 1 | AC8: =IF(VLOOKUP($B8,Formulacion!$A:$BE,MATCH(AC$1,Formulacion!$1:$1,0),FALSE)="NA",1,IF(N8=0,0,IF(OR(I8/N8<=MObraMin,I8/N8>=MObraMax),MDOmin,1))) -> 1 | AD8: =IF(VLOOKUP($B8,Formulacion!$A:$BE,MATCH(AD$1,Formulacion!$1:$1,0),FALSE)="NA",1,IF(N8<=CostoTotalMin,0,1)) -> 1 | AE8: =IF(VLOOKUP($B8,Formulacion!$A:$BE,MATCH(AE$1,Formulacion!$1:$1,0),FALSE)="NA",1,IF(Q8<=PostesMin,0,1)) -> 1 | AF8: =IF(VLOOKUP($B8,Formulacion!$A:$BE,MATCH(AF$1,Formulacion!$1:$1,0),FALSE)="NA",1,IF(R8<=INDIRECT(VLOOKUP(B8,Formulacion!$A:$BE,2,FALSE)),0,1)) -> 1 | AG8: 1 | AH8: 130089.76 | AI8: 1 | AJ8: =IF(VLOOKUP($B8,Formulacion!$A:$BE,MATCH(AJ$1,Formulacion!$1:$1,0),FALSE)="NA","NA",HLOOKUP(VLOOKUP($B8,Formulacion!$A:$BE,MATCH(AJ$1,Formulacion!$1:$1,0),FALSE),$Q:$Z,ROW(AJ8),FALSE)) -> NA | AK8: =IF(VLOOKUP($B8,Formulacion!$A:$BE,MATCH(AK$1,Formulacion!$1:$1,0),FALSE)="NA",1,VLOOKUP($B8,Formulacion!$A:$BE,MATCH(AK$1,Formulacion!$1:$1,0),FALSE)) -> 1 | AL8: =IF(VLOOKUP($B8,Formulacion!$A:$BE,MATCH(AL$1,Formulacion!$1:$1,0),FALSE)="NA",1,VLOOKUP($B8,Formulacion!$A:$BE,MATCH(AL$1,Formulacion!$1:$1,0),FALSE)) -> 1 | AM8: 1 | AN8: =IF(VLOOKUP($B8,Formulacion!$A:$BE,MATCH(AN$1,Formulacion!$1:$1,0),FALSE)="NA","NA",IF(D8=0,"",VLOOKUP($B8,Formulacion!$A:$BE,MATCH(AN$1,Formulacion!$1:$1,0),FALSE))) -> NA | AO8: X | AV8: NA | AW8: =IF(VLOOKUP($B8,Formulacion!$A:$BE,MATCH(AW$1,Formulacion!$1:$1,0),FALSE)="NA","NA",HLOOKUP(VLOOKUP($B8,Formulacion!$A:$BE,MATCH(AW$1,Formulacion!$1:$1,0),FALSE),$Q:$Z,ROW(AW8),FALSE)) -> NA | AX8: NA | AY8: 1 | AZ8: =IF(VLOOKUP($B8,Formulacion!$A:$BE,MATCH(AZ$1,Formulacion!$1:$1,0),FALSE)="NA",1,VLOOKUP($B8,Formulacion!$A:$BE,MATCH(AZ$1,Formulacion!$1:$1,0),FALSE)) -> 0.9 | BA8: =IF(VLOOKUP($B8,Formulacion!$A:$BE,MATCH(BA$1,Formulacion!$1:$1,0),FALSE)="NA",1,VLOOKUP($B8,Formulacion!$A:$BE,MATCH(BA$1,Formulacion!$1:$1,0),FALSE)) -> 1 | BB8: 117080.784
A9: Edechi Proy con cta 2022 I | B9: AINAP | C9: AINAPCM | D9: AINAPS010A00000000 | E9: 2022-06-30 | F9: CHIRIQUI | H9: 1959.53 | I9: 430.14 | K9: 0 | N9: 2389.67 | P9: 0 | Q9: =IF(OR(VLOOKUP($B9,Formulacion!$A:$BE,MATCH(Q$1,Formulacion!$1:$1,0),FALSE)="NA",$D9=0),"NA",IF($B9="DLABT",MID($D9,PosteInicioBT,PosteFinBT-PosteInicioBT+1)*1,MID($D9,PosteInicio,PosteFin-PosteInicio+1)*1)) -> NA | R9: =IF(OR(VLOOKUP($B9,Formulacion!$A:$BE,MATCH(R$1,Formulacion!$1:$1,0),FALSE)="NA",$D9=0),"NA",IF(OR($B9="DLABT",$B9="DLSBT"),MID($D9,CondInicioBT,CondFinBT-CondInicioBT+1)*1,MID($D9,CondInicio,CondFin-CondInicio+1)*1)) -> NA | S9: NA | T9: =IF(OR(VLOOKUP($B9,Formulacion!$A:$BE,MATCH(T$1,Formulacion!$1:$1,0),FALSE)="NA",$D9=0),"NA",IF($B9="DLSBT",MID($D9,ZanjaInicioBT,ZanjaFinBT-ZanjaInicioBT+1)*1,MID($D9,ZanjaInicio,ZanjaFin-ZanjaInicio+1)*1)) -> NA | U9: 1 | V9: =IF(OR(VLOOKUP($B9,Formulacion!$A:$BE,MATCH(V$1,Formulacion!$1:$1,0),FALSE)="NA",$D9=0),"NA",MID($D9,m2Inicio+INDIRECT(B9),m2Fin-m2Inicio+1)*1) -> NA | W9: =IF(OR(VLOOKUP($B9,Formulacion!$A:$BE,MATCH(W$1,Formulacion!$1:$1,0),FALSE)="NA",$D9=0),"NA",RIGHT($D9,4)*1) -> NA | X9: =IF(OR(VLOOKUP($B9,Formulacion!$A:$BE,MATCH(X$1,Formulacion!$1:$1,0),FALSE)="NA",$D9=0),"NA",RIGHT($D9,3)*1) -> NA | Y9: 1 | Z9: =IF(VLOOKUP($B9,Formulacion!$A:$BE,MATCH(Z$1,Formulacion!$1:$1,0),FALSE)="NA",1,IF(V9<=m2Min,0,1)) -> 1 | AA9: =IF(VLOOKUP($B9,Formulacion!$A:$BE,MATCH(AA$1,Formulacion!$1:$1,0),FALSE)="NA",1,IF(OR(E9<=FechaMin,E9>FechaMax),0,1)) -> 1 | AB9: =IF(VLOOKUP($B9,Formulacion!$A:$BE,MATCH(AB$1,Formulacion!$1:$1,0),FALSE)="NA",1,IF(H9<=MaterialesMin,0,1)) -> 1 | AC9: =IF(VLOOKUP($B9,Formulacion!$A:$BE,MATCH(AC$1,Formulacion!$1:$1,0),FALSE)="NA",1,IF(N9=0,0,IF(OR(I9/N9<=MObraMin,I9/N9>=MObraMax),MDOmin,1))) -> 1 | AD9: =IF(VLOOKUP($B9,Formulacion!$A:$BE,MATCH(AD$1,Formulacion!$1:$1,0),FALSE)="NA",1,IF(N9<=CostoTotalMin,0,1)) -> 1 | AE9: =IF(VLOOKUP($B9,Formulacion!$A:$BE,MATCH(AE$1,Formulacion!$1:$1,0),FALSE)="NA",1,IF(Q9<=PostesMin,0,1)) -> 1 | AF9: =IF(VLOOKUP($B9,Formulacion!$A:$BE,MATCH(AF$1,Formulacion!$1:$1,0),FALSE)="NA",1,IF(R9<=INDIRECT(VLOOKUP(B9,Formulacion!$A:$BE,2,FALSE)),0,1)) -> 1 | AG9: 1 | AH9: 2389.67 | AI9: 1 | AJ9: =IF(VLOOKUP($B9,Formulacion!$A:$BE,MATCH(AJ$1,Formulacion!$1:$1,0),FALSE)="NA","NA",HLOOKUP(VLOOKUP($B9,Formulacion!$A:$BE,MATCH(AJ$1,Formulacion!$1:$1,0),FALSE),$Q:$Z,ROW(AJ9),FALSE)) -> NA | AK9: =IF(VLOOKUP($B9,Formulacion!$A:$BE,MATCH(AK$1,Formulacion!$1:$1,0),FALSE)="NA",1,VLOOKUP($B9,Formulacion!$A:$BE,MATCH(AK$1,Formulacion!$1:$1,0),FALSE)) -> 1 | AL9: =IF(VLOOKUP($B9,Formulacion!$A:$BE,MATCH(AL$1,Formulacion!$1:$1,0),FALSE)="NA",1,VLOOKUP($B9,Formulacion!$A:$BE,MATCH(AL$1,Formulacion!$1:$1,0),FALSE)) -> 1 | AM9: 1 | AN9: =IF(VLOOKUP($B9,Formulacion!$A:$BE,MATCH(AN$1,Formulacion!$1:$1,0),FALSE)="NA","NA",IF(D9=0,"",VLOOKUP($B9,Formulacion!$A:$BE,MATCH(AN$1,Formulacion!$1:$1,0),FALSE))) -> NA | AO9: X | AV9: NA | AW9: =IF(VLOOKUP($B9,Formulacion!$A:$BE,MATCH(AW$1,Formulacion!$1:$1,0),FALSE)="NA","NA",HLOOKUP(VLOOKUP($B9,Formulacion!$A:$BE,MATCH(AW$1,Formulacion!$1:$1,0),FALSE),$Q:$Z,ROW(AW9),FALSE)) -> NA | AX9: NA | AY9: 1 | AZ9: =IF(VLOOKUP($B9,Formulacion!$A:$BE,MATCH(AZ$1,Formulacion!$1:$1,0),FALSE)="NA",1,VLOOKUP($B9,Formulacion!$A:$BE,MATCH(AZ$1,Formulacion!$1:$1,0),FALSE)) -> 0.9 | BA9: =IF(VLOOKUP($B9,Formulacion!$A:$BE,MATCH(BA$1,Formulacion!$1:$1,0),FALSE)="NA",1,VLOOKUP($B9,Formulacion!$A:$BE,MATCH(BA$1,Formulacion!$1:$1,0),FALSE)) -> 1 | BB9: 2150.703
A10: Edechi Proy con cta 2022 I | B10: AINAP | C10: AINAPCH | D10: AINAPS199A00000000 | E10: 2022-06-30 | F10: CHIRIQUI | H10: 38994.73 | I10: 8559.82 | K10: 0 | N10: 47554.55 | P10: 0 | Q10: =IF(OR(VLOOKUP($B10,Formulacion!$A:$BE,MATCH(Q$1,Formulacion!$1:$1,0),FALSE)="NA",$D10=0),"NA",IF($B10="DLABT",MID($D10,PosteInicioBT,PosteFinBT-PosteInicioBT+1)*1,MID($D10,PosteInicio,PosteFin-PosteInicio+1)*1)) -> NA | R10: =IF(OR(VLOOKUP($B10,Formulacion!$A:$BE,MATCH(R$1,Formulacion!$1:$1,0),FALSE)="NA",$D10=0),"NA",IF(OR($B10="DLABT",$B10="DLSBT"),MID($D10,CondInicioBT,CondFinBT-CondInicioBT+1)*1,MID($D10,CondInicio,CondFin-CondInicio+1)*1)) -> NA | S10: NA | T10: =IF(OR(VLOOKUP($B10,Formulacion!$A:$BE,MATCH(T$1,Formulacion!$1:$1,0),FALSE)="NA",$D10=0),"NA",IF($B10="DLSBT",MID($D10,ZanjaInicioBT,ZanjaFinBT-ZanjaInicioBT+1)*1,MID($D10,ZanjaInicio,ZanjaFin-ZanjaInicio+1)*1)) -> NA | U10: 1 | V10: =IF(OR(VLOOKUP($B10,Formulacion!$A:$BE,MATCH(V$1,Formulacion!$1:$1,0),FALSE)="NA",$D10=0),"NA",MID($D10,m2Inicio+INDIRECT(B10),m2Fin-m2Inicio+1)*1) -> NA | W10: =IF(OR(VLOOKUP($B10,Formulacion!$A:$BE,MATCH(W$1,Formulacion!$1:$1,0),FALSE)="NA",$D10=0),"NA",RIGHT($D10,4)*1) -> NA | X10: =IF(OR(VLOOKUP($B10,Formulacion!$A:$BE,MATCH(X$1,Formulacion!$1:$1,0),FALSE)="NA",$D10=0),"NA",RIGHT($D10,3)*1) -> NA | Y10: 1 | Z10: =IF(VLOOKUP($B10,Formulacion!$A:$BE,MATCH(Z$1,Formulacion!$1:$1,0),FALSE)="NA",1,IF(V10<=m2Min,0,1)) -> 1 | AA10: =IF(VLOOKUP($B10,Formulacion!$A:$BE,MATCH(AA$1,Formulacion!$1:$1,0),FALSE)="NA",1,IF(OR(E10<=FechaMin,E10>FechaMax),0,1)) -> 1 | AB10: =IF(VLOOKUP($B10,Formulacion!$A:$BE,MATCH(AB$1,Formulacion!$1:$1,0),FALSE)="NA",1,IF(H10<=MaterialesMin,0,1)) -> 1 | AC10: =IF(VLOOKUP($B10,Formulacion!$A:$BE,MATCH(AC$1,Formulacion!$1:$1,0),FALSE)="NA",1,IF(N10=0,0,IF(OR(I10/N10<=MObraMin,I10/N10>=MObraMax),MDOmin,1))) -> 1 | AD10: =IF(VLOOKUP($B10,Formulacion!$A:$BE,MATCH(AD$1,Formulacion!$1:$1,0),FALSE)="NA",1,IF(N10<=CostoTotalMin,0,1)) -> 1 | AE10: =IF(VLOOKUP($B10,Formulacion!$A:$BE,MATCH(AE$1,Formulacion!$1:$1,0),FALSE)="NA",1,IF(Q10<=PostesMin,0,1)) -> 1 | AF10: =IF(VLOOKUP($B10,Formulacion!$A:$BE,MATCH(AF$1,Formulacion!$1:$1,0),FALSE)="NA",1,IF(R10<=INDIRECT(VLOOKUP(B10,Formulacion!$A:$BE,2,FALSE)),0,1)) -> 1 | AG10: 1 | AH10: 47554.55 | AI10: 1 | AJ10: =IF(VLOOKUP($B10,Formulacion!$A:$BE,MATCH(AJ$1,Formulacion!$1:$1,0),FALSE)="NA","NA",HLOOKUP(VLOOKUP($B10,Formulacion!$A:$BE,MATCH(AJ$1,Formulacion!$1:$1,0),FALSE),$Q:$Z,ROW(AJ10),FALSE)) -> NA | AK10: =IF(VLOOKUP($B10,Formulacion!$A:$BE,MATCH(AK$1,Formulacion!$1:$1,0),FALSE)="NA",1,VLOOKUP($B10,Formulacion!$A:$BE,MATCH(AK$1,Formulacion!$1:$1,0),FALSE)) -> 1 | AL10: =IF(VLOOKUP($B10,Formulacion!$A:$BE,MATCH(AL$1,Formulacion!$1:$1,0),FALSE)="NA",1,VLOOKUP($B10,Formulacion!$A:$BE,MATCH(AL$1,Formulacion!$1:$1,0),FALSE)) -> 1 | AM10: 1 | AN10: =IF(VLOOKUP($B10,Formulacion!$A:$BE,MATCH(AN$1,Formulacion!$1:$1,0),FALSE)="NA","NA",IF(D10=0,"",VLOOKUP($B10,Formulacion!$A:$BE,MATCH(AN$1,Formulacion!$1:$1,0),FALSE))) -> NA | AO10: X | AV10: NA | AW10: =IF(VLOOKUP($B10,Formulacion!$A:$BE,MATCH(AW$1,Formulacion!$1:$1,0),FALSE)="NA","NA",HLOOKUP(VLOOKUP($B10,Formulacion!$A:$BE,MATCH(AW$1,Formulacion!$1:$1,0),FALSE),$Q:$Z,ROW(AW10),FALSE)) -> NA | AX10: NA | AY10: 1 | AZ10: =IF(VLOOKUP($B10,Formulacion!$A:$BE,MATCH(AZ$1,Formulacion!$1:$1,0),FALSE)="NA",1,VLOOKUP($B10,Formulacion!$A:$BE,MATCH(AZ$1,Formulacion!$1:$1,0),FALSE)) -> 0.9 | BA10: =IF(VLOOKUP($B10,Formulacion!$A:$BE,MATCH(BA$1,Formulacion!$1:$1,0),FALSE)="NA",1,VLOOKUP($B10,Formulacion!$A:$BE,MATCH(BA$1,Formulacion!$1:$1,0),FALSE)) -> 1 | BB10: 42799.095
A11: Edechi Proy con cta 2022 I | B11: DACBT | C11: DACBTBO | D11: DACBTAM3ALA00640122240 | E11: 2022-06-30 | F11: BOCAS DEL TORO | H11: 15204.87 | I11: 8605.94 | K11: 0 | N11: 23810.81 | P11: 0 | Q11: =IF(OR(VLOOKUP($B11,Formulacion!$A:$BE,MATCH(Q$1,Formulacion!$1:$1,0),FALSE)="NA",$D11=0),"NA",IF($B11="DLABT",MID($D11,PosteInicioBT,PosteFinBT-PosteInicioBT+1)*1,MID($D11,PosteInicio,PosteFin-PosteInicio+1)*1)) -> NA | R11: =IF(OR(VLOOKUP($B11,Formulacion!$A:$BE,MATCH(R$1,Formulacion!$1:$1,0),FALSE)="NA",$D11=0),"NA",IF(OR($B11="DLABT",$B11="DLSBT"),MID($D11,CondInicioBT,CondFinBT-CondInicioBT+1)*1,MID($D11,CondInicio,CondFin-CondInicio+1)*1)) -> NA | S11: NA | T11: =IF(OR(VLOOKUP($B11,Formulacion!$A:$BE,MATCH(T$1,Formulacion!$1:$1,0),FALSE)="NA",$D11=0),"NA",IF($B11="DLSBT",MID($D11,ZanjaInicioBT,ZanjaFinBT-ZanjaInicioBT+1)*1,MID($D11,ZanjaInicio,ZanjaFin-ZanjaInicio+1)*1)) -> NA | U11: 1 | V11: =IF(OR(VLOOKUP($B11,Formulacion!$A:$BE,MATCH(V$1,Formulacion!$1:$1,0),FALSE)="NA",$D11=0),"NA",MID($D11,m2Inicio+INDIRECT(B11),m2Fin-m2Inicio+1)*1) -> NA | W11: =IF(OR(VLOOKUP($B11,Formulacion!$A:$BE,MATCH(W$1,Formulacion!$1:$1,0),FALSE)="NA",$D11=0),"NA",RIGHT($D11,4)*1) -> NA | X11: =IF(OR(VLOOKUP($B11,Formulacion!$A:$BE,MATCH(X$1,Formulacion!$1:$1,0),FALSE)="NA",$D11=0),"NA",RIGHT($D11,3)*1) -> NA | Y11: 1 | Z11: =IF(VLOOKUP($B11,Formulacion!$A:$BE,MATCH(Z$1,Formulacion!$1:$1,0),FALSE)="NA",1,IF(V11<=m2Min,0,1)) -> 1 | AA11: =IF(VLOOKUP($B11,Formulacion!$A:$BE,MATCH(AA$1,Formulacion!$1:$1,0),FALSE)="NA",1,IF(OR(E11<=FechaMin,E11>FechaMax),0,1)) -> 1 | AB11: =IF(VLOOKUP($B11,Formulacion!$A:$BE,MATCH(AB$1,Formulacion!$1:$1,0),FALSE)="NA",1,IF(H11<=MaterialesMin,0,1)) -> 1 | AC11: =IF(VLOOKUP($B11,Formulacion!$A:$BE,MATCH(AC$1,Formulacion!$1:$1,0),FALSE)="NA",1,IF(N11=0,0,IF(OR(I11/N11<=MObraMin,I11/N11>=MObraMax),MDOmin,1))) -> 1 | AD11: =IF(VLOOKUP($B11,Formulacion!$A:$BE,MATCH(AD$1,Formulacion!$1:$1,0),FALSE)="NA",1,IF(N11<=CostoTotalMin,0,1)) -> 1 | AE11: =IF(VLOOKUP($B11,Formulacion!$A:$BE,MATCH(AE$1,Formulacion!$1:$1,0),FALSE)="NA",1,IF(Q11<=PostesMin,0,1)) -> 1 | AF11: =IF(VLOOKUP($B11,Formulacion!$A:$BE,MATCH(AF$1,Formulacion!$1:$1,0),FALSE)="NA",1,IF(R11<=INDIRECT(VLOOKUP(B11,Formulacion!$A:$BE,2,FALSE)),0,1)) -> 1 | AG11: 1 | AH11: 23810.81 | AI11: 1 | AJ11: =IF(VLOOKUP($B11,Formulacion!$A:$BE,MATCH(AJ$1,Formulacion!$1:$1,0),FALSE)="NA","NA",HLOOKUP(VLOOKUP($B11,Formulacion!$A:$BE,MATCH(AJ$1,Formulacion!$1:$1,0),FALSE),$Q:$Z,ROW(AJ11),FALSE)) -> NA | AK11: =IF(VLOOKUP($B11,Formulacion!$A:$BE,MATCH(AK$1,Formulacion!$1:$1,0),FALSE)="NA",1,VLOOKUP($B11,Formulacion!$A:$BE,MATCH(AK$1,Formulacion!$1:$1,0),FALSE)) -> 1 | AL11: =IF(VLOOKUP($B11,Formulacion!$A:$BE,MATCH(AL$1,Formulacion!$1:$1,0),FALSE)="NA",1,VLOOKUP($B11,Formulacion!$A:$BE,MATCH(AL$1,Formulacion!$1:$1,0),FALSE)) -> 1 | AM11: 1 | AN11: =IF(VLOOKUP($B11,Formulacion!$A:$BE,MATCH(AN$1,Formulacion!$1:$1,0),FALSE)="NA","NA",IF(D11=0,"",VLOOKUP($B11,Formulacion!$A:$BE,MATCH(AN$1,Formulacion!$1:$1,0),FALSE))) -> NA | AO11: X | AV11: NA | AW11: =IF(VLOOKUP($B11,Formulacion!$A:$BE,MATCH(AW$1,Formulacion!$1:$1,0),FALSE)="NA","NA",HLOOKUP(VLOOKUP($B11,Formulacion!$A:$BE,MATCH(AW$1,Formulacion!$1:$1,0),FALSE),$Q:$Z,ROW(AW11),FALSE)) -> NA | AX11: NA | AY11: 1 | AZ11: =IF(VLOOKUP($B11,Formulacion!$A:$BE,MATCH(AZ$1,Formulacion!$1:$1,0),FALSE)="NA",1,VLOOKUP($B11,Formulacion!$A:$BE,MATCH(AZ$1,Formulacion!$1:$1,0),FALSE)) -> 0.9 | BA11: =IF(VLOOKUP($B11,Formulacion!$A:$BE,MATCH(BA$1,Formulacion!$1:$1,0),FALSE)="NA",1,VLOOKUP($B11,Formulacion!$A:$BE,MATCH(BA$1,Formulacion!$1:$1,0),FALSE)) -> 1 | BB11: 21429.729
A12: Edechi Proy con cta 2022 I | B12: PEQCO | C12: EC-5000-02 | D12: PEQCOO0001 | E12: 2022-06-30 | F12: Chiriqui | H12: 166360.99 | I12: 0 | K12: 0 | N12: 166360.99 | P12: 0 | Q12: =IF(OR(VLOOKUP($B12,Formulacion!$A:$BE,MATCH(Q$1,Formulacion!$1:$1,0),FALSE)="NA",$D12=0),"NA",IF($B12="DLABT",MID($D12,PosteInicioBT,PosteFinBT-PosteInicioBT+1)*1,MID($D12,PosteInicio,PosteFin-PosteInicio+1)*1)) -> NA | R12: =IF(OR(VLOOKUP($B12,Formulacion!$A:$BE,MATCH(R$1,Formulacion!$1:$1,0),FALSE)="NA",$D12=0),"NA",IF(OR($B12="DLABT",$B12="DLSBT"),MID($D12,CondInicioBT,CondFinBT-CondInicioBT+1)*1,MID($D12,CondInicio,CondFin-CondInicio+1)*1)) -> NA | S12: NA | T12: =IF(OR(VLOOKUP($B12,Formulacion!$A:$BE,MATCH(T$1,Formulacion!$1:$1,0),FALSE)="NA",$D12=0),"NA",IF($B12="DLSBT",MID($D12,ZanjaInicioBT,ZanjaFinBT-ZanjaInicioBT+1)*1,MID($D12,ZanjaInicio,ZanjaFin-ZanjaInicio+1)*1)) -> NA | U12: 1 | V12: =IF(OR(VLOOKUP($B12,Formulacion!$A:$BE,MATCH(V$1,Formulacion!$1:$1,0),FALSE)="NA",$D12=0),"NA",MID($D12,m2Inicio+INDIRECT(B12),m2Fin-m2Inicio+1)*1) -> NA | W12: =IF(OR(VLOOKUP($B12,Formulacion!$A:$BE,MATCH(W$1,Formulacion!$1:$1,0),FALSE)="NA",$D12=0),"NA",RIGHT($D12,4)*1) -> 1 | X12: =IF(OR(VLOOKUP($B12,Formulacion!$A:$BE,MATCH(X$1,Formulacion!$1:$1,0),FALSE)="NA",$D12=0),"NA",RIGHT($D12,3)*1) -> NA | Y12: 1 | Z12: =IF(VLOOKUP($B12,Formulacion!$A:$BE,MATCH(Z$1,Formulacion!$1:$1,0),FALSE)="NA",1,IF(V12<=m2Min,0,1)) -> 1 | AA12: =IF(VLOOKUP($B12,Formulacion!$A:$BE,MATCH(AA$1,Formulacion!$1:$1,0),FALSE)="NA",1,IF(OR(E12<=FechaMin,E12>FechaMax),0,1)) -> 1 | AB12: =IF(VLOOKUP($B12,Formulacion!$A:$BE,MATCH(AB$1,Formulacion!$1:$1,0),FALSE)="NA",1,IF(H12<=MaterialesMin,0,1)) -> 1 | AC12: =IF(VLOOKUP($B12,Formulacion!$A:$BE,MATCH(AC$1,Formulacion!$1:$1,0),FALSE)="NA",1,IF(N12=0,0,IF(OR(I12/N12<=MObraMin,I12/N12>=MObraMax),MDOmin,1))) -> 1 | AD12: =IF(VLOOKUP($B12,Formulacion!$A:$BE,MATCH(AD$1,Formulacion!$1:$1,0),FALSE)="NA",1,IF(N12<=CostoTotalMin,0,1)) -> 1 | AE12: =IF(VLOOKUP($B12,Formulacion!$A:$BE,MATCH(AE$1,Formulacion!$1:$1,0),FALSE)="NA",1,IF(Q12<=PostesMin,0,1)) -> 1 | AF12: =IF(VLOOKUP($B12,Formulacion!$A:$BE,MATCH(AF$1,Formulacion!$1:$1,0),FALSE)="NA",1,IF(R12<=INDIRECT(VLOOKUP(B12,Formulacion!$A:$BE,2,FALSE)),0,1)) -> 1 | AG12: 1 | AH12: 166360.99 | AI12: 1 | AJ12: =IF(VLOOKUP($B12,Formulacion!$A:$BE,MATCH(AJ$1,Formulacion!$1:$1,0),FALSE)="NA","NA",HLOOKUP(VLOOKUP($B12,Formulacion!$A:$BE,MATCH(AJ$1,Formulacion!$1:$1,0),FALSE),$Q:$Z,ROW(AJ12),FALSE)) -> NA | AK12: =IF(VLOOKUP($B12,Formulacion!$A:$BE,MATCH(AK$1,Formulacion!$1:$1,0),FALSE)="NA",1,VLOOKUP($B12,Formulacion!$A:$BE,MATCH(AK$1,Formulacion!$1:$1,0),FALSE)) -> 1 | AL12: =IF(VLOOKUP($B12,Formulacion!$A:$BE,MATCH(AL$1,Formulacion!$1:$1,0),FALSE)="NA",1,VLOOKUP($B12,Formulacion!$A:$BE,MATCH(AL$1,Formulacion!$1:$1,0),FALSE)) -> 1 | AM12: 1 | AN12: =IF(VLOOKUP($B12,Formulacion!$A:$BE,MATCH(AN$1,Formulacion!$1:$1,0),FALSE)="NA","NA",IF(D12=0,"",VLOOKUP($B12,Formulacion!$A:$BE,MATCH(AN$1,Formulacion!$1:$1,0),FALSE))) -> NA | AO12: X | AV12: NA | AW12: =IF(VLOOKUP($B12,Formulacion!$A:$BE,MATCH(AW$1,Formulacion!$1:$1,0),FALSE)="NA","NA",HLOOKUP(VLOOKUP($B12,Formulacion!$A:$BE,MATCH(AW$1,Formulacion!$1:$1,0),FALSE),$Q:$Z,ROW(AW12),FALSE)) -> NA | AX12: NA | AY12: 1 | AZ12: =IF(VLOOKUP($B12,Formulacion!$A:$BE,MATCH(AZ$1,Formulacion!$1:$1,0),FALSE)="NA",1,VLOOKUP($B12,Formulacion!$A:$BE,MATCH(AZ$1,Formulacion!$1:$1,0),FALSE)) -> 0.9 | BA12: =IF(VLOOKUP($B12,Formulacion!$A:$BE,MATCH(BA$1,Formulacion!$1:$1,0),FALSE)="NA",1,VLOOKUP($B12,Formulacion!$A:$BE,MATCH(BA$1,Formulacion!$1:$1,0),FALSE)) -> 1 | BB12: 149724.891
A13: Edechi Proy con cta 2022 I | B13: DACBT | C13: DACBTCH | D13: DACBTAM3ALA00699939149 | E13: 2022-06-30 | F13: CHIRIQUI | H13: 34719.31 | I13: 19651.08 | K13: 0 | N13: 54370.39 | P13: 0 | Q13: =IF(OR(VLOOKUP($B13,Formulacion!$A:$BE,MATCH(Q$1,Formulacion!$1:$1,0),FALSE)="NA",$D13=0),"NA",IF($B13="DLABT",MID($D13,PosteInicioBT,PosteFinBT-PosteInicioBT+1)*1,MID($D13,PosteInicio,PosteFin-PosteInicio+1)*1)) -> NA | R13: =IF(OR(VLOOKUP($B13,Formulacion!$A:$BE,MATCH(R$1,Formulacion!$1:$1,0),FALSE)="NA",$D13=0),"NA",IF(OR($B13="DLABT",$B13="DLSBT"),MID($D13,CondInicioBT,CondFinBT-CondInicioBT+1)*1,MID($D13,CondInicio,CondFin-CondInicio+1)*1)) -> NA | S13: NA | T13: =IF(OR(VLOOKUP($B13,Formulacion!$A:$BE,MATCH(T$1,Formulacion!$1:$1,0),FALSE)="NA",$D13=0),"NA",IF($B13="DLSBT",MID($D13,ZanjaInicioBT,ZanjaFinBT-ZanjaInicioBT+1)*1,MID($D13,ZanjaInicio,ZanjaFin-ZanjaInicio+1)*1)) -> NA | U13: 1 | V13: =IF(OR(VLOOKUP($B13,Formulacion!$A:$BE,MATCH(V$1,Formulacion!$1:$1,0),FALSE)="NA",$D13=0),"NA",MID($D13,m2Inicio+INDIRECT(B13),m2Fin-m2Inicio+1)*1) -> NA | W13: =IF(OR(VLOOKUP($B13,Formulacion!$A:$BE,MATCH(W$1,Formulacion!$1:$1,0),FALSE)="NA",$D13=0),"NA",RIGHT($D13,4)*1) -> NA | X13: =IF(OR(VLOOKUP($B13,Formulacion!$A:$BE,MATCH(X$1,Formulacion!$1:$1,0),FALSE)="NA",$D13=0),"NA",RIGHT($D13,3)*1) -> NA | Y13: 1 | Z13: =IF(VLOOKUP($B13,Formulacion!$A:$BE,MATCH(Z$1,Formulacion!$1:$1,0),FALSE)="NA",1,IF(V13<=m2Min,0,1)) -> 1 | AA13: =IF(VLOOKUP($B13,Formulacion!$A:$BE,MATCH(AA$1,Formulacion!$1:$1,0),FALSE)="NA",1,IF(OR(E13<=FechaMin,E13>FechaMax),0,1)) -> 1 | AB13: =IF(VLOOKUP($B13,Formulacion!$A:$BE,MATCH(AB$1,Formulacion!$1:$1,0),FALSE)="NA",1,IF(H13<=MaterialesMin,0,1)) -> 1 | AC13: =IF(VLOOKUP($B13,Formulacion!$A:$BE,MATCH(AC$1,Formulacion!$1:$1,0),FALSE)="NA",1,IF(N13=0,0,IF(OR(I13/N13<=MObraMin,I13/N13>=MObraMax),MDOmin,1))) -> 1 | AD13: =IF(VLOOKUP($B13,Formulacion!$A:$BE,MATCH(AD$1,Formulacion!$1:$1,0),FALSE)="NA",1,IF(N13<=CostoTotalMin,0,1)) -> 1 | AE13: =IF(VLOOKUP($B13,Formulacion!$A:$BE,MATCH(AE$1,Formulacion!$1:$1,0),FALSE)="NA",1,IF(Q13<=PostesMin,0,1)) -> 1 | AF13: =IF(VLOOKUP($B13,Formulacion!$A:$BE,MATCH(AF$1,Formulacion!$1:$1,0),FALSE)="NA",1,IF(R13<=INDIRECT(VLOOKUP(B13,Formulacion!$A:$BE,2,FALSE)),0,1)) -> 1 | AG13: 1 | AH13: 54370.39 | AI13: 1 | AJ13: =IF(VLOOKUP($B13,Formulacion!$A:$BE,MATCH(AJ$1,Formulacion!$1:$1,0),FALSE)="NA","NA",HLOOKUP(VLOOKUP($B13,Formulacion!$A:$BE,MATCH(AJ$1,Formulacion!$1:$1,0),FALSE),$Q:$Z,ROW(AJ13),FALSE)) -> NA | AK13: =IF(VLOOKUP($B13,Formulacion!$A:$BE,MATCH(AK$1,Formulacion!$1:$1,0),FALSE)="NA",1,VLOOKUP($B13,Formulacion!$A:$BE,MATCH(AK$1,Formulacion!$1:$1,0),FALSE)) -> 1 | AL13: =IF(VLOOKUP($B13,Formulacion!$A:$BE,MATCH(AL$1,Formulacion!$1:$1,0),FALSE)="NA",1,VLOOKUP($B13,Formulacion!$A:$BE,MATCH(AL$1,Formulacion!$1:$1,0),FALSE)) -> 1 | AM13: 1 | AN13: =IF(VLOOKUP($B13,Formulacion!$A:$BE,MATCH(AN$1,Formulacion!$1:$1,0),FALSE)="NA","NA",IF(D13=0,"",VLOOKUP($B13,Formulacion!$A:$BE,MATCH(AN$1,Formulacion!$1:$1,0),FALSE))) -> NA | AO13: X | AV13: NA | AW13: =IF(VLOOKUP($B13,Formulacion!$A:$BE,MATCH(AW$1,Formulacion!$1:$1,0),FALSE)="NA","NA",HLOOKUP(VLOOKUP($B13,Formulacion!$A:$BE,MATCH(AW$1,Formulacion!$1:$1,0),FALSE),$Q:$Z,ROW(AW13),FALSE)) -> NA | AX13: NA | AY13: 1 | AZ13: =IF(VLOOKUP($B13,Formulacion!$A:$BE,MATCH(AZ$1,Formulacion!$1:$1,0),FALSE)="NA",1,VLOOKUP($B13,Formulacion!$A:$BE,MATCH(AZ$1,Formulacion!$1:$1,0),FALSE)) -> 0.9 | BA13: =IF(VLOOKUP($B13,Formulacion!$A:$BE,MATCH(BA$1,Formulacion!$1:$1,0),FALSE)="NA",1,VLOOKUP($B13,Formulacion!$A:$BE,MATCH(BA$1,Formulacion!$1:$1,0),FALSE)) -> 1 | BB13: 48933.351
A14: Edechi Proy con cta 2022 I | B14: DACBT | C14: DACBTCH | D14: DACBTAM3ALA00699939149 | E14: 2022-06-30 | F14: CHIRIQUI | H14: 34719.31 | I14: 19651.08 | K14: 0 | N14: 54370.39 | P14: 0 | Q14: =IF(OR(VLOOKUP($B14,Formulacion!$A:$BE,MATCH(Q$1,Formulacion!$1:$1,0),FALSE)="NA",$D14=0),"NA",IF($B14="DLABT",MID($D14,PosteInicioBT,PosteFinBT-PosteInicioBT+1)*1,MID($D14,PosteInicio,PosteFin-PosteInicio+1)*1)) -> NA | R14: =IF(OR(VLOOKUP($B14,Formulacion!$A:$BE,MATCH(R$1,Formulacion!$1:$1,0),FALSE)="NA",$D14=0),"NA",IF(OR($B14="DLABT",$B14="DLSBT"),MID($D14,CondInicioBT,CondFinBT-CondInicioBT+1)*1,MID($D14,CondInicio,CondFin-CondInicio+1)*1)) -> NA | S14: NA | T14: =IF(OR(VLOOKUP($B14,Formulacion!$A:$BE,MATCH(T$1,Formulacion!$1:$1,0),FALSE)="NA",$D14=0),"NA",IF($B14="DLSBT",MID($D14,ZanjaInicioBT,ZanjaFinBT-ZanjaInicioBT+1)*1,MID($D14,ZanjaInicio,ZanjaFin-ZanjaInicio+1)*1)) -> NA | U14: 1 | V14: =IF(OR(VLOOKUP($B14,Formulacion!$A:$BE,MATCH(V$1,Formulacion!$1:$1,0),FALSE)="NA",$D14=0),"NA",MID($D14,m2Inicio+INDIRECT(B14),m2Fin-m2Inicio+1)*1) -> NA | W14: =IF(OR(VLOOKUP($B14,Formulacion!$A:$BE,MATCH(W$1,Formulacion!$1:$1,0),FALSE)="NA",$D14=0),"NA",RIGHT($D14,4)*1) -> NA | X14: =IF(OR(VLOOKUP($B14,Formulacion!$A:$BE,MATCH(X$1,Formulacion!$1:$1,0),FALSE)="NA",$D14=0),"NA",RIGHT($D14,3)*1) -> NA | Y14: 1 | Z14: =IF(VLOOKUP($B14,Formulacion!$A:$BE,MATCH(Z$1,Formulacion!$1:$1,0),FALSE)="NA",1,IF(V14<=m2Min,0,1)) -> 1 | AA14: =IF(VLOOKUP($B14,Formulacion!$A:$BE,MATCH(AA$1,Formulacion!$1:$1,0),FALSE)="NA",1,IF(OR(E14<=FechaMin,E14>FechaMax),0,1)) -> 1 | AB14: =IF(VLOOKUP($B14,Formulacion!$A:$BE,MATCH(AB$1,Formulacion!$1:$1,0),FALSE)="NA",1,IF(H14<=MaterialesMin,0,1)) -> 1 | AC14: =IF(VLOOKUP($B14,Formulacion!$A:$BE,MATCH(AC$1,Formulacion!$1:$1,0),FALSE)="NA",1,IF(N14=0,0,IF(OR(I14/N14<=MObraMin,I14/N14>=MObraMax),MDOmin,1))) -> 1 | AD14: =IF(VLOOKUP($B14,Formulacion!$A:$BE,MATCH(AD$1,Formulacion!$1:$1,0),FALSE)="NA",1,IF(N14<=CostoTotalMin,0,1)) -> 1 | AE14: =IF(VLOOKUP($B14,Formulacion!$A:$BE,MATCH(AE$1,Formulacion!$1:$1,0),FALSE)="NA",1,IF(Q14<=PostesMin,0,1)) -> 1 | AF14: =IF(VLOOKUP($B14,Formulacion!$A:$BE,MATCH(AF$1,Formulacion!$1:$1,0),FALSE)="NA",1,IF(R14<=INDIRECT(VLOOKUP(B14,Formulacion!$A:$BE,2,FALSE)),0,1)) -> 1 | AG14: 1 | AH14: 54370.39 | AI14: 1 | AJ14: =IF(VLOOKUP($B14,Formulacion!$A:$BE,MATCH(AJ$1,Formulacion!$1:$1,0),FALSE)="NA","NA",HLOOKUP(VLOOKUP($B14,Formulacion!$A:$BE,MATCH(AJ$1,Formulacion!$1:$1,0),FALSE),$Q:$Z,ROW(AJ14),FALSE)) -> NA | AK14: =IF(VLOOKUP($B14,Formulacion!$A:$BE,MATCH(AK$1,Formulacion!$1:$1,0),FALSE)="NA",1,VLOOKUP($B14,Formulacion!$A:$BE,MATCH(AK$1,Formulacion!$1:$1,0),FALSE)) -> 1 | AL14: =IF(VLOOKUP($B14,Formulacion!$A:$BE,MATCH(AL$1,Formulacion!$1:$1,0),FALSE)="NA",1,VLOOKUP($B14,Formulacion!$A:$BE,MATCH(AL$1,Formulacion!$1:$1,0),FALSE)) -> 1 | AM14: 1 | AN14: =IF(VLOOKUP($B14,Formulacion!$A:$BE,MATCH(AN$1,Formulacion!$1:$1,0),FALSE)="NA","NA",IF(D14=0,"",VLOOKUP($B14,Formulacion!$A:$BE,MATCH(AN$1,Formulacion!$1:$1,0),FALSE))) -> NA | AO14: X | AV14: NA | AW14: =IF(VLOOKUP($B14,Formulacion!$A:$BE,MATCH(AW$1,Formulacion!$1:$1,0),FALSE)="NA","NA",HLOOKUP(VLOOKUP($B14,Formulacion!$A:$BE,MATCH(AW$1,Formulacion!$1:$1,0),FALSE),$Q:$Z,ROW(AW14),FALSE)) -> NA | AX14: NA | AY14: 1 | AZ14: =IF(VLOOKUP($B14,Formulacion!$A:$BE,MATCH(AZ$1,Formulacion!$1:$1,0),FALSE)="NA",1,VLOOKUP($B14,Formulacion!$A:$BE,MATCH(AZ$1,Formulacion!$1:$1,0),FALSE)) -> 0.9 | BA14: =IF(VLOOKUP($B14,Formulacion!$A:$BE,MATCH(BA$1,Formulacion!$1:$1,0),FALSE)="NA",1,VLOOKUP($B14,Formulacion!$A:$BE,MATCH(BA$1,Formulacion!$1:$1,0),FALSE)) -> 1 | BB14: 48933.351
A15: Edechi Proy con cta 2022 I | B15: DACBT | C15: DACBTCH | D15: DACBTAM3ALA00618307171 | E15: 2022-06-30 | F15: CHIRIQUI | H15: 6359.99 | I15: 3599.75 | K15: 0 | N15: 9959.74 | P15: 0 | Q15: =IF(OR(VLOOKUP($B15,Formulacion!$A:$BE,MATCH(Q$1,Formulacion!$1:$1,0),FALSE)="NA",$D15=0),"NA",IF($B15="DLABT",MID($D15,PosteInicioBT,PosteFinBT-PosteInicioBT+1)*1,MID($D15,PosteInicio,PosteFin-PosteInicio+1)*1)) -> NA | R15: =IF(OR(VLOOKUP($B15,Formulacion!$A:$BE,MATCH(R$1,Formulacion!$1:$1,0),FALSE)="NA",$D15=0),"NA",IF(OR($B15="DLABT",$B15="DLSBT"),MID($D15,CondInicioBT,CondFinBT-CondInicioBT+1)*1,MID($D15,CondInicio,CondFin-CondInicio+1)*1)) -> NA | S15: NA | T15: =IF(OR(VLOOKUP($B15,Formulacion!$A:$BE,MATCH(T$1,Formulacion!$1:$1,0),FALSE)="NA",$D15=0),"NA",IF($B15="DLSBT",MID($D15,ZanjaInicioBT,ZanjaFinBT-ZanjaInicioBT+1)*1,MID($D15,ZanjaInicio,ZanjaFin-ZanjaInicio+1)*1)) -> NA | U15: 1 | V15: =IF(OR(VLOOKUP($B15,Formulacion!$A:$BE,MATCH(V$1,Formulacion!$1:$1,0),FALSE)="NA",$D15=0),"NA",MID($D15,m2Inicio+INDIRECT(B15),m2Fin-m2Inicio+1)*1) -> NA | W15: =IF(OR(VLOOKUP($B15,Formulacion!$A:$BE,MATCH(W$1,Formulacion!$1:$1,0),FALSE)="NA",$D15=0),"NA",RIGHT($D15,4)*1) -> NA | X15: =IF(OR(VLOOKUP($B15,Formulacion!$A:$BE,MATCH(X$1,Formulacion!$1:$1,0),FALSE)="NA",$D15=0),"NA",RIGHT($D15,3)*1) -> NA | Y15: 1 | Z15: =IF(VLOOKUP($B15,Formulacion!$A:$BE,MATCH(Z$1,Formulacion!$1:$1,0),FALSE)="NA",1,IF(V15<=m2Min,0,1)) -> 1 | AA15: =IF(VLOOKUP($B15,Formulacion!$A:$BE,MATCH(AA$1,Formulacion!$1:$1,0),FALSE)="NA",1,IF(OR(E15<=FechaMin,E15>FechaMax),0,1)) -> 1 | AB15: =IF(VLOOKUP($B15,Formulacion!$A:$BE,MATCH(AB$1,Formulacion!$1:$1,0),FALSE)="NA",1,IF(H15<=MaterialesMin,0,1)) -> 1 | AC15: =IF(VLOOKUP($B15,Formulacion!$A:$BE,MATCH(AC$1,Formulacion!$1:$1,0),FALSE)="NA",1,IF(N15=0,0,IF(OR(I15/N15<=MObraMin,I15/N15>=MObraMax),MDOmin,1))) -> 1 | AD15: =IF(VLOOKUP($B15,Formulacion!$A:$BE,MATCH(AD$1,Formulacion!$1:$1,0),FALSE)="NA",1,IF(N15<=CostoTotalMin,0,1)) -> 1 | AE15: =IF(VLOOKUP($B15,Formulacion!$A:$BE,MATCH(AE$1,Formulacion!$1:$1,0),FALSE)="NA",1,IF(Q15<=PostesMin,0,1)) -> 1 | AF15: =IF(VLOOKUP($B15,Formulacion!$A:$BE,MATCH(AF$1,Formulacion!$1:$1,0),FALSE)="NA",1,IF(R15<=INDIRECT(VLOOKUP(B15,Formulacion!$A:$BE,2,FALSE)),0,1)) -> 1 | AG15: 1 | AH15: 9959.74 | AI15: 1 | AJ15: =IF(VLOOKUP($B15,Formulacion!$A:$BE,MATCH(AJ$1,Formulacion!$1:$1,0),FALSE)="NA","NA",HLOOKUP(VLOOKUP($B15,Formulacion!$A:$BE,MATCH(AJ$1,Formulacion!$1:$1,0),FALSE),$Q:$Z,ROW(AJ15),FALSE)) -> NA | AK15: =IF(VLOOKUP($B15,Formulacion!$A:$BE,MATCH(AK$1,Formulacion!$1:$1,0),FALSE)="NA",1,VLOOKUP($B15,Formulacion!$A:$BE,MATCH(AK$1,Formulacion!$1:$1,0),FALSE)) -> 1 | AL15: =IF(VLOOKUP($B15,Formulacion!$A:$BE,MATCH(AL$1,Formulacion!$1:$1,0),FALSE)="NA",1,VLOOKUP($B15,Formulacion!$A:$BE,MATCH(AL$1,Formulacion!$1:$1,0),FALSE)) -> 1 | AM15: 1 | AN15: =IF(VLOOKUP($B15,Formulacion!$A:$BE,MATCH(AN$1,Formulacion!$1:$1,0),FALSE)="NA","NA",IF(D15=0,"",VLOOKUP($B15,Formulacion!$A:$BE,MATCH(AN$1,Formulacion!$1:$1,0),FALSE))) -> NA | AO15: X | AV15: NA | AW15: =IF(VLOOKUP($B15,Formulacion!$A:$BE,MATCH(AW$1,Formulacion!$1:$1,0),FALSE)="NA","NA",HLOOKUP(VLOOKUP($B15,Formulacion!$A:$BE,MATCH(AW$1,Formulacion!$1:$1,0),FALSE),$Q:$Z,ROW(AW15),FALSE)) -> NA | AX15: NA | AY15: 1 | AZ15: =IF(VLOOKUP($B15,Formulacion!$A:$BE,MATCH(AZ$1,Formulacion!$1:$1,0),FALSE)="NA",1,VLOOKUP($B15,Formulacion!$A:$BE,MATCH(AZ$1,Formulacion!$1:$1,0),FALSE)) -> 0.9 | BA15: =IF(VLOOKUP($B15,Formulacion!$A:$BE,MATCH(BA$1,Formulacion!$1:$1,0),FALSE)="NA",1,VLOOKUP($B15,Formulacion!$A:$BE,MATCH(BA$1,Formulacion!$1:$1,0),FALSE)) -> 1 | BB15: 8963.766
A16: Edechi Proy con cta 2022 I | B16: PPLIN | C16: EC-1500-01 | D16: PPLINAI | E16: 2022-06-30 | F16: Chiriqui | H16: 33868.7 | I16: 0 | K16: 0 | N16: 33868.7 | P16: 0 | Q16: =IF(OR(VLOOKUP($B16,Formulacion!$A:$BE,MATCH(Q$1,Formulacion!$1:$1,0),FALSE)="NA",$D16=0),"NA",IF($B16="DLABT",MID($D16,PosteInicioBT,PosteFinBT-PosteInicioBT+1)*1,MID($D16,PosteInicio,PosteFin-PosteInicio+1)*1)) -> NA | R16: =IF(OR(VLOOKUP($B16,Formulacion!$A:$BE,MATCH(R$1,Formulacion!$1:$1,0),FALSE)="NA",$D16=0),"NA",IF(OR($B16="DLABT",$B16="DLSBT"),MID($D16,CondInicioBT,CondFinBT-CondInicioBT+1)*1,MID($D16,CondInicio,CondFin-CondInicio+1)*1)) -> NA | S16: NA | T16: =IF(OR(VLOOKUP($B16,Formulacion!$A:$BE,MATCH(T$1,Formulacion!$1:$1,0),FALSE)="NA",$D16=0),"NA",IF($B16="DLSBT",MID($D16,ZanjaInicioBT,ZanjaFinBT-ZanjaInicioBT+1)*1,MID($D16,ZanjaInicio,ZanjaFin-ZanjaInicio+1)*1)) -> NA | U16: 1 | V16: =IF(OR(VLOOKUP($B16,Formulacion!$A:$BE,MATCH(V$1,Formulacion!$1:$1,0),FALSE)="NA",$D16=0),"NA",MID($D16,m2Inicio+INDIRECT(B16),m2Fin-m2Inicio+1)*1) -> NA | W16: =IF(OR(VLOOKUP($B16,Formulacion!$A:$BE,MATCH(W$1,Formulacion!$1:$1,0),FALSE)="NA",$D16=0),"NA",RIGHT($D16,4)*1) -> NA | X16: =IF(OR(VLOOKUP($B16,Formulacion!$A:$BE,MATCH(X$1,Formulacion!$1:$1,0),FALSE)="NA",$D16=0),"NA",RIGHT($D16,3)*1) -> NA | Y16: 1 | Z16: =IF(VLOOKUP($B16,Formulacion!$A:$BE,MATCH(Z$1,Formulacion!$1:$1,0),FALSE)="NA",1,IF(V16<=m2Min,0,1)) -> 1 | AA16: =IF(VLOOKUP($B16,Formulacion!$A:$BE,MATCH(AA$1,Formulacion!$1:$1,0),FALSE)="NA",1,IF(OR(E16<=FechaMin,E16>FechaMax),0,1)) -> 1 | AB16: =IF(VLOOKUP($B16,Formulacion!$A:$BE,MATCH(AB$1,Formulacion!$1:$1,0),FALSE)="NA",1,IF(H16<=MaterialesMin,0,1)) -> 1 | AC16: =IF(VLOOKUP($B16,Formulacion!$A:$BE,MATCH(AC$1,Formulacion!$1:$1,0),FALSE)="NA",1,IF(N16=0,0,IF(OR(I16/N16<=MObraMin,I16/N16>=MObraMax),MDOmin,1))) -> 1 | AD16: =IF(VLOOKUP($B16,Formulacion!$A:$BE,MATCH(AD$1,Formulacion!$1:$1,0),FALSE)="NA",1,IF(N16<=CostoTotalMin,0,1)) -> 1 | AE16: =IF(VLOOKUP($B16,Formulacion!$A:$BE,MATCH(AE$1,Formulacion!$1:$1,0),FALSE)="NA",1,IF(Q16<=PostesMin,0,1)) -> 1 | AF16: =IF(VLOOKUP($B16,Formulacion!$A:$BE,MATCH(AF$1,Formulacion!$1:$1,0),FALSE)="NA",1,IF(R16<=INDIRECT(VLOOKUP(B16,Formulacion!$A:$BE,2,FALSE)),0,1)) -> 1 | AG16: 1 | AH16: 33868.7 | AI16: 1 | AJ16: =IF(VLOOKUP($B16,Formulacion!$A:$BE,MATCH(AJ$1,Formulacion!$1:$1,0),FALSE)="NA","NA",HLOOKUP(VLOOKUP($B16,Formulacion!$A:$BE,MATCH(AJ$1,Formulacion!$1:$1,0),FALSE),$Q:$Z,ROW(AJ16),FALSE)) -> NA | AK16: =IF(VLOOKUP($B16,Formulacion!$A:$BE,MATCH(AK$1,Formulacion!$1:$1,0),FALSE)="NA",1,VLOOKUP($B16,Formulacion!$A:$BE,MATCH(AK$1,Formulacion!$1:$1,0),FALSE)) -> 1 | AL16: =IF(VLOOKUP($B16,Formulacion!$A:$BE,MATCH(AL$1,Formulacion!$1:$1,0),FALSE)="NA",1,VLOOKUP($B16,Formulacion!$A:$BE,MATCH(AL$1,Formulacion!$1:$1,0),FALSE)) -> 1 | AM16: 1 | AN16: =IF(VLOOKUP($B16,Formulacion!$A:$BE,MATCH(AN$1,Formulacion!$1:$1,0),FALSE)="NA","NA",IF(D16=0,"",VLOOKUP($B16,Formulacion!$A:$BE,MATCH(AN$1,Formulacion!$1:$1,0),FALSE))) -> NA | AO16: X | AV16: NA | AW16: =IF(VLOOKUP($B16,Formulacion!$A:$BE,MATCH(AW$1,Formulacion!$1:$1,0),FALSE)="NA","NA",HLOOKUP(VLOOKUP($B16,Formulacion!$A:$BE,MATCH(AW$1,Formulacion!$1:$1,0),FALSE),$Q:$Z,ROW(AW16),FALSE)) -> NA | AX16: NA | AY16: 1 | AZ16: =IF(VLOOKUP($B16,Formulacion!$A:$BE,MATCH(AZ$1,Formulacion!$1:$1,0),FALSE)="NA",1,VLOOKUP($B16,Formulacion!$A:$BE,MATCH(AZ$1,Formulacion!$1:$1,0),FALSE)) -> 0.9 | BA16: =IF(VLOOKUP($B16,Formulacion!$A:$BE,MATCH(BA$1,Formulacion!$1:$1,0),FALSE)="NA",1,VLOOKUP($B16,Formulacion!$A:$BE,MATCH(BA$1,Formulacion!$1:$1,0),FALSE)) -> 1 | BB16: 30481.83
A17: Edechi Proy con cta 2022 I | B17: DLABT | C17: GRALNVOSUMCALARQ | D17: DLABTM100551P011HOC2ALA006 | E17: 2022-06-30 | F17: Chiriqui | H17: 15087.59 | I17: 9767.43 | K17: 0 | N17: 24935.1 | P17: 0 | Q17: =IF(OR(VLOOKUP($B17,Formulacion!$A:$BE,MATCH(Q$1,Formulacion!$1:$1,0),FALSE)="NA",$D17=0),"NA",IF($B17="DLABT",MID($D17,PosteInicioBT,PosteFinBT-PosteInicioBT+1)*1,MID($D17,PosteInicio,PosteFin-PosteInicio+1)*1)) -> 11 | R17: =IF(OR(VLOOKUP($B17,Formulacion!$A:$BE,MATCH(R$1,Formulacion!$1:$1,0),FALSE)="NA",$D17=0),"NA",IF(OR($B17="DLABT",$B17="DLSBT"),MID($D17,CondInicioBT,CondFinBT-CondInicioBT+1)*1,MID($D17,CondInicio,CondFin-CondInicio+1)*1)) -> 551 | S17: 50.09090909 | T17: =IF(OR(VLOOKUP($B17,Formulacion!$A:$BE,MATCH(T$1,Formulacion!$1:$1,0),FALSE)="NA",$D17=0),"NA",IF($B17="DLSBT",MID($D17,ZanjaInicioBT,ZanjaFinBT-ZanjaInicioBT+1)*1,MID($D17,ZanjaInicio,ZanjaFin-ZanjaInicio+1)*1)) -> NA | U17: 1 | V17: =IF(OR(VLOOKUP($B17,Formulacion!$A:$BE,MATCH(V$1,Formulacion!$1:$1,0),FALSE)="NA",$D17=0),"NA",MID($D17,m2Inicio+INDIRECT(B17),m2Fin-m2Inicio+1)*1) -> NA | W17: =IF(OR(VLOOKUP($B17,Formulacion!$A:$BE,MATCH(W$1,Formulacion!$1:$1,0),FALSE)="NA",$D17=0),"NA",RIGHT($D17,4)*1) -> NA | X17: =IF(OR(VLOOKUP($B17,Formulacion!$A:$BE,MATCH(X$1,Formulacion!$1:$1,0),FALSE)="NA",$D17=0),"NA",RIGHT($D17,3)*1) -> NA | Y17: 1 | Z17: =IF(VLOOKUP($B17,Formulacion!$A:$BE,MATCH(Z$1,Formulacion!$1:$1,0),FALSE)="NA",1,IF(V17<=m2Min,0,1)) -> 1 | AA17: =IF(VLOOKUP($B17,Formulacion!$A:$BE,MATCH(AA$1,Formulacion!$1:$1,0),FALSE)="NA",1,IF(OR(E17<=FechaMin,E17>FechaMax),0,1)) -> 1 | AB17: =IF(VLOOKUP($B17,Formulacion!$A:$BE,MATCH(AB$1,Formulacion!$1:$1,0),FALSE)="NA",1,IF(H17<=MaterialesMin,0,1)) -> 1 | AC17: =IF(VLOOKUP($B17,Formulacion!$A:$BE,MATCH(AC$1,Formulacion!$1:$1,0),FALSE)="NA",1,IF(N17=0,0,IF(OR(I17/N17<=MObraMin,I17/N17>=MObraMax),MDOmin,1))) -> 1 | AD17: =IF(VLOOKUP($B17,Formulacion!$A:$BE,MATCH(AD$1,Formulacion!$1:$1,0),FALSE)="NA",1,IF(N17<=CostoTotalMin,0,1)) -> 1 | AE17: =IF(VLOOKUP($B17,Formulacion!$A:$BE,MATCH(AE$1,Formulacion!$1:$1,0),FALSE)="NA",1,IF(Q17<=PostesMin,0,1)) -> 1 | AF17: =IF(VLOOKUP($B17,Formulacion!$A:$BE,MATCH(AF$1,Formulacion!$1:$1,0),FALSE)="NA",1,IF(R17<=INDIRECT(VLOOKUP(B17,Formulacion!$A:$BE,2,FALSE)),0,1)) -> 1 | AG17: 1 | AH17: 24935.1 | AI17: 1 | AJ17: =IF(VLOOKUP($B17,Formulacion!$A:$BE,MATCH(AJ$1,Formulacion!$1:$1,0),FALSE)="NA","NA",HLOOKUP(VLOOKUP($B17,Formulacion!$A:$BE,MATCH(AJ$1,Formulacion!$1:$1,0),FALSE),$Q:$Z,ROW(AJ17),FALSE)) -> 50.09090909 | AK17: =IF(VLOOKUP($B17,Formulacion!$A:$BE,MATCH(AK$1,Formulacion!$1:$1,0),FALSE)="NA",1,VLOOKUP($B17,Formulacion!$A:$BE,MATCH(AK$1,Formulacion!$1:$1,0),FALSE)) -> 30 | AL17: =IF(VLOOKUP($B17,Formulacion!$A:$BE,MATCH(AL$1,Formulacion!$1:$1,0),FALSE)="NA",1,VLOOKUP($B17,Formulacion!$A:$BE,MATCH(AL$1,Formulacion!$1:$1,0),FALSE)) -> 0.3 | AM17: NC | AN17: =IF(VLOOKUP($B17,Formulacion!$A:$BE,MATCH(AN$1,Formulacion!$1:$1,0),FALSE)="NA","NA",IF(D17=0,"",VLOOKUP($B17,Formulacion!$A:$BE,MATCH(AN$1,Formulacion!$1:$1,0),FALSE))) -> 0206170220032403 | AO17: LABTM1 | AP17: HO | AQ17: 2AL | AR17: 006 | AV17: NA | AW17: =IF(VLOOKUP($B17,Formulacion!$A:$BE,MATCH(AW$1,Formulacion!$1:$1,0),FALSE)="NA","NA",HLOOKUP(VLOOKUP($B17,Formulacion!$A:$BE,MATCH(AW$1,Formulacion!$1:$1,0),FALSE),$Q:$Z,ROW(AW17),FALSE)) -> 551 | AX17: NA | AY17: 1 | AZ17: =IF(VLOOKUP($B17,Formulacion!$A:$BE,MATCH(AZ$1,Formulacion!$1:$1,0),FALSE)="NA",1,VLOOKUP($B17,Formulacion!$A:$BE,MATCH(AZ$1,Formulacion!$1:$1,0),FALSE)) -> 0.9 | BA17: =IF(VLOOKUP($B17,Formulacion!$A:$BE,MATCH(BA$1,Formulacion!$1:$1,0),FALSE)="NA",1,VLOOKUP($B17,Formulacion!$A:$BE,MATCH(BA$1,Formulacion!$1:$1,0),FALSE)) -> 1 | BB17: 22441.59
A18: Edechi Proy con cta 2022 I | B18: DLABT | C18: GRALNVOSUMCALARQ | D18: DLABTM119620P392HOC3ALA002 | E18: 2022-06-30 | F18: Chiriqui | H18: 317061.22 | I18: 205259.55 | K18: 0 | N18: 524003.61 | P18: 0 | Q18: =IF(OR(VLOOKUP($B18,Formulacion!$A:$BE,MATCH(Q$1,Formulacion!$1:$1,0),FALSE)="NA",$D18=0),"NA",IF($B18="DLABT",MID($D18,PosteInicioBT,PosteFinBT-PosteInicioBT+1)*1,MID($D18,PosteInicio,PosteFin-PosteInicio+1)*1)) -> 392 | R18: =IF(OR(VLOOKUP($B18,Formulacion!$A:$BE,MATCH(R$1,Formulacion!$1:$1,0),FALSE)="NA",$D18=0),"NA",IF(OR($B18="DLABT",$B18="DLSBT"),MID($D18,CondInicioBT,CondFinBT-CondInicioBT+1)*1,MID($D18,CondInicio,CondFin-CondInicio+1)*1)) -> 19620 | S18: 50.05102041 | T18: =IF(OR(VLOOKUP($B18,Formulacion!$A:$BE,MATCH(T$1,Formulacion!$1:$1,0),FALSE)="NA",$D18=0),"NA",IF($B18="DLSBT",MID($D18,ZanjaInicioBT,ZanjaFinBT-ZanjaInicioBT+1)*1,MID($D18,ZanjaInicio,ZanjaFin-ZanjaInicio+1)*1)) -> NA | U18: 1 | V18: =IF(OR(VLOOKUP($B18,Formulacion!$A:$BE,MATCH(V$1,Formulacion!$1:$1,0),FALSE)="NA",$D18=0),"NA",MID($D18,m2Inicio+INDIRECT(B18),m2Fin-m2Inicio+1)*1) -> NA | W18: =IF(OR(VLOOKUP($B18,Formulacion!$A:$BE,MATCH(W$1,Formulacion!$1:$1,0),FALSE)="NA",$D18=0),"NA",RIGHT($D18,4)*1) -> NA | X18: =IF(OR(VLOOKUP($B18,Formulacion!$A:$BE,MATCH(X$1,Formulacion!$1:$1,0),FALSE)="NA",$D18=0),"NA",RIGHT($D18,3)*1) -> NA | Y18: 1 | Z18: =IF(VLOOKUP($B18,Formulacion!$A:$BE,MATCH(Z$1,Formulacion!$1:$1,0),FALSE)="NA",1,IF(V18<=m2Min,0,1)) -> 1 | AA18: =IF(VLOOKUP($B18,Formulacion!$A:$BE,MATCH(AA$1,Formulacion!$1:$1,0),FALSE)="NA",1,IF(OR(E18<=FechaMin,E18>FechaMax),0,1)) -> 1 | AB18: =IF(VLOOKUP($B18,Formulacion!$A:$BE,MATCH(AB$1,Formulacion!$1:$1,0),FALSE)="NA",1,IF(H18<=MaterialesMin,0,1)) -> 1 | AC18: =IF(VLOOKUP($B18,Formulacion!$A:$BE,MATCH(AC$1,Formulacion!$1:$1,0),FALSE)="NA",1,IF(N18=0,0,IF(OR(I18/N18<=MObraMin,I18/N18>=MObraMax),MDOmin,1))) -> 1 | AD18: =IF(VLOOKUP($B18,Formulacion!$A:$BE,MATCH(AD$1,Formulacion!$1:$1,0),FALSE)="NA",1,IF(N18<=CostoTotalMin,0,1)) -> 1 | AE18: =IF(VLOOKUP($B18,Formulacion!$A:$BE,MATCH(AE$1,Formulacion!$1:$1,0),FALSE)="NA",1,IF(Q18<=PostesMin,0,1)) -> 1 | AF18: =IF(VLOOKUP($B18,Formulacion!$A:$BE,MATCH(AF$1,Formulacion!$1:$1,0),FALSE)="NA",1,IF(R18<=INDIRECT(VLOOKUP(B18,Formulacion!$A:$BE,2,FALSE)),0,1)) -> 1 | AG18: 1 | AH18: 524003.61 | AI18: 1 | AJ18: =IF(VLOOKUP($B18,Formulacion!$A:$BE,MATCH(AJ$1,Formulacion!$1:$1,0),FALSE)="NA","NA",HLOOKUP(VLOOKUP($B18,Formulacion!$A:$BE,MATCH(AJ$1,Formulacion!$1:$1,0),FALSE),$Q:$Z,ROW(AJ18),FALSE)) -> 50.05102041 | AK18: =IF(VLOOKUP($B18,Formulacion!$A:$BE,MATCH(AK$1,Formulacion!$1:$1,0),FALSE)="NA",1,VLOOKUP($B18,Formulacion!$A:$BE,MATCH(AK$1,Formulacion!$1:$1,0),FALSE)) -> 30 | AL18: =IF(VLOOKUP($B18,Formulacion!$A:$BE,MATCH(AL$1,Formulacion!$1:$1,0),FALSE)="NA",1,VLOOKUP($B18,Formulacion!$A:$BE,MATCH(AL$1,Formulacion!$1:$1,0),FALSE)) -> 0.3 | AM18: NC | AN18: =IF(VLOOKUP($B18,Formulacion!$A:$BE,MATCH(AN$1,Formulacion!$1:$1,0),FALSE)="NA","NA",IF(D18=0,"",VLOOKUP($B18,Formulacion!$A:$BE,MATCH(AN$1,Formulacion!$1:$1,0),FALSE))) -> 0206170220032403 | AO18: LABTM1 | AP18: HO | AQ18: 3AL | AR18: 002 | AV18: NA | AW18: =IF(VLOOKUP($B18,Formulacion!$A:$BE,MATCH(AW$1,Formulacion!$1:$1,0),FALSE)="NA","NA",HLOOKUP(VLOOKUP($B18,Formulacion!$A:$BE,MATCH(AW$1,Formulacion!$1:$1,0),FALSE),$Q:$Z,ROW(AW18),FALSE)) -> 19620 | AX18: NA | AY18: 1 | AZ18: =IF(VLOOKUP($B18,Formulacion!$A:$BE,MATCH(AZ$1,Formulacion!$1:$1,0),FALSE)="NA",1,VLOOKUP($B18,Formulacion!$A:$BE,MATCH(AZ$1,Formulacion!$1:$1,0),FALSE)) -> 0.9 | BA18: =IF(VLOOKUP($B18,Formulacion!$A:$BE,MATCH(BA$1,Formulacion!$1:$1,0),FALSE)="NA",1,VLOOKUP($B18,Formulacion!$A:$BE,MATCH(BA$1,Formulacion!$1:$1,0),FALSE)) -> 1 | BB18: 471603.249
A19: Edechi Proy con cta 2022 I | B19: DLABT | C19: GRALNVOSUMCALARQ | D19: DLABTM109458P189HOC3ALA006 | E19: 2022-06-30 | F19: Chiriqui | H19: 254727.13 | I19: 164905.61 | K19: 0 | N19: 420984.73 | P19: 0 | Q19: =IF(OR(VLOOKUP($B19,Formulacion!$A:$BE,MATCH(Q$1,Formulacion!$1:$1,0),FALSE)="NA",$D19=0),"NA",IF($B19="DLABT",MID($D19,PosteInicioBT,PosteFinBT-PosteInicioBT+1)*1,MID($D19,PosteInicio,PosteFin-PosteInicio+1)*1)) -> 189 | R19: =IF(OR(VLOOKUP($B19,Formulacion!$A:$BE,MATCH(R$1,Formulacion!$1:$1,0),FALSE)="NA",$D19=0),"NA",IF(OR($B19="DLABT",$B19="DLSBT"),MID($D19,CondInicioBT,CondFinBT-CondInicioBT+1)*1,MID($D19,CondInicio,CondFin-CondInicio+1)*1)) -> 9458 | S19: 50.04232804 | T19: =IF(OR(VLOOKUP($B19,Formulacion!$A:$BE,MATCH(T$1,Formulacion!$1:$1,0),FALSE)="NA",$D19=0),"NA",IF($B19="DLSBT",MID($D19,ZanjaInicioBT,ZanjaFinBT-ZanjaInicioBT+1)*1,MID($D19,ZanjaInicio,ZanjaFin-ZanjaInicio+1)*1)) -> NA | U19: 1 | V19: =IF(OR(VLOOKUP($B19,Formulacion!$A:$BE,MATCH(V$1,Formulacion!$1:$1,0),FALSE)="NA",$D19=0),"NA",MID($D19,m2Inicio+INDIRECT(B19),m2Fin-m2Inicio+1)*1) -> NA | W19: =IF(OR(VLOOKUP($B19,Formulacion!$A:$BE,MATCH(W$1,Formulacion!$1:$1,0),FALSE)="NA",$D19=0),"NA",RIGHT($D19,4)*1) -> NA | X19: =IF(OR(VLOOKUP($B19,Formulacion!$A:$BE,MATCH(X$1,Formulacion!$1:$1,0),FALSE)="NA",$D19=0),"NA",RIGHT($D19,3)*1) -> NA | Y19: 1 | Z19: =IF(VLOOKUP($B19,Formulacion!$A:$BE,MATCH(Z$1,Formulacion!$1:$1,0),FALSE)="NA",1,IF(V19<=m2Min,0,1)) -> 1 | AA19: =IF(VLOOKUP($B19,Formulacion!$A:$BE,MATCH(AA$1,Formulacion!$1:$1,0),FALSE)="NA",1,IF(OR(E19<=FechaMin,E19>FechaMax),0,1)) -> 1 | AB19: =IF(VLOOKUP($B19,Formulacion!$A:$BE,MATCH(AB$1,Formulacion!$1:$1,0),FALSE)="NA",1,IF(H19<=MaterialesMin,0,1)) -> 1 | AC19: =IF(VLOOKUP($B19,Formulacion!$A:$BE,MATCH(AC$1,Formulacion!$1:$1,0),FALSE)="NA",1,IF(N19=0,0,IF(OR(I19/N19<=MObraMin,I19/N19>=MObraMax),MDOmin,1))) -> 1 | AD19: =IF(VLOOKUP($B19,Formulacion!$A:$BE,MATCH(AD$1,Formulacion!$1:$1,0),FALSE)="NA",1,IF(N19<=CostoTotalMin,0,1)) -> 1 | AE19: =IF(VLOOKUP($B19,Formulacion!$A:$BE,MATCH(AE$1,Formulacion!$1:$1,0),FALSE)="NA",1,IF(Q19<=PostesMin,0,1)) -> 1 | AF19: =IF(VLOOKUP($B19,Formulacion!$A:$BE,MATCH(AF$1,Formulacion!$1:$1,0),FALSE)="NA",1,IF(R19<=INDIRECT(VLOOKUP(B19,Formulacion!$A:$BE,2,FALSE)),0,1)) -> 1 | AG19: 1 | AH19: 420984.73 | AI19: 1 | AJ19: =IF(VLOOKUP($B19,Formulacion!$A:$BE,MATCH(AJ$1,Formulacion!$1:$1,0),FALSE)="NA","NA",HLOOKUP(VLOOKUP($B19,Formulacion!$A:$BE,MATCH(AJ$1,Formulacion!$1:$1,0),FALSE),$Q:$Z,ROW(AJ19),FALSE)) -> 50.04232804 | AK19: =IF(VLOOKUP($B19,Formulacion!$A:$BE,MATCH(AK$1,Formulacion!$1:$1,0),FALSE)="NA",1,VLOOKUP($B19,Formulacion!$A:$BE,MATCH(AK$1,Formulacion!$1:$1,0),FALSE)) -> 30 | AL19: =IF(VLOOKUP($B19,Formulacion!$A:$BE,MATCH(AL$1,Formulacion!$1:$1,0),FALSE)="NA",1,VLOOKUP($B19,Formulacion!$A:$BE,MATCH(AL$1,Formulacion!$1:$1,0),FALSE)) -> 0.3 | AM19: NC | AN19: =IF(VLOOKUP($B19,Formulacion!$A:$BE,MATCH(AN$1,Formulacion!$1:$1,0),FALSE)="NA","NA",IF(D19=0,"",VLOOKUP($B19,Formulacion!$A:$BE,MATCH(AN$1,Formulacion!$1:$1,0),FALSE))) -> 0206170220032403 | AO19: LABTM1 | AP19: HO | AQ19: 3AL | AR19: 006 | AV19: NA | AW19: =IF(VLOOKUP($B19,Formulacion!$A:$BE,MATCH(AW$1,Formulacion!$1:$1,0),FALSE)="NA","NA",HLOOKUP(VLOOKUP($B19,Formulacion!$A:$BE,MATCH(AW$1,Formulacion!$1:$1,0),FALSE),$Q:$Z,ROW(AW19),FALSE)) -> 9458 | AX19: NA | AY19: 1 | AZ19: =IF(VLOOKUP($B19,Formulacion!$A:$BE,MATCH(AZ$1,Formulacion!$1:$1,0),FALSE)="NA",1,VLOOKUP($B19,Formulacion!$A:$BE,MATCH(AZ$1,Formulacion!$1:$1,0),FALSE)) -> 0.9 | BA19: =IF(VLOOKUP($B19,Formulacion!$A:$BE,MATCH(BA$1,Formulacion!$1:$1,0),FALSE)="NA",1,VLOOKUP($B19,Formulacion!$A:$BE,MATCH(BA$1,Formulacion!$1:$1,0),FALSE)) -> 1 | BB19: 378886.257
A20: Edechi Proy con cta 2022 I | B20: DLABT | C20: GRALNVOSUMCALARQ | D20: DLABTM126837P536HOC3ALA1/0 | E20: 2022-06-30 | F20: Chiriqui | H20: 426198.41 | I20: 275912.94 | K20: 0 | N20: 704373.44 | P20: 0 | Q20: =IF(OR(VLOOKUP($B20,Formulacion!$A:$BE,MATCH(Q$1,Formulacion!$1:$1,0),FALSE)="NA",$D20=0),"NA",IF($B20="DLABT",MID($D20,PosteInicioBT,PosteFinBT-PosteInicioBT+1)*1,MID($D20,PosteInicio,PosteFin-PosteInicio+1)*1)) -> 536 | R20: =IF(OR(VLOOKUP($B20,Formulacion!$A:$BE,MATCH(R$1,Formulacion!$1:$1,0),FALSE)="NA",$D20=0),"NA",IF(OR($B20="DLABT",$B20="DLSBT"),MID($D20,CondInicioBT,CondFinBT-CondInicioBT+1)*1,MID($D20,CondInicio,CondFin-CondInicio+1)*1)) -> 26837 | S20: 50.06902985 | T20: =IF(OR(VLOOKUP($B20,Formulacion!$A:$BE,MATCH(T$1,Formulacion!$1:$1,0),FALSE)="NA",$D20=0),"NA",IF($B20="DLSBT",MID($D20,ZanjaInicioBT,ZanjaFinBT-ZanjaInicioBT+1)*1,MID($D20,ZanjaInicio,ZanjaFin-ZanjaInicio+1)*1)) -> NA | U20: 1 | V20: =IF(OR(VLOOKUP($B20,Formulacion!$A:$BE,MATCH(V$1,Formulacion!$1:$1,0),FALSE)="NA",$D20=0),"NA",MID($D20,m2Inicio+INDIRECT(B20),m2Fin-m2Inicio+1)*1) -> NA | W20: =IF(OR(VLOOKUP($B20,Formulacion!$A:$BE,MATCH(W$1,Formulacion!$1:$1,0),FALSE)="NA",$D20=0),"NA",RIGHT($D20,4)*1) -> NA | X20: =IF(OR(VLOOKUP($B20,Formulacion!$A:$BE,MATCH(X$1,Formulacion!$1:$1,0),FALSE)="NA",$D20=0),"NA",RIGHT($D20,3)*1) -> NA | Y20: 1 | Z20: =IF(VLOOKUP($B20,Formulacion!$A:$BE,MATCH(Z$1,Formulacion!$1:$1,0),FALSE)="NA",1,IF(V20<=m2Min,0,1)) -> 1 | AA20: =IF(VLOOKUP($B20,Formulacion!$A:$BE,MATCH(AA$1,Formulacion!$1:$1,0),FALSE)="NA",1,IF(OR(E20<=FechaMin,E20>FechaMax),0,1)) -> 1 | AB20: =IF(VLOOKUP($B20,Formulacion!$A:$BE,MATCH(AB$1,Formulacion!$1:$1,0),FALSE)="NA",1,IF(H20<=MaterialesMin,0,1)) -> 1 | AC20: =IF(VLOOKUP($B20,Formulacion!$A:$BE,MATCH(AC$1,Formulacion!$1:$1,0),FALSE)="NA",1,IF(N20=0,0,IF(OR(I20/N20<=MObraMin,I20/N20>=MObraMax),MDOmin,1))) -> 1 | AD20: =IF(VLOOKUP($B20,Formulacion!$A:$BE,MATCH(AD$1,Formulacion!$1:$1,0),FALSE)="NA",1,IF(N20<=CostoTotalMin,0,1)) -> 1 | AE20: =IF(VLOOKUP($B20,Formulacion!$A:$BE,MATCH(AE$1,Formulacion!$1:$1,0),FALSE)="NA",1,IF(Q20<=PostesMin,0,1)) -> 1 | AF20: =IF(VLOOKUP($B20,Formulacion!$A:$BE,MATCH(AF$1,Formulacion!$1:$1,0),FALSE)="NA",1,IF(R20<=INDIRECT(VLOOKUP(B20,Formulacion!$A:$BE,2,FALSE)),0,1)) -> 1 | AG20: 1 | AH20: 704373.44 | AI20: 1 | AJ20: =IF(VLOOKUP($B20,Formulacion!$A:$BE,MATCH(AJ$1,Formulacion!$1:$1,0),FALSE)="NA","NA",HLOOKUP(VLOOKUP($B20,Formulacion!$A:$BE,MATCH(AJ$1,Formulacion!$1:$1,0),FALSE),$Q:$Z,ROW(AJ20),FALSE)) -> 50.06902985 | AK20: =IF(VLOOKUP($B20,Formulacion!$A:$BE,MATCH(AK$1,Formulacion!$1:$1,0),FALSE)="NA",1,VLOOKUP($B20,Formulacion!$A:$BE,MATCH(AK$1,Formulacion!$1:$1,0),FALSE)) -> 30 | AL20: =IF(VLOOKUP($B20,Formulacion!$A:$BE,MATCH(AL$1,Formulacion!$1:$1,0),FALSE)="NA",1,VLOOKUP($B20,Formulacion!$A:$BE,MATCH(AL$1,Formulacion!$1:$1,0),FALSE)) -> 0.3 | AM20: NC | AN20: =IF(VLOOKUP($B20,Formulacion!$A:$BE,MATCH(AN$1,Formulacion!$1:$1,0),FALSE)="NA","NA",IF(D20=0,"",VLOOKUP($B20,Formulacion!$A:$BE,MATCH(AN$1,Formulacion!$1:$1,0),FALSE))) -> 0206170220032403 | AO20: LABTM1 | AP20: HO | AQ20: 3AL | AR20: 1/0 | AV20: NA | AW20: =IF(VLOOKUP($B20,Formulacion!$A:$BE,MATCH(AW$1,Formulacion!$1:$1,0),FALSE)="NA","NA",HLOOKUP(VLOOKUP($B20,Formulacion!$A:$BE,MATCH(AW$1,Formulacion!$1:$1,0),FALSE),$Q:$Z,ROW(AW20),FALSE)) -> 26837 | AX20: NA | AY20: 1 | AZ20: =IF(VLOOKUP($B20,Formulacion!$A:$BE,MATCH(AZ$1,Formulacion!$1:$1,0),FALSE)="NA",1,VLOOKUP($B20,Formulacion!$A:$BE,MATCH(AZ$1,Formulacion!$1:$1,0),FALSE)) -> 0.9 | BA20: =IF(VLOOKUP($B20,Formulacion!$A:$BE,MATCH(BA$1,Formulacion!$1:$1,0),FALSE)="NA",1,VLOOKUP($B20,Formulacion!$A:$BE,MATCH(BA$1,Formulacion!$1:$1,0),FALSE)) -> 1 | BB20: 633936.096
A21: Edechi Proy con cta 2022 I | B21: DLABT | C21: GRALNVOSUMCALARQ | D21: DLABTM100591P011HOC3ALA4/0 | E21: 2022-06-30 | F21: Chiriqui | H21: 31961.17 | I21: 20691.07 | K21: 0 | N21: 52821.88 | P21: 0 | Q21: =IF(OR(VLOOKUP($B21,Formulacion!$A:$BE,MATCH(Q$1,Formulacion!$1:$1,0),FALSE)="NA",$D21=0),"NA",IF($B21="DLABT",MID($D21,PosteInicioBT,PosteFinBT-PosteInicioBT+1)*1,MID($D21,PosteInicio,PosteFin-PosteInicio+1)*1)) -> 11 | R21: =IF(OR(VLOOKUP($B21,Formulacion!$A:$BE,MATCH(R$1,Formulacion!$1:$1,0),FALSE)="NA",$D21=0),"NA",IF(OR($B21="DLABT",$B21="DLSBT"),MID($D21,CondInicioBT,CondFinBT-CondInicioBT+1)*1,MID($D21,CondInicio,CondFin-CondInicio+1)*1)) -> 591 | S21: 53.72727273 | T21: =IF(OR(VLOOKUP($B21,Formulacion!$A:$BE,MATCH(T$1,Formulacion!$1:$1,0),FALSE)="NA",$D21=0),"NA",IF($B21="DLSBT",MID($D21,ZanjaInicioBT,ZanjaFinBT-ZanjaInicioBT+1)*1,MID($D21,ZanjaInicio,ZanjaFin-ZanjaInicio+1)*1)) -> NA | U21: 1 | V21: =IF(OR(VLOOKUP($B21,Formulacion!$A:$BE,MATCH(V$1,Formulacion!$1:$1,0),FALSE)="NA",$D21=0),"NA",MID($D21,m2Inicio+INDIRECT(B21),m2Fin-m2Inicio+1)*1) -> NA | W21: =IF(OR(VLOOKUP($B21,Formulacion!$A:$BE,MATCH(W$1,Formulacion!$1:$1,0),FALSE)="NA",$D21=0),"NA",RIGHT($D21,4)*1) -> NA | X21: =IF(OR(VLOOKUP($B21,Formulacion!$A:$BE,MATCH(X$1,Formulacion!$1:$1,0),FALSE)="NA",$D21=0),"NA",RIGHT($D21,3)*1) -> NA | Y21: 1 | Z21: =IF(VLOOKUP($B21,Formulacion!$A:$BE,MATCH(Z$1,Formulacion!$1:$1,0),FALSE)="NA",1,IF(V21<=m2Min,0,1)) -> 1 | AA21: =IF(VLOOKUP($B21,Formulacion!$A:$BE,MATCH(AA$1,Formulacion!$1:$1,0),FALSE)="NA",1,IF(OR(E21<=FechaMin,E21>FechaMax),0,1)) -> 1 | AB21: =IF(VLOOKUP($B21,Formulacion!$A:$BE,MATCH(AB$1,Formulacion!$1:$1,0),FALSE)="NA",1,IF(H21<=MaterialesMin,0,1)) -> 1 | AC21: =IF(VLOOKUP($B21,Formulacion!$A:$BE,MATCH(AC$1,Formulacion!$1:$1,0),FALSE)="NA",1,IF(N21=0,0,IF(OR(I21/N21<=MObraMin,I21/N21>=MObraMax),MDOmin,1))) -> 1 | AD21: =IF(VLOOKUP($B21,Formulacion!$A:$BE,MATCH(AD$1,Formulacion!$1:$1,0),FALSE)="NA",1,IF(N21<=CostoTotalMin,0,1)) -> 1 | AE21: =IF(VLOOKUP($B21,Formulacion!$A:$BE,MATCH(AE$1,Formulacion!$1:$1,0),FALSE)="NA",1,IF(Q21<=PostesMin,0,1)) -> 1 | AF21: =IF(VLOOKUP($B21,Formulacion!$A:$BE,MATCH(AF$1,Formulacion!$1:$1,0),FALSE)="NA",1,IF(R21<=INDIRECT(VLOOKUP(B21,Formulacion!$A:$BE,2,FALSE)),0,1)) -> 1 | AG21: 1 | AH21: 52821.88 | AI21: 1 | AJ21: =IF(VLOOKUP($B21,Formulacion!$A:$BE,MATCH(AJ$1,Formulacion!$1:$1,0),FALSE)="NA","NA",HLOOKUP(VLOOKUP($B21,Formulacion!$A:$BE,MATCH(AJ$1,Formulacion!$1:$1,0),FALSE),$Q:$Z,ROW(AJ21),FALSE)) -> 53.72727273 | AK21: =IF(VLOOKUP($B21,Formulacion!$A:$BE,MATCH(AK$1,Formulacion!$1:$1,0),FALSE)="NA",1,VLOOKUP($B21,Formulacion!$A:$BE,MATCH(AK$1,Formulacion!$1:$1,0),FALSE)) -> 30 | AL21: =IF(VLOOKUP($B21,Formulacion!$A:$BE,MATCH(AL$1,Formulacion!$1:$1,0),FALSE)="NA",1,VLOOKUP($B21,Formulacion!$A:$BE,MATCH(AL$1,Formulacion!$1:$1,0),FALSE)) -> 0.3 | AM21: NC | AN21: =IF(VLOOKUP($B21,Formulacion!$A:$BE,MATCH(AN$1,Formulacion!$1:$1,0),FALSE)="NA","NA",IF(D21=0,"",VLOOKUP($B21,Formulacion!$A:$BE,MATCH(AN$1,Formulacion!$1:$1,0),FALSE))) -> 0206170220032403 | AO21: LABTM1 | AP21: HO | AQ21: 3AL | AR21: 4/0 | AV21: NA | AW21: =IF(VLOOKUP($B21,Formulacion!$A:$BE,MATCH(AW$1,Formulacion!$1:$1,0),FALSE)="NA","NA",HLOOKUP(VLOOKUP($B21,Formulacion!$A:$BE,MATCH(AW$1,Formulacion!$1:$1,0),FALSE),$Q:$Z,ROW(AW21),FALSE)) -> 591 | AX21: NA | AY21: 1 | AZ21: =IF(VLOOKUP($B21,Formulacion!$A:$BE,MATCH(AZ$1,Formulacion!$1:$1,0),FALSE)="NA",1,VLOOKUP($B21,Formulacion!$A:$BE,MATCH(AZ$1,Formulacion!$1:$1,0),FALSE)) -> 0.9 | BA21: =IF(VLOOKUP($B21,Formulacion!$A:$BE,MATCH(BA$1,Formulacion!$1:$1,0),FALSE)="NA",1,VLOOKUP($B21,Formulacion!$A:$BE,MATCH(BA$1,Formulacion!$1:$1,0),FALSE)) -> 1 | BB21: 47539.692
A22: Edechi Proy con cta 2022 I | B22: DLABT | C22: GRALNVOSUMCALARQ | D22: DLABTT100163P003HOC4ALA1/0 | E22: 2022-06-30 | F22: Chiriqui | H22: 2652.93 | I22: 1717.46 | K22: 0 | N22: 4384.47 | P22: 0 | Q22: =IF(OR(VLOOKUP($B22,Formulacion!$A:$BE,MATCH(Q$1,Formulacion!$1:$1,0),FALSE)="NA",$D22=0),"NA",IF($B22="DLABT",MID($D22,PosteInicioBT,PosteFinBT-PosteInicioBT+1)*1,MID($D22,PosteInicio,PosteFin-PosteInicio+1)*1)) -> 3 | R22: =IF(OR(VLOOKUP($B22,Formulacion!$A:$BE,MATCH(R$1,Formulacion!$1:$1,0),FALSE)="NA",$D22=0),"NA",IF(OR($B22="DLABT",$B22="DLSBT"),MID($D22,CondInicioBT,CondFinBT-CondInicioBT+1)*1,MID($D22,CondInicio,CondFin-CondInicio+1)*1)) -> 163 | S22: 54.33333333 | T22: =IF(OR(VLOOKUP($B22,Formulacion!$A:$BE,MATCH(T$1,Formulacion!$1:$1,0),FALSE)="NA",$D22=0),"NA",IF($B22="DLSBT",MID($D22,ZanjaInicioBT,ZanjaFinBT-ZanjaInicioBT+1)*1,MID($D22,ZanjaInicio,ZanjaFin-ZanjaInicio+1)*1)) -> NA | U22: 1 | V22: =IF(OR(VLOOKUP($B22,Formulacion!$A:$BE,MATCH(V$1,Formulacion!$1:$1,0),FALSE)="NA",$D22=0),"NA",MID($D22,m2Inicio+INDIRECT(B22),m2Fin-m2Inicio+1)*1) -> NA | W22: =IF(OR(VLOOKUP($B22,Formulacion!$A:$BE,MATCH(W$1,Formulacion!$1:$1,0),FALSE)="NA",$D22=0),"NA",RIGHT($D22,4)*1) -> NA | X22: =IF(OR(VLOOKUP($B22,Formulacion!$A:$BE,MATCH(X$1,Formulacion!$1:$1,0),FALSE)="NA",$D22=0),"NA",RIGHT($D22,3)*1) -> NA | Y22: 1 | Z22: =IF(VLOOKUP($B22,Formulacion!$A:$BE,MATCH(Z$1,Formulacion!$1:$1,0),FALSE)="NA",1,IF(V22<=m2Min,0,1)) -> 1 | AA22: =IF(VLOOKUP($B22,Formulacion!$A:$BE,MATCH(AA$1,Formulacion!$1:$1,0),FALSE)="NA",1,IF(OR(E22<=FechaMin,E22>FechaMax),0,1)) -> 1 | AB22: =IF(VLOOKUP($B22,Formulacion!$A:$BE,MATCH(AB$1,Formulacion!$1:$1,0),FALSE)="NA",1,IF(H22<=MaterialesMin,0,1)) -> 1 | AC22: =IF(VLOOKUP($B22,Formulacion!$A:$BE,MATCH(AC$1,Formulacion!$1:$1,0),FALSE)="NA",1,IF(N22=0,0,IF(OR(I22/N22<=MObraMin,I22/N22>=MObraMax),MDOmin,1))) -> 1 | AD22: =IF(VLOOKUP($B22,Formulacion!$A:$BE,MATCH(AD$1,Formulacion!$1:$1,0),FALSE)="NA",1,IF(N22<=CostoTotalMin,0,1)) -> 1 | AE22: =IF(VLOOKUP($B22,Formulacion!$A:$BE,MATCH(AE$1,Formulacion!$1:$1,0),FALSE)="NA",1,IF(Q22<=PostesMin,0,1)) -> 1 | AF22: =IF(VLOOKUP($B22,Formulacion!$A:$BE,MATCH(AF$1,Formulacion!$1:$1,0),FALSE)="NA",1,IF(R22<=INDIRECT(VLOOKUP(B22,Formulacion!$A:$BE,2,FALSE)),0,1)) -> 1 | AG22: 1 | AH22: 4384.47 | AI22: 1 | AJ22: =IF(VLOOKUP($B22,Formulacion!$A:$BE,MATCH(AJ$1,Formulacion!$1:$1,0),FALSE)="NA","NA",HLOOKUP(VLOOKUP($B22,Formulacion!$A:$BE,MATCH(AJ$1,Formulacion!$1:$1,0),FALSE),$Q:$Z,ROW(AJ22),FALSE)) -> 54.33333333 | AK22: =IF(VLOOKUP($B22,Formulacion!$A:$BE,MATCH(AK$1,Formulacion!$1:$1,0),FALSE)="NA",1,VLOOKUP($B22,Formulacion!$A:$BE,MATCH(AK$1,Formulacion!$1:$1,0),FALSE)) -> 30 | AL22: =IF(VLOOKUP($B22,Formulacion!$A:$BE,MATCH(AL$1,Formulacion!$1:$1,0),FALSE)="NA",1,VLOOKUP($B22,Formulacion!$A:$BE,MATCH(AL$1,Formulacion!$1:$1,0),FALSE)) -> 0.3 | AM22: NC | AN22: =IF(VLOOKUP($B22,Formulacion!$A:$BE,MATCH(AN$1,Formulacion!$1:$1,0),FALSE)="NA","NA",IF(D22=0,"",VLOOKUP($B22,Formulacion!$A:$BE,MATCH(AN$1,Formulacion!$1:$1,0),FALSE))) -> 0206170220032403 | AO22: LABTT1 | AP22: HO | AQ22: 4AL | AR22: 1/0 | AV22: NA | AW22: =IF(VLOOKUP($B22,Formulacion!$A:$BE,MATCH(AW$1,Formulacion!$1:$1,0),FALSE)="NA","NA",HLOOKUP(VLOOKUP($B22,Formulacion!$A:$BE,MATCH(AW$1,Formulacion!$1:$1,0),FALSE),$Q:$Z,ROW(AW22),FALSE)) -> 163 | AX22: NA | AY22: 1 | AZ22: =IF(VLOOKUP($B22,Formulacion!$A:$BE,MATCH(AZ$1,Formulacion!$1:$1,0),FALSE)="NA",1,VLOOKUP($B22,Formulacion!$A:$BE,MATCH(AZ$1,Formulacion!$1:$1,0),FALSE)) -> 0.9 | BA22: =IF(VLOOKUP($B22,Formulacion!$A:$BE,MATCH(BA$1,Formulacion!$1:$1,0),FALSE)="NA",1,VLOOKUP($B22,Formulacion!$A:$BE,MATCH(BA$1,Formulacion!$1:$1,0),FALSE)) -> 1 | BB22: 3946.023
A23: Edechi Proy con cta 2022 I | B23: DLABT | C23: GRALNVOSUMCALARQ | D23: DLABTT100181P003HOC4ALA4/0 | E23: 2022-06-30 | F23: Chiriqui | H23: 4435.25 | I23: 2871.3 | K23: 0 | N23: 7330.09 | P23: 0 | Q23: =IF(OR(VLOOKUP($B23,Formulacion!$A:$BE,MATCH(Q$1,Formulacion!$1:$1,0),FALSE)="NA",$D23=0),"NA",IF($B23="DLABT",MID($D23,PosteInicioBT,PosteFinBT-PosteInicioBT+1)*1,MID($D23,PosteInicio,PosteFin-PosteInicio+1)*1)) -> 3 | R23: =IF(OR(VLOOKUP($B23,Formulacion!$A:$BE,MATCH(R$1,Formulacion!$1:$1,0),FALSE)="NA",$D23=0),"NA",IF(OR($B23="DLABT",$B23="DLSBT"),MID($D23,CondInicioBT,CondFinBT-CondInicioBT+1)*1,MID($D23,CondInicio,CondFin-CondInicio+1)*1)) -> 181 | S23: 60.33333333 | T23: =IF(OR(VLOOKUP($B23,Formulacion!$A:$BE,MATCH(T$1,Formulacion!$1:$1,0),FALSE)="NA",$D23=0),"NA",IF($B23="DLSBT",MID($D23,ZanjaInicioBT,ZanjaFinBT-ZanjaInicioBT+1)*1,MID($D23,ZanjaInicio,ZanjaFin-ZanjaInicio+1)*1)) -> NA | U23: 1 | V23: =IF(OR(VLOOKUP($B23,Formulacion!$A:$BE,MATCH(V$1,Formulacion!$1:$1,0),FALSE)="NA",$D23=0),"NA",MID($D23,m2Inicio+INDIRECT(B23),m2Fin-m2Inicio+1)*1) -> NA | W23: =IF(OR(VLOOKUP($B23,Formulacion!$A:$BE,MATCH(W$1,Formulacion!$1:$1,0),FALSE)="NA",$D23=0),"NA",RIGHT($D23,4)*1) -> NA | X23: =IF(OR(VLOOKUP($B23,Formulacion!$A:$BE,MATCH(X$1,Formulacion!$1:$1,0),FALSE)="NA",$D23=0),"NA",RIGHT($D23,3)*1) -> NA | Y23: 1 | Z23: =IF(VLOOKUP($B23,Formulacion!$A:$BE,MATCH(Z$1,Formulacion!$1:$1,0),FALSE)="NA",1,IF(V23<=m2Min,0,1)) -> 1 | AA23: =IF(VLOOKUP($B23,Formulacion!$A:$BE,MATCH(AA$1,Formulacion!$1:$1,0),FALSE)="NA",1,IF(OR(E23<=FechaMin,E23>FechaMax),0,1)) -> 1 | AB23: =IF(VLOOKUP($B23,Formulacion!$A:$BE,MATCH(AB$1,Formulacion!$1:$1,0),FALSE)="NA",1,IF(H23<=MaterialesMin,0,1)) -> 1 | AC23: =IF(VLOOKUP($B23,Formulacion!$A:$BE,MATCH(AC$1,Formulacion!$1:$1,0),FALSE)="NA",1,IF(N23=0,0,IF(OR(I23/N23<=MObraMin,I23/N23>=MObraMax),MDOmin,1))) -> 1 | AD23: =IF(VLOOKUP($B23,Formulacion!$A:$BE,MATCH(AD$1,Formulacion!$1:$1,0),FALSE)="NA",1,IF(N23<=CostoTotalMin,0,1)) -> 1 | AE23: =IF(VLOOKUP($B23,Formulacion!$A:$BE,MATCH(AE$1,Formulacion!$1:$1,0),FALSE)="NA",1,IF(Q23<=PostesMin,0,1)) -> 1 | AF23: =IF(VLOOKUP($B23,Formulacion!$A:$BE,MATCH(AF$1,Formulacion!$1:$1,0),FALSE)="NA",1,IF(R23<=INDIRECT(VLOOKUP(B23,Formulacion!$A:$BE,2,FALSE)),0,1)) -> 1 | AG23: 1 | AH23: 7330.09 | AI23: 1 | AJ23: =IF(VLOOKUP($B23,Formulacion!$A:$BE,MATCH(AJ$1,Formulacion!$1:$1,0),FALSE)="NA","NA",HLOOKUP(VLOOKUP($B23,Formulacion!$A:$BE,MATCH(AJ$1,Formulacion!$1:$1,0),FALSE),$Q:$Z,ROW(AJ23),FALSE)) -> 60.33333333 | AK23: =IF(VLOOKUP($B23,Formulacion!$A:$BE,MATCH(AK$1,Formulacion!$1:$1,0),FALSE)="NA",1,VLOOKUP($B23,Formulacion!$A:$BE,MATCH(AK$1,Formulacion!$1:$1,0),FALSE)) -> 30 | AL23: =IF(VLOOKUP($B23,Formulacion!$A:$BE,MATCH(AL$1,Formulacion!$1:$1,0),FALSE)="NA",1,VLOOKUP($B23,Formulacion!$A:$BE,MATCH(AL$1,Formulacion!$1:$1,0),FALSE)) -> 0.3 | AM23: NC | AN23: =IF(VLOOKUP($B23,Formulacion!$A:$BE,MATCH(AN$1,Formulacion!$1:$1,0),FALSE)="NA","NA",IF(D23=0,"",VLOOKUP($B23,Formulacion!$A:$BE,MATCH(AN$1,Formulacion!$1:$1,0),FALSE))) -> 0206170220032403 | AO23: LABTT1 | AP23: HO | AQ23: 4AL | AR23: 4/0 | AV23: NA | AW23: =IF(VLOOKUP($B23,Formulacion!$A:$BE,MATCH(AW$1,Formulacion!$1:$1,0),FALSE)="NA","NA",HLOOKUP(VLOOKUP($B23,Formulacion!$A:$BE,MATCH(AW$1,Formulacion!$1:$1,0),FALSE),$Q:$Z,ROW(AW23),FALSE)) -> 181 | AX23: NA | AY23: 1 | AZ23: =IF(VLOOKUP($B23,Formulacion!$A:$BE,MATCH(AZ$1,Formulacion!$1:$1,0),FALSE)="NA",1,VLOOKUP($B23,Formulacion!$A:$BE,MATCH(AZ$1,Formulacion!$1:$1,0),FALSE)) -> 0.9 | BA23: =IF(VLOOKUP($B23,Formulacion!$A:$BE,MATCH(BA$1,Formulacion!$1:$1,0),FALSE)="NA",1,VLOOKUP($B23,Formulacion!$A:$BE,MATCH(BA$1,Formulacion!$1:$1,0),FALSE)) -> 1 | BB23: 6597.081
A24: Edechi Proy con cta 2022 I | B24: DLAMT-13,8 | C24: GRALNVOSUMCALARQ | D24: DLAMT138M114233P2858MCHOA1/0 | E24: 2022-06-30 | F24: Chiriqui | H24: 393484.02 | I24: 289496.44 | K24: 0 | N24: 683438.21 | P24: 0 | Q24: =IF(OR(VLOOKUP($B24,Formulacion!$A:$BE,MATCH(Q$1,Formulacion!$1:$1,0),FALSE)="NA",$D24=0),"NA",IF($B24="DLABT",MID($D24,PosteInicioBT,PosteFinBT-PosteInicioBT+1)*1,MID($D24,PosteInicio,PosteFin-PosteInicio+1)*1)) -> 285 | R24: =IF(OR(VLOOKUP($B24,Formulacion!$A:$BE,MATCH(R$1,Formulacion!$1:$1,0),FALSE)="NA",$D24=0),"NA",IF(OR($B24="DLABT",$B24="DLSBT"),MID($D24,CondInicioBT,CondFinBT-CondInicioBT+1)*1,MID($D24,CondInicio,CondFin-CondInicio+1)*1)) -> 14233 | S24: 49.94035088 | T24: =IF(OR(VLOOKUP($B24,Formulacion!$A:$BE,MATCH(T$1,Formulacion!$1:$1,0),FALSE)="NA",$D24=0),"NA",IF($B24="DLSBT",MID($D24,ZanjaInicioBT,ZanjaFinBT-ZanjaInicioBT+1)*1,MID($D24,ZanjaInicio,ZanjaFin-ZanjaInicio+1)*1)) -> NA | U24: 1 | V24: =IF(OR(VLOOKUP($B24,Formulacion!$A:$BE,MATCH(V$1,Formulacion!$1:$1,0),FALSE)="NA",$D24=0),"NA",MID($D24,m2Inicio+INDIRECT(B24),m2Fin-m2Inicio+1)*1) -> NA | W24: =IF(OR(VLOOKUP($B24,Formulacion!$A:$BE,MATCH(W$1,Formulacion!$1:$1,0),FALSE)="NA",$D24=0),"NA",RIGHT($D24,4)*1) -> NA | X24: =IF(OR(VLOOKUP($B24,Formulacion!$A:$BE,MATCH(X$1,Formulacion!$1:$1,0),FALSE)="NA",$D24=0),"NA",RIGHT($D24,3)*1) -> NA | Y24: 1 | Z24: =IF(VLOOKUP($B24,Formulacion!$A:$BE,MATCH(Z$1,Formulacion!$1:$1,0),FALSE)="NA",1,IF(V24<=m2Min,0,1)) -> 1 | AA24: =IF(VLOOKUP($B24,Formulacion!$A:$BE,MATCH(AA$1,Formulacion!$1:$1,0),FALSE)="NA",1,IF(OR(E24<=FechaMin,E24>FechaMax),0,1)) -> 1 | AB24: =IF(VLOOKUP($B24,Formulacion!$A:$BE,MATCH(AB$1,Formulacion!$1:$1,0),FALSE)="NA",1,IF(H24<=MaterialesMin,0,1)) -> 1 | AC24: =IF(VLOOKUP($B24,Formulacion!$A:$BE,MATCH(AC$1,Formulacion!$1:$1,0),FALSE)="NA",1,IF(N24=0,0,IF(OR(I24/N24<=MObraMin,I24/N24>=MObraMax),MDOmin,1))) -> 1 | AD24: =IF(VLOOKUP($B24,Formulacion!$A:$BE,MATCH(AD$1,Formulacion!$1:$1,0),FALSE)="NA",1,IF(N24<=CostoTotalMin,0,1)) -> 1 | AE24: =IF(VLOOKUP($B24,Formulacion!$A:$BE,MATCH(AE$1,Formulacion!$1:$1,0),FALSE)="NA",1,IF(Q24<=PostesMin,0,1)) -> 1 | AF24: =IF(VLOOKUP($B24,Formulacion!$A:$BE,MATCH(AF$1,Formulacion!$1:$1,0),FALSE)="NA",1,IF(R24<=INDIRECT(VLOOKUP(B24,Formulacion!$A:$BE,2,FALSE)),0,1)) -> 1 | AG24: 1 | AH24: 683438.21 | AI24: 1 | AJ24: =IF(VLOOKUP($B24,Formulacion!$A:$BE,MATCH(AJ$1,Formulacion!$1:$1,0),FALSE)="NA","NA",HLOOKUP(VLOOKUP($B24,Formulacion!$A:$BE,MATCH(AJ$1,Formulacion!$1:$1,0),FALSE),$Q:$Z,ROW(AJ24),FALSE)) -> 49.94035088 | AK24: =IF(VLOOKUP($B24,Formulacion!$A:$BE,MATCH(AK$1,Formulacion!$1:$1,0),FALSE)="NA",1,VLOOKUP($B24,Formulacion!$A:$BE,MATCH(AK$1,Formulacion!$1:$1,0),FALSE)) -> 45 | AL24: =IF(VLOOKUP($B24,Formulacion!$A:$BE,MATCH(AL$1,Formulacion!$1:$1,0),FALSE)="NA",1,VLOOKUP($B24,Formulacion!$A:$BE,MATCH(AL$1,Formulacion!$1:$1,0),FALSE)) -> 0.3 | AM24: CU | AN24: =IF(VLOOKUP($B24,Formulacion!$A:$BE,MATCH(AN$1,Formulacion!$1:$1,0),FALSE)="NA","NA",IF(D24=0,"",VLOOKUP($B24,Formulacion!$A:$BE,MATCH(AN$1,Formulacion!$1:$1,0),FALSE))) -> 0209200223022603 | AO24: LAMT138M1 | AP24: 8M | AQ24: HO | AR24: 1/0 | AV24: NA | AW24: =IF(VLOOKUP($B24,Formulacion!$A:$BE,MATCH(AW$1,Formulacion!$1:$1,0),FALSE)="NA","NA",HLOOKUP(VLOOKUP($B24,Formulacion!$A:$BE,MATCH(AW$1,Formulacion!$1:$1,0),FALSE),$Q:$Z,ROW(AW24),FALSE)) -> 14233 | AX24: NA | AY24: 1 | AZ24: =IF(VLOOKUP($B24,Formulacion!$A:$BE,MATCH(AZ$1,Formulacion!$1:$1,0),FALSE)="NA",1,VLOOKUP($B24,Formulacion!$A:$BE,MATCH(AZ$1,Formulacion!$1:$1,0),FALSE)) -> 0.9 | BA24: =IF(VLOOKUP($B24,Formulacion!$A:$BE,MATCH(BA$1,Formulacion!$1:$1,0),FALSE)="NA",1,VLOOKUP($B24,Formulacion!$A:$BE,MATCH(BA$1,Formulacion!$1:$1,0),FALSE)) -> 1 | BB24: 615094.389
A25: Edechi Proy con cta 2022 I | B25: DLAMT-13,8 | C25: GRALNVOSUMCALARQ | D25: DLAMT138T101348P0278TCHOA1/0 | E25: 2022-06-30 | F25: Chiriqui | H25: 34530.03 | I25: 25404.64 | K25: 0 | N25: 59974.84 | P25: 0 | Q25: =IF(OR(VLOOKUP($B25,Formulacion!$A:$BE,MATCH(Q$1,Formulacion!$1:$1,0),FALSE)="NA",$D25=0),"NA",IF($B25="DLABT",MID($D25,PosteInicioBT,PosteFinBT-PosteInicioBT+1)*1,MID($D25,PosteInicio,PosteFin-PosteInicio+1)*1)) -> 27 | R25: =IF(OR(VLOOKUP($B25,Formulacion!$A:$BE,MATCH(R$1,Formulacion!$1:$1,0),FALSE)="NA",$D25=0),"NA",IF(OR($B25="DLABT",$B25="DLSBT"),MID($D25,CondInicioBT,CondFinBT-CondInicioBT+1)*1,MID($D25,CondInicio,CondFin-CondInicio+1)*1)) -> 1348 | S25: 49.92592593 | T25: =IF(OR(VLOOKUP($B25,Formulacion!$A:$BE,MATCH(T$1,Formulacion!$1:$1,0),FALSE)="NA",$D25=0),"NA",IF($B25="DLSBT",MID($D25,ZanjaInicioBT,ZanjaFinBT-ZanjaInicioBT+1)*1,MID($D25,ZanjaInicio,ZanjaFin-ZanjaInicio+1)*1)) -> NA | U25: 1 | V25: =IF(OR(VLOOKUP($B25,Formulacion!$A:$BE,MATCH(V$1,Formulacion!$1:$1,0),FALSE)="NA",$D25=0),"NA",MID($D25,m2Inicio+INDIRECT(B25),m2Fin-m2Inicio+1)*1) -> NA | W25: =IF(OR(VLOOKUP($B25,Formulacion!$A:$BE,MATCH(W$1,Formulacion!$1:$1,0),FALSE)="NA",$D25=0),"NA",RIGHT($D25,4)*1) -> NA | X25: =IF(OR(VLOOKUP($B25,Formulacion!$A:$BE,MATCH(X$1,Formulacion!$1:$1,0),FALSE)="NA",$D25=0),"NA",RIGHT($D25,3)*1) -> NA | Y25: 1 | Z25: =IF(VLOOKUP($B25,Formulacion!$A:$BE,MATCH(Z$1,Formulacion!$1:$1,0),FALSE)="NA",1,IF(V25<=m2Min,0,1)) -> 1 | AA25: =IF(VLOOKUP($B25,Formulacion!$A:$BE,MATCH(AA$1,Formulacion!$1:$1,0),FALSE)="NA",1,IF(OR(E25<=FechaMin,E25>FechaMax),0,1)) -> 1 | AB25: =IF(VLOOKUP($B25,Formulacion!$A:$BE,MATCH(AB$1,Formulacion!$1:$1,0),FALSE)="NA",1,IF(H25<=MaterialesMin,0,1)) -> 1 | AC25: =IF(VLOOKUP($B25,Formulacion!$A:$BE,MATCH(AC$1,Formulacion!$1:$1,0),FALSE)="NA",1,IF(N25=0,0,IF(OR(I25/N25<=MObraMin,I25/N25>=MObraMax),MDOmin,1))) -> 1 | AD25: =IF(VLOOKUP($B25,Formulacion!$A:$BE,MATCH(AD$1,Formulacion!$1:$1,0),FALSE)="NA",1,IF(N25<=CostoTotalMin,0,1)) -> 1 | AE25: =IF(VLOOKUP($B25,Formulacion!$A:$BE,MATCH(AE$1,Formulacion!$1:$1,0),FALSE)="NA",1,IF(Q25<=PostesMin,0,1)) -> 1 | AF25: =IF(VLOOKUP($B25,Formulacion!$A:$BE,MATCH(AF$1,Formulacion!$1:$1,0),FALSE)="NA",1,IF(R25<=INDIRECT(VLOOKUP(B25,Formulacion!$A:$BE,2,FALSE)),0,1)) -> 1 | AG25: 1 | AH25: 59974.84 | AI25: 1 | AJ25: =IF(VLOOKUP($B25,Formulacion!$A:$BE,MATCH(AJ$1,Formulacion!$1:$1,0),FALSE)="NA","NA",HLOOKUP(VLOOKUP($B25,Formulacion!$A:$BE,MATCH(AJ$1,Formulacion!$1:$1,0),FALSE),$Q:$Z,ROW(AJ25),FALSE)) -> 49.92592593 | AK25: =IF(VLOOKUP($B25,Formulacion!$A:$BE,MATCH(AK$1,Formulacion!$1:$1,0),FALSE)="NA",1,VLOOKUP($B25,Formulacion!$A:$BE,MATCH(AK$1,Formulacion!$1:$1,0),FALSE)) -> 45 | AL25: =IF(VLOOKUP($B25,Formulacion!$A:$BE,MATCH(AL$1,Formulacion!$1:$1,0),FALSE)="NA",1,VLOOKUP($B25,Formulacion!$A:$BE,MATCH(AL$1,Formulacion!$1:$1,0),FALSE)) -> 0.3 | AM25: CU | AN25: =IF(VLOOKUP($B25,Formulacion!$A:$BE,MATCH(AN$1,Formulacion!$1:$1,0),FALSE)="NA","NA",IF(D25=0,"",VLOOKUP($B25,Formulacion!$A:$BE,MATCH(AN$1,Formulacion!$1:$1,0),FALSE))) -> 0209200223022603 | AO25: LAMT138T1 | AP25: 8T | AQ25: HO | AR25: 1/0 | AV25: NA | AW25: =IF(VLOOKUP($B25,Formulacion!$A:$BE,MATCH(AW$1,Formulacion!$1:$1,0),FALSE)="NA","NA",HLOOKUP(VLOOKUP($B25,Formulacion!$A:$BE,MATCH(AW$1,Formulacion!$1:$1,0),FALSE),$Q:$Z,ROW(AW25),FALSE)) -> 1348 | AX25: NA | AY25: 1 | AZ25: =IF(VLOOKUP($B25,Formulacion!$A:$BE,MATCH(AZ$1,Formulacion!$1:$1,0),FALSE)="NA",1,VLOOKUP($B25,Formulacion!$A:$BE,MATCH(AZ$1,Formulacion!$1:$1,0),FALSE)) -> 0.9 | BA25: =IF(VLOOKUP($B25,Formulacion!$A:$BE,MATCH(BA$1,Formulacion!$1:$1,0),FALSE)="NA",1,VLOOKUP($B25,Formulacion!$A:$BE,MATCH(BA$1,Formulacion!$1:$1,0),FALSE)) -> 1 | BB25: 53977.356
A26: Edechi Proy con cta 2022 I | B26: DLAMT-13,8 | C26: GRALNVOSUMCALARQ | D26: DLAMT138T100171P0038TCHOA477 | E26: 2022-06-30 | F26: Chiriqui | H26: 24954.43 | I26: 18359.62 | K26: 0 | N26: 43343.08 | P26: 0 | Q26: =IF(OR(VLOOKUP($B26,Formulacion!$A:$BE,MATCH(Q$1,Formulacion!$1:$1,0),FALSE)="NA",$D26=0),"NA",IF($B26="DLABT",MID($D26,PosteInicioBT,PosteFinBT-PosteInicioBT+1)*1,MID($D26,PosteInicio,PosteFin-PosteInicio+1)*1)) -> 3 | R26: =IF(OR(VLOOKUP($B26,Formulacion!$A:$BE,MATCH(R$1,Formulacion!$1:$1,0),FALSE)="NA",$D26=0),"NA",IF(OR($B26="DLABT",$B26="DLSBT"),MID($D26,CondInicioBT,CondFinBT-CondInicioBT+1)*1,MID($D26,CondInicio,CondFin-CondInicio+1)*1)) -> 171 | S26: 57 | T26: =IF(OR(VLOOKUP($B26,Formulacion!$A:$BE,MATCH(T$1,Formulacion!$1:$1,0),FALSE)="NA",$D26=0),"NA",IF($B26="DLSBT",MID($D26,ZanjaInicioBT,ZanjaFinBT-ZanjaInicioBT+1)*1,MID($D26,ZanjaInicio,ZanjaFin-ZanjaInicio+1)*1)) -> NA | U26: 1 | V26: =IF(OR(VLOOKUP($B26,Formulacion!$A:$BE,MATCH(V$1,Formulacion!$1:$1,0),FALSE)="NA",$D26=0),"NA",MID($D26,m2Inicio+INDIRECT(B26),m2Fin-m2Inicio+1)*1) -> NA | W26: =IF(OR(VLOOKUP($B26,Formulacion!$A:$BE,MATCH(W$1,Formulacion!$1:$1,0),FALSE)="NA",$D26=0),"NA",RIGHT($D26,4)*1) -> NA | X26: =IF(OR(VLOOKUP($B26,Formulacion!$A:$BE,MATCH(X$1,Formulacion!$1:$1,0),FALSE)="NA",$D26=0),"NA",RIGHT($D26,3)*1) -> NA | Y26: 1 | Z26: =IF(VLOOKUP($B26,Formulacion!$A:$BE,MATCH(Z$1,Formulacion!$1:$1,0),FALSE)="NA",1,IF(V26<=m2Min,0,1)) -> 1 | AA26: =IF(VLOOKUP($B26,Formulacion!$A:$BE,MATCH(AA$1,Formulacion!$1:$1,0),FALSE)="NA",1,IF(OR(E26<=FechaMin,E26>FechaMax),0,1)) -> 1 | AB26: =IF(VLOOKUP($B26,Formulacion!$A:$BE,MATCH(AB$1,Formulacion!$1:$1,0),FALSE)="NA",1,IF(H26<=MaterialesMin,0,1)) -> 1 | AC26: =IF(VLOOKUP($B26,Formulacion!$A:$BE,MATCH(AC$1,Formulacion!$1:$1,0),FALSE)="NA",1,IF(N26=0,0,IF(OR(I26/N26<=MObraMin,I26/N26>=MObraMax),MDOmin,1))) -> 1 | AD26: =IF(VLOOKUP($B26,Formulacion!$A:$BE,MATCH(AD$1,Formulacion!$1:$1,0),FALSE)="NA",1,IF(N26<=CostoTotalMin,0,1)) -> 1 | AE26: =IF(VLOOKUP($B26,Formulacion!$A:$BE,MATCH(AE$1,Formulacion!$1:$1,0),FALSE)="NA",1,IF(Q26<=PostesMin,0,1)) -> 1 | AF26: =IF(VLOOKUP($B26,Formulacion!$A:$BE,MATCH(AF$1,Formulacion!$1:$1,0),FALSE)="NA",1,IF(R26<=INDIRECT(VLOOKUP(B26,Formulacion!$A:$BE,2,FALSE)),0,1)) -> 1 | AG26: 1 | AH26: 43343.08 | AI26: 1 | AJ26: =IF(VLOOKUP($B26,Formulacion!$A:$BE,MATCH(AJ$1,Formulacion!$1:$1,0),FALSE)="NA","NA",HLOOKUP(VLOOKUP($B26,Formulacion!$A:$BE,MATCH(AJ$1,Formulacion!$1:$1,0),FALSE),$Q:$Z,ROW(AJ26),FALSE)) -> 57 | AK26: =IF(VLOOKUP($B26,Formulacion!$A:$BE,MATCH(AK$1,Formulacion!$1:$1,0),FALSE)="NA",1,VLOOKUP($B26,Formulacion!$A:$BE,MATCH(AK$1,Formulacion!$1:$1,0),FALSE)) -> 45 | AL26: =IF(VLOOKUP($B26,Formulacion!$A:$BE,MATCH(AL$1,Formulacion!$1:$1,0),FALSE)="NA",1,VLOOKUP($B26,Formulacion!$A:$BE,MATCH(AL$1,Formulacion!$1:$1,0),FALSE)) -> 0.3 | AM26: CU | AN26: =IF(VLOOKUP($B26,Formulacion!$A:$BE,MATCH(AN$1,Formulacion!$1:$1,0),FALSE)="NA","NA",IF(D26=0,"",VLOOKUP($B26,Formulacion!$A:$BE,MATCH(AN$1,Formulacion!$1:$1,0),FALSE))) -> 0209200223022603 | AO26: LAMT138T1 | AP26: 8T | AQ26: HO | AR26: 477 | AV26: NA | AW26: =IF(VLOOKUP($B26,Formulacion!$A:$BE,MATCH(AW$1,Formulacion!$1:$1,0),FALSE)="NA","NA",HLOOKUP(VLOOKUP($B26,Formulacion!$A:$BE,MATCH(AW$1,Formulacion!$1:$1,0),FALSE),$Q:$Z,ROW(AW26),FALSE)) -> 171 | AX26: NA | AY26: 1 | AZ26: =IF(VLOOKUP($B26,Formulacion!$A:$BE,MATCH(AZ$1,Formulacion!$1:$1,0),FALSE)="NA",1,VLOOKUP($B26,Formulacion!$A:$BE,MATCH(AZ$1,Formulacion!$1:$1,0),FALSE)) -> 0.9 | BA26: =IF(VLOOKUP($B26,Formulacion!$A:$BE,MATCH(BA$1,Formulacion!$1:$1,0),FALSE)="NA",1,VLOOKUP($B26,Formulacion!$A:$BE,MATCH(BA$1,Formulacion!$1:$1,0),FALSE)) -> 1 | BB26: 39008.772
A27: Edechi Proy con cta 2022 I | B27: DLAMT-34,5 | C27: GRALNVOSUMCALARQ | D27: DLAMT345M119348P3875MCHOA1/0 | E27: 2022-06-30 | F27: Chiriqui | H27: 393403.77 | I27: 255773.85 | K27: 0 | N27: 656667.05 | P27: 0 | Q27: =IF(OR(VLOOKUP($B27,Formulacion!$A:$BE,MATCH(Q$1,Formulacion!$1:$1,0),FALSE)="NA",$D27=0),"NA",IF($B27="DLABT",MID($D27,PosteInicioBT,PosteFinBT-PosteInicioBT+1)*1,MID($D27,PosteInicio,PosteFin-PosteInicio+1)*1)) -> 387 | R27: =IF(OR(VLOOKUP($B27,Formulacion!$A:$BE,MATCH(R$1,Formulacion!$1:$1,0),FALSE)="NA",$D27=0),"NA",IF(OR($B27="DLABT",$B27="DLSBT"),MID($D27,CondInicioBT,CondFinBT-CondInicioBT+1)*1,MID($D27,CondInicio,CondFin-CondInicio+1)*1)) -> 19348 | S27: 49.99483204 | T27: =IF(OR(VLOOKUP($B27,Formulacion!$A:$BE,MATCH(T$1,Formulacion!$1:$1,0),FALSE)="NA",$D27=0),"NA",IF($B27="DLSBT",MID($D27,ZanjaInicioBT,ZanjaFinBT-ZanjaInicioBT+1)*1,MID($D27,ZanjaInicio,ZanjaFin-ZanjaInicio+1)*1)) -> NA | U27: 1 | V27: =IF(OR(VLOOKUP($B27,Formulacion!$A:$BE,MATCH(V$1,Formulacion!$1:$1,0),FALSE)="NA",$D27=0),"NA",MID($D27,m2Inicio+INDIRECT(B27),m2Fin-m2Inicio+1)*1) -> NA | W27: =IF(OR(VLOOKUP($B27,Formulacion!$A:$BE,MATCH(W$1,Formulacion!$1:$1,0),FALSE)="NA",$D27=0),"NA",RIGHT($D27,4)*1) -> NA | X27: =IF(OR(VLOOKUP($B27,Formulacion!$A:$BE,MATCH(X$1,Formulacion!$1:$1,0),FALSE)="NA",$D27=0),"NA",RIGHT($D27,3)*1) -> NA | Y27: 1 | Z27: =IF(VLOOKUP($B27,Formulacion!$A:$BE,MATCH(Z$1,Formulacion!$1:$1,0),FALSE)="NA",1,IF(V27<=m2Min,0,1)) -> 1 | AA27: =IF(VLOOKUP($B27,Formulacion!$A:$BE,MATCH(AA$1,Formulacion!$1:$1,0),FALSE)="NA",1,IF(OR(E27<=FechaMin,E27>FechaMax),0,1)) -> 1 | AB27: =IF(VLOOKUP($B27,Formulacion!$A:$BE,MATCH(AB$1,Formulacion!$1:$1,0),FALSE)="NA",1,IF(H27<=MaterialesMin,0,1)) -> 1 | AC27: =IF(VLOOKUP($B27,Formulacion!$A:$BE,MATCH(AC$1,Formulacion!$1:$1,0),FALSE)="NA",1,IF(N27=0,0,IF(OR(I27/N27<=MObraMin,I27/N27>=MObraMax),MDOmin,1))) -> 1 | AD27: =IF(VLOOKUP($B27,Formulacion!$A:$BE,MATCH(AD$1,Formulacion!$1:$1,0),FALSE)="NA",1,IF(N27<=CostoTotalMin,0,1)) -> 1 | AE27: =IF(VLOOKUP($B27,Formulacion!$A:$BE,MATCH(AE$1,Formulacion!$1:$1,0),FALSE)="NA",1,IF(Q27<=PostesMin,0,1)) -> 1 | AF27: =IF(VLOOKUP($B27,Formulacion!$A:$BE,MATCH(AF$1,Formulacion!$1:$1,0),FALSE)="NA",1,IF(R27<=INDIRECT(VLOOKUP(B27,Formulacion!$A:$BE,2,FALSE)),0,1)) -> 1 | AG27: 1 | AH27: 656667.05 | AI27: 1 | AJ27: =IF(VLOOKUP($B27,Formulacion!$A:$BE,MATCH(AJ$1,Formulacion!$1:$1,0),FALSE)="NA","NA",HLOOKUP(VLOOKUP($B27,Formulacion!$A:$BE,MATCH(AJ$1,Formulacion!$1:$1,0),FALSE),$Q:$Z,ROW(AJ27),FALSE)) -> 49.99483204 | AK27: =IF(VLOOKUP($B27,Formulacion!$A:$BE,MATCH(AK$1,Formulacion!$1:$1,0),FALSE)="NA",1,VLOOKUP($B27,Formulacion!$A:$BE,MATCH(AK$1,Formulacion!$1:$1,0),FALSE)) -> 45 | AL27: =IF(VLOOKUP($B27,Formulacion!$A:$BE,MATCH(AL$1,Formulacion!$1:$1,0),FALSE)="NA",1,VLOOKUP($B27,Formulacion!$A:$BE,MATCH(AL$1,Formulacion!$1:$1,0),FALSE)) -> 0.3 | AM27: CU | AN27: =IF(VLOOKUP($B27,Formulacion!$A:$BE,MATCH(AN$1,Formulacion!$1:$1,0),FALSE)="NA","NA",IF(D27=0,"",VLOOKUP($B27,Formulacion!$A:$BE,MATCH(AN$1,Formulacion!$1:$1,0),FALSE))) -> 0209200223022603 | AO27: LAMT345M1 | AP27: 5M | AQ27: HO | AR27: 1/0 | AV27: NA | AW27: =IF(VLOOKUP($B27,Formulacion!$A:$BE,MATCH(AW$1,Formulacion!$1:$1,0),FALSE)="NA","NA",HLOOKUP(VLOOKUP($B27,Formulacion!$A:$BE,MATCH(AW$1,Formulacion!$1:$1,0),FALSE),$Q:$Z,ROW(AW27),FALSE)) -> 19348 | AX27: NA | AY27: 1 | AZ27: =IF(VLOOKUP($B27,Formulacion!$A:$BE,MATCH(AZ$1,Formulacion!$1:$1,0),FALSE)="NA",1,VLOOKUP($B27,Formulacion!$A:$BE,MATCH(AZ$1,Formulacion!$1:$1,0),FALSE)) -> 0.9 | BA27: =IF(VLOOKUP($B27,Formulacion!$A:$BE,MATCH(BA$1,Formulacion!$1:$1,0),FALSE)="NA",1,VLOOKUP($B27,Formulacion!$A:$BE,MATCH(BA$1,Formulacion!$1:$1,0),FALSE)) -> 1 | BB27: 591000.345
A28: Edechi Proy con cta 2022 I | B28: DLAMT-34,5 | C28: GRALNVOSUMCALARQ | D28: DLAMT345T106459P1295TCHOA1/0 | E28: 2022-06-30 | F28: Chiriqui | H28: 153462.66 | I28: 99774.68 | K28: 0 | N28: 256158.89 | P28: 0 | Q28: =IF(OR(VLOOKUP($B28,Formulacion!$A:$BE,MATCH(Q$1,Formulacion!$1:$1,0),FALSE)="NA",$D28=0),"NA",IF($B28="DLABT",MID($D28,PosteInicioBT,PosteFinBT-PosteInicioBT+1)*1,MID($D28,PosteInicio,PosteFin-PosteInicio+1)*1)) -> 129 | R28: =IF(OR(VLOOKUP($B28,Formulacion!$A:$BE,MATCH(R$1,Formulacion!$1:$1,0),FALSE)="NA",$D28=0),"NA",IF(OR($B28="DLABT",$B28="DLSBT"),MID($D28,CondInicioBT,CondFinBT-CondInicioBT+1)*1,MID($D28,CondInicio,CondFin-CondInicio+1)*1)) -> 6459 | S28: 50.06976744 | T28: =IF(OR(VLOOKUP($B28,Formulacion!$A:$BE,MATCH(T$1,Formulacion!$1:$1,0),FALSE)="NA",$D28=0),"NA",IF($B28="DLSBT",MID($D28,ZanjaInicioBT,ZanjaFinBT-ZanjaInicioBT+1)*1,MID($D28,ZanjaInicio,ZanjaFin-ZanjaInicio+1)*1)) -> NA | U28: 1 | V28: =IF(OR(VLOOKUP($B28,Formulacion!$A:$BE,MATCH(V$1,Formulacion!$1:$1,0),FALSE)="NA",$D28=0),"NA",MID($D28,m2Inicio+INDIRECT(B28),m2Fin-m2Inicio+1)*1) -> NA | W28: =IF(OR(VLOOKUP($B28,Formulacion!$A:$BE,MATCH(W$1,Formulacion!$1:$1,0),FALSE)="NA",$D28=0),"NA",RIGHT($D28,4)*1) -> NA | X28: =IF(OR(VLOOKUP($B28,Formulacion!$A:$BE,MATCH(X$1,Formulacion!$1:$1,0),FALSE)="NA",$D28=0),"NA",RIGHT($D28,3)*1) -> NA | Y28: 1 | Z28: =IF(VLOOKUP($B28,Formulacion!$A:$BE,MATCH(Z$1,Formulacion!$1:$1,0),FALSE)="NA",1,IF(V28<=m2Min,0,1)) -> 1 | AA28: =IF(VLOOKUP($B28,Formulacion!$A:$BE,MATCH(AA$1,Formulacion!$1:$1,0),FALSE)="NA",1,IF(OR(E28<=FechaMin,E28>FechaMax),0,1)) -> 1 | AB28: =IF(VLOOKUP($B28,Formulacion!$A:$BE,MATCH(AB$1,Formulacion!$1:$1,0),FALSE)="NA",1,IF(H28<=MaterialesMin,0,1)) -> 1 | AC28: =IF(VLOOKUP($B28,Formulacion!$A:$BE,MATCH(AC$1,Formulacion!$1:$1,0),FALSE)="NA",1,IF(N28=0,0,IF(OR(I28/N28<=MObraMin,I28/N28>=MObraMax),MDOmin,1))) -> 1 | AD28: =IF(VLOOKUP($B28,Formulacion!$A:$BE,MATCH(AD$1,Formulacion!$1:$1,0),FALSE)="NA",1,IF(N28<=CostoTotalMin,0,1)) -> 1 | AE28: =IF(VLOOKUP($B28,Formulacion!$A:$BE,MATCH(AE$1,Formulacion!$1:$1,0),FALSE)="NA",1,IF(Q28<=PostesMin,0,1)) -> 1 | AF28: =IF(VLOOKUP($B28,Formulacion!$A:$BE,MATCH(AF$1,Formulacion!$1:$1,0),FALSE)="NA",1,IF(R28<=INDIRECT(VLOOKUP(B28,Formulacion!$A:$BE,2,FALSE)),0,1)) -> 1 | AG28: 1 | AH28: 256158.89 | AI28: 1 | AJ28: =IF(VLOOKUP($B28,Formulacion!$A:$BE,MATCH(AJ$1,Formulacion!$1:$1,0),FALSE)="NA","NA",HLOOKUP(VLOOKUP($B28,Formulacion!$A:$BE,MATCH(AJ$1,Formulacion!$1:$1,0),FALSE),$Q:$Z,ROW(AJ28),FALSE)) -> 50.06976744 | AK28: =IF(VLOOKUP($B28,Formulacion!$A:$BE,MATCH(AK$1,Formulacion!$1:$1,0),FALSE)="NA",1,VLOOKUP($B28,Formulacion!$A:$BE,MATCH(AK$1,Formulacion!$1:$1,0),FALSE)) -> 45 | AL28: =IF(VLOOKUP($B28,Formulacion!$A:$BE,MATCH(AL$1,Formulacion!$1:$1,0),FALSE)="NA",1,VLOOKUP($B28,Formulacion!$A:$BE,MATCH(AL$1,Formulacion!$1:$1,0),FALSE)) -> 0.3 | AM28: CU | AN28: =IF(VLOOKUP($B28,Formulacion!$A:$BE,MATCH(AN$1,Formulacion!$1:$1,0),FALSE)="NA","NA",IF(D28=0,"",VLOOKUP($B28,Formulacion!$A:$BE,MATCH(AN$1,Formulacion!$1:$1,0),FALSE))) -> 0209200223022603 | AO28: LAMT345T1 | AP28: 5T | AQ28: HO | AR28: 1/0 | AV28: NA | AW28: =IF(VLOOKUP($B28,Formulacion!$A:$BE,MATCH(AW$1,Formulacion!$1:$1,0),FALSE)="NA","NA",HLOOKUP(VLOOKUP($B28,Formulacion!$A:$BE,MATCH(AW$1,Formulacion!$1:$1,0),FALSE),$Q:$Z,ROW(AW28),FALSE)) -> 6459 | AX28: NA | AY28: 1 | AZ28: =IF(VLOOKUP($B28,Formulacion!$A:$BE,MATCH(AZ$1,Formulacion!$1:$1,0),FALSE)="NA",1,VLOOKUP($B28,Formulacion!$A:$BE,MATCH(AZ$1,Formulacion!$1:$1,0),FALSE)) -> 0.9 | BA28: =IF(VLOOKUP($B28,Formulacion!$A:$BE,MATCH(BA$1,Formulacion!$1:$1,0),FALSE)="NA",1,VLOOKUP($B28,Formulacion!$A:$BE,MATCH(BA$1,Formulacion!$1:$1,0),FALSE)) -> 1 | BB28: 230543.001
A29: Edechi Proy con cta 2022 I | B29: DLAMT-34,5 | C29: GRALNVOSUMCALARQ | D29: DLAMT345T100187P0045TCHOA266 | E29: 2022-06-30 | F29: Chiriqui | H29: 4917.62 | I29: 3197.22 | K29: 0 | N29: 8208.46 | P29: 0 | Q29: =IF(OR(VLOOKUP($B29,Formulacion!$A:$BE,MATCH(Q$1,Formulacion!$1:$1,0),FALSE)="NA",$D29=0),"NA",IF($B29="DLABT",MID($D29,PosteInicioBT,PosteFinBT-PosteInicioBT+1)*1,MID($D29,PosteInicio,PosteFin-PosteInicio+1)*1)) -> 4 | R29: =IF(OR(VLOOKUP($B29,Formulacion!$A:$BE,MATCH(R$1,Formulacion!$1:$1,0),FALSE)="NA",$D29=0),"NA",IF(OR($B29="DLABT",$B29="DLSBT"),MID($D29,CondInicioBT,CondFinBT-CondInicioBT+1)*1,MID($D29,CondInicio,CondFin-CondInicio+1)*1)) -> 187 | S29: 46.75 | T29: =IF(OR(VLOOKUP($B29,Formulacion!$A:$BE,MATCH(T$1,Formulacion!$1:$1,0),FALSE)="NA",$D29=0),"NA",IF($B29="DLSBT",MID($D29,ZanjaInicioBT,ZanjaFinBT-ZanjaInicioBT+1)*1,MID($D29,ZanjaInicio,ZanjaFin-ZanjaInicio+1)*1)) -> NA | U29: 1 | V29: =IF(OR(VLOOKUP($B29,Formulacion!$A:$BE,MATCH(V$1,Formulacion!$1:$1,0),FALSE)="NA",$D29=0),"NA",MID($D29,m2Inicio+INDIRECT(B29),m2Fin-m2Inicio+1)*1) -> NA | W29: =IF(OR(VLOOKUP($B29,Formulacion!$A:$BE,MATCH(W$1,Formulacion!$1:$1,0),FALSE)="NA",$D29=0),"NA",RIGHT($D29,4)*1) -> NA | X29: =IF(OR(VLOOKUP($B29,Formulacion!$A:$BE,MATCH(X$1,Formulacion!$1:$1,0),FALSE)="NA",$D29=0),"NA",RIGHT($D29,3)*1) -> NA | Y29: 1 | Z29: =IF(VLOOKUP($B29,Formulacion!$A:$BE,MATCH(Z$1,Formulacion!$1:$1,0),FALSE)="NA",1,IF(V29<=m2Min,0,1)) -> 1 | AA29: =IF(VLOOKUP($B29,Formulacion!$A:$BE,MATCH(AA$1,Formulacion!$1:$1,0),FALSE)="NA",1,IF(OR(E29<=FechaMin,E29>FechaMax),0,1)) -> 1 | AB29: =IF(VLOOKUP($B29,Formulacion!$A:$BE,MATCH(AB$1,Formulacion!$1:$1,0),FALSE)="NA",1,IF(H29<=MaterialesMin,0,1)) -> 1 | AC29: =IF(VLOOKUP($B29,Formulacion!$A:$BE,MATCH(AC$1,Formulacion!$1:$1,0),FALSE)="NA",1,IF(N29=0,0,IF(OR(I29/N29<=MObraMin,I29/N29>=MObraMax),MDOmin,1))) -> 1 | AD29: =IF(VLOOKUP($B29,Formulacion!$A:$BE,MATCH(AD$1,Formulacion!$1:$1,0),FALSE)="NA",1,IF(N29<=CostoTotalMin,0,1)) -> 1 | AE29: =IF(VLOOKUP($B29,Formulacion!$A:$BE,MATCH(AE$1,Formulacion!$1:$1,0),FALSE)="NA",1,IF(Q29<=PostesMin,0,1)) -> 1 | AF29: =IF(VLOOKUP($B29,Formulacion!$A:$BE,MATCH(AF$1,Formulacion!$1:$1,0),FALSE)="NA",1,IF(R29<=INDIRECT(VLOOKUP(B29,Formulacion!$A:$BE,2,FALSE)),0,1)) -> 1 | AG29: 1 | AH29: 8208.46 | AI29: 1 | AJ29: =IF(VLOOKUP($B29,Formulacion!$A:$BE,MATCH(AJ$1,Formulacion!$1:$1,0),FALSE)="NA","NA",HLOOKUP(VLOOKUP($B29,Formulacion!$A:$BE,MATCH(AJ$1,Formulacion!$1:$1,0),FALSE),$Q:$Z,ROW(AJ29),FALSE)) -> 46.75 | AK29: =IF(VLOOKUP($B29,Formulacion!$A:$BE,MATCH(AK$1,Formulacion!$1:$1,0),FALSE)="NA",1,VLOOKUP($B29,Formulacion!$A:$BE,MATCH(AK$1,Formulacion!$1:$1,0),FALSE)) -> 45 | AL29: =IF(VLOOKUP($B29,Formulacion!$A:$BE,MATCH(AL$1,Formulacion!$1:$1,0),FALSE)="NA",1,VLOOKUP($B29,Formulacion!$A:$BE,MATCH(AL$1,Formulacion!$1:$1,0),FALSE)) -> 0.3 | AM29: CU | AN29: =IF(VLOOKUP($B29,Formulacion!$A:$BE,MATCH(AN$1,Formulacion!$1:$1,0),FALSE)="NA","NA",IF(D29=0,"",VLOOKUP($B29,Formulacion!$A:$BE,MATCH(AN$1,Formulacion!$1:$1,0),FALSE))) -> 0209200223022603 | AO29: LAMT345T1 | AP29: 5T | AQ29: HO | AR29: 266 | AV29: NA | AW29: =IF(VLOOKUP($B29,Formulacion!$A:$BE,MATCH(AW$1,Formulacion!$1:$1,0),FALSE)="NA","NA",HLOOKUP(VLOOKUP($B29,Formulacion!$A:$BE,MATCH(AW$1,Formulacion!$1:$1,0),FALSE),$Q:$Z,ROW(AW29),FALSE)) -> 187 | AX29: NA | AY29: 1 | AZ29: =IF(VLOOKUP($B29,Formulacion!$A:$BE,MATCH(AZ$1,Formulacion!$1:$1,0),FALSE)="NA",1,VLOOKUP($B29,Formulacion!$A:$BE,MATCH(AZ$1,Formulacion!$1:$1,0),FALSE)) -> 0.9 | BA29: =IF(VLOOKUP($B29,Formulacion!$A:$BE,MATCH(BA$1,Formulacion!$1:$1,0),FALSE)="NA",1,VLOOKUP($B29,Formulacion!$A:$BE,MATCH(BA$1,Formulacion!$1:$1,0),FALSE)) -> 1 | BB29: 7387.614
A30: Edechi Proy con cta 2022 I | B30: DLAMT-34,5 | C30: GRALNVOSUMCALARQ | D30: DLAMT345T100436P0095TCHOA477 | E30: 2022-06-30 | F30: Chiriqui | H30: 14908.75 | I30: 9693.02 | K30: 0 | N30: 24885.6 | P30: 0 | Q30: =IF(OR(VLOOKUP($B30,Formulacion!$A:$BE,MATCH(Q$1,Formulacion!$1:$1,0),FALSE)="NA",$D30=0),"NA",IF($B30="DLABT",MID($D30,PosteInicioBT,PosteFinBT-PosteInicioBT+1)*1,MID($D30,PosteInicio,PosteFin-PosteInicio+1)*1)) -> 9 | R30: =IF(OR(VLOOKUP($B30,Formulacion!$A:$BE,MATCH(R$1,Formulacion!$1:$1,0),FALSE)="NA",$D30=0),"NA",IF(OR($B30="DLABT",$B30="DLSBT"),MID($D30,CondInicioBT,CondFinBT-CondInicioBT+1)*1,MID($D30,CondInicio,CondFin-CondInicio+1)*1)) -> 436 | S30: 48.44444444 | T30: =IF(OR(VLOOKUP($B30,Formulacion!$A:$BE,MATCH(T$1,Formulacion!$1:$1,0),FALSE)="NA",$D30=0),"NA",IF($B30="DLSBT",MID($D30,ZanjaInicioBT,ZanjaFinBT-ZanjaInicioBT+1)*1,MID($D30,ZanjaInicio,ZanjaFin-ZanjaInicio+1)*1)) -> NA | U30: 1 | V30: =IF(OR(VLOOKUP($B30,Formulacion!$A:$BE,MATCH(V$1,Formulacion!$1:$1,0),FALSE)="NA",$D30=0),"NA",MID($D30,m2Inicio+INDIRECT(B30),m2Fin-m2Inicio+1)*1) -> NA | W30: =IF(OR(VLOOKUP($B30,Formulacion!$A:$BE,MATCH(W$1,Formulacion!$1:$1,0),FALSE)="NA",$D30=0),"NA",RIGHT($D30,4)*1) -> NA | X30: =IF(OR(VLOOKUP($B30,Formulacion!$A:$BE,MATCH(X$1,Formulacion!$1:$1,0),FALSE)="NA",$D30=0),"NA",RIGHT($D30,3)*1) -> NA | Y30: 1 | Z30: =IF(VLOOKUP($B30,Formulacion!$A:$BE,MATCH(Z$1,Formulacion!$1:$1,0),FALSE)="NA",1,IF(V30<=m2Min,0,1)) -> 1 | AA30: =IF(VLOOKUP($B30,Formulacion!$A:$BE,MATCH(AA$1,Formulacion!$1:$1,0),FALSE)="NA",1,IF(OR(E30<=FechaMin,E30>FechaMax),0,1)) -> 1 | AB30: =IF(VLOOKUP($B30,Formulacion!$A:$BE,MATCH(AB$1,Formulacion!$1:$1,0),FALSE)="NA",1,IF(H30<=MaterialesMin,0,1)) -> 1 | AC30: =IF(VLOOKUP($B30,Formulacion!$A:$BE,MATCH(AC$1,Formulacion!$1:$1,0),FALSE)="NA",1,IF(N30=0,0,IF(OR(I30/N30<=MObraMin,I30/N30>=MObraMax),MDOmin,1))) -> 1 | AD30: =IF(VLOOKUP($B30,Formulacion!$A:$BE,MATCH(AD$1,Formulacion!$1:$1,0),FALSE)="NA",1,IF(N30<=CostoTotalMin,0,1)) -> 1 | AE30: =IF(VLOOKUP($B30,Formulacion!$A:$BE,MATCH(AE$1,Formulacion!$1:$1,0),FALSE)="NA",1,IF(Q30<=PostesMin,0,1)) -> 1 | AF30: =IF(VLOOKUP($B30,Formulacion!$A:$BE,MATCH(AF$1,Formulacion!$1:$1,0),FALSE)="NA",1,IF(R30<=INDIRECT(VLOOKUP(B30,Formulacion!$A:$BE,2,FALSE)),0,1)) -> 1 | AG30: 1 | AH30: 24885.6 | AI30: 1 | AJ30: =IF(VLOOKUP($B30,Formulacion!$A:$BE,MATCH(AJ$1,Formulacion!$1:$1,0),FALSE)="NA","NA",HLOOKUP(VLOOKUP($B30,Formulacion!$A:$BE,MATCH(AJ$1,Formulacion!$1:$1,0),FALSE),$Q:$Z,ROW(AJ30),FALSE)) -> 48.44444444 | AK30: =IF(VLOOKUP($B30,Formulacion!$A:$BE,MATCH(AK$1,Formulacion!$1:$1,0),FALSE)="NA",1,VLOOKUP($B30,Formulacion!$A:$BE,MATCH(AK$1,Formulacion!$1:$1,0),FALSE)) -> 45 | AL30: =IF(VLOOKUP($B30,Formulacion!$A:$BE,MATCH(AL$1,Formulacion!$1:$1,0),FALSE)="NA",1,VLOOKUP($B30,Formulacion!$A:$BE,MATCH(AL$1,Formulacion!$1:$1,0),FALSE)) -> 0.3 | AM30: CU | AN30: =IF(VLOOKUP($B30,Formulacion!$A:$BE,MATCH(AN$1,Formulacion!$1:$1,0),FALSE)="NA","NA",IF(D30=0,"",VLOOKUP($B30,Formulacion!$A:$BE,MATCH(AN$1,Formulacion!$1:$1,0),FALSE))) -> 0209200223022603 | AO30: LAMT345T1 | AP30: 5T | AQ30: HO | AR30: 477 | AV30: NA | AW30: =IF(VLOOKUP($B30,Formulacion!$A:$BE,MATCH(AW$1,Formulacion!$1:$1,0),FALSE)="NA","NA",HLOOKUP(VLOOKUP($B30,Formulacion!$A:$BE,MATCH(AW$1,Formulacion!$1:$1,0),FALSE),$Q:$Z,ROW(AW30),FALSE)) -> 436 | AX30: NA | AY30: 1 | AZ30: =IF(VLOOKUP($B30,Formulacion!$A:$BE,MATCH(AZ$1,Formulacion!$1:$1,0),FALSE)="NA",1,VLOOKUP($B30,Formulacion!$A:$BE,MATCH(AZ$1,Formulacion!$1:$1,0),FALSE)) -> 0.9 | BA30: =IF(VLOOKUP($B30,Formulacion!$A:$BE,MATCH(BA$1,Formulacion!$1:$1,0),FALSE)="NA",1,VLOOKUP($B30,Formulacion!$A:$BE,MATCH(BA$1,Formulacion!$1:$1,0),FALSE)) -> 1 | BB30: 22397.04
A31: Edechi Proy con cta 2022 I | B31: DLSBT | C31: GRALNVOSUMCALARQ | D31: DLSBTM100840ZB0150B02C4ALA002 | E31: 2022-06-30 | F31: Chiriqui | H31: 35028.18 | I31: 45670.24 | K31: 0 | N31: 81181.03 | P31: 0 | Q31: =IF(OR(VLOOKUP($B31,Formulacion!$A:$BE,MATCH(Q$1,Formulacion!$1:$1,0),FALSE)="NA",$D31=0),"NA",IF($B31="DLABT",MID($D31,PosteInicioBT,PosteFinBT-PosteInicioBT+1)*1,MID($D31,PosteInicio,PosteFin-PosteInicio+1)*1)) -> NA | R31: =IF(OR(VLOOKUP($B31,Formulacion!$A:$BE,MATCH(R$1,Formulacion!$1:$1,0),FALSE)="NA",$D31=0),"NA",IF(OR($B31="DLABT",$B31="DLSBT"),MID($D31,CondInicioBT,CondFinBT-CondInicioBT+1)*1,MID($D31,CondInicio,CondFin-CondInicio+1)*1)) -> 840 | S31: NA | T31: =IF(OR(VLOOKUP($B31,Formulacion!$A:$BE,MATCH(T$1,Formulacion!$1:$1,0),FALSE)="NA",$D31=0),"NA",IF($B31="DLSBT",MID($D31,ZanjaInicioBT,ZanjaFinBT-ZanjaInicioBT+1)*1,MID($D31,ZanjaInicio,ZanjaFin-ZanjaInicio+1)*1)) -> NA | U31: 1 | V31: =IF(OR(VLOOKUP($B31,Formulacion!$A:$BE,MATCH(V$1,Formulacion!$1:$1,0),FALSE)="NA",$D31=0),"NA",MID($D31,m2Inicio+INDIRECT(B31),m2Fin-m2Inicio+1)*1) -> NA | W31: =IF(OR(VLOOKUP($B31,Formulacion!$A:$BE,MATCH(W$1,Formulacion!$1:$1,0),FALSE)="NA",$D31=0),"NA",RIGHT($D31,4)*1) -> NA | X31: =IF(OR(VLOOKUP($B31,Formulacion!$A:$BE,MATCH(X$1,Formulacion!$1:$1,0),FALSE)="NA",$D31=0),"NA",RIGHT($D31,3)*1) -> NA | Y31: 1 | Z31: =IF(VLOOKUP($B31,Formulacion!$A:$BE,MATCH(Z$1,Formulacion!$1:$1,0),FALSE)="NA",1,IF(V31<=m2Min,0,1)) -> 1 | AA31: =IF(VLOOKUP($B31,Formulacion!$A:$BE,MATCH(AA$1,Formulacion!$1:$1,0),FALSE)="NA",1,IF(OR(E31<=FechaMin,E31>FechaMax),0,1)) -> 1 | AB31: =IF(VLOOKUP($B31,Formulacion!$A:$BE,MATCH(AB$1,Formulacion!$1:$1,0),FALSE)="NA",1,IF(H31<=MaterialesMin,0,1)) -> 1 | AC31: =IF(VLOOKUP($B31,Formulacion!$A:$BE,MATCH(AC$1,Formulacion!$1:$1,0),FALSE)="NA",1,IF(N31=0,0,IF(OR(I31/N31<=MObraMin,I31/N31>=MObraMax),MDOmin,1))) -> 1 | AD31: =IF(VLOOKUP($B31,Formulacion!$A:$BE,MATCH(AD$1,Formulacion!$1:$1,0),FALSE)="NA",1,IF(N31<=CostoTotalMin,0,1)) -> 1 | AE31: =IF(VLOOKUP($B31,Formulacion!$A:$BE,MATCH(AE$1,Formulacion!$1:$1,0),FALSE)="NA",1,IF(Q31<=PostesMin,0,1)) -> 1 | AF31: =IF(VLOOKUP($B31,Formulacion!$A:$BE,MATCH(AF$1,Formulacion!$1:$1,0),FALSE)="NA",1,IF(R31<=INDIRECT(VLOOKUP(B31,Formulacion!$A:$BE,2,FALSE)),0,1)) -> 1 | AG31: 1 | AH31: 81181.03 | AI31: 1 | AJ31: =IF(VLOOKUP($B31,Formulacion!$A:$BE,MATCH(AJ$1,Formulacion!$1:$1,0),FALSE)="NA","NA",HLOOKUP(VLOOKUP($B31,Formulacion!$A:$BE,MATCH(AJ$1,Formulacion!$1:$1,0),FALSE),$Q:$Z,ROW(AJ31),FALSE)) -> NA | AK31: =IF(VLOOKUP($B31,Formulacion!$A:$BE,MATCH(AK$1,Formulacion!$1:$1,0),FALSE)="NA",1,VLOOKUP($B31,Formulacion!$A:$BE,MATCH(AK$1,Formulacion!$1:$1,0),FALSE)) -> 1000 | AL31: =IF(VLOOKUP($B31,Formulacion!$A:$BE,MATCH(AL$1,Formulacion!$1:$1,0),FALSE)="NA",1,VLOOKUP($B31,Formulacion!$A:$BE,MATCH(AL$1,Formulacion!$1:$1,0),FALSE)) -> 0.5 | AM31: 1 | AN31: =IF(VLOOKUP($B31,Formulacion!$A:$BE,MATCH(AN$1,Formulacion!$1:$1,0),FALSE)="NA","NA",IF(D31=0,"",VLOOKUP($B31,Formulacion!$A:$BE,MATCH(AN$1,Formulacion!$1:$1,0),FALSE))) -> 020624022703 | AO31: LSBTM1 | AP31: AL | AQ31: 002 | AV31: NA | AW31: =IF(VLOOKUP($B31,Formulacion!$A:$BE,MATCH(AW$1,Formulacion!$1:$1,0),FALSE)="NA","NA",HLOOKUP(VLOOKUP($B31,Formulacion!$A:$BE,MATCH(AW$1,Formulacion!$1:$1,0),FALSE),$Q:$Z,ROW(AW31),FALSE)) -> 840 | AX31: NA | AY31: 1 | AZ31: =IF(VLOOKUP($B31,Formulacion!$A:$BE,MATCH(AZ$1,Formulacion!$1:$1,0),FALSE)="NA",1,VLOOKUP($B31,Formulacion!$A:$BE,MATCH(AZ$1,Formulacion!$1:$1,0),FALSE)) -> 0.9 | BA31: =IF(VLOOKUP($B31,Formulacion!$A:$BE,MATCH(BA$1,Formulacion!$1:$1,0),FALSE)="NA",1,VLOOKUP($B31,Formulacion!$A:$BE,MATCH(BA$1,Formulacion!$1:$1,0),FALSE)) -> 1 | BB31: 73062.927
A32: Edechi Proy con cta 2022 I | B32: DLSBT | C32: GRALNVOSUMCALARQ | D32: DLSBTM100132ZB0150B02C4ALA006 | E32: 2022-06-30 | F32: Chiriqui | H32: 5572.58 | I32: 7265.61 | K32: 0 | N32: 12914.97 | P32: 0 | Q32: =IF(OR(VLOOKUP($B32,Formulacion!$A:$BE,MATCH(Q$1,Formulacion!$1:$1,0),FALSE)="NA",$D32=0),"NA",IF($B32="DLABT",MID($D32,PosteInicioBT,PosteFinBT-PosteInicioBT+1)*1,MID($D32,PosteInicio,PosteFin-PosteInicio+1)*1)) -> NA | R32: =IF(OR(VLOOKUP($B32,Formulacion!$A:$BE,MATCH(R$1,Formulacion!$1:$1,0),FALSE)="NA",$D32=0),"NA",IF(OR($B32="DLABT",$B32="DLSBT"),MID($D32,CondInicioBT,CondFinBT-CondInicioBT+1)*1,MID($D32,CondInicio,CondFin-CondInicio+1)*1)) -> 132 | S32: NA | T32: =IF(OR(VLOOKUP($B32,Formulacion!$A:$BE,MATCH(T$1,Formulacion!$1:$1,0),FALSE)="NA",$D32=0),"NA",IF($B32="DLSBT",MID($D32,ZanjaInicioBT,ZanjaFinBT-ZanjaInicioBT+1)*1,MID($D32,ZanjaInicio,ZanjaFin-ZanjaInicio+1)*1)) -> NA | U32: 1 | V32: =IF(OR(VLOOKUP($B32,Formulacion!$A:$BE,MATCH(V$1,Formulacion!$1:$1,0),FALSE)="NA",$D32=0),"NA",MID($D32,m2Inicio+INDIRECT(B32),m2Fin-m2Inicio+1)*1) -> NA | W32: =IF(OR(VLOOKUP($B32,Formulacion!$A:$BE,MATCH(W$1,Formulacion!$1:$1,0),FALSE)="NA",$D32=0),"NA",RIGHT($D32,4)*1) -> NA | X32: =IF(OR(VLOOKUP($B32,Formulacion!$A:$BE,MATCH(X$1,Formulacion!$1:$1,0),FALSE)="NA",$D32=0),"NA",RIGHT($D32,3)*1) -> NA | Y32: 1 | Z32: =IF(VLOOKUP($B32,Formulacion!$A:$BE,MATCH(Z$1,Formulacion!$1:$1,0),FALSE)="NA",1,IF(V32<=m2Min,0,1)) -> 1 | AA32: =IF(VLOOKUP($B32,Formulacion!$A:$BE,MATCH(AA$1,Formulacion!$1:$1,0),FALSE)="NA",1,IF(OR(E32<=FechaMin,E32>FechaMax),0,1)) -> 1 | AB32: =IF(VLOOKUP($B32,Formulacion!$A:$BE,MATCH(AB$1,Formulacion!$1:$1,0),FALSE)="NA",1,IF(H32<=MaterialesMin,0,1)) -> 1 | AC32: =IF(VLOOKUP($B32,Formulacion!$A:$BE,MATCH(AC$1,Formulacion!$1:$1,0),FALSE)="NA",1,IF(N32=0,0,IF(OR(I32/N32<=MObraMin,I32/N32>=MObraMax),MDOmin,1))) -> 1 | AD32: =IF(VLOOKUP($B32,Formulacion!$A:$BE,MATCH(AD$1,Formulacion!$1:$1,0),FALSE)="NA",1,IF(N32<=CostoTotalMin,0,1)) -> 1 | AE32: =IF(VLOOKUP($B32,Formulacion!$A:$BE,MATCH(AE$1,Formulacion!$1:$1,0),FALSE)="NA",1,IF(Q32<=PostesMin,0,1)) -> 1 | AF32: =IF(VLOOKUP($B32,Formulacion!$A:$BE,MATCH(AF$1,Formulacion!$1:$1,0),FALSE)="NA",1,IF(R32<=INDIRECT(VLOOKUP(B32,Formulacion!$A:$BE,2,FALSE)),0,1)) -> 1 | AG32: 1 | AH32: 12914.97 | AI32: 1 | AJ32: =IF(VLOOKUP($B32,Formulacion!$A:$BE,MATCH(AJ$1,Formulacion!$1:$1,0),FALSE)="NA","NA",HLOOKUP(VLOOKUP($B32,Formulacion!$A:$BE,MATCH(AJ$1,Formulacion!$1:$1,0),FALSE),$Q:$Z,ROW(AJ32),FALSE)) -> NA | AK32: =IF(VLOOKUP($B32,Formulacion!$A:$BE,MATCH(AK$1,Formulacion!$1:$1,0),FALSE)="NA",1,VLOOKUP($B32,Formulacion!$A:$BE,MATCH(AK$1,Formulacion!$1:$1,0),FALSE)) -> 1000 | AL32: =IF(VLOOKUP($B32,Formulacion!$A:$BE,MATCH(AL$1,Formulacion!$1:$1,0),FALSE)="NA",1,VLOOKUP($B32,Formulacion!$A:$BE,MATCH(AL$1,Formulacion!$1:$1,0),FALSE)) -> 0.5 | AM32: 1 | AN32: =IF(VLOOKUP($B32,Formulacion!$A:$BE,MATCH(AN$1,Formulacion!$1:$1,0),FALSE)="NA","NA",IF(D32=0,"",VLOOKUP($B32,Formulacion!$A:$BE,MATCH(AN$1,Formulacion!$1:$1,0),FALSE))) -> 020624022703 | AO32: LSBTM1 | AP32: AL | AQ32: 006 | AV32: NA | AW32: =IF(VLOOKUP($B32,Formulacion!$A:$BE,MATCH(AW$1,Formulacion!$1:$1,0),FALSE)="NA","NA",HLOOKUP(VLOOKUP($B32,Formulacion!$A:$BE,MATCH(AW$1,Formulacion!$1:$1,0),FALSE),$Q:$Z,ROW(AW32),FALSE)) -> 132 | AX32: NA | AY32: 1 | AZ32: =IF(VLOOKUP($B32,Formulacion!$A:$BE,MATCH(AZ$1,Formulacion!$1:$1,0),FALSE)="NA",1,VLOOKUP($B32,Formulacion!$A:$BE,MATCH(AZ$1,Formulacion!$1:$1,0),FALSE)) -> 0.9 | BA32: =IF(VLOOKUP($B32,Formulacion!$A:$BE,MATCH(BA$1,Formulacion!$1:$1,0),FALSE)="NA",1,VLOOKUP($B32,Formulacion!$A:$BE,MATCH(BA$1,Formulacion!$1:$1,0),FALSE)) -> 1 | BB32: 11623.473
A33: Edechi Proy con cta 2022 I | B33: DLSBT | C33: GRALNVOSUMCALARQ | D33: DLSBTM100216ZB0150B02C4ALA1/0 | E33: 2022-06-30 | F33: Chiriqui | H33: 8519.85 | I33: 11108.3 | K33: 0 | N33: 19745.53 | P33: 0 | Q33: =IF(OR(VLOOKUP($B33,Formulacion!$A:$BE,MATCH(Q$1,Formulacion!$1:$1,0),FALSE)="NA",$D33=0),"NA",IF($B33="DLABT",MID($D33,PosteInicioBT,PosteFinBT-PosteInicioBT+1)*1,MID($D33,PosteInicio,PosteFin-PosteInicio+1)*1)) -> NA | R33: =IF(OR(VLOOKUP($B33,Formulacion!$A:$BE,MATCH(R$1,Formulacion!$1:$1,0),FALSE)="NA",$D33=0),"NA",IF(OR($B33="DLABT",$B33="DLSBT"),MID($D33,CondInicioBT,CondFinBT-CondInicioBT+1)*1,MID($D33,CondInicio,CondFin-CondInicio+1)*1)) -> 216 | S33: NA | T33: =IF(OR(VLOOKUP($B33,Formulacion!$A:$BE,MATCH(T$1,Formulacion!$1:$1,0),FALSE)="NA",$D33=0),"NA",IF($B33="DLSBT",MID($D33,ZanjaInicioBT,ZanjaFinBT-ZanjaInicioBT+1)*1,MID($D33,ZanjaInicio,ZanjaFin-ZanjaInicio+1)*1)) -> NA | U33: 1 | V33: =IF(OR(VLOOKUP($B33,Formulacion!$A:$BE,MATCH(V$1,Formulacion!$1:$1,0),FALSE)="NA",$D33=0),"NA",MID($D33,m2Inicio+INDIRECT(B33),m2Fin-m2Inicio+1)*1) -> NA | W33: =IF(OR(VLOOKUP($B33,Formulacion!$A:$BE,MATCH(W$1,Formulacion!$1:$1,0),FALSE)="NA",$D33=0),"NA",RIGHT($D33,4)*1) -> NA | X33: =IF(OR(VLOOKUP($B33,Formulacion!$A:$BE,MATCH(X$1,Formulacion!$1:$1,0),FALSE)="NA",$D33=0),"NA",RIGHT($D33,3)*1) -> NA | Y33: 1 | Z33: =IF(VLOOKUP($B33,Formulacion!$A:$BE,MATCH(Z$1,Formulacion!$1:$1,0),FALSE)="NA",1,IF(V33<=m2Min,0,1)) -> 1 | AA33: =IF(VLOOKUP($B33,Formulacion!$A:$BE,MATCH(AA$1,Formulacion!$1:$1,0),FALSE)="NA",1,IF(OR(E33<=FechaMin,E33>FechaMax),0,1)) -> 1 | AB33: =IF(VLOOKUP($B33,Formulacion!$A:$BE,MATCH(AB$1,Formulacion!$1:$1,0),FALSE)="NA",1,IF(H33<=MaterialesMin,0,1)) -> 1 | AC33: =IF(VLOOKUP($B33,Formulacion!$A:$BE,MATCH(AC$1,Formulacion!$1:$1,0),FALSE)="NA",1,IF(N33=0,0,IF(OR(I33/N33<=MObraMin,I33/N33>=MObraMax),MDOmin,1))) -> 1 | AD33: =IF(VLOOKUP($B33,Formulacion!$A:$BE,MATCH(AD$1,Formulacion!$1:$1,0),FALSE)="NA",1,IF(N33<=CostoTotalMin,0,1)) -> 1 | AE33: =IF(VLOOKUP($B33,Formulacion!$A:$BE,MATCH(AE$1,Formulacion!$1:$1,0),FALSE)="NA",1,IF(Q33<=PostesMin,0,1)) -> 1 | AF33: =IF(VLOOKUP($B33,Formulacion!$A:$BE,MATCH(AF$1,Formulacion!$1:$1,0),FALSE)="NA",1,IF(R33<=INDIRECT(VLOOKUP(B33,Formulacion!$A:$BE,2,FALSE)),0,1)) -> 1 | AG33: 1 | AH33: 19745.53 | AI33: 1 | AJ33: =IF(VLOOKUP($B33,Formulacion!$A:$BE,MATCH(AJ$1,Formulacion!$1:$1,0),FALSE)="NA","NA",HLOOKUP(VLOOKUP($B33,Formulacion!$A:$BE,MATCH(AJ$1,Formulacion!$1:$1,0),FALSE),$Q:$Z,ROW(AJ33),FALSE)) -> NA | AK33: =IF(VLOOKUP($B33,Formulacion!$A:$BE,MATCH(AK$1,Formulacion!$1:$1,0),FALSE)="NA",1,VLOOKUP($B33,Formulacion!$A:$BE,MATCH(AK$1,Formulacion!$1:$1,0),FALSE)) -> 1000 | AL33: =IF(VLOOKUP($B33,Formulacion!$A:$BE,MATCH(AL$1,Formulacion!$1:$1,0),FALSE)="NA",1,VLOOKUP($B33,Formulacion!$A:$BE,MATCH(AL$1,Formulacion!$1:$1,0),FALSE)) -> 0.5 | AM33: 1 | AN33: =IF(VLOOKUP($B33,Formulacion!$A:$BE,MATCH(AN$1,Formulacion!$1:$1,0),FALSE)="NA","NA",IF(D33=0,"",VLOOKUP($B33,Formulacion!$A:$BE,MATCH(AN$1,Formulacion!$1:$1,0),FALSE))) -> 020624022703 | AO33: LSBTM1 | AP33: AL | AQ33: 1/0 | AV33: NA | AW33: =IF(VLOOKUP($B33,Formulacion!$A:$BE,MATCH(AW$1,Formulacion!$1:$1,0),FALSE)="NA","NA",HLOOKUP(VLOOKUP($B33,Formulacion!$A:$BE,MATCH(AW$1,Formulacion!$1:$1,0),FALSE),$Q:$Z,ROW(AW33),FALSE)) -> 216 | AX33: NA | AY33: 1 | AZ33: =IF(VLOOKUP($B33,Formulacion!$A:$BE,MATCH(AZ$1,Formulacion!$1:$1,0),FALSE)="NA",1,VLOOKUP($B33,Formulacion!$A:$BE,MATCH(AZ$1,Formulacion!$1:$1,0),FALSE)) -> 0.9 | BA33: =IF(VLOOKUP($B33,Formulacion!$A:$BE,MATCH(BA$1,Formulacion!$1:$1,0),FALSE)="NA",1,VLOOKUP($B33,Formulacion!$A:$BE,MATCH(BA$1,Formulacion!$1:$1,0),FALSE)) -> 1 | BB33: 17770.977
A34: Edechi Proy con cta 2022 I | B34: DLSBT | C34: GRALNVOSUMCALARQ | D34: DLSBTM100144ZB0320B02C4ALA4/0 | E34: 2022-06-30 | F34: Chiriqui | H34: 6827.5 | I34: 8901.8 | K34: 0 | N34: 15823.37 | P34: 0 | Q34: =IF(OR(VLOOKUP($B34,Formulacion!$A:$BE,MATCH(Q$1,Formulacion!$1:$1,0),FALSE)="NA",$D34=0),"NA",IF($B34="DLABT",MID($D34,PosteInicioBT,PosteFinBT-PosteInicioBT+1)*1,MID($D34,PosteInicio,PosteFin-PosteInicio+1)*1)) -> NA | R34: =IF(OR(VLOOKUP($B34,Formulacion!$A:$BE,MATCH(R$1,Formulacion!$1:$1,0),FALSE)="NA",$D34=0),"NA",IF(OR($B34="DLABT",$B34="DLSBT"),MID($D34,CondInicioBT,CondFinBT-CondInicioBT+1)*1,MID($D34,CondInicio,CondFin-CondInicio+1)*1)) -> 144 | S34: NA | T34: =IF(OR(VLOOKUP($B34,Formulacion!$A:$BE,MATCH(T$1,Formulacion!$1:$1,0),FALSE)="NA",$D34=0),"NA",IF($B34="DLSBT",MID($D34,ZanjaInicioBT,ZanjaFinBT-ZanjaInicioBT+1)*1,MID($D34,ZanjaInicio,ZanjaFin-ZanjaInicio+1)*1)) -> NA | U34: 1 | V34: =IF(OR(VLOOKUP($B34,Formulacion!$A:$BE,MATCH(V$1,Formulacion!$1:$1,0),FALSE)="NA",$D34=0),"NA",MID($D34,m2Inicio+INDIRECT(B34),m2Fin-m2Inicio+1)*1) -> NA | W34: =IF(OR(VLOOKUP($B34,Formulacion!$A:$BE,MATCH(W$1,Formulacion!$1:$1,0),FALSE)="NA",$D34=0),"NA",RIGHT($D34,4)*1) -> NA | X34: =IF(OR(VLOOKUP($B34,Formulacion!$A:$BE,MATCH(X$1,Formulacion!$1:$1,0),FALSE)="NA",$D34=0),"NA",RIGHT($D34,3)*1) -> NA | Y34: 1 | Z34: =IF(VLOOKUP($B34,Formulacion!$A:$BE,MATCH(Z$1,Formulacion!$1:$1,0),FALSE)="NA",1,IF(V34<=m2Min,0,1)) -> 1 | AA34: =IF(VLOOKUP($B34,Formulacion!$A:$BE,MATCH(AA$1,Formulacion!$1:$1,0),FALSE)="NA",1,IF(OR(E34<=FechaMin,E34>FechaMax),0,1)) -> 1 | AB34: =IF(VLOOKUP($B34,Formulacion!$A:$BE,MATCH(AB$1,Formulacion!$1:$1,0),FALSE)="NA",1,IF(H34<=MaterialesMin,0,1)) -> 1 | AC34: =IF(VLOOKUP($B34,Formulacion!$A:$BE,MATCH(AC$1,Formulacion!$1:$1,0),FALSE)="NA",1,IF(N34=0,0,IF(OR(I34/N34<=MObraMin,I34/N34>=MObraMax),MDOmin,1))) -> 1 | AD34: =IF(VLOOKUP($B34,Formulacion!$A:$BE,MATCH(AD$1,Formulacion!$1:$1,0),FALSE)="NA",1,IF(N34<=CostoTotalMin,0,1)) -> 1 | AE34: =IF(VLOOKUP($B34,Formulacion!$A:$BE,MATCH(AE$1,Formulacion!$1:$1,0),FALSE)="NA",1,IF(Q34<=PostesMin,0,1)) -> 1 | AF34: =IF(VLOOKUP($B34,Formulacion!$A:$BE,MATCH(AF$1,Formulacion!$1:$1,0),FALSE)="NA",1,IF(R34<=INDIRECT(VLOOKUP(B34,Formulacion!$A:$BE,2,FALSE)),0,1)) -> 1 | AG34: 1 | AH34: 15823.37 | AI34: 1 | AJ34: =IF(VLOOKUP($B34,Formulacion!$A:$BE,MATCH(AJ$1,Formulacion!$1:$1,0),FALSE)="NA","NA",HLOOKUP(VLOOKUP($B34,Formulacion!$A:$BE,MATCH(AJ$1,Formulacion!$1:$1,0),FALSE),$Q:$Z,ROW(AJ34),FALSE)) -> NA | AK34: =IF(VLOOKUP($B34,Formulacion!$A:$BE,MATCH(AK$1,Formulacion!$1:$1,0),FALSE)="NA",1,VLOOKUP($B34,Formulacion!$A:$BE,MATCH(AK$1,Formulacion!$1:$1,0),FALSE)) -> 1000 | AL34: =IF(VLOOKUP($B34,Formulacion!$A:$BE,MATCH(AL$1,Formulacion!$1:$1,0),FALSE)="NA",1,VLOOKUP($B34,Formulacion!$A:$BE,MATCH(AL$1,Formulacion!$1:$1,0),FALSE)) -> 0.5 | AM34: 1 | AN34: =IF(VLOOKUP($B34,Formulacion!$A:$BE,MATCH(AN$1,Formulacion!$1:$1,0),FALSE)="NA","NA",IF(D34=0,"",VLOOKUP($B34,Formulacion!$A:$BE,MATCH(AN$1,Formulacion!$1:$1,0),FALSE))) -> 020624022703 | AO34: LSBTM1 | AP34: AL | AQ34: 4/0 | AV34: NA | AW34: =IF(VLOOKUP($B34,Formulacion!$A:$BE,MATCH(AW$1,Formulacion!$1:$1,0),FALSE)="NA","NA",HLOOKUP(VLOOKUP($B34,Formulacion!$A:$BE,MATCH(AW$1,Formulacion!$1:$1,0),FALSE),$Q:$Z,ROW(AW34),FALSE)) -> 144 | AX34: NA | AY34: 1 | AZ34: =IF(VLOOKUP($B34,Formulacion!$A:$BE,MATCH(AZ$1,Formulacion!$1:$1,0),FALSE)="NA",1,VLOOKUP($B34,Formulacion!$A:$BE,MATCH(AZ$1,Formulacion!$1:$1,0),FALSE)) -> 0.9 | BA34: =IF(VLOOKUP($B34,Formulacion!$A:$BE,MATCH(BA$1,Formulacion!$1:$1,0),FALSE)="NA",1,VLOOKUP($B34,Formulacion!$A:$BE,MATCH(BA$1,Formulacion!$1:$1,0),FALSE)) -> 1 | BB34: 14241.033
A35: Edechi Proy con cta 2022 I | B35: DLSBT | C35: GRALNVOSUMCALARQ | D35: DLSBTM100505ZB0320B02C4ALA500 | E35: 2022-06-30 | F35: Chiriqui | H35: 24305.17 | I35: 31689.42 | K35: 0 | N35: 56329.46 | P35: 0 | Q35: =IF(OR(VLOOKUP($B35,Formulacion!$A:$BE,MATCH(Q$1,Formulacion!$1:$1,0),FALSE)="NA",$D35=0),"NA",IF($B35="DLABT",MID($D35,PosteInicioBT,PosteFinBT-PosteInicioBT+1)*1,MID($D35,PosteInicio,PosteFin-PosteInicio+1)*1)) -> NA | R35: =IF(OR(VLOOKUP($B35,Formulacion!$A:$BE,MATCH(R$1,Formulacion!$1:$1,0),FALSE)="NA",$D35=0),"NA",IF(OR($B35="DLABT",$B35="DLSBT"),MID($D35,CondInicioBT,CondFinBT-CondInicioBT+1)*1,MID($D35,CondInicio,CondFin-CondInicio+1)*1)) -> 505 | S35: NA | T35: =IF(OR(VLOOKUP($B35,Formulacion!$A:$BE,MATCH(T$1,Formulacion!$1:$1,0),FALSE)="NA",$D35=0),"NA",IF($B35="DLSBT",MID($D35,ZanjaInicioBT,ZanjaFinBT-ZanjaInicioBT+1)*1,MID($D35,ZanjaInicio,ZanjaFin-ZanjaInicio+1)*1)) -> NA | U35: 1 | V35: =IF(OR(VLOOKUP($B35,Formulacion!$A:$BE,MATCH(V$1,Formulacion!$1:$1,0),FALSE)="NA",$D35=0),"NA",MID($D35,m2Inicio+INDIRECT(B35),m2Fin-m2Inicio+1)*1) -> NA | W35: =IF(OR(VLOOKUP($B35,Formulacion!$A:$BE,MATCH(W$1,Formulacion!$1:$1,0),FALSE)="NA",$D35=0),"NA",RIGHT($D35,4)*1) -> NA | X35: =IF(OR(VLOOKUP($B35,Formulacion!$A:$BE,MATCH(X$1,Formulacion!$1:$1,0),FALSE)="NA",$D35=0),"NA",RIGHT($D35,3)*1) -> NA | Y35: 1 | Z35: =IF(VLOOKUP($B35,Formulacion!$A:$BE,MATCH(Z$1,Formulacion!$1:$1,0),FALSE)="NA",1,IF(V35<=m2Min,0,1)) -> 1 | AA35: =IF(VLOOKUP($B35,Formulacion!$A:$BE,MATCH(AA$1,Formulacion!$1:$1,0),FALSE)="NA",1,IF(OR(E35<=FechaMin,E35>FechaMax),0,1)) -> 1 | AB35: =IF(VLOOKUP($B35,Formulacion!$A:$BE,MATCH(AB$1,Formulacion!$1:$1,0),FALSE)="NA",1,IF(H35<=MaterialesMin,0,1)) -> 1 | AC35: =IF(VLOOKUP($B35,Formulacion!$A:$BE,MATCH(AC$1,Formulacion!$1:$1,0),FALSE)="NA",1,IF(N35=0,0,IF(OR(I35/N35<=MObraMin,I35/N35>=MObraMax),MDOmin,1))) -> 1 | AD35: =IF(VLOOKUP($B35,Formulacion!$A:$BE,MATCH(AD$1,Formulacion!$1:$1,0),FALSE)="NA",1,IF(N35<=CostoTotalMin,0,1)) -> 1 | AE35: =IF(VLOOKUP($B35,Formulacion!$A:$BE,MATCH(AE$1,Formulacion!$1:$1,0),FALSE)="NA",1,IF(Q35<=PostesMin,0,1)) -> 1 | AF35: =IF(VLOOKUP($B35,Formulacion!$A:$BE,MATCH(AF$1,Formulacion!$1:$1,0),FALSE)="NA",1,IF(R35<=INDIRECT(VLOOKUP(B35,Formulacion!$A:$BE,2,FALSE)),0,1)) -> 1 | AG35: 1 | AH35: 56329.46 | AI35: 1 | AJ35: =IF(VLOOKUP($B35,Formulacion!$A:$BE,MATCH(AJ$1,Formulacion!$1:$1,0),FALSE)="NA","NA",HLOOKUP(VLOOKUP($B35,Formulacion!$A:$BE,MATCH(AJ$1,Formulacion!$1:$1,0),FALSE),$Q:$Z,ROW(AJ35),FALSE)) -> NA | AK35: =IF(VLOOKUP($B35,Formulacion!$A:$BE,MATCH(AK$1,Formulacion!$1:$1,0),FALSE)="NA",1,VLOOKUP($B35,Formulacion!$A:$BE,MATCH(AK$1,Formulacion!$1:$1,0),FALSE)) -> 1000 | AL35: =IF(VLOOKUP($B35,Formulacion!$A:$BE,MATCH(AL$1,Formulacion!$1:$1,0),FALSE)="NA",1,VLOOKUP($B35,Formulacion!$A:$BE,MATCH(AL$1,Formulacion!$1:$1,0),FALSE)) -> 0.5 | AM35: 1 | AN35: =IF(VLOOKUP($B35,Formulacion!$A:$BE,MATCH(AN$1,Formulacion!$1:$1,0),FALSE)="NA","NA",IF(D35=0,"",VLOOKUP($B35,Formulacion!$A:$BE,MATCH(AN$1,Formulacion!$1:$1,0),FALSE))) -> 020624022703 | AO35: LSBTM1 | AP35: AL | AQ35: 500 | AV35: NA | AW35: =IF(VLOOKUP($B35,Formulacion!$A:$BE,MATCH(AW$1,Formulacion!$1:$1,0),FALSE)="NA","NA",HLOOKUP(VLOOKUP($B35,Formulacion!$A:$BE,MATCH(AW$1,Formulacion!$1:$1,0),FALSE),$Q:$Z,ROW(AW35),FALSE)) -> 505 | AX35: NA | AY35: 1 | AZ35: =IF(VLOOKUP($B35,Formulacion!$A:$BE,MATCH(AZ$1,Formulacion!$1:$1,0),FALSE)="NA",1,VLOOKUP($B35,Formulacion!$A:$BE,MATCH(AZ$1,Formulacion!$1:$1,0),FALSE)) -> 0.9 | BA35: =IF(VLOOKUP($B35,Formulacion!$A:$BE,MATCH(BA$1,Formulacion!$1:$1,0),FALSE)="NA",1,VLOOKUP($B35,Formulacion!$A:$BE,MATCH(BA$1,Formulacion!$1:$1,0),FALSE)) -> 1 | BB35: 50696.514
A36: Edechi Proy con cta 2022 I | B36: DLSBT | C36: GRALNVOSUMCALARQ | D36: DLSBTT100195ZB0320B02C4ALA4/0 | E36: 2022-06-30 | F36: Chiriqui | H36: 8849.62 | I36: 11538.26 | K36: 0 | N36: 20509.81 | P36: 0 | Q36: =IF(OR(VLOOKUP($B36,Formulacion!$A:$BE,MATCH(Q$1,Formulacion!$1:$1,0),FALSE)="NA",$D36=0),"NA",IF($B36="DLABT",MID($D36,PosteInicioBT,PosteFinBT-PosteInicioBT+1)*1,MID($D36,PosteInicio,PosteFin-PosteInicio+1)*1)) -> NA | R36: =IF(OR(VLOOKUP($B36,Formulacion!$A:$BE,MATCH(R$1,Formulacion!$1:$1,0),FALSE)="NA",$D36=0),"NA",IF(OR($B36="DLABT",$B36="DLSBT"),MID($D36,CondInicioBT,CondFinBT-CondInicioBT+1)*1,MID($D36,CondInicio,CondFin-CondInicio+1)*1)) -> 195 | S36: NA | T36: =IF(OR(VLOOKUP($B36,Formulacion!$A:$BE,MATCH(T$1,Formulacion!$1:$1,0),FALSE)="NA",$D36=0),"NA",IF($B36="DLSBT",MID($D36,ZanjaInicioBT,ZanjaFinBT-ZanjaInicioBT+1)*1,MID($D36,ZanjaInicio,ZanjaFin-ZanjaInicio+1)*1)) -> NA | U36: 1 | V36: =IF(OR(VLOOKUP($B36,Formulacion!$A:$BE,MATCH(V$1,Formulacion!$1:$1,0),FALSE)="NA",$D36=0),"NA",MID($D36,m2Inicio+INDIRECT(B36),m2Fin-m2Inicio+1)*1) -> NA | W36: =IF(OR(VLOOKUP($B36,Formulacion!$A:$BE,MATCH(W$1,Formulacion!$1:$1,0),FALSE)="NA",$D36=0),"NA",RIGHT($D36,4)*1) -> NA | X36: =IF(OR(VLOOKUP($B36,Formulacion!$A:$BE,MATCH(X$1,Formulacion!$1:$1,0),FALSE)="NA",$D36=0),"NA",RIGHT($D36,3)*1) -> NA | Y36: 1 | Z36: =IF(VLOOKUP($B36,Formulacion!$A:$BE,MATCH(Z$1,Formulacion!$1:$1,0),FALSE)="NA",1,IF(V36<=m2Min,0,1)) -> 1 | AA36: =IF(VLOOKUP($B36,Formulacion!$A:$BE,MATCH(AA$1,Formulacion!$1:$1,0),FALSE)="NA",1,IF(OR(E36<=FechaMin,E36>FechaMax),0,1)) -> 1 | AB36: =IF(VLOOKUP($B36,Formulacion!$A:$BE,MATCH(AB$1,Formulacion!$1:$1,0),FALSE)="NA",1,IF(H36<=MaterialesMin,0,1)) -> 1 | AC36: =IF(VLOOKUP($B36,Formulacion!$A:$BE,MATCH(AC$1,Formulacion!$1:$1,0),FALSE)="NA",1,IF(N36=0,0,IF(OR(I36/N36<=MObraMin,I36/N36>=MObraMax),MDOmin,1))) -> 1 | AD36: =IF(VLOOKUP($B36,Formulacion!$A:$BE,MATCH(AD$1,Formulacion!$1:$1,0),FALSE)="NA",1,IF(N36<=CostoTotalMin,0,1)) -> 1 | AE36: =IF(VLOOKUP($B36,Formulacion!$A:$BE,MATCH(AE$1,Formulacion!$1:$1,0),FALSE)="NA",1,IF(Q36<=PostesMin,0,1)) -> 1 | AF36: =IF(VLOOKUP($B36,Formulacion!$A:$BE,MATCH(AF$1,Formulacion!$1:$1,0),FALSE)="NA",1,IF(R36<=INDIRECT(VLOOKUP(B36,Formulacion!$A:$BE,2,FALSE)),0,1)) -> 1 | AG36: 1 | AH36: 20509.81 | AI36: 1 | AJ36: =IF(VLOOKUP($B36,Formulacion!$A:$BE,MATCH(AJ$1,Formulacion!$1:$1,0),FALSE)="NA","NA",HLOOKUP(VLOOKUP($B36,Formulacion!$A:$BE,MATCH(AJ$1,Formulacion!$1:$1,0),FALSE),$Q:$Z,ROW(AJ36),FALSE)) -> NA | AK36: =IF(VLOOKUP($B36,Formulacion!$A:$BE,MATCH(AK$1,Formulacion!$1:$1,0),FALSE)="NA",1,VLOOKUP($B36,Formulacion!$A:$BE,MATCH(AK$1,Formulacion!$1:$1,0),FALSE)) -> 1000 | AL36: =IF(VLOOKUP($B36,Formulacion!$A:$BE,MATCH(AL$1,Formulacion!$1:$1,0),FALSE)="NA",1,VLOOKUP($B36,Formulacion!$A:$BE,MATCH(AL$1,Formulacion!$1:$1,0),FALSE)) -> 0.5 | AM36: 1 | AN36: =IF(VLOOKUP($B36,Formulacion!$A:$BE,MATCH(AN$1,Formulacion!$1:$1,0),FALSE)="NA","NA",IF(D36=0,"",VLOOKUP($B36,Formulacion!$A:$BE,MATCH(AN$1,Formulacion!$1:$1,0),FALSE))) -> 020624022703 | AO36: LSBTT1 | AP36: AL | AQ36: 4/0 | AV36: NA | AW36: =IF(VLOOKUP($B36,Formulacion!$A:$BE,MATCH(AW$1,Formulacion!$1:$1,0),FALSE)="NA","NA",HLOOKUP(VLOOKUP($B36,Formulacion!$A:$BE,MATCH(AW$1,Formulacion!$1:$1,0),FALSE),$Q:$Z,ROW(AW36),FALSE)) -> 195 | AX36: NA | AY36: 1 | AZ36: =IF(VLOOKUP($B36,Formulacion!$A:$BE,MATCH(AZ$1,Formulacion!$1:$1,0),FALSE)="NA",1,VLOOKUP($B36,Formulacion!$A:$BE,MATCH(AZ$1,Formulacion!$1:$1,0),FALSE)) -> 0.9 | BA36: =IF(VLOOKUP($B36,Formulacion!$A:$BE,MATCH(BA$1,Formulacion!$1:$1,0),FALSE)="NA",1,VLOOKUP($B36,Formulacion!$A:$BE,MATCH(BA$1,Formulacion!$1:$1,0),FALSE)) -> 1 | BB36: 18458.829
A37: Edechi Proy con cta 2022 I | B37: DLSBT | C37: GRALNVOSUMCALARQ | D37: DLSBTT101216ZB0320B02C4ALA500 | E37: 2022-06-30 | F37: Chiriqui | H37: 65707.84 | I37: 85670.82 | K37: 0 | N37: 152283.96 | P37: 0 | Q37: =IF(OR(VLOOKUP($B37,Formulacion!$A:$BE,MATCH(Q$1,Formulacion!$1:$1,0),FALSE)="NA",$D37=0),"NA",IF($B37="DLABT",MID($D37,PosteInicioBT,PosteFinBT-PosteInicioBT+1)*1,MID($D37,PosteInicio,PosteFin-PosteInicio+1)*1)) -> NA | R37: =IF(OR(VLOOKUP($B37,Formulacion!$A:$BE,MATCH(R$1,Formulacion!$1:$1,0),FALSE)="NA",$D37=0),"NA",IF(OR($B37="DLABT",$B37="DLSBT"),MID($D37,CondInicioBT,CondFinBT-CondInicioBT+1)*1,MID($D37,CondInicio,CondFin-CondInicio+1)*1)) -> 1216 | S37: NA | T37: =IF(OR(VLOOKUP($B37,Formulacion!$A:$BE,MATCH(T$1,Formulacion!$1:$1,0),FALSE)="NA",$D37=0),"NA",IF($B37="DLSBT",MID($D37,ZanjaInicioBT,ZanjaFinBT-ZanjaInicioBT+1)*1,MID($D37,ZanjaInicio,ZanjaFin-ZanjaInicio+1)*1)) -> NA | U37: 1 | V37: =IF(OR(VLOOKUP($B37,Formulacion!$A:$BE,MATCH(V$1,Formulacion!$1:$1,0),FALSE)="NA",$D37=0),"NA",MID($D37,m2Inicio+INDIRECT(B37),m2Fin-m2Inicio+1)*1) -> NA | W37: =IF(OR(VLOOKUP($B37,Formulacion!$A:$BE,MATCH(W$1,Formulacion!$1:$1,0),FALSE)="NA",$D37=0),"NA",RIGHT($D37,4)*1) -> NA | X37: =IF(OR(VLOOKUP($B37,Formulacion!$A:$BE,MATCH(X$1,Formulacion!$1:$1,0),FALSE)="NA",$D37=0),"NA",RIGHT($D37,3)*1) -> NA | Y37: 1 | Z37: =IF(VLOOKUP($B37,Formulacion!$A:$BE,MATCH(Z$1,Formulacion!$1:$1,0),FALSE)="NA",1,IF(V37<=m2Min,0,1)) -> 1 | AA37: =IF(VLOOKUP($B37,Formulacion!$A:$BE,MATCH(AA$1,Formulacion!$1:$1,0),FALSE)="NA",1,IF(OR(E37<=FechaMin,E37>FechaMax),0,1)) -> 1 | AB37: =IF(VLOOKUP($B37,Formulacion!$A:$BE,MATCH(AB$1,Formulacion!$1:$1,0),FALSE)="NA",1,IF(H37<=MaterialesMin,0,1)) -> 1 | AC37: =IF(VLOOKUP($B37,Formulacion!$A:$BE,MATCH(AC$1,Formulacion!$1:$1,0),FALSE)="NA",1,IF(N37=0,0,IF(OR(I37/N37<=MObraMin,I37/N37>=MObraMax),MDOmin,1))) -> 1 | AD37: =IF(VLOOKUP($B37,Formulacion!$A:$BE,MATCH(AD$1,Formulacion!$1:$1,0),FALSE)="NA",1,IF(N37<=CostoTotalMin,0,1)) -> 1 | AE37: =IF(VLOOKUP($B37,Formulacion!$A:$BE,MATCH(AE$1,Formulacion!$1:$1,0),FALSE)="NA",1,IF(Q37<=PostesMin,0,1)) -> 1 | AF37: =IF(VLOOKUP($B37,Formulacion!$A:$BE,MATCH(AF$1,Formulacion!$1:$1,0),FALSE)="NA",1,IF(R37<=INDIRECT(VLOOKUP(B37,Formulacion!$A:$BE,2,FALSE)),0,1)) -> 1 | AG37: 1 | AH37: 152283.96 | AI37: 1 | AJ37: =IF(VLOOKUP($B37,Formulacion!$A:$BE,MATCH(AJ$1,Formulacion!$1:$1,0),FALSE)="NA","NA",HLOOKUP(VLOOKUP($B37,Formulacion!$A:$BE,MATCH(AJ$1,Formulacion!$1:$1,0),FALSE),$Q:$Z,ROW(AJ37),FALSE)) -> NA | AK37: =IF(VLOOKUP($B37,Formulacion!$A:$BE,MATCH(AK$1,Formulacion!$1:$1,0),FALSE)="NA",1,VLOOKUP($B37,Formulacion!$A:$BE,MATCH(AK$1,Formulacion!$1:$1,0),FALSE)) -> 1000 | AL37: =IF(VLOOKUP($B37,Formulacion!$A:$BE,MATCH(AL$1,Formulacion!$1:$1,0),FALSE)="NA",1,VLOOKUP($B37,Formulacion!$A:$BE,MATCH(AL$1,Formulacion!$1:$1,0),FALSE)) -> 0.5 | AM37: 1 | AN37: =IF(VLOOKUP($B37,Formulacion!$A:$BE,MATCH(AN$1,Formulacion!$1:$1,0),FALSE)="NA","NA",IF(D37=0,"",VLOOKUP($B37,Formulacion!$A:$BE,MATCH(AN$1,Formulacion!$1:$1,0),FALSE))) -> 020624022703 | AO37: LSBTT1 | AP37: AL | AQ37: 500 | AV37: NA | AW37: =IF(VLOOKUP($B37,Formulacion!$A:$BE,MATCH(AW$1,Formulacion!$1:$1,0),FALSE)="NA","NA",HLOOKUP(VLOOKUP($B37,Formulacion!$A:$BE,MATCH(AW$1,Formulacion!$1:$1,0),FALSE),$Q:$Z,ROW(AW37),FALSE)) -> 1216 | AX37: NA | AY37: 1 | AZ37: =IF(VLOOKUP($B37,Formulacion!$A:$BE,MATCH(AZ$1,Formulacion!$1:$1,0),FALSE)="NA",1,VLOOKUP($B37,Formulacion!$A:$BE,MATCH(AZ$1,Formulacion!$1:$1,0),FALSE)) -> 0.9 | BA37: =IF(VLOOKUP($B37,Formulacion!$A:$BE,MATCH(BA$1,Formulacion!$1:$1,0),FALSE)="NA",1,VLOOKUP($B37,Formulacion!$A:$BE,MATCH(BA$1,Formulacion!$1:$1,0),FALSE)) -> 1 | BB37: 137055.564
A38: Edechi Proy con cta 2022 I | B38: DLSMT-13,8 | C38: GRALNVOSUMCALARQ | D38: DLSMT138M101234ZB0480B02SLAALC750750 | E38: 2022-06-30 | F38: Chiriqui | H38: 46427.05 | I38: 89204.66 | K38: 0 | N38: 135631.71 | P38: 0 | Q38: =IF(OR(VLOOKUP($B38,Formulacion!$A:$BE,MATCH(Q$1,Formulacion!$1:$1,0),FALSE)="NA",$D38=0),"NA",IF($B38="DLABT",MID($D38,PosteInicioBT,PosteFinBT-PosteInicioBT+1)*1,MID($D38,PosteInicio,PosteFin-PosteInicio+1)*1)) -> NA | R38: =IF(OR(VLOOKUP($B38,Formulacion!$A:$BE,MATCH(R$1,Formulacion!$1:$1,0),FALSE)="NA",$D38=0),"NA",IF(OR($B38="DLABT",$B38="DLSBT"),MID($D38,CondInicioBT,CondFinBT-CondInicioBT+1)*1,MID($D38,CondInicio,CondFin-CondInicio+1)*1)) -> 1234 | S38: NA | T38: =IF(OR(VLOOKUP($B38,Formulacion!$A:$BE,MATCH(T$1,Formulacion!$1:$1,0),FALSE)="NA",$D38=0),"NA",IF($B38="DLSBT",MID($D38,ZanjaInicioBT,ZanjaFinBT-ZanjaInicioBT+1)*1,MID($D38,ZanjaInicio,ZanjaFin-ZanjaInicio+1)*1)) -> NA | U38: 1 | V38: =IF(OR(VLOOKUP($B38,Formulacion!$A:$BE,MATCH(V$1,Formulacion!$1:$1,0),FALSE)="NA",$D38=0),"NA",MID($D38,m2Inicio+INDIRECT(B38),m2Fin-m2Inicio+1)*1) -> NA | W38: =IF(OR(VLOOKUP($B38,Formulacion!$A:$BE,MATCH(W$1,Formulacion!$1:$1,0),FALSE)="NA",$D38=0),"NA",RIGHT($D38,4)*1) -> NA | X38: =IF(OR(VLOOKUP($B38,Formulacion!$A:$BE,MATCH(X$1,Formulacion!$1:$1,0),FALSE)="NA",$D38=0),"NA",RIGHT($D38,3)*1) -> NA | Y38: 1 | Z38: =IF(VLOOKUP($B38,Formulacion!$A:$BE,MATCH(Z$1,Formulacion!$1:$1,0),FALSE)="NA",1,IF(V38<=m2Min,0,1)) -> 1 | AA38: =IF(VLOOKUP($B38,Formulacion!$A:$BE,MATCH(AA$1,Formulacion!$1:$1,0),FALSE)="NA",1,IF(OR(E38<=FechaMin,E38>FechaMax),0,1)) -> 1 | AB38: =IF(VLOOKUP($B38,Formulacion!$A:$BE,MATCH(AB$1,Formulacion!$1:$1,0),FALSE)="NA",1,IF(H38<=MaterialesMin,0,1)) -> 1 | AC38: =IF(VLOOKUP($B38,Formulacion!$A:$BE,MATCH(AC$1,Formulacion!$1:$1,0),FALSE)="NA",1,IF(N38=0,0,IF(OR(I38/N38<=MObraMin,I38/N38>=MObraMax),MDOmin,1))) -> 1 | AD38: =IF(VLOOKUP($B38,Formulacion!$A:$BE,MATCH(AD$1,Formulacion!$1:$1,0),FALSE)="NA",1,IF(N38<=CostoTotalMin,0,1)) -> 1 | AE38: =IF(VLOOKUP($B38,Formulacion!$A:$BE,MATCH(AE$1,Formulacion!$1:$1,0),FALSE)="NA",1,IF(Q38<=PostesMin,0,1)) -> 1 | AF38: =IF(VLOOKUP($B38,Formulacion!$A:$BE,MATCH(AF$1,Formulacion!$1:$1,0),FALSE)="NA",1,IF(R38<=INDIRECT(VLOOKUP(B38,Formulacion!$A:$BE,2,FALSE)),0,1)) -> 1 | AG38: 1 | AH38: 135631.71 | AI38: 1 | AJ38: =IF(VLOOKUP($B38,Formulacion!$A:$BE,MATCH(AJ$1,Formulacion!$1:$1,0),FALSE)="NA","NA",HLOOKUP(VLOOKUP($B38,Formulacion!$A:$BE,MATCH(AJ$1,Formulacion!$1:$1,0),FALSE),$Q:$Z,ROW(AJ38),FALSE)) -> NA | AK38: =IF(VLOOKUP($B38,Formulacion!$A:$BE,MATCH(AK$1,Formulacion!$1:$1,0),FALSE)="NA",1,VLOOKUP($B38,Formulacion!$A:$BE,MATCH(AK$1,Formulacion!$1:$1,0),FALSE)) -> 1000 | AL38: =IF(VLOOKUP($B38,Formulacion!$A:$BE,MATCH(AL$1,Formulacion!$1:$1,0),FALSE)="NA",1,VLOOKUP($B38,Formulacion!$A:$BE,MATCH(AL$1,Formulacion!$1:$1,0),FALSE)) -> 0.5 | AM38: 1 | AN38: =IF(VLOOKUP($B38,Formulacion!$A:$BE,MATCH(AN$1,Formulacion!$1:$1,0),FALSE)="NA","NA",IF(D38=0,"",VLOOKUP($B38,Formulacion!$A:$BE,MATCH(AN$1,Formulacion!$1:$1,0),FALSE))) -> 020826043103 | AO38: LSMT138M | AP38: LAAL | AQ38: 750 | AV38: NA | AW38: =IF(VLOOKUP($B38,Formulacion!$A:$BE,MATCH(AW$1,Formulacion!$1:$1,0),FALSE)="NA","NA",HLOOKUP(VLOOKUP($B38,Formulacion!$A:$BE,MATCH(AW$1,Formulacion!$1:$1,0),FALSE),$Q:$Z,ROW(AW38),FALSE)) -> 1234 | AX38: NA | AY38: 1 | AZ38: =IF(VLOOKUP($B38,Formulacion!$A:$BE,MATCH(AZ$1,Formulacion!$1:$1,0),FALSE)="NA",1,VLOOKUP($B38,Formulacion!$A:$BE,MATCH(AZ$1,Formulacion!$1:$1,0),FALSE)) -> 0.9 | BA38: =IF(VLOOKUP($B38,Formulacion!$A:$BE,MATCH(BA$1,Formulacion!$1:$1,0),FALSE)="NA",1,VLOOKUP($B38,Formulacion!$A:$BE,MATCH(BA$1,Formulacion!$1:$1,0),FALSE)) -> 1 | BB38: 122068.539
A39: Edechi Proy con cta 2022 I | B39: DLSMT-13,8 | C39: GRALNVOSUMCALARQ | D39: DLSMT138T100302ZB0480B03SLAALC750751 | E39: 2022-06-30 | F39: Chiriqui | H39: 28661.05 | I39: 55069.17 | K39: 0 | N39: 83730.22 | P39: 0 | Q39: =IF(OR(VLOOKUP($B39,Formulacion!$A:$BE,MATCH(Q$1,Formulacion!$1:$1,0),FALSE)="NA",$D39=0),"NA",IF($B39="DLABT",MID($D39,PosteInicioBT,PosteFinBT-PosteInicioBT+1)*1,MID($D39,PosteInicio,PosteFin-PosteInicio+1)*1)) -> NA | R39: =IF(OR(VLOOKUP($B39,Formulacion!$A:$BE,MATCH(R$1,Formulacion!$1:$1,0),FALSE)="NA",$D39=0),"NA",IF(OR($B39="DLABT",$B39="DLSBT"),MID($D39,CondInicioBT,CondFinBT-CondInicioBT+1)*1,MID($D39,CondInicio,CondFin-CondInicio+1)*1)) -> 302 | S39: NA | T39: =IF(OR(VLOOKUP($B39,Formulacion!$A:$BE,MATCH(T$1,Formulacion!$1:$1,0),FALSE)="NA",$D39=0),"NA",IF($B39="DLSBT",MID($D39,ZanjaInicioBT,ZanjaFinBT-ZanjaInicioBT+1)*1,MID($D39,ZanjaInicio,ZanjaFin-ZanjaInicio+1)*1)) -> NA | U39: 1 | V39: =IF(OR(VLOOKUP($B39,Formulacion!$A:$BE,MATCH(V$1,Formulacion!$1:$1,0),FALSE)="NA",$D39=0),"NA",MID($D39,m2Inicio+INDIRECT(B39),m2Fin-m2Inicio+1)*1) -> NA | W39: =IF(OR(VLOOKUP($B39,Formulacion!$A:$BE,MATCH(W$1,Formulacion!$1:$1,0),FALSE)="NA",$D39=0),"NA",RIGHT($D39,4)*1) -> NA | X39: =IF(OR(VLOOKUP($B39,Formulacion!$A:$BE,MATCH(X$1,Formulacion!$1:$1,0),FALSE)="NA",$D39=0),"NA",RIGHT($D39,3)*1) -> NA | Y39: 1 | Z39: =IF(VLOOKUP($B39,Formulacion!$A:$BE,MATCH(Z$1,Formulacion!$1:$1,0),FALSE)="NA",1,IF(V39<=m2Min,0,1)) -> 1 | AA39: =IF(VLOOKUP($B39,Formulacion!$A:$BE,MATCH(AA$1,Formulacion!$1:$1,0),FALSE)="NA",1,IF(OR(E39<=FechaMin,E39>FechaMax),0,1)) -> 1 | AB39: =IF(VLOOKUP($B39,Formulacion!$A:$BE,MATCH(AB$1,Formulacion!$1:$1,0),FALSE)="NA",1,IF(H39<=MaterialesMin,0,1)) -> 1 | AC39: =IF(VLOOKUP($B39,Formulacion!$A:$BE,MATCH(AC$1,Formulacion!$1:$1,0),FALSE)="NA",1,IF(N39=0,0,IF(OR(I39/N39<=MObraMin,I39/N39>=MObraMax),MDOmin,1))) -> 1 | AD39: =IF(VLOOKUP($B39,Formulacion!$A:$BE,MATCH(AD$1,Formulacion!$1:$1,0),FALSE)="NA",1,IF(N39<=CostoTotalMin,0,1)) -> 1 | AE39: =IF(VLOOKUP($B39,Formulacion!$A:$BE,MATCH(AE$1,Formulacion!$1:$1,0),FALSE)="NA",1,IF(Q39<=PostesMin,0,1)) -> 1 | AF39: =IF(VLOOKUP($B39,Formulacion!$A:$BE,MATCH(AF$1,Formulacion!$1:$1,0),FALSE)="NA",1,IF(R39<=INDIRECT(VLOOKUP(B39,Formulacion!$A:$BE,2,FALSE)),0,1)) -> 1 | AG39: 1 | AH39: 83730.22 | AI39: 1 | AJ39: =IF(VLOOKUP($B39,Formulacion!$A:$BE,MATCH(AJ$1,Formulacion!$1:$1,0),FALSE)="NA","NA",HLOOKUP(VLOOKUP($B39,Formulacion!$A:$BE,MATCH(AJ$1,Formulacion!$1:$1,0),FALSE),$Q:$Z,ROW(AJ39),FALSE)) -> NA | AK39: =IF(VLOOKUP($B39,Formulacion!$A:$BE,MATCH(AK$1,Formulacion!$1:$1,0),FALSE)="NA",1,VLOOKUP($B39,Formulacion!$A:$BE,MATCH(AK$1,Formulacion!$1:$1,0),FALSE)) -> 1000 | AL39: =IF(VLOOKUP($B39,Formulacion!$A:$BE,MATCH(AL$1,Formulacion!$1:$1,0),FALSE)="NA",1,VLOOKUP($B39,Formulacion!$A:$BE,MATCH(AL$1,Formulacion!$1:$1,0),FALSE)) -> 0.5 | AM39: 1 | AN39: =IF(VLOOKUP($B39,Formulacion!$A:$BE,MATCH(AN$1,Formulacion!$1:$1,0),FALSE)="NA","NA",IF(D39=0,"",VLOOKUP($B39,Formulacion!$A:$BE,MATCH(AN$1,Formulacion!$1:$1,0),FALSE))) -> 020826043103 | AO39: LSMT138T | AP39: LAAL | AQ39: 750 | AV39: NA | AW39: =IF(VLOOKUP($B39,Formulacion!$A:$BE,MATCH(AW$1,Formulacion!$1:$1,0),FALSE)="NA","NA",HLOOKUP(VLOOKUP($B39,Formulacion!$A:$BE,MATCH(AW$1,Formulacion!$1:$1,0),FALSE),$Q:$Z,ROW(AW39),FALSE)) -> 302 | AX39: NA | AY39: 1 | AZ39: =IF(VLOOKUP($B39,Formulacion!$A:$BE,MATCH(AZ$1,Formulacion!$1:$1,0),FALSE)="NA",1,VLOOKUP($B39,Formulacion!$A:$BE,MATCH(AZ$1,Formulacion!$1:$1,0),FALSE)) -> 0.9 | BA39: =IF(VLOOKUP($B39,Formulacion!$A:$BE,MATCH(BA$1,Formulacion!$1:$1,0),FALSE)="NA",1,VLOOKUP($B39,Formulacion!$A:$BE,MATCH(BA$1,Formulacion!$1:$1,0),FALSE)) -> 1 | BB39: 75357.198
A40: Edechi Proy con cta 2022 I | B40: DLSMT-13,8 | C40: GRALNVOSUMCALARQ | D40: DLSMT138T100642ZB0480B04SLAALC750752 | E40: 2022-06-30 | F40: Chiriqui | H40: 37933.48 | I40: 72885.17 | K40: 0 | N40: 110818.65 | P40: 0 | Q40: =IF(OR(VLOOKUP($B40,Formulacion!$A:$BE,MATCH(Q$1,Formulacion!$1:$1,0),FALSE)="NA",$D40=0),"NA",IF($B40="DLABT",MID($D40,PosteInicioBT,PosteFinBT-PosteInicioBT+1)*1,MID($D40,PosteInicio,PosteFin-PosteInicio+1)*1)) -> NA | R40: =IF(OR(VLOOKUP($B40,Formulacion!$A:$BE,MATCH(R$1,Formulacion!$1:$1,0),FALSE)="NA",$D40=0),"NA",IF(OR($B40="DLABT",$B40="DLSBT"),MID($D40,CondInicioBT,CondFinBT-CondInicioBT+1)*1,MID($D40,CondInicio,CondFin-CondInicio+1)*1)) -> 642 | S40: NA | T40: =IF(OR(VLOOKUP($B40,Formulacion!$A:$BE,MATCH(T$1,Formulacion!$1:$1,0),FALSE)="NA",$D40=0),"NA",IF($B40="DLSBT",MID($D40,ZanjaInicioBT,ZanjaFinBT-ZanjaInicioBT+1)*1,MID($D40,ZanjaInicio,ZanjaFin-ZanjaInicio+1)*1)) -> NA | U40: 1 | V40: =IF(OR(VLOOKUP($B40,Formulacion!$A:$BE,MATCH(V$1,Formulacion!$1:$1,0),FALSE)="NA",$D40=0),"NA",MID($D40,m2Inicio+INDIRECT(B40),m2Fin-m2Inicio+1)*1) -> NA | W40: =IF(OR(VLOOKUP($B40,Formulacion!$A:$BE,MATCH(W$1,Formulacion!$1:$1,0),FALSE)="NA",$D40=0),"NA",RIGHT($D40,4)*1) -> NA | X40: =IF(OR(VLOOKUP($B40,Formulacion!$A:$BE,MATCH(X$1,Formulacion!$1:$1,0),FALSE)="NA",$D40=0),"NA",RIGHT($D40,3)*1) -> NA | Y40: 1 | Z40: =IF(VLOOKUP($B40,Formulacion!$A:$BE,MATCH(Z$1,Formulacion!$1:$1,0),FALSE)="NA",1,IF(V40<=m2Min,0,1)) -> 1 | AA40: =IF(VLOOKUP($B40,Formulacion!$A:$BE,MATCH(AA$1,Formulacion!$1:$1,0),FALSE)="NA",1,IF(OR(E40<=FechaMin,E40>FechaMax),0,1)) -> 1 | AB40: =IF(VLOOKUP($B40,Formulacion!$A:$BE,MATCH(AB$1,Formulacion!$1:$1,0),FALSE)="NA",1,IF(H40<=MaterialesMin,0,1)) -> 1 | AC40: =IF(VLOOKUP($B40,Formulacion!$A:$BE,MATCH(AC$1,Formulacion!$1:$1,0),FALSE)="NA",1,IF(N40=0,0,IF(OR(I40/N40<=MObraMin,I40/N40>=MObraMax),MDOmin,1))) -> 1 | AD40: =IF(VLOOKUP($B40,Formulacion!$A:$BE,MATCH(AD$1,Formulacion!$1:$1,0),FALSE)="NA",1,IF(N40<=CostoTotalMin,0,1)) -> 1 | AE40: =IF(VLOOKUP($B40,Formulacion!$A:$BE,MATCH(AE$1,Formulacion!$1:$1,0),FALSE)="NA",1,IF(Q40<=PostesMin,0,1)) -> 1 | AF40: =IF(VLOOKUP($B40,Formulacion!$A:$BE,MATCH(AF$1,Formulacion!$1:$1,0),FALSE)="NA",1,IF(R40<=INDIRECT(VLOOKUP(B40,Formulacion!$A:$BE,2,FALSE)),0,1)) -> 1 | AG40: 1 | AH40: 110818.65 | AI40: 1 | AJ40: =IF(VLOOKUP($B40,Formulacion!$A:$BE,MATCH(AJ$1,Formulacion!$1:$1,0),FALSE)="NA","NA",HLOOKUP(VLOOKUP($B40,Formulacion!$A:$BE,MATCH(AJ$1,Formulacion!$1:$1,0),FALSE),$Q:$Z,ROW(AJ40),FALSE)) -> NA | AK40: =IF(VLOOKUP($B40,Formulacion!$A:$BE,MATCH(AK$1,Formulacion!$1:$1,0),FALSE)="NA",1,VLOOKUP($B40,Formulacion!$A:$BE,MATCH(AK$1,Formulacion!$1:$1,0),FALSE)) -> 1000 | AL40: =IF(VLOOKUP($B40,Formulacion!$A:$BE,MATCH(AL$1,Formulacion!$1:$1,0),FALSE)="NA",1,VLOOKUP($B40,Formulacion!$A:$BE,MATCH(AL$1,Formulacion!$1:$1,0),FALSE)) -> 0.5 | AM40: 1 | AN40: =IF(VLOOKUP($B40,Formulacion!$A:$BE,MATCH(AN$1,Formulacion!$1:$1,0),FALSE)="NA","NA",IF(D40=0,"",VLOOKUP($B40,Formulacion!$A:$BE,MATCH(AN$1,Formulacion!$1:$1,0),FALSE))) -> 020826043103 | AO40: LSMT138T | AP40: LAAL | AQ40: 750 | AV40: NA | AW40: =IF(VLOOKUP($B40,Formulacion!$A:$BE,MATCH(AW$1,Formulacion!$1:$1,0),FALSE)="NA","NA",HLOOKUP(VLOOKUP($B40,Formulacion!$A:$BE,MATCH(AW$1,Formulacion!$1:$1,0),FALSE),$Q:$Z,ROW(AW40),FALSE)) -> 642 | AX40: NA | AY40: 1 | AZ40: =IF(VLOOKUP($B40,Formulacion!$A:$BE,MATCH(AZ$1,Formulacion!$1:$1,0),FALSE)="NA",1,VLOOKUP($B40,Formulacion!$A:$BE,MATCH(AZ$1,Formulacion!$1:$1,0),FALSE)) -> 0.9 | BA40: =IF(VLOOKUP($B40,Formulacion!$A:$BE,MATCH(BA$1,Formulacion!$1:$1,0),FALSE)="NA",1,VLOOKUP($B40,Formulacion!$A:$BE,MATCH(BA$1,Formulacion!$1:$1,0),FALSE)) -> 1 | BB40: 99736.785
A41: Edechi Proy con cta 2022 I | B41: DLSMT-34,5 | C41: GRALNVOSUMCALARQ | D41: DLSMT345M100107ZB0320B02SLAALA1/01/0 | E41: 2022-06-30 | F41: Chiriqui | H41: 11793.82 | I41: 9489.65 | K41: 0 | N41: 21377.91 | P41: 0 | Q41: =IF(OR(VLOOKUP($B41,Formulacion!$A:$BE,MATCH(Q$1,Formulacion!$1:$1,0),FALSE)="NA",$D41=0),"NA",IF($B41="DLABT",MID($D41,PosteInicioBT,PosteFinBT-PosteInicioBT+1)*1,MID($D41,PosteInicio,PosteFin-PosteInicio+1)*1)) -> NA | R41: =IF(OR(VLOOKUP($B41,Formulacion!$A:$BE,MATCH(R$1,Formulacion!$1:$1,0),FALSE)="NA",$D41=0),"NA",IF(OR($B41="DLABT",$B41="DLSBT"),MID($D41,CondInicioBT,CondFinBT-CondInicioBT+1)*1,MID($D41,CondInicio,CondFin-CondInicio+1)*1)) -> 107 | S41: NA | T41: =IF(OR(VLOOKUP($B41,Formulacion!$A:$BE,MATCH(T$1,Formulacion!$1:$1,0),FALSE)="NA",$D41=0),"NA",IF($B41="DLSBT",MID($D41,ZanjaInicioBT,ZanjaFinBT-ZanjaInicioBT+1)*1,MID($D41,ZanjaInicio,ZanjaFin-ZanjaInicio+1)*1)) -> NA | U41: 1 | V41: =IF(OR(VLOOKUP($B41,Formulacion!$A:$BE,MATCH(V$1,Formulacion!$1:$1,0),FALSE)="NA",$D41=0),"NA",MID($D41,m2Inicio+INDIRECT(B41),m2Fin-m2Inicio+1)*1) -> NA | W41: =IF(OR(VLOOKUP($B41,Formulacion!$A:$BE,MATCH(W$1,Formulacion!$1:$1,0),FALSE)="NA",$D41=0),"NA",RIGHT($D41,4)*1) -> NA | X41: =IF(OR(VLOOKUP($B41,Formulacion!$A:$BE,MATCH(X$1,Formulacion!$1:$1,0),FALSE)="NA",$D41=0),"NA",RIGHT($D41,3)*1) -> NA | Y41: 1 | Z41: =IF(VLOOKUP($B41,Formulacion!$A:$BE,MATCH(Z$1,Formulacion!$1:$1,0),FALSE)="NA",1,IF(V41<=m2Min,0,1)) -> 1 | AA41: =IF(VLOOKUP($B41,Formulacion!$A:$BE,MATCH(AA$1,Formulacion!$1:$1,0),FALSE)="NA",1,IF(OR(E41<=FechaMin,E41>FechaMax),0,1)) -> 1 | AB41: =IF(VLOOKUP($B41,Formulacion!$A:$BE,MATCH(AB$1,Formulacion!$1:$1,0),FALSE)="NA",1,IF(H41<=MaterialesMin,0,1)) -> 1 | AC41: =IF(VLOOKUP($B41,Formulacion!$A:$BE,MATCH(AC$1,Formulacion!$1:$1,0),FALSE)="NA",1,IF(N41=0,0,IF(OR(I41/N41<=MObraMin,I41/N41>=MObraMax),MDOmin,1))) -> 1 | AD41: =IF(VLOOKUP($B41,Formulacion!$A:$BE,MATCH(AD$1,Formulacion!$1:$1,0),FALSE)="NA",1,IF(N41<=CostoTotalMin,0,1)) -> 1 | AE41: =IF(VLOOKUP($B41,Formulacion!$A:$BE,MATCH(AE$1,Formulacion!$1:$1,0),FALSE)="NA",1,IF(Q41<=PostesMin,0,1)) -> 1 | AF41: =IF(VLOOKUP($B41,Formulacion!$A:$BE,MATCH(AF$1,Formulacion!$1:$1,0),FALSE)="NA",1,IF(R41<=INDIRECT(VLOOKUP(B41,Formulacion!$A:$BE,2,FALSE)),0,1)) -> 1 | AG41: 1 | AH41: 21377.91 | AI41: 1 | AJ41: =IF(VLOOKUP($B41,Formulacion!$A:$BE,MATCH(AJ$1,Formulacion!$1:$1,0),FALSE)="NA","NA",HLOOKUP(VLOOKUP($B41,Formulacion!$A:$BE,MATCH(AJ$1,Formulacion!$1:$1,0),FALSE),$Q:$Z,ROW(AJ41),FALSE)) -> NA | AK41: =IF(VLOOKUP($B41,Formulacion!$A:$BE,MATCH(AK$1,Formulacion!$1:$1,0),FALSE)="NA",1,VLOOKUP($B41,Formulacion!$A:$BE,MATCH(AK$1,Formulacion!$1:$1,0),FALSE)) -> 1000 | AL41: =IF(VLOOKUP($B41,Formulacion!$A:$BE,MATCH(AL$1,Formulacion!$1:$1,0),FALSE)="NA",1,VLOOKUP($B41,Formulacion!$A:$BE,MATCH(AL$1,Formulacion!$1:$1,0),FALSE)) -> 0.5 | AM41: 1 | AN41: =IF(VLOOKUP($B41,Formulacion!$A:$BE,MATCH(AN$1,Formulacion!$1:$1,0),FALSE)="NA","NA",IF(D41=0,"",VLOOKUP($B41,Formulacion!$A:$BE,MATCH(AN$1,Formulacion!$1:$1,0),FALSE))) -> NA | AO41: X | AV41: NA | AW41: =IF(VLOOKUP($B41,Formulacion!$A:$BE,MATCH(AW$1,Formulacion!$1:$1,0),FALSE)="NA","NA",HLOOKUP(VLOOKUP($B41,Formulacion!$A:$BE,MATCH(AW$1,Formulacion!$1:$1,0),FALSE),$Q:$Z,ROW(AW41),FALSE)) -> NA | AX41: NA | AY41: 1 | AZ41: =IF(VLOOKUP($B41,Formulacion!$A:$BE,MATCH(AZ$1,Formulacion!$1:$1,0),FALSE)="NA",1,VLOOKUP($B41,Formulacion!$A:$BE,MATCH(AZ$1,Formulacion!$1:$1,0),FALSE)) -> 0.9 | BA41: =IF(VLOOKUP($B41,Formulacion!$A:$BE,MATCH(BA$1,Formulacion!$1:$1,0),FALSE)="NA",1,VLOOKUP($B41,Formulacion!$A:$BE,MATCH(BA$1,Formulacion!$1:$1,0),FALSE)) -> 1 | BB41: 19240.119
A42: Edechi Proy con cta 2022 I | B42: DLSMT-34,5 | C42: GRALNVOSUMCALARQ | D42: DLSMT345T100156ZB0480B02SLAALA4/04/0 | E42: 2022-06-30 | F42: Chiriqui | H42: 15185.39 | I42: 12218.61 | K42: 0 | N42: 27525.6 | P42: 0 | Q42: =IF(OR(VLOOKUP($B42,Formulacion!$A:$BE,MATCH(Q$1,Formulacion!$1:$1,0),FALSE)="NA",$D42=0),"NA",IF($B42="DLABT",MID($D42,PosteInicioBT,PosteFinBT-PosteInicioBT+1)*1,MID($D42,PosteInicio,PosteFin-PosteInicio+1)*1)) -> NA | R42: =IF(OR(VLOOKUP($B42,Formulacion!$A:$BE,MATCH(R$1,Formulacion!$1:$1,0),FALSE)="NA",$D42=0),"NA",IF(OR($B42="DLABT",$B42="DLSBT"),MID($D42,CondInicioBT,CondFinBT-CondInicioBT+1)*1,MID($D42,CondInicio,CondFin-CondInicio+1)*1)) -> 156 | S42: NA | T42: =IF(OR(VLOOKUP($B42,Formulacion!$A:$BE,MATCH(T$1,Formulacion!$1:$1,0),FALSE)="NA",$D42=0),"NA",IF($B42="DLSBT",MID($D42,ZanjaInicioBT,ZanjaFinBT-ZanjaInicioBT+1)*1,MID($D42,ZanjaInicio,ZanjaFin-ZanjaInicio+1)*1)) -> NA | U42: 1 | V42: =IF(OR(VLOOKUP($B42,Formulacion!$A:$BE,MATCH(V$1,Formulacion!$1:$1,0),FALSE)="NA",$D42=0),"NA",MID($D42,m2Inicio+INDIRECT(B42),m2Fin-m2Inicio+1)*1) -> NA | W42: =IF(OR(VLOOKUP($B42,Formulacion!$A:$BE,MATCH(W$1,Formulacion!$1:$1,0),FALSE)="NA",$D42=0),"NA",RIGHT($D42,4)*1) -> NA | X42: =IF(OR(VLOOKUP($B42,Formulacion!$A:$BE,MATCH(X$1,Formulacion!$1:$1,0),FALSE)="NA",$D42=0),"NA",RIGHT($D42,3)*1) -> NA | Y42: 1 | Z42: =IF(VLOOKUP($B42,Formulacion!$A:$BE,MATCH(Z$1,Formulacion!$1:$1,0),FALSE)="NA",1,IF(V42<=m2Min,0,1)) -> 1 | AA42: =IF(VLOOKUP($B42,Formulacion!$A:$BE,MATCH(AA$1,Formulacion!$1:$1,0),FALSE)="NA",1,IF(OR(E42<=FechaMin,E42>FechaMax),0,1)) -> 1 | AB42: =IF(VLOOKUP($B42,Formulacion!$A:$BE,MATCH(AB$1,Formulacion!$1:$1,0),FALSE)="NA",1,IF(H42<=MaterialesMin,0,1)) -> 1 | AC42: =IF(VLOOKUP($B42,Formulacion!$A:$BE,MATCH(AC$1,Formulacion!$1:$1,0),FALSE)="NA",1,IF(N42=0,0,IF(OR(I42/N42<=MObraMin,I42/N42>=MObraMax),MDOmin,1))) -> 1 | AD42: =IF(VLOOKUP($B42,Formulacion!$A:$BE,MATCH(AD$1,Formulacion!$1:$1,0),FALSE)="NA",1,IF(N42<=CostoTotalMin,0,1)) -> 1 | AE42: =IF(VLOOKUP($B42,Formulacion!$A:$BE,MATCH(AE$1,Formulacion!$1:$1,0),FALSE)="NA",1,IF(Q42<=PostesMin,0,1)) -> 1 | AF42: =IF(VLOOKUP($B42,Formulacion!$A:$BE,MATCH(AF$1,Formulacion!$1:$1,0),FALSE)="NA",1,IF(R42<=INDIRECT(VLOOKUP(B42,Formulacion!$A:$BE,2,FALSE)),0,1)) -> 1 | AG42: 1 | AH42: 27525.6 | AI42: 1 | AJ42: =IF(VLOOKUP($B42,Formulacion!$A:$BE,MATCH(AJ$1,Formulacion!$1:$1,0),FALSE)="NA","NA",HLOOKUP(VLOOKUP($B42,Formulacion!$A:$BE,MATCH(AJ$1,Formulacion!$1:$1,0),FALSE),$Q:$Z,ROW(AJ42),FALSE)) -> NA | AK42: =IF(VLOOKUP($B42,Formulacion!$A:$BE,MATCH(AK$1,Formulacion!$1:$1,0),FALSE)="NA",1,VLOOKUP($B42,Formulacion!$A:$BE,MATCH(AK$1,Formulacion!$1:$1,0),FALSE)) -> 1000 | AL42: =IF(VLOOKUP($B42,Formulacion!$A:$BE,MATCH(AL$1,Formulacion!$1:$1,0),FALSE)="NA",1,VLOOKUP($B42,Formulacion!$A:$BE,MATCH(AL$1,Formulacion!$1:$1,0),FALSE)) -> 0.5 | AM42: 1 | AN42: =IF(VLOOKUP($B42,Formulacion!$A:$BE,MATCH(AN$1,Formulacion!$1:$1,0),FALSE)="NA","NA",IF(D42=0,"",VLOOKUP($B42,Formulacion!$A:$BE,MATCH(AN$1,Formulacion!$1:$1,0),FALSE))) -> NA | AO42: X | AV42: NA | AW42: =IF(VLOOKUP($B42,Formulacion!$A:$BE,MATCH(AW$1,Formulacion!$1:$1,0),FALSE)="NA","NA",HLOOKUP(VLOOKUP($B42,Formulacion!$A:$BE,MATCH(AW$1,Formulacion!$1:$1,0),FALSE),$Q:$Z,ROW(AW42),FALSE)) -> NA | AX42: NA | AY42: 1 | AZ42: =IF(VLOOKUP($B42,Formulacion!$A:$BE,MATCH(AZ$1,Formulacion!$1:$1,0),FALSE)="NA",1,VLOOKUP($B42,Formulacion!$A:$BE,MATCH(AZ$1,Formulacion!$1:$1,0),FALSE)) -> 0.9 | BA42: =IF(VLOOKUP($B42,Formulacion!$A:$BE,MATCH(BA$1,Formulacion!$1:$1,0),FALSE)="NA",1,VLOOKUP($B42,Formulacion!$A:$BE,MATCH(BA$1,Formulacion!$1:$1,0),FALSE)) -> 1 | BB42: 24773.04
A43: Edechi Proy con cta 2022 I | B43: DLSMT-34,5 | C43: GRALNVOSUMCALARQ | D43: DLSMT345T101006ZB0480B02SLAALC500500 | E43: 2022-06-30 | F43: Chiriqui | H43: 109768.04 | I43: 88322.55 | K43: 0 | N43: 198969.6 | P43: 0 | Q43: =IF(OR(VLOOKUP($B43,Formulacion!$A:$BE,MATCH(Q$1,Formulacion!$1:$1,0),FALSE)="NA",$D43=0),"NA",IF($B43="DLABT",MID($D43,PosteInicioBT,PosteFinBT-PosteInicioBT+1)*1,MID($D43,PosteInicio,PosteFin-PosteInicio+1)*1)) -> NA | R43: =IF(OR(VLOOKUP($B43,Formulacion!$A:$BE,MATCH(R$1,Formulacion!$1:$1,0),FALSE)="NA",$D43=0),"NA",IF(OR($B43="DLABT",$B43="DLSBT"),MID($D43,CondInicioBT,CondFinBT-CondInicioBT+1)*1,MID($D43,CondInicio,CondFin-CondInicio+1)*1)) -> 1006 | S43: NA | T43: =IF(OR(VLOOKUP($B43,Formulacion!$A:$BE,MATCH(T$1,Formulacion!$1:$1,0),FALSE)="NA",$D43=0),"NA",IF($B43="DLSBT",MID($D43,ZanjaInicioBT,ZanjaFinBT-ZanjaInicioBT+1)*1,MID($D43,ZanjaInicio,ZanjaFin-ZanjaInicio+1)*1)) -> NA | U43: 1 | V43: =IF(OR(VLOOKUP($B43,Formulacion!$A:$BE,MATCH(V$1,Formulacion!$1:$1,0),FALSE)="NA",$D43=0),"NA",MID($D43,m2Inicio+INDIRECT(B43),m2Fin-m2Inicio+1)*1) -> NA | W43: =IF(OR(VLOOKUP($B43,Formulacion!$A:$BE,MATCH(W$1,Formulacion!$1:$1,0),FALSE)="NA",$D43=0),"NA",RIGHT($D43,4)*1) -> NA | X43: =IF(OR(VLOOKUP($B43,Formulacion!$A:$BE,MATCH(X$1,Formulacion!$1:$1,0),FALSE)="NA",$D43=0),"NA",RIGHT($D43,3)*1) -> NA | Y43: 1 | Z43: =IF(VLOOKUP($B43,Formulacion!$A:$BE,MATCH(Z$1,Formulacion!$1:$1,0),FALSE)="NA",1,IF(V43<=m2Min,0,1)) -> 1 | AA43: =IF(VLOOKUP($B43,Formulacion!$A:$BE,MATCH(AA$1,Formulacion!$1:$1,0),FALSE)="NA",1,IF(OR(E43<=FechaMin,E43>FechaMax),0,1)) -> 1 | AB43: =IF(VLOOKUP($B43,Formulacion!$A:$BE,MATCH(AB$1,Formulacion!$1:$1,0),FALSE)="NA",1,IF(H43<=MaterialesMin,0,1)) -> 1 | AC43: =IF(VLOOKUP($B43,Formulacion!$A:$BE,MATCH(AC$1,Formulacion!$1:$1,0),FALSE)="NA",1,IF(N43=0,0,IF(OR(I43/N43<=MObraMin,I43/N43>=MObraMax),MDOmin,1))) -> 1 | AD43: =IF(VLOOKUP($B43,Formulacion!$A:$BE,MATCH(AD$1,Formulacion!$1:$1,0),FALSE)="NA",1,IF(N43<=CostoTotalMin,0,1)) -> 1 | AE43: =IF(VLOOKUP($B43,Formulacion!$A:$BE,MATCH(AE$1,Formulacion!$1:$1,0),FALSE)="NA",1,IF(Q43<=PostesMin,0,1)) -> 1 | AF43: =IF(VLOOKUP($B43,Formulacion!$A:$BE,MATCH(AF$1,Formulacion!$1:$1,0),FALSE)="NA",1,IF(R43<=INDIRECT(VLOOKUP(B43,Formulacion!$A:$BE,2,FALSE)),0,1)) -> 1 | AG43: 1 | AH43: 198969.6 | AI43: 1 | AJ43: =IF(VLOOKUP($B43,Formulacion!$A:$BE,MATCH(AJ$1,Formulacion!$1:$1,0),FALSE)="NA","NA",HLOOKUP(VLOOKUP($B43,Formulacion!$A:$BE,MATCH(AJ$1,Formulacion!$1:$1,0),FALSE),$Q:$Z,ROW(AJ43),FALSE)) -> NA | AK43: =IF(VLOOKUP($B43,Formulacion!$A:$BE,MATCH(AK$1,Formulacion!$1:$1,0),FALSE)="NA",1,VLOOKUP($B43,Formulacion!$A:$BE,MATCH(AK$1,Formulacion!$1:$1,0),FALSE)) -> 1000 | AL43: =IF(VLOOKUP($B43,Formulacion!$A:$BE,MATCH(AL$1,Formulacion!$1:$1,0),FALSE)="NA",1,VLOOKUP($B43,Formulacion!$A:$BE,MATCH(AL$1,Formulacion!$1:$1,0),FALSE)) -> 0.5 | AM43: 1 | AN43: =IF(VLOOKUP($B43,Formulacion!$A:$BE,MATCH(AN$1,Formulacion!$1:$1,0),FALSE)="NA","NA",IF(D43=0,"",VLOOKUP($B43,Formulacion!$A:$BE,MATCH(AN$1,Formulacion!$1:$1,0),FALSE))) -> NA | AO43: X | AV43: NA | AW43: =IF(VLOOKUP($B43,Formulacion!$A:$BE,MATCH(AW$1,Formulacion!$1:$1,0),FALSE)="NA","NA",HLOOKUP(VLOOKUP($B43,Formulacion!$A:$BE,MATCH(AW$1,Formulacion!$1:$1,0),FALSE),$Q:$Z,ROW(AW43),FALSE)) -> NA | AX43: NA | AY43: 1 | AZ43: =IF(VLOOKUP($B43,Formulacion!$A:$BE,MATCH(AZ$1,Formulacion!$1:$1,0),FALSE)="NA",1,VLOOKUP($B43,Formulacion!$A:$BE,MATCH(AZ$1,Formulacion!$1:$1,0),FALSE)) -> 0.9 | BA43: =IF(VLOOKUP($B43,Formulacion!$A:$BE,MATCH(BA$1,Formulacion!$1:$1,0),FALSE)="NA",1,VLOOKUP($B43,Formulacion!$A:$BE,MATCH(BA$1,Formulacion!$1:$1,0),FALSE)) -> 1 | BB43: 179072.64
A44: Edechi Proy con cta 2022 I | B44: DTRMB-13,8 | C44: GRALNVOSUMCALARQ | D44: DTRMB138M10010IP025 | E44: 2022-06-30 | F44: Chiriqui | H44: 52373.02 | I44: 22697.35 | K44: 0 | N44: 75159.66 | P44: 0 | Q44: =IF(OR(VLOOKUP($B44,Formulacion!$A:$BE,MATCH(Q$1,Formulacion!$1:$1,0),FALSE)="NA",$D44=0),"NA",IF($B44="DLABT",MID($D44,PosteInicioBT,PosteFinBT-PosteInicioBT+1)*1,MID($D44,PosteInicio,PosteFin-PosteInicio+1)*1)) -> NA | R44: =IF(OR(VLOOKUP($B44,Formulacion!$A:$BE,MATCH(R$1,Formulacion!$1:$1,0),FALSE)="NA",$D44=0),"NA",IF(OR($B44="DLABT",$B44="DLSBT"),MID($D44,CondInicioBT,CondFinBT-CondInicioBT+1)*1,MID($D44,CondInicio,CondFin-CondInicio+1)*1)) -> NA | S44: NA | T44: =IF(OR(VLOOKUP($B44,Formulacion!$A:$BE,MATCH(T$1,Formulacion!$1:$1,0),FALSE)="NA",$D44=0),"NA",IF($B44="DLSBT",MID($D44,ZanjaInicioBT,ZanjaFinBT-ZanjaInicioBT+1)*1,MID($D44,ZanjaInicio,ZanjaFin-ZanjaInicio+1)*1)) -> NA | U44: 1 | V44: =IF(OR(VLOOKUP($B44,Formulacion!$A:$BE,MATCH(V$1,Formulacion!$1:$1,0),FALSE)="NA",$D44=0),"NA",MID($D44,m2Inicio+INDIRECT(B44),m2Fin-m2Inicio+1)*1) -> NA | W44: =IF(OR(VLOOKUP($B44,Formulacion!$A:$BE,MATCH(W$1,Formulacion!$1:$1,0),FALSE)="NA",$D44=0),"NA",RIGHT($D44,4)*1) -> NA | X44: =IF(OR(VLOOKUP($B44,Formulacion!$A:$BE,MATCH(X$1,Formulacion!$1:$1,0),FALSE)="NA",$D44=0),"NA",RIGHT($D44,3)*1) -> 25 | Y44: 1 | Z44: =IF(VLOOKUP($B44,Formulacion!$A:$BE,MATCH(Z$1,Formulacion!$1:$1,0),FALSE)="NA",1,IF(V44<=m2Min,0,1)) -> 1 | AA44: =IF(VLOOKUP($B44,Formulacion!$A:$BE,MATCH(AA$1,Formulacion!$1:$1,0),FALSE)="NA",1,IF(OR(E44<=FechaMin,E44>FechaMax),0,1)) -> 1 | AB44: =IF(VLOOKUP($B44,Formulacion!$A:$BE,MATCH(AB$1,Formulacion!$1:$1,0),FALSE)="NA",1,IF(H44<=MaterialesMin,0,1)) -> 1 | AC44: =IF(VLOOKUP($B44,Formulacion!$A:$BE,MATCH(AC$1,Formulacion!$1:$1,0),FALSE)="NA",1,IF(N44=0,0,IF(OR(I44/N44<=MObraMin,I44/N44>=MObraMax),MDOmin,1))) -> 1 | AD44: =IF(VLOOKUP($B44,Formulacion!$A:$BE,MATCH(AD$1,Formulacion!$1:$1,0),FALSE)="NA",1,IF(N44<=CostoTotalMin,0,1)) -> 1 | AE44: =IF(VLOOKUP($B44,Formulacion!$A:$BE,MATCH(AE$1,Formulacion!$1:$1,0),FALSE)="NA",1,IF(Q44<=PostesMin,0,1)) -> 1 | AF44: =IF(VLOOKUP($B44,Formulacion!$A:$BE,MATCH(AF$1,Formulacion!$1:$1,0),FALSE)="NA",1,IF(R44<=INDIRECT(VLOOKUP(B44,Formulacion!$A:$BE,2,FALSE)),0,1)) -> 1 | AG44: 1 | AH44: 75159.66 | AI44: 1 | AJ44: =IF(VLOOKUP($B44,Formulacion!$A:$BE,MATCH(AJ$1,Formulacion!$1:$1,0),FALSE)="NA","NA",HLOOKUP(VLOOKUP($B44,Formulacion!$A:$BE,MATCH(AJ$1,Formulacion!$1:$1,0),FALSE),$Q:$Z,ROW(AJ44),FALSE)) -> NA | AK44: =IF(VLOOKUP($B44,Formulacion!$A:$BE,MATCH(AK$1,Formulacion!$1:$1,0),FALSE)="NA",1,VLOOKUP($B44,Formulacion!$A:$BE,MATCH(AK$1,Formulacion!$1:$1,0),FALSE)) -> 1 | AL44: =IF(VLOOKUP($B44,Formulacion!$A:$BE,MATCH(AL$1,Formulacion!$1:$1,0),FALSE)="NA",1,VLOOKUP($B44,Formulacion!$A:$BE,MATCH(AL$1,Formulacion!$1:$1,0),FALSE)) -> 1 | AM44: 1 | AN44: =IF(VLOOKUP($B44,Formulacion!$A:$BE,MATCH(AN$1,Formulacion!$1:$1,0),FALSE)="NA","NA",IF(D44=0,"",VLOOKUP($B44,Formulacion!$A:$BE,MATCH(AN$1,Formulacion!$1:$1,0),FALSE))) -> 02081106 | AO44: TRMB138M | AP44: 0010IP | AV44: NA | AW44: =IF(VLOOKUP($B44,Formulacion!$A:$BE,MATCH(AW$1,Formulacion!$1:$1,0),FALSE)="NA","NA",HLOOKUP(VLOOKUP($B44,Formulacion!$A:$BE,MATCH(AW$1,Formulacion!$1:$1,0),FALSE),$Q:$Z,ROW(AW44),FALSE)) -> 25 | AX44: NA | AY44: 1 | AZ44: =IF(VLOOKUP($B44,Formulacion!$A:$BE,MATCH(AZ$1,Formulacion!$1:$1,0),FALSE)="NA",1,VLOOKUP($B44,Formulacion!$A:$BE,MATCH(AZ$1,Formulacion!$1:$1,0),FALSE)) -> 0.9 | BA44: =IF(VLOOKUP($B44,Formulacion!$A:$BE,MATCH(BA$1,Formulacion!$1:$1,0),FALSE)="NA",1,VLOOKUP($B44,Formulacion!$A:$BE,MATCH(BA$1,Formulacion!$1:$1,0),FALSE)) -> 1 | BB44: 67643.694
A45: Edechi Proy con cta 2022 I | B45: DTRMB-13,8 | C45: GRALNVOSUMCALARQ | D45: DTRMB138M10025IP039 | E45: 2022-06-30 | F45: Chiriqui | H45: 96954.37 | I45: 42017.97 | K45: 0 | N45: 139137.63 | P45: 0 | Q45: =IF(OR(VLOOKUP($B45,Formulacion!$A:$BE,MATCH(Q$1,Formulacion!$1:$1,0),FALSE)="NA",$D45=0),"NA",IF($B45="DLABT",MID($D45,PosteInicioBT,PosteFinBT-PosteInicioBT+1)*1,MID($D45,PosteInicio,PosteFin-PosteInicio+1)*1)) -> NA | R45: =IF(OR(VLOOKUP($B45,Formulacion!$A:$BE,MATCH(R$1,Formulacion!$1:$1,0),FALSE)="NA",$D45=0),"NA",IF(OR($B45="DLABT",$B45="DLSBT"),MID($D45,CondInicioBT,CondFinBT-CondInicioBT+1)*1,MID($D45,CondInicio,CondFin-CondInicio+1)*1)) -> NA | S45: NA | T45: =IF(OR(VLOOKUP($B45,Formulacion!$A:$BE,MATCH(T$1,Formulacion!$1:$1,0),FALSE)="NA",$D45=0),"NA",IF($B45="DLSBT",MID($D45,ZanjaInicioBT,ZanjaFinBT-ZanjaInicioBT+1)*1,MID($D45,ZanjaInicio,ZanjaFin-ZanjaInicio+1)*1)) -> NA | U45: 1 | V45: =IF(OR(VLOOKUP($B45,Formulacion!$A:$BE,MATCH(V$1,Formulacion!$1:$1,0),FALSE)="NA",$D45=0),"NA",MID($D45,m2Inicio+INDIRECT(B45),m2Fin-m2Inicio+1)*1) -> NA | W45: =IF(OR(VLOOKUP($B45,Formulacion!$A:$BE,MATCH(W$1,Formulacion!$1:$1,0),FALSE)="NA",$D45=0),"NA",RIGHT($D45,4)*1) -> NA | X45: =IF(OR(VLOOKUP($B45,Formulacion!$A:$BE,MATCH(X$1,Formulacion!$1:$1,0),FALSE)="NA",$D45=0),"NA",RIGHT($D45,3)*1) -> 39 | Y45: 1 | Z45: =IF(VLOOKUP($B45,Formulacion!$A:$BE,MATCH(Z$1,Formulacion!$1:$1,0),FALSE)="NA",1,IF(V45<=m2Min,0,1)) -> 1 | AA45: =IF(VLOOKUP($B45,Formulacion!$A:$BE,MATCH(AA$1,Formulacion!$1:$1,0),FALSE)="NA",1,IF(OR(E45<=FechaMin,E45>FechaMax),0,1)) -> 1 | AB45: =IF(VLOOKUP($B45,Formulacion!$A:$BE,MATCH(AB$1,Formulacion!$1:$1,0),FALSE)="NA",1,IF(H45<=MaterialesMin,0,1)) -> 1 | AC45: =IF(VLOOKUP($B45,Formulacion!$A:$BE,MATCH(AC$1,Formulacion!$1:$1,0),FALSE)="NA",1,IF(N45=0,0,IF(OR(I45/N45<=MObraMin,I45/N45>=MObraMax),MDOmin,1))) -> 1 | AD45: =IF(VLOOKUP($B45,Formulacion!$A:$BE,MATCH(AD$1,Formulacion!$1:$1,0),FALSE)="NA",1,IF(N45<=CostoTotalMin,0,1)) -> 1 | AE45: =IF(VLOOKUP($B45,Formulacion!$A:$BE,MATCH(AE$1,Formulacion!$1:$1,0),FALSE)="NA",1,IF(Q45<=PostesMin,0,1)) -> 1 | AF45: =IF(VLOOKUP($B45,Formulacion!$A:$BE,MATCH(AF$1,Formulacion!$1:$1,0),FALSE)="NA",1,IF(R45<=INDIRECT(VLOOKUP(B45,Formulacion!$A:$BE,2,FALSE)),0,1)) -> 1 | AG45: 1 | AH45: 139137.63 | AI45: 1 | AJ45: =IF(VLOOKUP($B45,Formulacion!$A:$BE,MATCH(AJ$1,Formulacion!$1:$1,0),FALSE)="NA","NA",HLOOKUP(VLOOKUP($B45,Formulacion!$A:$BE,MATCH(AJ$1,Formulacion!$1:$1,0),FALSE),$Q:$Z,ROW(AJ45),FALSE)) -> NA | AK45: =IF(VLOOKUP($B45,Formulacion!$A:$BE,MATCH(AK$1,Formulacion!$1:$1,0),FALSE)="NA",1,VLOOKUP($B45,Formulacion!$A:$BE,MATCH(AK$1,Formulacion!$1:$1,0),FALSE)) -> 1 | AL45: =IF(VLOOKUP($B45,Formulacion!$A:$BE,MATCH(AL$1,Formulacion!$1:$1,0),FALSE)="NA",1,VLOOKUP($B45,Formulacion!$A:$BE,MATCH(AL$1,Formulacion!$1:$1,0),FALSE)) -> 1 | AM45: 1 | AN45: =IF(VLOOKUP($B45,Formulacion!$A:$BE,MATCH(AN$1,Formulacion!$1:$1,0),FALSE)="NA","NA",IF(D45=0,"",VLOOKUP($B45,Formulacion!$A:$BE,MATCH(AN$1,Formulacion!$1:$1,0),FALSE))) -> 02081106 | AO45: TRMB138M | AP45: 0025IP | AV45: NA | AW45: =IF(VLOOKUP($B45,Formulacion!$A:$BE,MATCH(AW$1,Formulacion!$1:$1,0),FALSE)="NA","NA",HLOOKUP(VLOOKUP($B45,Formulacion!$A:$BE,MATCH(AW$1,Formulacion!$1:$1,0),FALSE),$Q:$Z,ROW(AW45),FALSE)) -> 39 | AX45: NA | AY45: 1 | AZ45: =IF(VLOOKUP($B45,Formulacion!$A:$BE,MATCH(AZ$1,Formulacion!$1:$1,0),FALSE)="NA",1,VLOOKUP($B45,Formulacion!$A:$BE,MATCH(AZ$1,Formulacion!$1:$1,0),FALSE)) -> 0.9 | BA45: =IF(VLOOKUP($B45,Formulacion!$A:$BE,MATCH(BA$1,Formulacion!$1:$1,0),FALSE)="NA",1,VLOOKUP($B45,Formulacion!$A:$BE,MATCH(BA$1,Formulacion!$1:$1,0),FALSE)) -> 1 | BB45: 125223.867
A46: Edechi Proy con cta 2022 I | B46: DTRMB-13,8 | C46: GRALNVOSUMCALARQ | D46: DTRMB138M10050IG002 | E46: 2022-06-30 | F46: Chiriqui | H46: 21765.16 | I46: 9432.56 | K46: 0 | N46: 31234.83 | P46: 0 | Q46: =IF(OR(VLOOKUP($B46,Formulacion!$A:$BE,MATCH(Q$1,Formulacion!$1:$1,0),FALSE)="NA",$D46=0),"NA",IF($B46="DLABT",MID($D46,PosteInicioBT,PosteFinBT-PosteInicioBT+1)*1,MID($D46,PosteInicio,PosteFin-PosteInicio+1)*1)) -> NA | R46: =IF(OR(VLOOKUP($B46,Formulacion!$A:$BE,MATCH(R$1,Formulacion!$1:$1,0),FALSE)="NA",$D46=0),"NA",IF(OR($B46="DLABT",$B46="DLSBT"),MID($D46,CondInicioBT,CondFinBT-CondInicioBT+1)*1,MID($D46,CondInicio,CondFin-CondInicio+1)*1)) -> NA | S46: NA | T46: =IF(OR(VLOOKUP($B46,Formulacion!$A:$BE,MATCH(T$1,Formulacion!$1:$1,0),FALSE)="NA",$D46=0),"NA",IF($B46="DLSBT",MID($D46,ZanjaInicioBT,ZanjaFinBT-ZanjaInicioBT+1)*1,MID($D46,ZanjaInicio,ZanjaFin-ZanjaInicio+1)*1)) -> NA | U46: 1 | V46: =IF(OR(VLOOKUP($B46,Formulacion!$A:$BE,MATCH(V$1,Formulacion!$1:$1,0),FALSE)="NA",$D46=0),"NA",MID($D46,m2Inicio+INDIRECT(B46),m2Fin-m2Inicio+1)*1) -> NA | W46: =IF(OR(VLOOKUP($B46,Formulacion!$A:$BE,MATCH(W$1,Formulacion!$1:$1,0),FALSE)="NA",$D46=0),"NA",RIGHT($D46,4)*1) -> NA | X46: =IF(OR(VLOOKUP($B46,Formulacion!$A:$BE,MATCH(X$1,Formulacion!$1:$1,0),FALSE)="NA",$D46=0),"NA",RIGHT($D46,3)*1) -> 2 | Y46: 1 | Z46: =IF(VLOOKUP($B46,Formulacion!$A:$BE,MATCH(Z$1,Formulacion!$1:$1,0),FALSE)="NA",1,IF(V46<=m2Min,0,1)) -> 1 | AA46: =IF(VLOOKUP($B46,Formulacion!$A:$BE,MATCH(AA$1,Formulacion!$1:$1,0),FALSE)="NA",1,IF(OR(E46<=FechaMin,E46>FechaMax),0,1)) -> 1 | AB46: =IF(VLOOKUP($B46,Formulacion!$A:$BE,MATCH(AB$1,Formulacion!$1:$1,0),FALSE)="NA",1,IF(H46<=MaterialesMin,0,1)) -> 1 | AC46: =IF(VLOOKUP($B46,Formulacion!$A:$BE,MATCH(AC$1,Formulacion!$1:$1,0),FALSE)="NA",1,IF(N46=0,0,IF(OR(I46/N46<=MObraMin,I46/N46>=MObraMax),MDOmin,1))) -> 1 | AD46: =IF(VLOOKUP($B46,Formulacion!$A:$BE,MATCH(AD$1,Formulacion!$1:$1,0),FALSE)="NA",1,IF(N46<=CostoTotalMin,0,1)) -> 1 | AE46: =IF(VLOOKUP($B46,Formulacion!$A:$BE,MATCH(AE$1,Formulacion!$1:$1,0),FALSE)="NA",1,IF(Q46<=PostesMin,0,1)) -> 1 | AF46: =IF(VLOOKUP($B46,Formulacion!$A:$BE,MATCH(AF$1,Formulacion!$1:$1,0),FALSE)="NA",1,IF(R46<=INDIRECT(VLOOKUP(B46,Formulacion!$A:$BE,2,FALSE)),0,1)) -> 1 | AG46: 1 | AH46: 31234.83 | AI46: 1 | AJ46: =IF(VLOOKUP($B46,Formulacion!$A:$BE,MATCH(AJ$1,Formulacion!$1:$1,0),FALSE)="NA","NA",HLOOKUP(VLOOKUP($B46,Formulacion!$A:$BE,MATCH(AJ$1,Formulacion!$1:$1,0),FALSE),$Q:$Z,ROW(AJ46),FALSE)) -> NA | AK46: =IF(VLOOKUP($B46,Formulacion!$A:$BE,MATCH(AK$1,Formulacion!$1:$1,0),FALSE)="NA",1,VLOOKUP($B46,Formulacion!$A:$BE,MATCH(AK$1,Formulacion!$1:$1,0),FALSE)) -> 1 | AL46: =IF(VLOOKUP($B46,Formulacion!$A:$BE,MATCH(AL$1,Formulacion!$1:$1,0),FALSE)="NA",1,VLOOKUP($B46,Formulacion!$A:$BE,MATCH(AL$1,Formulacion!$1:$1,0),FALSE)) -> 1 | AM46: 1 | AN46: =IF(VLOOKUP($B46,Formulacion!$A:$BE,MATCH(AN$1,Formulacion!$1:$1,0),FALSE)="NA","NA",IF(D46=0,"",VLOOKUP($B46,Formulacion!$A:$BE,MATCH(AN$1,Formulacion!$1:$1,0),FALSE))) -> 02081106 | AO46: TRMB138M | AP46: 0050IG | AV46: NA | AW46: =IF(VLOOKUP($B46,Formulacion!$A:$BE,MATCH(AW$1,Formulacion!$1:$1,0),FALSE)="NA","NA",HLOOKUP(VLOOKUP($B46,Formulacion!$A:$BE,MATCH(AW$1,Formulacion!$1:$1,0),FALSE),$Q:$Z,ROW(AW46),FALSE)) -> 2 | AX46: NA | AY46: 1 | AZ46: =IF(VLOOKUP($B46,Formulacion!$A:$BE,MATCH(AZ$1,Formulacion!$1:$1,0),FALSE)="NA",1,VLOOKUP($B46,Formulacion!$A:$BE,MATCH(AZ$1,Formulacion!$1:$1,0),FALSE)) -> 0.9 | BA46: =IF(VLOOKUP($B46,Formulacion!$A:$BE,MATCH(BA$1,Formulacion!$1:$1,0),FALSE)="NA",1,VLOOKUP($B46,Formulacion!$A:$BE,MATCH(BA$1,Formulacion!$1:$1,0),FALSE)) -> 1 | BB46: 28111.347
A47: Edechi Proy con cta 2022 I | B47: DTRMB-13,8 | C47: GRALNVOSUMCALARQ | D47: DTRMB138M10050IP034 | E47: 2022-06-30 | F47: Chiriqui | H47: 161696.42 | I47: 70075.79 | K47: 0 | N47: 232047.88 | P47: 0 | Q47: =IF(OR(VLOOKUP($B47,Formulacion!$A:$BE,MATCH(Q$1,Formulacion!$1:$1,0),FALSE)="NA",$D47=0),"NA",IF($B47="DLABT",MID($D47,PosteInicioBT,PosteFinBT-PosteInicioBT+1)*1,MID($D47,PosteInicio,PosteFin-PosteInicio+1)*1)) -> NA | R47: =IF(OR(VLOOKUP($B47,Formulacion!$A:$BE,MATCH(R$1,Formulacion!$1:$1,0),FALSE)="NA",$D47=0),"NA",IF(OR($B47="DLABT",$B47="DLSBT"),MID($D47,CondInicioBT,CondFinBT-CondInicioBT+1)*1,MID($D47,CondInicio,CondFin-CondInicio+1)*1)) -> NA | S47: NA | T47: =IF(OR(VLOOKUP($B47,Formulacion!$A:$BE,MATCH(T$1,Formulacion!$1:$1,0),FALSE)="NA",$D47=0),"NA",IF($B47="DLSBT",MID($D47,ZanjaInicioBT,ZanjaFinBT-ZanjaInicioBT+1)*1,MID($D47,ZanjaInicio,ZanjaFin-ZanjaInicio+1)*1)) -> NA | U47: 1 | V47: =IF(OR(VLOOKUP($B47,Formulacion!$A:$BE,MATCH(V$1,Formulacion!$1:$1,0),FALSE)="NA",$D47=0),"NA",MID($D47,m2Inicio+INDIRECT(B47),m2Fin-m2Inicio+1)*1) -> NA | W47: =IF(OR(VLOOKUP($B47,Formulacion!$A:$BE,MATCH(W$1,Formulacion!$1:$1,0),FALSE)="NA",$D47=0),"NA",RIGHT($D47,4)*1) -> NA | X47: =IF(OR(VLOOKUP($B47,Formulacion!$A:$BE,MATCH(X$1,Formulacion!$1:$1,0),FALSE)="NA",$D47=0),"NA",RIGHT($D47,3)*1) -> 34 | Y47: 1 | Z47: =IF(VLOOKUP($B47,Formulacion!$A:$BE,MATCH(Z$1,Formulacion!$1:$1,0),FALSE)="NA",1,IF(V47<=m2Min,0,1)) -> 1 | AA47: =IF(VLOOKUP($B47,Formulacion!$A:$BE,MATCH(AA$1,Formulacion!$1:$1,0),FALSE)="NA",1,IF(OR(E47<=FechaMin,E47>FechaMax),0,1)) -> 1 | AB47: =IF(VLOOKUP($B47,Formulacion!$A:$BE,MATCH(AB$1,Formulacion!$1:$1,0),FALSE)="NA",1,IF(H47<=MaterialesMin,0,1)) -> 1 | AC47: =IF(VLOOKUP($B47,Formulacion!$A:$BE,MATCH(AC$1,Formulacion!$1:$1,0),FALSE)="NA",1,IF(N47=0,0,IF(OR(I47/N47<=MObraMin,I47/N47>=MObraMax),MDOmin,1))) -> 1 | AD47: =IF(VLOOKUP($B47,Formulacion!$A:$BE,MATCH(AD$1,Formulacion!$1:$1,0),FALSE)="NA",1,IF(N47<=CostoTotalMin,0,1)) -> 1 | AE47: =IF(VLOOKUP($B47,Formulacion!$A:$BE,MATCH(AE$1,Formulacion!$1:$1,0),FALSE)="NA",1,IF(Q47<=PostesMin,0,1)) -> 1 | AF47: =IF(VLOOKUP($B47,Formulacion!$A:$BE,MATCH(AF$1,Formulacion!$1:$1,0),FALSE)="NA",1,IF(R47<=INDIRECT(VLOOKUP(B47,Formulacion!$A:$BE,2,FALSE)),0,1)) -> 1 | AG47: 1 | AH47: 232047.88 | AI47: 1 | AJ47: =IF(VLOOKUP($B47,Formulacion!$A:$BE,MATCH(AJ$1,Formulacion!$1:$1,0),FALSE)="NA","NA",HLOOKUP(VLOOKUP($B47,Formulacion!$A:$BE,MATCH(AJ$1,Formulacion!$1:$1,0),FALSE),$Q:$Z,ROW(AJ47),FALSE)) -> NA | AK47: =IF(VLOOKUP($B47,Formulacion!$A:$BE,MATCH(AK$1,Formulacion!$1:$1,0),FALSE)="NA",1,VLOOKUP($B47,Formulacion!$A:$BE,MATCH(AK$1,Formulacion!$1:$1,0),FALSE)) -> 1 | AL47: =IF(VLOOKUP($B47,Formulacion!$A:$BE,MATCH(AL$1,Formulacion!$1:$1,0),FALSE)="NA",1,VLOOKUP($B47,Formulacion!$A:$BE,MATCH(AL$1,Formulacion!$1:$1,0),FALSE)) -> 1 | AM47: 1 | AN47: =IF(VLOOKUP($B47,Formulacion!$A:$BE,MATCH(AN$1,Formulacion!$1:$1,0),FALSE)="NA","NA",IF(D47=0,"",VLOOKUP($B47,Formulacion!$A:$BE,MATCH(AN$1,Formulacion!$1:$1,0),FALSE))) -> 02081106 | AO47: TRMB138M | AP47: 0050IP | AV47: NA | AW47: =IF(VLOOKUP($B47,Formulacion!$A:$BE,MATCH(AW$1,Formulacion!$1:$1,0),FALSE)="NA","NA",HLOOKUP(VLOOKUP($B47,Formulacion!$A:$BE,MATCH(AW$1,Formulacion!$1:$1,0),FALSE),$Q:$Z,ROW(AW47),FALSE)) -> 34 | AX47: NA | AY47: 1 | AZ47: =IF(VLOOKUP($B47,Formulacion!$A:$BE,MATCH(AZ$1,Formulacion!$1:$1,0),FALSE)="NA",1,VLOOKUP($B47,Formulacion!$A:$BE,MATCH(AZ$1,Formulacion!$1:$1,0),FALSE)) -> 0.9 | BA47: =IF(VLOOKUP($B47,Formulacion!$A:$BE,MATCH(BA$1,Formulacion!$1:$1,0),FALSE)="NA",1,VLOOKUP($B47,Formulacion!$A:$BE,MATCH(BA$1,Formulacion!$1:$1,0),FALSE)) -> 1 | BB47: 208843.092
A48: Edechi Proy con cta 2022 I | B48: DTRMB-13,8 | C48: GRALNVOSUMCALARQ | D48: DTRMB138M10075IP015 | E48: 2022-06-30 | F48: Chiriqui | H48: 78979.23 | I48: 34227.92 | K48: 0 | N48: 113341.8 | P48: 0 | Q48: =IF(OR(VLOOKUP($B48,Formulacion!$A:$BE,MATCH(Q$1,Formulacion!$1:$1,0),FALSE)="NA",$D48=0),"NA",IF($B48="DLABT",MID($D48,PosteInicioBT,PosteFinBT-PosteInicioBT+1)*1,MID($D48,PosteInicio,PosteFin-PosteInicio+1)*1)) -> NA | R48: =IF(OR(VLOOKUP($B48,Formulacion!$A:$BE,MATCH(R$1,Formulacion!$1:$1,0),FALSE)="NA",$D48=0),"NA",IF(OR($B48="DLABT",$B48="DLSBT"),MID($D48,CondInicioBT,CondFinBT-CondInicioBT+1)*1,MID($D48,CondInicio,CondFin-CondInicio+1)*1)) -> NA | S48: NA | T48: =IF(OR(VLOOKUP($B48,Formulacion!$A:$BE,MATCH(T$1,Formulacion!$1:$1,0),FALSE)="NA",$D48=0),"NA",IF($B48="DLSBT",MID($D48,ZanjaInicioBT,ZanjaFinBT-ZanjaInicioBT+1)*1,MID($D48,ZanjaInicio,ZanjaFin-ZanjaInicio+1)*1)) -> NA | U48: 1 | V48: =IF(OR(VLOOKUP($B48,Formulacion!$A:$BE,MATCH(V$1,Formulacion!$1:$1,0),FALSE)="NA",$D48=0),"NA",MID($D48,m2Inicio+INDIRECT(B48),m2Fin-m2Inicio+1)*1) -> NA | W48: =IF(OR(VLOOKUP($B48,Formulacion!$A:$BE,MATCH(W$1,Formulacion!$1:$1,0),FALSE)="NA",$D48=0),"NA",RIGHT($D48,4)*1) -> NA | X48: =IF(OR(VLOOKUP($B48,Formulacion!$A:$BE,MATCH(X$1,Formulacion!$1:$1,0),FALSE)="NA",$D48=0),"NA",RIGHT($D48,3)*1) -> 15 | Y48: 1 | Z48: =IF(VLOOKUP($B48,Formulacion!$A:$BE,MATCH(Z$1,Formulacion!$1:$1,0),FALSE)="NA",1,IF(V48<=m2Min,0,1)) -> 1 | AA48: =IF(VLOOKUP($B48,Formulacion!$A:$BE,MATCH(AA$1,Formulacion!$1:$1,0),FALSE)="NA",1,IF(OR(E48<=FechaMin,E48>FechaMax),0,1)) -> 1 | AB48: =IF(VLOOKUP($B48,Formulacion!$A:$BE,MATCH(AB$1,Formulacion!$1:$1,0),FALSE)="NA",1,IF(H48<=MaterialesMin,0,1)) -> 1 | AC48: =IF(VLOOKUP($B48,Formulacion!$A:$BE,MATCH(AC$1,Formulacion!$1:$1,0),FALSE)="NA",1,IF(N48=0,0,IF(OR(I48/N48<=MObraMin,I48/N48>=MObraMax),MDOmin,1))) -> 1 | AD48: =IF(VLOOKUP($B48,Formulacion!$A:$BE,MATCH(AD$1,Formulacion!$1:$1,0),FALSE)="NA",1,IF(N48<=CostoTotalMin,0,1)) -> 1 | AE48: =IF(VLOOKUP($B48,Formulacion!$A:$BE,MATCH(AE$1,Formulacion!$1:$1,0),FALSE)="NA",1,IF(Q48<=PostesMin,0,1)) -> 1 | AF48: =IF(VLOOKUP($B48,Formulacion!$A:$BE,MATCH(AF$1,Formulacion!$1:$1,0),FALSE)="NA",1,IF(R48<=INDIRECT(VLOOKUP(B48,Formulacion!$A:$BE,2,FALSE)),0,1)) -> 1 | AG48: 1 | AH48: 113341.8 | AI48: 1 | AJ48: =IF(VLOOKUP($B48,Formulacion!$A:$BE,MATCH(AJ$1,Formulacion!$1:$1,0),FALSE)="NA","NA",HLOOKUP(VLOOKUP($B48,Formulacion!$A:$BE,MATCH(AJ$1,Formulacion!$1:$1,0),FALSE),$Q:$Z,ROW(AJ48),FALSE)) -> NA | AK48: =IF(VLOOKUP($B48,Formulacion!$A:$BE,MATCH(AK$1,Formulacion!$1:$1,0),FALSE)="NA",1,VLOOKUP($B48,Formulacion!$A:$BE,MATCH(AK$1,Formulacion!$1:$1,0),FALSE)) -> 1 | AL48: =IF(VLOOKUP($B48,Formulacion!$A:$BE,MATCH(AL$1,Formulacion!$1:$1,0),FALSE)="NA",1,VLOOKUP($B48,Formulacion!$A:$BE,MATCH(AL$1,Formulacion!$1:$1,0),FALSE)) -> 1 | AM48: 1 | AN48: =IF(VLOOKUP($B48,Formulacion!$A:$BE,MATCH(AN$1,Formulacion!$1:$1,0),FALSE)="NA","NA",IF(D48=0,"",VLOOKUP($B48,Formulacion!$A:$BE,MATCH(AN$1,Formulacion!$1:$1,0),FALSE))) -> 02081106 | AO48: TRMB138M | AP48: 0075IP | AV48: NA | AW48: =IF(VLOOKUP($B48,Formulacion!$A:$BE,MATCH(AW$1,Formulacion!$1:$1,0),FALSE)="NA","NA",HLOOKUP(VLOOKUP($B48,Formulacion!$A:$BE,MATCH(AW$1,Formulacion!$1:$1,0),FALSE),$Q:$Z,ROW(AW48),FALSE)) -> 15 | AX48: NA | AY48: 1 | AZ48: =IF(VLOOKUP($B48,Formulacion!$A:$BE,MATCH(AZ$1,Formulacion!$1:$1,0),FALSE)="NA",1,VLOOKUP($B48,Formulacion!$A:$BE,MATCH(AZ$1,Formulacion!$1:$1,0),FALSE)) -> 0.9 | BA48: =IF(VLOOKUP($B48,Formulacion!$A:$BE,MATCH(BA$1,Formulacion!$1:$1,0),FALSE)="NA",1,VLOOKUP($B48,Formulacion!$A:$BE,MATCH(BA$1,Formulacion!$1:$1,0),FALSE)) -> 1 | BB48: 102007.62
A49: Edechi Proy con cta 2022 I | B49: DTRMB-13,8 | C49: GRALNVOSUMCALARQ | D49: DTRMB138M10100IP002 | E49: 2022-06-30 | F49: Chiriqui | H49: 21042.72 | I49: 9119.47 | K49: 0 | N49: 30198.06 | P49: 0 | Q49: =IF(OR(VLOOKUP($B49,Formulacion!$A:$BE,MATCH(Q$1,Formulacion!$1:$1,0),FALSE)="NA",$D49=0),"NA",IF($B49="DLABT",MID($D49,PosteInicioBT,PosteFinBT-PosteInicioBT+1)*1,MID($D49,PosteInicio,PosteFin-PosteInicio+1)*1)) -> NA | R49: =IF(OR(VLOOKUP($B49,Formulacion!$A:$BE,MATCH(R$1,Formulacion!$1:$1,0),FALSE)="NA",$D49=0),"NA",IF(OR($B49="DLABT",$B49="DLSBT"),MID($D49,CondInicioBT,CondFinBT-CondInicioBT+1)*1,MID($D49,CondInicio,CondFin-CondInicio+1)*1)) -> NA | S49: NA | T49: =IF(OR(VLOOKUP($B49,Formulacion!$A:$BE,MATCH(T$1,Formulacion!$1:$1,0),FALSE)="NA",$D49=0),"NA",IF($B49="DLSBT",MID($D49,ZanjaInicioBT,ZanjaFinBT-ZanjaInicioBT+1)*1,MID($D49,ZanjaInicio,ZanjaFin-ZanjaInicio+1)*1)) -> NA | U49: 1 | V49: =IF(OR(VLOOKUP($B49,Formulacion!$A:$BE,MATCH(V$1,Formulacion!$1:$1,0),FALSE)="NA",$D49=0),"NA",MID($D49,m2Inicio+INDIRECT(B49),m2Fin-m2Inicio+1)*1) -> NA | W49: =IF(OR(VLOOKUP($B49,Formulacion!$A:$BE,MATCH(W$1,Formulacion!$1:$1,0),FALSE)="NA",$D49=0),"NA",RIGHT($D49,4)*1) -> NA | X49: =IF(OR(VLOOKUP($B49,Formulacion!$A:$BE,MATCH(X$1,Formulacion!$1:$1,0),FALSE)="NA",$D49=0),"NA",RIGHT($D49,3)*1) -> 2 | Y49: 1 | Z49: =IF(VLOOKUP($B49,Formulacion!$A:$BE,MATCH(Z$1,Formulacion!$1:$1,0),FALSE)="NA",1,IF(V49<=m2Min,0,1)) -> 1 | AA49: =IF(VLOOKUP($B49,Formulacion!$A:$BE,MATCH(AA$1,Formulacion!$1:$1,0),FALSE)="NA",1,IF(OR(E49<=FechaMin,E49>FechaMax),0,1)) -> 1 | AB49: =IF(VLOOKUP($B49,Formulacion!$A:$BE,MATCH(AB$1,Formulacion!$1:$1,0),FALSE)="NA",1,IF(H49<=MaterialesMin,0,1)) -> 1 | AC49: =IF(VLOOKUP($B49,Formulacion!$A:$BE,MATCH(AC$1,Formulacion!$1:$1,0),FALSE)="NA",1,IF(N49=0,0,IF(OR(I49/N49<=MObraMin,I49/N49>=MObraMax),MDOmin,1))) -> 1 | AD49: =IF(VLOOKUP($B49,Formulacion!$A:$BE,MATCH(AD$1,Formulacion!$1:$1,0),FALSE)="NA",1,IF(N49<=CostoTotalMin,0,1)) -> 1 | AE49: =IF(VLOOKUP($B49,Formulacion!$A:$BE,MATCH(AE$1,Formulacion!$1:$1,0),FALSE)="NA",1,IF(Q49<=PostesMin,0,1)) -> 1 | AF49: =IF(VLOOKUP($B49,Formulacion!$A:$BE,MATCH(AF$1,Formulacion!$1:$1,0),FALSE)="NA",1,IF(R49<=INDIRECT(VLOOKUP(B49,Formulacion!$A:$BE,2,FALSE)),0,1)) -> 1 | AG49: 1 | AH49: 30198.06 | AI49: 1 | AJ49: =IF(VLOOKUP($B49,Formulacion!$A:$BE,MATCH(AJ$1,Formulacion!$1:$1,0),FALSE)="NA","NA",HLOOKUP(VLOOKUP($B49,Formulacion!$A:$BE,MATCH(AJ$1,Formulacion!$1:$1,0),FALSE),$Q:$Z,ROW(AJ49),FALSE)) -> NA | AK49: =IF(VLOOKUP($B49,Formulacion!$A:$BE,MATCH(AK$1,Formulacion!$1:$1,0),FALSE)="NA",1,VLOOKUP($B49,Formulacion!$A:$BE,MATCH(AK$1,Formulacion!$1:$1,0),FALSE)) -> 1 | AL49: =IF(VLOOKUP($B49,Formulacion!$A:$BE,MATCH(AL$1,Formulacion!$1:$1,0),FALSE)="NA",1,VLOOKUP($B49,Formulacion!$A:$BE,MATCH(AL$1,Formulacion!$1:$1,0),FALSE)) -> 1 | AM49: 1 | AN49: =IF(VLOOKUP($B49,Formulacion!$A:$BE,MATCH(AN$1,Formulacion!$1:$1,0),FALSE)="NA","NA",IF(D49=0,"",VLOOKUP($B49,Formulacion!$A:$BE,MATCH(AN$1,Formulacion!$1:$1,0),FALSE))) -> 02081106 | AO49: TRMB138M | AP49: 0100IP | AV49: NA | AW49: =IF(VLOOKUP($B49,Formulacion!$A:$BE,MATCH(AW$1,Formulacion!$1:$1,0),FALSE)="NA","NA",HLOOKUP(VLOOKUP($B49,Formulacion!$A:$BE,MATCH(AW$1,Formulacion!$1:$1,0),FALSE),$Q:$Z,ROW(AW49),FALSE)) -> 2 | AX49: NA | AY49: 1 | AZ49: =IF(VLOOKUP($B49,Formulacion!$A:$BE,MATCH(AZ$1,Formulacion!$1:$1,0),FALSE)="NA",1,VLOOKUP($B49,Formulacion!$A:$BE,MATCH(AZ$1,Formulacion!$1:$1,0),FALSE)) -> 0.9 | BA49: =IF(VLOOKUP($B49,Formulacion!$A:$BE,MATCH(BA$1,Formulacion!$1:$1,0),FALSE)="NA",1,VLOOKUP($B49,Formulacion!$A:$BE,MATCH(BA$1,Formulacion!$1:$1,0),FALSE)) -> 1 | BB49: 27178.254
A50: Edechi Proy con cta 2022 I | B50: DTRMB-13,8 | C50: GRALNVOSUMCALARQ | D50: DTRMB138T10075IP002 | E50: 2022-06-30 | F50: Chiriqui | H50: 14979.86 | I50: 6491.95 | K50: 0 | N50: 21497.35 | P50: 0 | Q50: =IF(OR(VLOOKUP($B50,Formulacion!$A:$BE,MATCH(Q$1,Formulacion!$1:$1,0),FALSE)="NA",$D50=0),"NA",IF($B50="DLABT",MID($D50,PosteInicioBT,PosteFinBT-PosteInicioBT+1)*1,MID($D50,PosteInicio,PosteFin-PosteInicio+1)*1)) -> NA | R50: =IF(OR(VLOOKUP($B50,Formulacion!$A:$BE,MATCH(R$1,Formulacion!$1:$1,0),FALSE)="NA",$D50=0),"NA",IF(OR($B50="DLABT",$B50="DLSBT"),MID($D50,CondInicioBT,CondFinBT-CondInicioBT+1)*1,MID($D50,CondInicio,CondFin-CondInicio+1)*1)) -> NA | S50: NA | T50: =IF(OR(VLOOKUP($B50,Formulacion!$A:$BE,MATCH(T$1,Formulacion!$1:$1,0),FALSE)="NA",$D50=0),"NA",IF($B50="DLSBT",MID($D50,ZanjaInicioBT,ZanjaFinBT-ZanjaInicioBT+1)*1,MID($D50,ZanjaInicio,ZanjaFin-ZanjaInicio+1)*1)) -> NA | U50: 1 | V50: =IF(OR(VLOOKUP($B50,Formulacion!$A:$BE,MATCH(V$1,Formulacion!$1:$1,0),FALSE)="NA",$D50=0),"NA",MID($D50,m2Inicio+INDIRECT(B50),m2Fin-m2Inicio+1)*1) -> NA | W50: =IF(OR(VLOOKUP($B50,Formulacion!$A:$BE,MATCH(W$1,Formulacion!$1:$1,0),FALSE)="NA",$D50=0),"NA",RIGHT($D50,4)*1) -> NA | X50: =IF(OR(VLOOKUP($B50,Formulacion!$A:$BE,MATCH(X$1,Formulacion!$1:$1,0),FALSE)="NA",$D50=0),"NA",RIGHT($D50,3)*1) -> 2 | Y50: 1 | Z50: =IF(VLOOKUP($B50,Formulacion!$A:$BE,MATCH(Z$1,Formulacion!$1:$1,0),FALSE)="NA",1,IF(V50<=m2Min,0,1)) -> 1 | AA50: =IF(VLOOKUP($B50,Formulacion!$A:$BE,MATCH(AA$1,Formulacion!$1:$1,0),FALSE)="NA",1,IF(OR(E50<=FechaMin,E50>FechaMax),0,1)) -> 1 | AB50: =IF(VLOOKUP($B50,Formulacion!$A:$BE,MATCH(AB$1,Formulacion!$1:$1,0),FALSE)="NA",1,IF(H50<=MaterialesMin,0,1)) -> 1 | AC50: =IF(VLOOKUP($B50,Formulacion!$A:$BE,MATCH(AC$1,Formulacion!$1:$1,0),FALSE)="NA",1,IF(N50=0,0,IF(OR(I50/N50<=MObraMin,I50/N50>=MObraMax),MDOmin,1))) -> 1 | AD50: =IF(VLOOKUP($B50,Formulacion!$A:$BE,MATCH(AD$1,Formulacion!$1:$1,0),FALSE)="NA",1,IF(N50<=CostoTotalMin,0,1)) -> 1 | AE50: =IF(VLOOKUP($B50,Formulacion!$A:$BE,MATCH(AE$1,Formulacion!$1:$1,0),FALSE)="NA",1,IF(Q50<=PostesMin,0,1)) -> 1 | AF50: =IF(VLOOKUP($B50,Formulacion!$A:$BE,MATCH(AF$1,Formulacion!$1:$1,0),FALSE)="NA",1,IF(R50<=INDIRECT(VLOOKUP(B50,Formulacion!$A:$BE,2,FALSE)),0,1)) -> 1 | AG50: 1 | AH50: 21497.35 | AI50: 1 | AJ50: =IF(VLOOKUP($B50,Formulacion!$A:$BE,MATCH(AJ$1,Formulacion!$1:$1,0),FALSE)="NA","NA",HLOOKUP(VLOOKUP($B50,Formulacion!$A:$BE,MATCH(AJ$1,Formulacion!$1:$1,0),FALSE),$Q:$Z,ROW(AJ50),FALSE)) -> NA | AK50: =IF(VLOOKUP($B50,Formulacion!$A:$BE,MATCH(AK$1,Formulacion!$1:$1,0),FALSE)="NA",1,VLOOKUP($B50,Formulacion!$A:$BE,MATCH(AK$1,Formulacion!$1:$1,0),FALSE)) -> 1 | AL50: =IF(VLOOKUP($B50,Formulacion!$A:$BE,MATCH(AL$1,Formulacion!$1:$1,0),FALSE)="NA",1,VLOOKUP($B50,Formulacion!$A:$BE,MATCH(AL$1,Formulacion!$1:$1,0),FALSE)) -> 1 | AM50: 1 | AN50: =IF(VLOOKUP($B50,Formulacion!$A:$BE,MATCH(AN$1,Formulacion!$1:$1,0),FALSE)="NA","NA",IF(D50=0,"",VLOOKUP($B50,Formulacion!$A:$BE,MATCH(AN$1,Formulacion!$1:$1,0),FALSE))) -> 02081106 | AO50: TRMB138T | AP50: 0075IP | AV50: NA | AW50: =IF(VLOOKUP($B50,Formulacion!$A:$BE,MATCH(AW$1,Formulacion!$1:$1,0),FALSE)="NA","NA",HLOOKUP(VLOOKUP($B50,Formulacion!$A:$BE,MATCH(AW$1,Formulacion!$1:$1,0),FALSE),$Q:$Z,ROW(AW50),FALSE)) -> 2 | AX50: NA | AY50: 1 | AZ50: =IF(VLOOKUP($B50,Formulacion!$A:$BE,MATCH(AZ$1,Formulacion!$1:$1,0),FALSE)="NA",1,VLOOKUP($B50,Formulacion!$A:$BE,MATCH(AZ$1,Formulacion!$1:$1,0),FALSE)) -> 0.9 | BA50: =IF(VLOOKUP($B50,Formulacion!$A:$BE,MATCH(BA$1,Formulacion!$1:$1,0),FALSE)="NA",1,VLOOKUP($B50,Formulacion!$A:$BE,MATCH(BA$1,Formulacion!$1:$1,0),FALSE)) -> 1 | BB50: 19347.615
A51: Edechi Proy con cta 2022 I | B51: DTRMB-13,8 | C51: GRALNVOSUMCALARQ | D51: DTRMB138T20150IP003 | E51: 2022-06-30 | F51: Chiriqui | H51: 53757.33 | I51: 23297.29 | K51: 0 | N51: 77146.27 | P51: 0 | Q51: =IF(OR(VLOOKUP($B51,Formulacion!$A:$BE,MATCH(Q$1,Formulacion!$1:$1,0),FALSE)="NA",$D51=0),"NA",IF($B51="DLABT",MID($D51,PosteInicioBT,PosteFinBT-PosteInicioBT+1)*1,MID($D51,PosteInicio,PosteFin-PosteInicio+1)*1)) -> NA | R51: =IF(OR(VLOOKUP($B51,Formulacion!$A:$BE,MATCH(R$1,Formulacion!$1:$1,0),FALSE)="NA",$D51=0),"NA",IF(OR($B51="DLABT",$B51="DLSBT"),MID($D51,CondInicioBT,CondFinBT-CondInicioBT+1)*1,MID($D51,CondInicio,CondFin-CondInicio+1)*1)) -> NA | S51: NA | T51: =IF(OR(VLOOKUP($B51,Formulacion!$A:$BE,MATCH(T$1,Formulacion!$1:$1,0),FALSE)="NA",$D51=0),"NA",IF($B51="DLSBT",MID($D51,ZanjaInicioBT,ZanjaFinBT-ZanjaInicioBT+1)*1,MID($D51,ZanjaInicio,ZanjaFin-ZanjaInicio+1)*1)) -> NA | U51: 1 | V51: =IF(OR(VLOOKUP($B51,Formulacion!$A:$BE,MATCH(V$1,Formulacion!$1:$1,0),FALSE)="NA",$D51=0),"NA",MID($D51,m2Inicio+INDIRECT(B51),m2Fin-m2Inicio+1)*1) -> NA | W51: =IF(OR(VLOOKUP($B51,Formulacion!$A:$BE,MATCH(W$1,Formulacion!$1:$1,0),FALSE)="NA",$D51=0),"NA",RIGHT($D51,4)*1) -> NA | X51: =IF(OR(VLOOKUP($B51,Formulacion!$A:$BE,MATCH(X$1,Formulacion!$1:$1,0),FALSE)="NA",$D51=0),"NA",RIGHT($D51,3)*1) -> 3 | Y51: 1 | Z51: =IF(VLOOKUP($B51,Formulacion!$A:$BE,MATCH(Z$1,Formulacion!$1:$1,0),FALSE)="NA",1,IF(V51<=m2Min,0,1)) -> 1 | AA51: =IF(VLOOKUP($B51,Formulacion!$A:$BE,MATCH(AA$1,Formulacion!$1:$1,0),FALSE)="NA",1,IF(OR(E51<=FechaMin,E51>FechaMax),0,1)) -> 1 | AB51: =IF(VLOOKUP($B51,Formulacion!$A:$BE,MATCH(AB$1,Formulacion!$1:$1,0),FALSE)="NA",1,IF(H51<=MaterialesMin,0,1)) -> 1 | AC51: =IF(VLOOKUP($B51,Formulacion!$A:$BE,MATCH(AC$1,Formulacion!$1:$1,0),FALSE)="NA",1,IF(N51=0,0,IF(OR(I51/N51<=MObraMin,I51/N51>=MObraMax),MDOmin,1))) -> 1 | AD51: =IF(VLOOKUP($B51,Formulacion!$A:$BE,MATCH(AD$1,Formulacion!$1:$1,0),FALSE)="NA",1,IF(N51<=CostoTotalMin,0,1)) -> 1 | AE51: =IF(VLOOKUP($B51,Formulacion!$A:$BE,MATCH(AE$1,Formulacion!$1:$1,0),FALSE)="NA",1,IF(Q51<=PostesMin,0,1)) -> 1 | AF51: =IF(VLOOKUP($B51,Formulacion!$A:$BE,MATCH(AF$1,Formulacion!$1:$1,0),FALSE)="NA",1,IF(R51<=INDIRECT(VLOOKUP(B51,Formulacion!$A:$BE,2,FALSE)),0,1)) -> 1 | AG51: 1 | AH51: 77146.27 | AI51: 1 | AJ51: =IF(VLOOKUP($B51,Formulacion!$A:$BE,MATCH(AJ$1,Formulacion!$1:$1,0),FALSE)="NA","NA",HLOOKUP(VLOOKUP($B51,Formulacion!$A:$BE,MATCH(AJ$1,Formulacion!$1:$1,0),FALSE),$Q:$Z,ROW(AJ51),FALSE)) -> NA | AK51: =IF(VLOOKUP($B51,Formulacion!$A:$BE,MATCH(AK$1,Formulacion!$1:$1,0),FALSE)="NA",1,VLOOKUP($B51,Formulacion!$A:$BE,MATCH(AK$1,Formulacion!$1:$1,0),FALSE)) -> 1 | AL51: =IF(VLOOKUP($B51,Formulacion!$A:$BE,MATCH(AL$1,Formulacion!$1:$1,0),FALSE)="NA",1,VLOOKUP($B51,Formulacion!$A:$BE,MATCH(AL$1,Formulacion!$1:$1,0),FALSE)) -> 1 | AM51: 1 | AN51: =IF(VLOOKUP($B51,Formulacion!$A:$BE,MATCH(AN$1,Formulacion!$1:$1,0),FALSE)="NA","NA",IF(D51=0,"",VLOOKUP($B51,Formulacion!$A:$BE,MATCH(AN$1,Formulacion!$1:$1,0),FALSE))) -> 02081106 | AO51: TRMB138T | AP51: 0150IP | AV51: NA | AW51: =IF(VLOOKUP($B51,Formulacion!$A:$BE,MATCH(AW$1,Formulacion!$1:$1,0),FALSE)="NA","NA",HLOOKUP(VLOOKUP($B51,Formulacion!$A:$BE,MATCH(AW$1,Formulacion!$1:$1,0),FALSE),$Q:$Z,ROW(AW51),FALSE)) -> 3 | AX51: NA | AY51: 1 | AZ51: =IF(VLOOKUP($B51,Formulacion!$A:$BE,MATCH(AZ$1,Formulacion!$1:$1,0),FALSE)="NA",1,VLOOKUP($B51,Formulacion!$A:$BE,MATCH(AZ$1,Formulacion!$1:$1,0),FALSE)) -> 0.9 | BA51: =IF(VLOOKUP($B51,Formulacion!$A:$BE,MATCH(BA$1,Formulacion!$1:$1,0),FALSE)="NA",1,VLOOKUP($B51,Formulacion!$A:$BE,MATCH(BA$1,Formulacion!$1:$1,0),FALSE)) -> 1 | BB51: 69431.643
A52: Edechi Proy con cta 2022 I | B52: DTRMB-13,8 | C52: GRALNVOSUMCALARQ | D52: DTRMB138T30225IP001 | E52: 2022-06-30 | F52: Chiriqui | H52: 15746.18 | I52: 6824.06 | K52: 0 | N52: 22597.09 | P52: 0 | Q52: =IF(OR(VLOOKUP($B52,Formulacion!$A:$BE,MATCH(Q$1,Formulacion!$1:$1,0),FALSE)="NA",$D52=0),"NA",IF($B52="DLABT",MID($D52,PosteInicioBT,PosteFinBT-PosteInicioBT+1)*1,MID($D52,PosteInicio,PosteFin-PosteInicio+1)*1)) -> NA | R52: =IF(OR(VLOOKUP($B52,Formulacion!$A:$BE,MATCH(R$1,Formulacion!$1:$1,0),FALSE)="NA",$D52=0),"NA",IF(OR($B52="DLABT",$B52="DLSBT"),MID($D52,CondInicioBT,CondFinBT-CondInicioBT+1)*1,MID($D52,CondInicio,CondFin-CondInicio+1)*1)) -> NA | S52: NA | T52: =IF(OR(VLOOKUP($B52,Formulacion!$A:$BE,MATCH(T$1,Formulacion!$1:$1,0),FALSE)="NA",$D52=0),"NA",IF($B52="DLSBT",MID($D52,ZanjaInicioBT,ZanjaFinBT-ZanjaInicioBT+1)*1,MID($D52,ZanjaInicio,ZanjaFin-ZanjaInicio+1)*1)) -> NA | U52: 1 | V52: =IF(OR(VLOOKUP($B52,Formulacion!$A:$BE,MATCH(V$1,Formulacion!$1:$1,0),FALSE)="NA",$D52=0),"NA",MID($D52,m2Inicio+INDIRECT(B52),m2Fin-m2Inicio+1)*1) -> NA | W52: =IF(OR(VLOOKUP($B52,Formulacion!$A:$BE,MATCH(W$1,Formulacion!$1:$1,0),FALSE)="NA",$D52=0),"NA",RIGHT($D52,4)*1) -> NA | X52: =IF(OR(VLOOKUP($B52,Formulacion!$A:$BE,MATCH(X$1,Formulacion!$1:$1,0),FALSE)="NA",$D52=0),"NA",RIGHT($D52,3)*1) -> 1 | Y52: 1 | Z52: =IF(VLOOKUP($B52,Formulacion!$A:$BE,MATCH(Z$1,Formulacion!$1:$1,0),FALSE)="NA",1,IF(V52<=m2Min,0,1)) -> 1 | AA52: =IF(VLOOKUP($B52,Formulacion!$A:$BE,MATCH(AA$1,Formulacion!$1:$1,0),FALSE)="NA",1,IF(OR(E52<=FechaMin,E52>FechaMax),0,1)) -> 1 | AB52: =IF(VLOOKUP($B52,Formulacion!$A:$BE,MATCH(AB$1,Formulacion!$1:$1,0),FALSE)="NA",1,IF(H52<=MaterialesMin,0,1)) -> 1 | AC52: =IF(VLOOKUP($B52,Formulacion!$A:$BE,MATCH(AC$1,Formulacion!$1:$1,0),FALSE)="NA",1,IF(N52=0,0,IF(OR(I52/N52<=MObraMin,I52/N52>=MObraMax),MDOmin,1))) -> 1 | AD52: =IF(VLOOKUP($B52,Formulacion!$A:$BE,MATCH(AD$1,Formulacion!$1:$1,0),FALSE)="NA",1,IF(N52<=CostoTotalMin,0,1)) -> 1 | AE52: =IF(VLOOKUP($B52,Formulacion!$A:$BE,MATCH(AE$1,Formulacion!$1:$1,0),FALSE)="NA",1,IF(Q52<=PostesMin,0,1)) -> 1 | AF52: =IF(VLOOKUP($B52,Formulacion!$A:$BE,MATCH(AF$1,Formulacion!$1:$1,0),FALSE)="NA",1,IF(R52<=INDIRECT(VLOOKUP(B52,Formulacion!$A:$BE,2,FALSE)),0,1)) -> 1 | AG52: 1 | AH52: 22597.09 | AI52: 1 | AJ52: =IF(VLOOKUP($B52,Formulacion!$A:$BE,MATCH(AJ$1,Formulacion!$1:$1,0),FALSE)="NA","NA",HLOOKUP(VLOOKUP($B52,Formulacion!$A:$BE,MATCH(AJ$1,Formulacion!$1:$1,0),FALSE),$Q:$Z,ROW(AJ52),FALSE)) -> NA | AK52: =IF(VLOOKUP($B52,Formulacion!$A:$BE,MATCH(AK$1,Formulacion!$1:$1,0),FALSE)="NA",1,VLOOKUP($B52,Formulacion!$A:$BE,MATCH(AK$1,Formulacion!$1:$1,0),FALSE)) -> 1 | AL52: =IF(VLOOKUP($B52,Formulacion!$A:$BE,MATCH(AL$1,Formulacion!$1:$1,0),FALSE)="NA",1,VLOOKUP($B52,Formulacion!$A:$BE,MATCH(AL$1,Formulacion!$1:$1,0),FALSE)) -> 1 | AM52: 1 | AN52: =IF(VLOOKUP($B52,Formulacion!$A:$BE,MATCH(AN$1,Formulacion!$1:$1,0),FALSE)="NA","NA",IF(D52=0,"",VLOOKUP($B52,Formulacion!$A:$BE,MATCH(AN$1,Formulacion!$1:$1,0),FALSE))) -> 02081106 | AO52: TRMB138T | AP52: 0225IP | AV52: NA | AW52: =IF(VLOOKUP($B52,Formulacion!$A:$BE,MATCH(AW$1,Formulacion!$1:$1,0),FALSE)="NA","NA",HLOOKUP(VLOOKUP($B52,Formulacion!$A:$BE,MATCH(AW$1,Formulacion!$1:$1,0),FALSE),$Q:$Z,ROW(AW52),FALSE)) -> 1 | AX52: NA | AY52: 1 | AZ52: =IF(VLOOKUP($B52,Formulacion!$A:$BE,MATCH(AZ$1,Formulacion!$1:$1,0),FALSE)="NA",1,VLOOKUP($B52,Formulacion!$A:$BE,MATCH(AZ$1,Formulacion!$1:$1,0),FALSE)) -> 0.9 | BA52: =IF(VLOOKUP($B52,Formulacion!$A:$BE,MATCH(BA$1,Formulacion!$1:$1,0),FALSE)="NA",1,VLOOKUP($B52,Formulacion!$A:$BE,MATCH(BA$1,Formulacion!$1:$1,0),FALSE)) -> 1 | BB52: 20337.381
A53: Edechi Proy con cta 2022 I | B53: DTRMB-13,8 | C53: GRALNVOSUMCALARQ | D53: DTRMB138T10300IG000 | E53: 2022-06-30 | F53: Chiriqui | H53: 25361.3 | I53: 10991.05 | K53: 0 | N53: 36395.59 | P53: 0 | Q53: =IF(OR(VLOOKUP($B53,Formulacion!$A:$BE,MATCH(Q$1,Formulacion!$1:$1,0),FALSE)="NA",$D53=0),"NA",IF($B53="DLABT",MID($D53,PosteInicioBT,PosteFinBT-PosteInicioBT+1)*1,MID($D53,PosteInicio,PosteFin-PosteInicio+1)*1)) -> NA | R53: =IF(OR(VLOOKUP($B53,Formulacion!$A:$BE,MATCH(R$1,Formulacion!$1:$1,0),FALSE)="NA",$D53=0),"NA",IF(OR($B53="DLABT",$B53="DLSBT"),MID($D53,CondInicioBT,CondFinBT-CondInicioBT+1)*1,MID($D53,CondInicio,CondFin-CondInicio+1)*1)) -> NA | S53: NA | T53: =IF(OR(VLOOKUP($B53,Formulacion!$A:$BE,MATCH(T$1,Formulacion!$1:$1,0),FALSE)="NA",$D53=0),"NA",IF($B53="DLSBT",MID($D53,ZanjaInicioBT,ZanjaFinBT-ZanjaInicioBT+1)*1,MID($D53,ZanjaInicio,ZanjaFin-ZanjaInicio+1)*1)) -> NA | U53: 1 | V53: =IF(OR(VLOOKUP($B53,Formulacion!$A:$BE,MATCH(V$1,Formulacion!$1:$1,0),FALSE)="NA",$D53=0),"NA",MID($D53,m2Inicio+INDIRECT(B53),m2Fin-m2Inicio+1)*1) -> NA | W53: =IF(OR(VLOOKUP($B53,Formulacion!$A:$BE,MATCH(W$1,Formulacion!$1:$1,0),FALSE)="NA",$D53=0),"NA",RIGHT($D53,4)*1) -> NA | X53: =IF(OR(VLOOKUP($B53,Formulacion!$A:$BE,MATCH(X$1,Formulacion!$1:$1,0),FALSE)="NA",$D53=0),"NA",RIGHT($D53,3)*1) -> 0 | Y53: 0 | Z53: =IF(VLOOKUP($B53,Formulacion!$A:$BE,MATCH(Z$1,Formulacion!$1:$1,0),FALSE)="NA",1,IF(V53<=m2Min,0,1)) -> 1 | AA53: =IF(VLOOKUP($B53,Formulacion!$A:$BE,MATCH(AA$1,Formulacion!$1:$1,0),FALSE)="NA",1,IF(OR(E53<=FechaMin,E53>FechaMax),0,1)) -> 1 | AB53: =IF(VLOOKUP($B53,Formulacion!$A:$BE,MATCH(AB$1,Formulacion!$1:$1,0),FALSE)="NA",1,IF(H53<=MaterialesMin,0,1)) -> 1 | AC53: =IF(VLOOKUP($B53,Formulacion!$A:$BE,MATCH(AC$1,Formulacion!$1:$1,0),FALSE)="NA",1,IF(N53=0,0,IF(OR(I53/N53<=MObraMin,I53/N53>=MObraMax),MDOmin,1))) -> 1 | AD53: =IF(VLOOKUP($B53,Formulacion!$A:$BE,MATCH(AD$1,Formulacion!$1:$1,0),FALSE)="NA",1,IF(N53<=CostoTotalMin,0,1)) -> 1 | AE53: =IF(VLOOKUP($B53,Formulacion!$A:$BE,MATCH(AE$1,Formulacion!$1:$1,0),FALSE)="NA",1,IF(Q53<=PostesMin,0,1)) -> 1 | AF53: =IF(VLOOKUP($B53,Formulacion!$A:$BE,MATCH(AF$1,Formulacion!$1:$1,0),FALSE)="NA",1,IF(R53<=INDIRECT(VLOOKUP(B53,Formulacion!$A:$BE,2,FALSE)),0,1)) -> 1 | AG53: 0 | AH53: 0 | AI53: 1 | AJ53: =IF(VLOOKUP($B53,Formulacion!$A:$BE,MATCH(AJ$1,Formulacion!$1:$1,0),FALSE)="NA","NA",HLOOKUP(VLOOKUP($B53,Formulacion!$A:$BE,MATCH(AJ$1,Formulacion!$1:$1,0),FALSE),$Q:$Z,ROW(AJ53),FALSE)) -> NA | AK53: =IF(VLOOKUP($B53,Formulacion!$A:$BE,MATCH(AK$1,Formulacion!$1:$1,0),FALSE)="NA",1,VLOOKUP($B53,Formulacion!$A:$BE,MATCH(AK$1,Formulacion!$1:$1,0),FALSE)) -> 1 | AL53: =IF(VLOOKUP($B53,Formulacion!$A:$BE,MATCH(AL$1,Formulacion!$1:$1,0),FALSE)="NA",1,VLOOKUP($B53,Formulacion!$A:$BE,MATCH(AL$1,Formulacion!$1:$1,0),FALSE)) -> 1 | AM53: 1 | AN53: =IF(VLOOKUP($B53,Formulacion!$A:$BE,MATCH(AN$1,Formulacion!$1:$1,0),FALSE)="NA","NA",IF(D53=0,"",VLOOKUP($B53,Formulacion!$A:$BE,MATCH(AN$1,Formulacion!$1:$1,0),FALSE))) -> 02081106 | AO53: TRMB138T | AP53: 0300IG | AV53: NA | AW53: =IF(VLOOKUP($B53,Formulacion!$A:$BE,MATCH(AW$1,Formulacion!$1:$1,0),FALSE)="NA","NA",HLOOKUP(VLOOKUP($B53,Formulacion!$A:$BE,MATCH(AW$1,Formulacion!$1:$1,0),FALSE),$Q:$Z,ROW(AW53),FALSE)) -> 0 | AX53: NA | AY53: 1 | AZ53: =IF(VLOOKUP($B53,Formulacion!$A:$BE,MATCH(AZ$1,Formulacion!$1:$1,0),FALSE)="NA",1,VLOOKUP($B53,Formulacion!$A:$BE,MATCH(AZ$1,Formulacion!$1:$1,0),FALSE)) -> 0.9 | BA53: =IF(VLOOKUP($B53,Formulacion!$A:$BE,MATCH(BA$1,Formulacion!$1:$1,0),FALSE)="NA",1,VLOOKUP($B53,Formulacion!$A:$BE,MATCH(BA$1,Formulacion!$1:$1,0),FALSE)) -> 1 | BB53: 0
A54: Edechi Proy con cta 2022 I | B54: DTRMB-13,8 | C54: GRALNVOSUMCALARQ | D54: DTRMB138T10750IG001 | E54: 2022-06-30 | F54: Chiriqui | H54: 47212.64 | I54: 20460.96 | K54: 0 | N54: 67754.09 | P54: 0 | Q54: =IF(OR(VLOOKUP($B54,Formulacion!$A:$BE,MATCH(Q$1,Formulacion!$1:$1,0),FALSE)="NA",$D54=0),"NA",IF($B54="DLABT",MID($D54,PosteInicioBT,PosteFinBT-PosteInicioBT+1)*1,MID($D54,PosteInicio,PosteFin-PosteInicio+1)*1)) -> NA | R54: =IF(OR(VLOOKUP($B54,Formulacion!$A:$BE,MATCH(R$1,Formulacion!$1:$1,0),FALSE)="NA",$D54=0),"NA",IF(OR($B54="DLABT",$B54="DLSBT"),MID($D54,CondInicioBT,CondFinBT-CondInicioBT+1)*1,MID($D54,CondInicio,CondFin-CondInicio+1)*1)) -> NA | S54: NA | T54: =IF(OR(VLOOKUP($B54,Formulacion!$A:$BE,MATCH(T$1,Formulacion!$1:$1,0),FALSE)="NA",$D54=0),"NA",IF($B54="DLSBT",MID($D54,ZanjaInicioBT,ZanjaFinBT-ZanjaInicioBT+1)*1,MID($D54,ZanjaInicio,ZanjaFin-ZanjaInicio+1)*1)) -> NA | U54: 1 | V54: =IF(OR(VLOOKUP($B54,Formulacion!$A:$BE,MATCH(V$1,Formulacion!$1:$1,0),FALSE)="NA",$D54=0),"NA",MID($D54,m2Inicio+INDIRECT(B54),m2Fin-m2Inicio+1)*1) -> NA | W54: =IF(OR(VLOOKUP($B54,Formulacion!$A:$BE,MATCH(W$1,Formulacion!$1:$1,0),FALSE)="NA",$D54=0),"NA",RIGHT($D54,4)*1) -> NA | X54: =IF(OR(VLOOKUP($B54,Formulacion!$A:$BE,MATCH(X$1,Formulacion!$1:$1,0),FALSE)="NA",$D54=0),"NA",RIGHT($D54,3)*1) -> 1 | Y54: 1 | Z54: =IF(VLOOKUP($B54,Formulacion!$A:$BE,MATCH(Z$1,Formulacion!$1:$1,0),FALSE)="NA",1,IF(V54<=m2Min,0,1)) -> 1 | AA54: =IF(VLOOKUP($B54,Formulacion!$A:$BE,MATCH(AA$1,Formulacion!$1:$1,0),FALSE)="NA",1,IF(OR(E54<=FechaMin,E54>FechaMax),0,1)) -> 1 | AB54: =IF(VLOOKUP($B54,Formulacion!$A:$BE,MATCH(AB$1,Formulacion!$1:$1,0),FALSE)="NA",1,IF(H54<=MaterialesMin,0,1)) -> 1 | AC54: =IF(VLOOKUP($B54,Formulacion!$A:$BE,MATCH(AC$1,Formulacion!$1:$1,0),FALSE)="NA",1,IF(N54=0,0,IF(OR(I54/N54<=MObraMin,I54/N54>=MObraMax),MDOmin,1))) -> 1 | AD54: =IF(VLOOKUP($B54,Formulacion!$A:$BE,MATCH(AD$1,Formulacion!$1:$1,0),FALSE)="NA",1,IF(N54<=CostoTotalMin,0,1)) -> 1 | AE54: =IF(VLOOKUP($B54,Formulacion!$A:$BE,MATCH(AE$1,Formulacion!$1:$1,0),FALSE)="NA",1,IF(Q54<=PostesMin,0,1)) -> 1 | AF54: =IF(VLOOKUP($B54,Formulacion!$A:$BE,MATCH(AF$1,Formulacion!$1:$1,0),FALSE)="NA",1,IF(R54<=INDIRECT(VLOOKUP(B54,Formulacion!$A:$BE,2,FALSE)),0,1)) -> 1 | AG54: 1 | AH54: 67754.09 | AI54: 1 | AJ54: =IF(VLOOKUP($B54,Formulacion!$A:$BE,MATCH(AJ$1,Formulacion!$1:$1,0),FALSE)="NA","NA",HLOOKUP(VLOOKUP($B54,Formulacion!$A:$BE,MATCH(AJ$1,Formulacion!$1:$1,0),FALSE),$Q:$Z,ROW(AJ54),FALSE)) -> NA | AK54: =IF(VLOOKUP($B54,Formulacion!$A:$BE,MATCH(AK$1,Formulacion!$1:$1,0),FALSE)="NA",1,VLOOKUP($B54,Formulacion!$A:$BE,MATCH(AK$1,Formulacion!$1:$1,0),FALSE)) -> 1 | AL54: =IF(VLOOKUP($B54,Formulacion!$A:$BE,MATCH(AL$1,Formulacion!$1:$1,0),FALSE)="NA",1,VLOOKUP($B54,Formulacion!$A:$BE,MATCH(AL$1,Formulacion!$1:$1,0),FALSE)) -> 1 | AM54: 1 | AN54: =IF(VLOOKUP($B54,Formulacion!$A:$BE,MATCH(AN$1,Formulacion!$1:$1,0),FALSE)="NA","NA",IF(D54=0,"",VLOOKUP($B54,Formulacion!$A:$BE,MATCH(AN$1,Formulacion!$1:$1,0),FALSE))) -> 02081106 | AO54: TRMB138T | AP54: 0750IG | AV54: NA | AW54: =IF(VLOOKUP($B54,Formulacion!$A:$BE,MATCH(AW$1,Formulacion!$1:$1,0),FALSE)="NA","NA",HLOOKUP(VLOOKUP($B54,Formulacion!$A:$BE,MATCH(AW$1,Formulacion!$1:$1,0),FALSE),$Q:$Z,ROW(AW54),FALSE)) -> 1 | AX54: NA | AY54: 1 | AZ54: =IF(VLOOKUP($B54,Formulacion!$A:$BE,MATCH(AZ$1,Formulacion!$1:$1,0),FALSE)="NA",1,VLOOKUP($B54,Formulacion!$A:$BE,MATCH(AZ$1,Formulacion!$1:$1,0),FALSE)) -> 0.9 | BA54: =IF(VLOOKUP($B54,Formulacion!$A:$BE,MATCH(BA$1,Formulacion!$1:$1,0),FALSE)="NA",1,VLOOKUP($B54,Formulacion!$A:$BE,MATCH(BA$1,Formulacion!$1:$1,0),FALSE)) -> 1 | BB54: 60978.681
A55: Edechi Proy con cta 2022 I | B55: DTRMB-34,5 | C55: GRALNVOSUMCALARQ | D55: DTRMB345M10010IP055 | E55: 2022-06-30 | F55: Chiriqui | H55: 189847.31 | I55: 73790.8 | K55: 0 | N55: 265159.07 | P55: 0 | Q55: =IF(OR(VLOOKUP($B55,Formulacion!$A:$BE,MATCH(Q$1,Formulacion!$1:$1,0),FALSE)="NA",$D55=0),"NA",IF($B55="DLABT",MID($D55,PosteInicioBT,PosteFinBT-PosteInicioBT+1)*1,MID($D55,PosteInicio,PosteFin-PosteInicio+1)*1)) -> NA | R55: =IF(OR(VLOOKUP($B55,Formulacion!$A:$BE,MATCH(R$1,Formulacion!$1:$1,0),FALSE)="NA",$D55=0),"NA",IF(OR($B55="DLABT",$B55="DLSBT"),MID($D55,CondInicioBT,CondFinBT-CondInicioBT+1)*1,MID($D55,CondInicio,CondFin-CondInicio+1)*1)) -> NA | S55: NA | T55: =IF(OR(VLOOKUP($B55,Formulacion!$A:$BE,MATCH(T$1,Formulacion!$1:$1,0),FALSE)="NA",$D55=0),"NA",IF($B55="DLSBT",MID($D55,ZanjaInicioBT,ZanjaFinBT-ZanjaInicioBT+1)*1,MID($D55,ZanjaInicio,ZanjaFin-ZanjaInicio+1)*1)) -> NA | U55: 1 | V55: =IF(OR(VLOOKUP($B55,Formulacion!$A:$BE,MATCH(V$1,Formulacion!$1:$1,0),FALSE)="NA",$D55=0),"NA",MID($D55,m2Inicio+INDIRECT(B55),m2Fin-m2Inicio+1)*1) -> NA | W55: =IF(OR(VLOOKUP($B55,Formulacion!$A:$BE,MATCH(W$1,Formulacion!$1:$1,0),FALSE)="NA",$D55=0),"NA",RIGHT($D55,4)*1) -> NA | X55: =IF(OR(VLOOKUP($B55,Formulacion!$A:$BE,MATCH(X$1,Formulacion!$1:$1,0),FALSE)="NA",$D55=0),"NA",RIGHT($D55,3)*1) -> 55 | Y55: 1 | Z55: =IF(VLOOKUP($B55,Formulacion!$A:$BE,MATCH(Z$1,Formulacion!$1:$1,0),FALSE)="NA",1,IF(V55<=m2Min,0,1)) -> 1 | AA55: =IF(VLOOKUP($B55,Formulacion!$A:$BE,MATCH(AA$1,Formulacion!$1:$1,0),FALSE)="NA",1,IF(OR(E55<=FechaMin,E55>FechaMax),0,1)) -> 1 | AB55: =IF(VLOOKUP($B55,Formulacion!$A:$BE,MATCH(AB$1,Formulacion!$1:$1,0),FALSE)="NA",1,IF(H55<=MaterialesMin,0,1)) -> 1 | AC55: =IF(VLOOKUP($B55,Formulacion!$A:$BE,MATCH(AC$1,Formulacion!$1:$1,0),FALSE)="NA",1,IF(N55=0,0,IF(OR(I55/N55<=MObraMin,I55/N55>=MObraMax),MDOmin,1))) -> 1 | AD55: =IF(VLOOKUP($B55,Formulacion!$A:$BE,MATCH(AD$1,Formulacion!$1:$1,0),FALSE)="NA",1,IF(N55<=CostoTotalMin,0,1)) -> 1 | AE55: =IF(VLOOKUP($B55,Formulacion!$A:$BE,MATCH(AE$1,Formulacion!$1:$1,0),FALSE)="NA",1,IF(Q55<=PostesMin,0,1)) -> 1 | AF55: =IF(VLOOKUP($B55,Formulacion!$A:$BE,MATCH(AF$1,Formulacion!$1:$1,0),FALSE)="NA",1,IF(R55<=INDIRECT(VLOOKUP(B55,Formulacion!$A:$BE,2,FALSE)),0,1)) -> 1 | AG55: 1 | AH55: 265159.07 | AI55: 1 | AJ55: =IF(VLOOKUP($B55,Formulacion!$A:$BE,MATCH(AJ$1,Formulacion!$1:$1,0),FALSE)="NA","NA",HLOOKUP(VLOOKUP($B55,Formulacion!$A:$BE,MATCH(AJ$1,Formulacion!$1:$1,0),FALSE),$Q:$Z,ROW(AJ55),FALSE)) -> NA | AK55: =IF(VLOOKUP($B55,Formulacion!$A:$BE,MATCH(AK$1,Formulacion!$1:$1,0),FALSE)="NA",1,VLOOKUP($B55,Formulacion!$A:$BE,MATCH(AK$1,Formulacion!$1:$1,0),FALSE)) -> 1 | AL55: =IF(VLOOKUP($B55,Formulacion!$A:$BE,MATCH(AL$1,Formulacion!$1:$1,0),FALSE)="NA",1,VLOOKUP($B55,Formulacion!$A:$BE,MATCH(AL$1,Formulacion!$1:$1,0),FALSE)) -> 1 | AM55: 1 | AN55: =IF(VLOOKUP($B55,Formulacion!$A:$BE,MATCH(AN$1,Formulacion!$1:$1,0),FALSE)="NA","NA",IF(D55=0,"",VLOOKUP($B55,Formulacion!$A:$BE,MATCH(AN$1,Formulacion!$1:$1,0),FALSE))) -> 02081106 | AO55: TRMB345M | AP55: 0010IP | AV55: NA | AW55: =IF(VLOOKUP($B55,Formulacion!$A:$BE,MATCH(AW$1,Formulacion!$1:$1,0),FALSE)="NA","NA",HLOOKUP(VLOOKUP($B55,Formulacion!$A:$BE,MATCH(AW$1,Formulacion!$1:$1,0),FALSE),$Q:$Z,ROW(AW55),FALSE)) -> 55 | AX55: NA | AY55: 1 | AZ55: =IF(VLOOKUP($B55,Formulacion!$A:$BE,MATCH(AZ$1,Formulacion!$1:$1,0),FALSE)="NA",1,VLOOKUP($B55,Formulacion!$A:$BE,MATCH(AZ$1,Formulacion!$1:$1,0),FALSE)) -> 0.9 | BA55: =IF(VLOOKUP($B55,Formulacion!$A:$BE,MATCH(BA$1,Formulacion!$1:$1,0),FALSE)="NA",1,VLOOKUP($B55,Formulacion!$A:$BE,MATCH(BA$1,Formulacion!$1:$1,0),FALSE)) -> 1 | BB55: 238643.163
A56: Edechi Proy con cta 2022 I | B56: DTRMB-34,5 | C56: GRALNVOSUMCALARQ | D56: DTRMB345M10025IP043 | E56: 2022-06-30 | F56: Chiriqui | H56: 170156.2 | I56: 66137.16 | K56: 0 | N56: 237656.56 | P56: 0 | Q56: =IF(OR(VLOOKUP($B56,Formulacion!$A:$BE,MATCH(Q$1,Formulacion!$1:$1,0),FALSE)="NA",$D56=0),"NA",IF($B56="DLABT",MID($D56,PosteInicioBT,PosteFinBT-PosteInicioBT+1)*1,MID($D56,PosteInicio,PosteFin-PosteInicio+1)*1)) -> NA | R56: =IF(OR(VLOOKUP($B56,Formulacion!$A:$BE,MATCH(R$1,Formulacion!$1:$1,0),FALSE)="NA",$D56=0),"NA",IF(OR($B56="DLABT",$B56="DLSBT"),MID($D56,CondInicioBT,CondFinBT-CondInicioBT+1)*1,MID($D56,CondInicio,CondFin-CondInicio+1)*1)) -> NA | S56: NA | T56: =IF(OR(VLOOKUP($B56,Formulacion!$A:$BE,MATCH(T$1,Formulacion!$1:$1,0),FALSE)="NA",$D56=0),"NA",IF($B56="DLSBT",MID($D56,ZanjaInicioBT,ZanjaFinBT-ZanjaInicioBT+1)*1,MID($D56,ZanjaInicio,ZanjaFin-ZanjaInicio+1)*1)) -> NA | U56: 1 | V56: =IF(OR(VLOOKUP($B56,Formulacion!$A:$BE,MATCH(V$1,Formulacion!$1:$1,0),FALSE)="NA",$D56=0),"NA",MID($D56,m2Inicio+INDIRECT(B56),m2Fin-m2Inicio+1)*1) -> NA | W56: =IF(OR(VLOOKUP($B56,Formulacion!$A:$BE,MATCH(W$1,Formulacion!$1:$1,0),FALSE)="NA",$D56=0),"NA",RIGHT($D56,4)*1) -> NA | X56: =IF(OR(VLOOKUP($B56,Formulacion!$A:$BE,MATCH(X$1,Formulacion!$1:$1,0),FALSE)="NA",$D56=0),"NA",RIGHT($D56,3)*1) -> 43 | Y56: 1 | Z56: =IF(VLOOKUP($B56,Formulacion!$A:$BE,MATCH(Z$1,Formulacion!$1:$1,0),FALSE)="NA",1,IF(V56<=m2Min,0,1)) -> 1 | AA56: =IF(VLOOKUP($B56,Formulacion!$A:$BE,MATCH(AA$1,Formulacion!$1:$1,0),FALSE)="NA",1,IF(OR(E56<=FechaMin,E56>FechaMax),0,1)) -> 1 | AB56: =IF(VLOOKUP($B56,Formulacion!$A:$BE,MATCH(AB$1,Formulacion!$1:$1,0),FALSE)="NA",1,IF(H56<=MaterialesMin,0,1)) -> 1 | AC56: =IF(VLOOKUP($B56,Formulacion!$A:$BE,MATCH(AC$1,Formulacion!$1:$1,0),FALSE)="NA",1,IF(N56=0,0,IF(OR(I56/N56<=MObraMin,I56/N56>=MObraMax),MDOmin,1))) -> 1 | AD56: =IF(VLOOKUP($B56,Formulacion!$A:$BE,MATCH(AD$1,Formulacion!$1:$1,0),FALSE)="NA",1,IF(N56<=CostoTotalMin,0,1)) -> 1 | AE56: =IF(VLOOKUP($B56,Formulacion!$A:$BE,MATCH(AE$1,Formulacion!$1:$1,0),FALSE)="NA",1,IF(Q56<=PostesMin,0,1)) -> 1 | AF56: =IF(VLOOKUP($B56,Formulacion!$A:$BE,MATCH(AF$1,Formulacion!$1:$1,0),FALSE)="NA",1,IF(R56<=INDIRECT(VLOOKUP(B56,Formulacion!$A:$BE,2,FALSE)),0,1)) -> 1 | AG56: 1 | AH56: 237656.56 | AI56: 1 | AJ56: =IF(VLOOKUP($B56,Formulacion!$A:$BE,MATCH(AJ$1,Formulacion!$1:$1,0),FALSE)="NA","NA",HLOOKUP(VLOOKUP($B56,Formulacion!$A:$BE,MATCH(AJ$1,Formulacion!$1:$1,0),FALSE),$Q:$Z,ROW(AJ56),FALSE)) -> NA | AK56: =IF(VLOOKUP($B56,Formulacion!$A:$BE,MATCH(AK$1,Formulacion!$1:$1,0),FALSE)="NA",1,VLOOKUP($B56,Formulacion!$A:$BE,MATCH(AK$1,Formulacion!$1:$1,0),FALSE)) -> 1 | AL56: =IF(VLOOKUP($B56,Formulacion!$A:$BE,MATCH(AL$1,Formulacion!$1:$1,0),FALSE)="NA",1,VLOOKUP($B56,Formulacion!$A:$BE,MATCH(AL$1,Formulacion!$1:$1,0),FALSE)) -> 1 | AM56: 1 | AN56: =IF(VLOOKUP($B56,Formulacion!$A:$BE,MATCH(AN$1,Formulacion!$1:$1,0),FALSE)="NA","NA",IF(D56=0,"",VLOOKUP($B56,Formulacion!$A:$BE,MATCH(AN$1,Formulacion!$1:$1,0),FALSE))) -> 02081106 | AO56: TRMB345M | AP56: 0025IP | AV56: NA | AW56: =IF(VLOOKUP($B56,Formulacion!$A:$BE,MATCH(AW$1,Formulacion!$1:$1,0),FALSE)="NA","NA",HLOOKUP(VLOOKUP($B56,Formulacion!$A:$BE,MATCH(AW$1,Formulacion!$1:$1,0),FALSE),$Q:$Z,ROW(AW56),FALSE)) -> 43 | AX56: NA | AY56: 1 | AZ56: =IF(VLOOKUP($B56,Formulacion!$A:$BE,MATCH(AZ$1,Formulacion!$1:$1,0),FALSE)="NA",1,VLOOKUP($B56,Formulacion!$A:$BE,MATCH(AZ$1,Formulacion!$1:$1,0),FALSE)) -> 0.9 | BA56: =IF(VLOOKUP($B56,Formulacion!$A:$BE,MATCH(BA$1,Formulacion!$1:$1,0),FALSE)="NA",1,VLOOKUP($B56,Formulacion!$A:$BE,MATCH(BA$1,Formulacion!$1:$1,0),FALSE)) -> 1 | BB56: 213890.904
A57: Edechi Proy con cta 2022 I | B57: DTRMB-13,8 | C57: GRALNVOSUMCALARQ | D57: DTRMB138M10075IP048 | E57: 2022-06-30 | F57: Chiriqui | H57: 259683.13 | I57: 112541.15 | K57: 0 | N57: 372667 | P57: 0 | Q57: =IF(OR(VLOOKUP($B57,Formulacion!$A:$BE,MATCH(Q$1,Formulacion!$1:$1,0),FALSE)="NA",$D57=0),"NA",IF($B57="DLABT",MID($D57,PosteInicioBT,PosteFinBT-PosteInicioBT+1)*1,MID($D57,PosteInicio,PosteFin-PosteInicio+1)*1)) -> NA | R57: =IF(OR(VLOOKUP($B57,Formulacion!$A:$BE,MATCH(R$1,Formulacion!$1:$1,0),FALSE)="NA",$D57=0),"NA",IF(OR($B57="DLABT",$B57="DLSBT"),MID($D57,CondInicioBT,CondFinBT-CondInicioBT+1)*1,MID($D57,CondInicio,CondFin-CondInicio+1)*1)) -> NA | S57: NA | T57: =IF(OR(VLOOKUP($B57,Formulacion!$A:$BE,MATCH(T$1,Formulacion!$1:$1,0),FALSE)="NA",$D57=0),"NA",IF($B57="DLSBT",MID($D57,ZanjaInicioBT,ZanjaFinBT-ZanjaInicioBT+1)*1,MID($D57,ZanjaInicio,ZanjaFin-ZanjaInicio+1)*1)) -> NA | U57: 1 | V57: =IF(OR(VLOOKUP($B57,Formulacion!$A:$BE,MATCH(V$1,Formulacion!$1:$1,0),FALSE)="NA",$D57=0),"NA",MID($D57,m2Inicio+INDIRECT(B57),m2Fin-m2Inicio+1)*1) -> NA | W57: =IF(OR(VLOOKUP($B57,Formulacion!$A:$BE,MATCH(W$1,Formulacion!$1:$1,0),FALSE)="NA",$D57=0),"NA",RIGHT($D57,4)*1) -> NA | X57: =IF(OR(VLOOKUP($B57,Formulacion!$A:$BE,MATCH(X$1,Formulacion!$1:$1,0),FALSE)="NA",$D57=0),"NA",RIGHT($D57,3)*1) -> 48 | Y57: 1 | Z57: =IF(VLOOKUP($B57,Formulacion!$A:$BE,MATCH(Z$1,Formulacion!$1:$1,0),FALSE)="NA",1,IF(V57<=m2Min,0,1)) -> 1 | AA57: =IF(VLOOKUP($B57,Formulacion!$A:$BE,MATCH(AA$1,Formulacion!$1:$1,0),FALSE)="NA",1,IF(OR(E57<=FechaMin,E57>FechaMax),0,1)) -> 1 | AB57: =IF(VLOOKUP($B57,Formulacion!$A:$BE,MATCH(AB$1,Formulacion!$1:$1,0),FALSE)="NA",1,IF(H57<=MaterialesMin,0,1)) -> 1 | AC57: =IF(VLOOKUP($B57,Formulacion!$A:$BE,MATCH(AC$1,Formulacion!$1:$1,0),FALSE)="NA",1,IF(N57=0,0,IF(OR(I57/N57<=MObraMin,I57/N57>=MObraMax),MDOmin,1))) -> 1 | AD57: =IF(VLOOKUP($B57,Formulacion!$A:$BE,MATCH(AD$1,Formulacion!$1:$1,0),FALSE)="NA",1,IF(N57<=CostoTotalMin,0,1)) -> 1 | AE57: =IF(VLOOKUP($B57,Formulacion!$A:$BE,MATCH(AE$1,Formulacion!$1:$1,0),FALSE)="NA",1,IF(Q57<=PostesMin,0,1)) -> 1 | AF57: =IF(VLOOKUP($B57,Formulacion!$A:$BE,MATCH(AF$1,Formulacion!$1:$1,0),FALSE)="NA",1,IF(R57<=INDIRECT(VLOOKUP(B57,Formulacion!$A:$BE,2,FALSE)),0,1)) -> 1 | AG57: 1 | AH57: 372667 | AI57: 1 | AJ57: =IF(VLOOKUP($B57,Formulacion!$A:$BE,MATCH(AJ$1,Formulacion!$1:$1,0),FALSE)="NA","NA",HLOOKUP(VLOOKUP($B57,Formulacion!$A:$BE,MATCH(AJ$1,Formulacion!$1:$1,0),FALSE),$Q:$Z,ROW(AJ57),FALSE)) -> NA | AK57: =IF(VLOOKUP($B57,Formulacion!$A:$BE,MATCH(AK$1,Formulacion!$1:$1,0),FALSE)="NA",1,VLOOKUP($B57,Formulacion!$A:$BE,MATCH(AK$1,Formulacion!$1:$1,0),FALSE)) -> 1 | AL57: =IF(VLOOKUP($B57,Formulacion!$A:$BE,MATCH(AL$1,Formulacion!$1:$1,0),FALSE)="NA",1,VLOOKUP($B57,Formulacion!$A:$BE,MATCH(AL$1,Formulacion!$1:$1,0),FALSE)) -> 1 | AM57: 1 | AN57: =IF(VLOOKUP($B57,Formulacion!$A:$BE,MATCH(AN$1,Formulacion!$1:$1,0),FALSE)="NA","NA",IF(D57=0,"",VLOOKUP($B57,Formulacion!$A:$BE,MATCH(AN$1,Formulacion!$1:$1,0),FALSE))) -> 02081106 | AO57: TRMB138M | AP57: 0075IP | AV57: NA | AW57: =IF(VLOOKUP($B57,Formulacion!$A:$BE,MATCH(AW$1,Formulacion!$1:$1,0),FALSE)="NA","NA",HLOOKUP(VLOOKUP($B57,Formulacion!$A:$BE,MATCH(AW$1,Formulacion!$1:$1,0),FALSE),$Q:$Z,ROW(AW57),FALSE)) -> 48 | AX57: NA | AY57: 1 | AZ57: =IF(VLOOKUP($B57,Formulacion!$A:$BE,MATCH(AZ$1,Formulacion!$1:$1,0),FALSE)="NA",1,VLOOKUP($B57,Formulacion!$A:$BE,MATCH(AZ$1,Formulacion!$1:$1,0),FALSE)) -> 0.9 | BA57: =IF(VLOOKUP($B57,Formulacion!$A:$BE,MATCH(BA$1,Formulacion!$1:$1,0),FALSE)="NA",1,VLOOKUP($B57,Formulacion!$A:$BE,MATCH(BA$1,Formulacion!$1:$1,0),FALSE)) -> 1 | BB57: 335400.3
A58: Edechi Proy con cta 2022 I | B58: DTRMB-34,5 | C58: GRALNVOSUMCALARQ | D58: DTRMB345M10075IP010 | E58: 2022-06-30 | F58: Chiriqui | H58: 68455.75 | I58: 26607.72 | K58: 0 | N58: 95611.9 | P58: 0 | Q58: =IF(OR(VLOOKUP($B58,Formulacion!$A:$BE,MATCH(Q$1,Formulacion!$1:$1,0),FALSE)="NA",$D58=0),"NA",IF($B58="DLABT",MID($D58,PosteInicioBT,PosteFinBT-PosteInicioBT+1)*1,MID($D58,PosteInicio,PosteFin-PosteInicio+1)*1)) -> NA | R58: =IF(OR(VLOOKUP($B58,Formulacion!$A:$BE,MATCH(R$1,Formulacion!$1:$1,0),FALSE)="NA",$D58=0),"NA",IF(OR($B58="DLABT",$B58="DLSBT"),MID($D58,CondInicioBT,CondFinBT-CondInicioBT+1)*1,MID($D58,CondInicio,CondFin-CondInicio+1)*1)) -> NA | S58: NA | T58: =IF(OR(VLOOKUP($B58,Formulacion!$A:$BE,MATCH(T$1,Formulacion!$1:$1,0),FALSE)="NA",$D58=0),"NA",IF($B58="DLSBT",MID($D58,ZanjaInicioBT,ZanjaFinBT-ZanjaInicioBT+1)*1,MID($D58,ZanjaInicio,ZanjaFin-ZanjaInicio+1)*1)) -> NA | U58: 1 | V58: =IF(OR(VLOOKUP($B58,Formulacion!$A:$BE,MATCH(V$1,Formulacion!$1:$1,0),FALSE)="NA",$D58=0),"NA",MID($D58,m2Inicio+INDIRECT(B58),m2Fin-m2Inicio+1)*1) -> NA | W58: =IF(OR(VLOOKUP($B58,Formulacion!$A:$BE,MATCH(W$1,Formulacion!$1:$1,0),FALSE)="NA",$D58=0),"NA",RIGHT($D58,4)*1) -> NA | X58: =IF(OR(VLOOKUP($B58,Formulacion!$A:$BE,MATCH(X$1,Formulacion!$1:$1,0),FALSE)="NA",$D58=0),"NA",RIGHT($D58,3)*1) -> 10 | Y58: 1 | Z58: =IF(VLOOKUP($B58,Formulacion!$A:$BE,MATCH(Z$1,Formulacion!$1:$1,0),FALSE)="NA",1,IF(V58<=m2Min,0,1)) -> 1 | AA58: =IF(VLOOKUP($B58,Formulacion!$A:$BE,MATCH(AA$1,Formulacion!$1:$1,0),FALSE)="NA",1,IF(OR(E58<=FechaMin,E58>FechaMax),0,1)) -> 1 | AB58: =IF(VLOOKUP($B58,Formulacion!$A:$BE,MATCH(AB$1,Formulacion!$1:$1,0),FALSE)="NA",1,IF(H58<=MaterialesMin,0,1)) -> 1 | AC58: =IF(VLOOKUP($B58,Formulacion!$A:$BE,MATCH(AC$1,Formulacion!$1:$1,0),FALSE)="NA",1,IF(N58=0,0,IF(OR(I58/N58<=MObraMin,I58/N58>=MObraMax),MDOmin,1))) -> 1 | AD58: =IF(VLOOKUP($B58,Formulacion!$A:$BE,MATCH(AD$1,Formulacion!$1:$1,0),FALSE)="NA",1,IF(N58<=CostoTotalMin,0,1)) -> 1 | AE58: =IF(VLOOKUP($B58,Formulacion!$A:$BE,MATCH(AE$1,Formulacion!$1:$1,0),FALSE)="NA",1,IF(Q58<=PostesMin,0,1)) -> 1 | AF58: =IF(VLOOKUP($B58,Formulacion!$A:$BE,MATCH(AF$1,Formulacion!$1:$1,0),FALSE)="NA",1,IF(R58<=INDIRECT(VLOOKUP(B58,Formulacion!$A:$BE,2,FALSE)),0,1)) -> 1 | AG58: 1 | AH58: 95611.9 | AI58: 1 | AJ58: =IF(VLOOKUP($B58,Formulacion!$A:$BE,MATCH(AJ$1,Formulacion!$1:$1,0),FALSE)="NA","NA",HLOOKUP(VLOOKUP($B58,Formulacion!$A:$BE,MATCH(AJ$1,Formulacion!$1:$1,0),FALSE),$Q:$Z,ROW(AJ58),FALSE)) -> NA | AK58: =IF(VLOOKUP($B58,Formulacion!$A:$BE,MATCH(AK$1,Formulacion!$1:$1,0),FALSE)="NA",1,VLOOKUP($B58,Formulacion!$A:$BE,MATCH(AK$1,Formulacion!$1:$1,0),FALSE)) -> 1 | AL58: =IF(VLOOKUP($B58,Formulacion!$A:$BE,MATCH(AL$1,Formulacion!$1:$1,0),FALSE)="NA",1,VLOOKUP($B58,Formulacion!$A:$BE,MATCH(AL$1,Formulacion!$1:$1,0),FALSE)) -> 1 | AM58: 1 | AN58: =IF(VLOOKUP($B58,Formulacion!$A:$BE,MATCH(AN$1,Formulacion!$1:$1,0),FALSE)="NA","NA",IF(D58=0,"",VLOOKUP($B58,Formulacion!$A:$BE,MATCH(AN$1,Formulacion!$1:$1,0),FALSE))) -> 02081106 | AO58: TRMB345M | AP58: 0075IP | AV58: NA | AW58: =IF(VLOOKUP($B58,Formulacion!$A:$BE,MATCH(AW$1,Formulacion!$1:$1,0),FALSE)="NA","NA",HLOOKUP(VLOOKUP($B58,Formulacion!$A:$BE,MATCH(AW$1,Formulacion!$1:$1,0),FALSE),$Q:$Z,ROW(AW58),FALSE)) -> 10 | AX58: NA | AY58: 1 | AZ58: =IF(VLOOKUP($B58,Formulacion!$A:$BE,MATCH(AZ$1,Formulacion!$1:$1,0),FALSE)="NA",1,VLOOKUP($B58,Formulacion!$A:$BE,MATCH(AZ$1,Formulacion!$1:$1,0),FALSE)) -> 0.9 | BA58: =IF(VLOOKUP($B58,Formulacion!$A:$BE,MATCH(BA$1,Formulacion!$1:$1,0),FALSE)="NA",1,VLOOKUP($B58,Formulacion!$A:$BE,MATCH(BA$1,Formulacion!$1:$1,0),FALSE)) -> 1 | BB58: 86050.71
A59: Edechi Proy con cta 2022 I | B59: DTRMB-34,5 | C59: GRALNVOSUMCALARQ | D59: DTRMB345M10250IP001 | E59: 2022-06-30 | F59: Chiriqui | H59: 28684.04 | I59: 11149.06 | K59: 0 | N59: 40062.9 | P59: 0 | Q59: =IF(OR(VLOOKUP($B59,Formulacion!$A:$BE,MATCH(Q$1,Formulacion!$1:$1,0),FALSE)="NA",$D59=0),"NA",IF($B59="DLABT",MID($D59,PosteInicioBT,PosteFinBT-PosteInicioBT+1)*1,MID($D59,PosteInicio,PosteFin-PosteInicio+1)*1)) -> NA | R59: =IF(OR(VLOOKUP($B59,Formulacion!$A:$BE,MATCH(R$1,Formulacion!$1:$1,0),FALSE)="NA",$D59=0),"NA",IF(OR($B59="DLABT",$B59="DLSBT"),MID($D59,CondInicioBT,CondFinBT-CondInicioBT+1)*1,MID($D59,CondInicio,CondFin-CondInicio+1)*1)) -> NA | S59: NA | T59: =IF(OR(VLOOKUP($B59,Formulacion!$A:$BE,MATCH(T$1,Formulacion!$1:$1,0),FALSE)="NA",$D59=0),"NA",IF($B59="DLSBT",MID($D59,ZanjaInicioBT,ZanjaFinBT-ZanjaInicioBT+1)*1,MID($D59,ZanjaInicio,ZanjaFin-ZanjaInicio+1)*1)) -> NA | U59: 1 | V59: =IF(OR(VLOOKUP($B59,Formulacion!$A:$BE,MATCH(V$1,Formulacion!$1:$1,0),FALSE)="NA",$D59=0),"NA",MID($D59,m2Inicio+INDIRECT(B59),m2Fin-m2Inicio+1)*1) -> NA | W59: =IF(OR(VLOOKUP($B59,Formulacion!$A:$BE,MATCH(W$1,Formulacion!$1:$1,0),FALSE)="NA",$D59=0),"NA",RIGHT($D59,4)*1) -> NA | X59: =IF(OR(VLOOKUP($B59,Formulacion!$A:$BE,MATCH(X$1,Formulacion!$1:$1,0),FALSE)="NA",$D59=0),"NA",RIGHT($D59,3)*1) -> 1 | Y59: 1 | Z59: =IF(VLOOKUP($B59,Formulacion!$A:$BE,MATCH(Z$1,Formulacion!$1:$1,0),FALSE)="NA",1,IF(V59<=m2Min,0,1)) -> 1 | AA59: =IF(VLOOKUP($B59,Formulacion!$A:$BE,MATCH(AA$1,Formulacion!$1:$1,0),FALSE)="NA",1,IF(OR(E59<=FechaMin,E59>FechaMax),0,1)) -> 1 | AB59: =IF(VLOOKUP($B59,Formulacion!$A:$BE,MATCH(AB$1,Formulacion!$1:$1,0),FALSE)="NA",1,IF(H59<=MaterialesMin,0,1)) -> 1 | AC59: =IF(VLOOKUP($B59,Formulacion!$A:$BE,MATCH(AC$1,Formulacion!$1:$1,0),FALSE)="NA",1,IF(N59=0,0,IF(OR(I59/N59<=MObraMin,I59/N59>=MObraMax),MDOmin,1))) -> 1 | AD59: =IF(VLOOKUP($B59,Formulacion!$A:$BE,MATCH(AD$1,Formulacion!$1:$1,0),FALSE)="NA",1,IF(N59<=CostoTotalMin,0,1)) -> 1 | AE59: =IF(VLOOKUP($B59,Formulacion!$A:$BE,MATCH(AE$1,Formulacion!$1:$1,0),FALSE)="NA",1,IF(Q59<=PostesMin,0,1)) -> 1 | AF59: =IF(VLOOKUP($B59,Formulacion!$A:$BE,MATCH(AF$1,Formulacion!$1:$1,0),FALSE)="NA",1,IF(R59<=INDIRECT(VLOOKUP(B59,Formulacion!$A:$BE,2,FALSE)),0,1)) -> 1 | AG59: 1 | AH59: 40062.9 | AI59: 1 | AJ59: =IF(VLOOKUP($B59,Formulacion!$A:$BE,MATCH(AJ$1,Formulacion!$1:$1,0),FALSE)="NA","NA",HLOOKUP(VLOOKUP($B59,Formulacion!$A:$BE,MATCH(AJ$1,Formulacion!$1:$1,0),FALSE),$Q:$Z,ROW(AJ59),FALSE)) -> NA | AK59: =IF(VLOOKUP($B59,Formulacion!$A:$BE,MATCH(AK$1,Formulacion!$1:$1,0),FALSE)="NA",1,VLOOKUP($B59,Formulacion!$A:$BE,MATCH(AK$1,Formulacion!$1:$1,0),FALSE)) -> 1 | AL59: =IF(VLOOKUP($B59,Formulacion!$A:$BE,MATCH(AL$1,Formulacion!$1:$1,0),FALSE)="NA",1,VLOOKUP($B59,Formulacion!$A:$BE,MATCH(AL$1,Formulacion!$1:$1,0),FALSE)) -> 1 | AM59: 1 | AN59: =IF(VLOOKUP($B59,Formulacion!$A:$BE,MATCH(AN$1,Formulacion!$1:$1,0),FALSE)="NA","NA",IF(D59=0,"",VLOOKUP($B59,Formulacion!$A:$BE,MATCH(AN$1,Formulacion!$1:$1,0),FALSE))) -> 02081106 | AO59: TRMB345M | AP59: 0250IP | AV59: NA | AW59: =IF(VLOOKUP($B59,Formulacion!$A:$BE,MATCH(AW$1,Formulacion!$1:$1,0),FALSE)="NA","NA",HLOOKUP(VLOOKUP($B59,Formulacion!$A:$BE,MATCH(AW$1,Formulacion!$1:$1,0),FALSE),$Q:$Z,ROW(AW59),FALSE)) -> 1 | AX59: NA | AY59: 1 | AZ59: =IF(VLOOKUP($B59,Formulacion!$A:$BE,MATCH(AZ$1,Formulacion!$1:$1,0),FALSE)="NA",1,VLOOKUP($B59,Formulacion!$A:$BE,MATCH(AZ$1,Formulacion!$1:$1,0),FALSE)) -> 0.9 | BA59: =IF(VLOOKUP($B59,Formulacion!$A:$BE,MATCH(BA$1,Formulacion!$1:$1,0),FALSE)="NA",1,VLOOKUP($B59,Formulacion!$A:$BE,MATCH(BA$1,Formulacion!$1:$1,0),FALSE)) -> 1 | BB59: 36056.61
A60: Edechi Proy con cta 2022 I | B60: DTRMB-34,5 | C60: GRALNVOSUMCALARQ | D60: DTRMB345M10500IP001 | E60: 2022-06-30 | F60: Chiriqui | H60: 45507.21 | I60: 17687.97 | K60: 0 | N60: 63559.76 | P60: 0 | Q60: =IF(OR(VLOOKUP($B60,Formulacion!$A:$BE,MATCH(Q$1,Formulacion!$1:$1,0),FALSE)="NA",$D60=0),"NA",IF($B60="DLABT",MID($D60,PosteInicioBT,PosteFinBT-PosteInicioBT+1)*1,MID($D60,PosteInicio,PosteFin-PosteInicio+1)*1)) -> NA | R60: =IF(OR(VLOOKUP($B60,Formulacion!$A:$BE,MATCH(R$1,Formulacion!$1:$1,0),FALSE)="NA",$D60=0),"NA",IF(OR($B60="DLABT",$B60="DLSBT"),MID($D60,CondInicioBT,CondFinBT-CondInicioBT+1)*1,MID($D60,CondInicio,CondFin-CondInicio+1)*1)) -> NA | S60: NA | T60: =IF(OR(VLOOKUP($B60,Formulacion!$A:$BE,MATCH(T$1,Formulacion!$1:$1,0),FALSE)="NA",$D60=0),"NA",IF($B60="DLSBT",MID($D60,ZanjaInicioBT,ZanjaFinBT-ZanjaInicioBT+1)*1,MID($D60,ZanjaInicio,ZanjaFin-ZanjaInicio+1)*1)) -> NA | U60: 1 | V60: =IF(OR(VLOOKUP($B60,Formulacion!$A:$BE,MATCH(V$1,Formulacion!$1:$1,0),FALSE)="NA",$D60=0),"NA",MID($D60,m2Inicio+INDIRECT(B60),m2Fin-m2Inicio+1)*1) -> NA | W60: =IF(OR(VLOOKUP($B60,Formulacion!$A:$BE,MATCH(W$1,Formulacion!$1:$1,0),FALSE)="NA",$D60=0),"NA",RIGHT($D60,4)*1) -> NA | X60: =IF(OR(VLOOKUP($B60,Formulacion!$A:$BE,MATCH(X$1,Formulacion!$1:$1,0),FALSE)="NA",$D60=0),"NA",RIGHT($D60,3)*1) -> 1 | Y60: 1 | Z60: =IF(VLOOKUP($B60,Formulacion!$A:$BE,MATCH(Z$1,Formulacion!$1:$1,0),FALSE)="NA",1,IF(V60<=m2Min,0,1)) -> 1 | AA60: =IF(VLOOKUP($B60,Formulacion!$A:$BE,MATCH(AA$1,Formulacion!$1:$1,0),FALSE)="NA",1,IF(OR(E60<=FechaMin,E60>FechaMax),0,1)) -> 1 | AB60: =IF(VLOOKUP($B60,Formulacion!$A:$BE,MATCH(AB$1,Formulacion!$1:$1,0),FALSE)="NA",1,IF(H60<=MaterialesMin,0,1)) -> 1 | AC60: =IF(VLOOKUP($B60,Formulacion!$A:$BE,MATCH(AC$1,Formulacion!$1:$1,0),FALSE)="NA",1,IF(N60=0,0,IF(OR(I60/N60<=MObraMin,I60/N60>=MObraMax),MDOmin,1))) -> 1 | AD60: =IF(VLOOKUP($B60,Formulacion!$A:$BE,MATCH(AD$1,Formulacion!$1:$1,0),FALSE)="NA",1,IF(N60<=CostoTotalMin,0,1)) -> 1 | AE60: =IF(VLOOKUP($B60,Formulacion!$A:$BE,MATCH(AE$1,Formulacion!$1:$1,0),FALSE)="NA",1,IF(Q60<=PostesMin,0,1)) -> 1 | AF60: =IF(VLOOKUP($B60,Formulacion!$A:$BE,MATCH(AF$1,Formulacion!$1:$1,0),FALSE)="NA",1,IF(R60<=INDIRECT(VLOOKUP(B60,Formulacion!$A:$BE,2,FALSE)),0,1)) -> 1 | AG60: 1 | AH60: 63559.76 | AI60: 1 | AJ60: =IF(VLOOKUP($B60,Formulacion!$A:$BE,MATCH(AJ$1,Formulacion!$1:$1,0),FALSE)="NA","NA",HLOOKUP(VLOOKUP($B60,Formulacion!$A:$BE,MATCH(AJ$1,Formulacion!$1:$1,0),FALSE),$Q:$Z,ROW(AJ60),FALSE)) -> NA | AK60: =IF(VLOOKUP($B60,Formulacion!$A:$BE,MATCH(AK$1,Formulacion!$1:$1,0),FALSE)="NA",1,VLOOKUP($B60,Formulacion!$A:$BE,MATCH(AK$1,Formulacion!$1:$1,0),FALSE)) -> 1 | AL60: =IF(VLOOKUP($B60,Formulacion!$A:$BE,MATCH(AL$1,Formulacion!$1:$1,0),FALSE)="NA",1,VLOOKUP($B60,Formulacion!$A:$BE,MATCH(AL$1,Formulacion!$1:$1,0),FALSE)) -> 1 | AM60: 1 | AN60: =IF(VLOOKUP($B60,Formulacion!$A:$BE,MATCH(AN$1,Formulacion!$1:$1,0),FALSE)="NA","NA",IF(D60=0,"",VLOOKUP($B60,Formulacion!$A:$BE,MATCH(AN$1,Formulacion!$1:$1,0),FALSE))) -> 02081106 | AO60: TRMB345M | AP60: 0500IP | AV60: NA | AW60: =IF(VLOOKUP($B60,Formulacion!$A:$BE,MATCH(AW$1,Formulacion!$1:$1,0),FALSE)="NA","NA",HLOOKUP(VLOOKUP($B60,Formulacion!$A:$BE,MATCH(AW$1,Formulacion!$1:$1,0),FALSE),$Q:$Z,ROW(AW60),FALSE)) -> 1 | AX60: NA | AY60: 1 | AZ60: =IF(VLOOKUP($B60,Formulacion!$A:$BE,MATCH(AZ$1,Formulacion!$1:$1,0),FALSE)="NA",1,VLOOKUP($B60,Formulacion!$A:$BE,MATCH(AZ$1,Formulacion!$1:$1,0),FALSE)) -> 0.9 | BA60: =IF(VLOOKUP($B60,Formulacion!$A:$BE,MATCH(BA$1,Formulacion!$1:$1,0),FALSE)="NA",1,VLOOKUP($B60,Formulacion!$A:$BE,MATCH(BA$1,Formulacion!$1:$1,0),FALSE)) -> 1 | BB60: 57203.784
A61: Edechi Proy con cta 2022 I | B61: DTRMB-34,5 | C61: GRALNVOSUMCALARQ | D61: DTRMB345T10075IP003 | E61: 2022-06-30 | F61: Chiriqui | H61: 35268.3 | I61: 13708.26 | K61: 0 | N61: 49259.11 | P61: 0 | Q61: =IF(OR(VLOOKUP($B61,Formulacion!$A:$BE,MATCH(Q$1,Formulacion!$1:$1,0),FALSE)="NA",$D61=0),"NA",IF($B61="DLABT",MID($D61,PosteInicioBT,PosteFinBT-PosteInicioBT+1)*1,MID($D61,PosteInicio,PosteFin-PosteInicio+1)*1)) -> NA | R61: =IF(OR(VLOOKUP($B61,Formulacion!$A:$BE,MATCH(R$1,Formulacion!$1:$1,0),FALSE)="NA",$D61=0),"NA",IF(OR($B61="DLABT",$B61="DLSBT"),MID($D61,CondInicioBT,CondFinBT-CondInicioBT+1)*1,MID($D61,CondInicio,CondFin-CondInicio+1)*1)) -> NA | S61: NA | T61: =IF(OR(VLOOKUP($B61,Formulacion!$A:$BE,MATCH(T$1,Formulacion!$1:$1,0),FALSE)="NA",$D61=0),"NA",IF($B61="DLSBT",MID($D61,ZanjaInicioBT,ZanjaFinBT-ZanjaInicioBT+1)*1,MID($D61,ZanjaInicio,ZanjaFin-ZanjaInicio+1)*1)) -> NA | U61: 1 | V61: =IF(OR(VLOOKUP($B61,Formulacion!$A:$BE,MATCH(V$1,Formulacion!$1:$1,0),FALSE)="NA",$D61=0),"NA",MID($D61,m2Inicio+INDIRECT(B61),m2Fin-m2Inicio+1)*1) -> NA | W61: =IF(OR(VLOOKUP($B61,Formulacion!$A:$BE,MATCH(W$1,Formulacion!$1:$1,0),FALSE)="NA",$D61=0),"NA",RIGHT($D61,4)*1) -> NA | X61: =IF(OR(VLOOKUP($B61,Formulacion!$A:$BE,MATCH(X$1,Formulacion!$1:$1,0),FALSE)="NA",$D61=0),"NA",RIGHT($D61,3)*1) -> 3 | Y61: 1 | Z61: =IF(VLOOKUP($B61,Formulacion!$A:$BE,MATCH(Z$1,Formulacion!$1:$1,0),FALSE)="NA",1,IF(V61<=m2Min,0,1)) -> 1 | AA61: =IF(VLOOKUP($B61,Formulacion!$A:$BE,MATCH(AA$1,Formulacion!$1:$1,0),FALSE)="NA",1,IF(OR(E61<=FechaMin,E61>FechaMax),0,1)) -> 1 | AB61: =IF(VLOOKUP($B61,Formulacion!$A:$BE,MATCH(AB$1,Formulacion!$1:$1,0),FALSE)="NA",1,IF(H61<=MaterialesMin,0,1)) -> 1 | AC61: =IF(VLOOKUP($B61,Formulacion!$A:$BE,MATCH(AC$1,Formulacion!$1:$1,0),FALSE)="NA",1,IF(N61=0,0,IF(OR(I61/N61<=MObraMin,I61/N61>=MObraMax),MDOmin,1))) -> 1 | AD61: =IF(VLOOKUP($B61,Formulacion!$A:$BE,MATCH(AD$1,Formulacion!$1:$1,0),FALSE)="NA",1,IF(N61<=CostoTotalMin,0,1)) -> 1 | AE61: =IF(VLOOKUP($B61,Formulacion!$A:$BE,MATCH(AE$1,Formulacion!$1:$1,0),FALSE)="NA",1,IF(Q61<=PostesMin,0,1)) -> 1 | AF61: =IF(VLOOKUP($B61,Formulacion!$A:$BE,MATCH(AF$1,Formulacion!$1:$1,0),FALSE)="NA",1,IF(R61<=INDIRECT(VLOOKUP(B61,Formulacion!$A:$BE,2,FALSE)),0,1)) -> 1 | AG61: 1 | AH61: 49259.11 | AI61: 1 | AJ61: =IF(VLOOKUP($B61,Formulacion!$A:$BE,MATCH(AJ$1,Formulacion!$1:$1,0),FALSE)="NA","NA",HLOOKUP(VLOOKUP($B61,Formulacion!$A:$BE,MATCH(AJ$1,Formulacion!$1:$1,0),FALSE),$Q:$Z,ROW(AJ61),FALSE)) -> NA | AK61: =IF(VLOOKUP($B61,Formulacion!$A:$BE,MATCH(AK$1,Formulacion!$1:$1,0),FALSE)="NA",1,VLOOKUP($B61,Formulacion!$A:$BE,MATCH(AK$1,Formulacion!$1:$1,0),FALSE)) -> 1 | AL61: =IF(VLOOKUP($B61,Formulacion!$A:$BE,MATCH(AL$1,Formulacion!$1:$1,0),FALSE)="NA",1,VLOOKUP($B61,Formulacion!$A:$BE,MATCH(AL$1,Formulacion!$1:$1,0),FALSE)) -> 1 | AM61: 1 | AN61: =IF(VLOOKUP($B61,Formulacion!$A:$BE,MATCH(AN$1,Formulacion!$1:$1,0),FALSE)="NA","NA",IF(D61=0,"",VLOOKUP($B61,Formulacion!$A:$BE,MATCH(AN$1,Formulacion!$1:$1,0),FALSE))) -> 02081106 | AO61: TRMB345T | AP61: 0075IP | AV61: NA | AW61: =IF(VLOOKUP($B61,Formulacion!$A:$BE,MATCH(AW$1,Formulacion!$1:$1,0),FALSE)="NA","NA",HLOOKUP(VLOOKUP($B61,Formulacion!$A:$BE,MATCH(AW$1,Formulacion!$1:$1,0),FALSE),$Q:$Z,ROW(AW61),FALSE)) -> 3 | AX61: NA | AY61: 1 | AZ61: =IF(VLOOKUP($B61,Formulacion!$A:$BE,MATCH(AZ$1,Formulacion!$1:$1,0),FALSE)="NA",1,VLOOKUP($B61,Formulacion!$A:$BE,MATCH(AZ$1,Formulacion!$1:$1,0),FALSE)) -> 0.9 | BA61: =IF(VLOOKUP($B61,Formulacion!$A:$BE,MATCH(BA$1,Formulacion!$1:$1,0),FALSE)="NA",1,VLOOKUP($B61,Formulacion!$A:$BE,MATCH(BA$1,Formulacion!$1:$1,0),FALSE)) -> 1 | BB61: 44333.199
A62: Edechi Proy con cta 2022 I | B62: DTRMB-34,5 | C62: GRALNVOSUMCALARQ | D62: DTRMB345T20150IP002 | E62: 2022-06-30 | F62: Chiriqui | H62: 39906.31 | I62: 15510.98 | K62: 0 | N62: 55737 | P62: 0 | Q62: =IF(OR(VLOOKUP($B62,Formulacion!$A:$BE,MATCH(Q$1,Formulacion!$1:$1,0),FALSE)="NA",$D62=0),"NA",IF($B62="DLABT",MID($D62,PosteInicioBT,PosteFinBT-PosteInicioBT+1)*1,MID($D62,PosteInicio,PosteFin-PosteInicio+1)*1)) -> NA | R62: =IF(OR(VLOOKUP($B62,Formulacion!$A:$BE,MATCH(R$1,Formulacion!$1:$1,0),FALSE)="NA",$D62=0),"NA",IF(OR($B62="DLABT",$B62="DLSBT"),MID($D62,CondInicioBT,CondFinBT-CondInicioBT+1)*1,MID($D62,CondInicio,CondFin-CondInicio+1)*1)) -> NA | S62: NA | T62: =IF(OR(VLOOKUP($B62,Formulacion!$A:$BE,MATCH(T$1,Formulacion!$1:$1,0),FALSE)="NA",$D62=0),"NA",IF($B62="DLSBT",MID($D62,ZanjaInicioBT,ZanjaFinBT-ZanjaInicioBT+1)*1,MID($D62,ZanjaInicio,ZanjaFin-ZanjaInicio+1)*1)) -> NA | U62: 1 | V62: =IF(OR(VLOOKUP($B62,Formulacion!$A:$BE,MATCH(V$1,Formulacion!$1:$1,0),FALSE)="NA",$D62=0),"NA",MID($D62,m2Inicio+INDIRECT(B62),m2Fin-m2Inicio+1)*1) -> NA | W62: =IF(OR(VLOOKUP($B62,Formulacion!$A:$BE,MATCH(W$1,Formulacion!$1:$1,0),FALSE)="NA",$D62=0),"NA",RIGHT($D62,4)*1) -> NA | X62: =IF(OR(VLOOKUP($B62,Formulacion!$A:$BE,MATCH(X$1,Formulacion!$1:$1,0),FALSE)="NA",$D62=0),"NA",RIGHT($D62,3)*1) -> 2 | Y62: 1 | Z62: =IF(VLOOKUP($B62,Formulacion!$A:$BE,MATCH(Z$1,Formulacion!$1:$1,0),FALSE)="NA",1,IF(V62<=m2Min,0,1)) -> 1 | AA62: =IF(VLOOKUP($B62,Formulacion!$A:$BE,MATCH(AA$1,Formulacion!$1:$1,0),FALSE)="NA",1,IF(OR(E62<=FechaMin,E62>FechaMax),0,1)) -> 1 | AB62: =IF(VLOOKUP($B62,Formulacion!$A:$BE,MATCH(AB$1,Formulacion!$1:$1,0),FALSE)="NA",1,IF(H62<=MaterialesMin,0,1)) -> 1 | AC62: =IF(VLOOKUP($B62,Formulacion!$A:$BE,MATCH(AC$1,Formulacion!$1:$1,0),FALSE)="NA",1,IF(N62=0,0,IF(OR(I62/N62<=MObraMin,I62/N62>=MObraMax),MDOmin,1))) -> 1 | AD62: =IF(VLOOKUP($B62,Formulacion!$A:$BE,MATCH(AD$1,Formulacion!$1:$1,0),FALSE)="NA",1,IF(N62<=CostoTotalMin,0,1)) -> 1 | AE62: =IF(VLOOKUP($B62,Formulacion!$A:$BE,MATCH(AE$1,Formulacion!$1:$1,0),FALSE)="NA",1,IF(Q62<=PostesMin,0,1)) -> 1 | AF62: =IF(VLOOKUP($B62,Formulacion!$A:$BE,MATCH(AF$1,Formulacion!$1:$1,0),FALSE)="NA",1,IF(R62<=INDIRECT(VLOOKUP(B62,Formulacion!$A:$BE,2,FALSE)),0,1)) -> 1 | AG62: 1 | AH62: 55737 | AI62: 1 | AJ62: =IF(VLOOKUP($B62,Formulacion!$A:$BE,MATCH(AJ$1,Formulacion!$1:$1,0),FALSE)="NA","NA",HLOOKUP(VLOOKUP($B62,Formulacion!$A:$BE,MATCH(AJ$1,Formulacion!$1:$1,0),FALSE),$Q:$Z,ROW(AJ62),FALSE)) -> NA | AK62: =IF(VLOOKUP($B62,Formulacion!$A:$BE,MATCH(AK$1,Formulacion!$1:$1,0),FALSE)="NA",1,VLOOKUP($B62,Formulacion!$A:$BE,MATCH(AK$1,Formulacion!$1:$1,0),FALSE)) -> 1 | AL62: =IF(VLOOKUP($B62,Formulacion!$A:$BE,MATCH(AL$1,Formulacion!$1:$1,0),FALSE)="NA",1,VLOOKUP($B62,Formulacion!$A:$BE,MATCH(AL$1,Formulacion!$1:$1,0),FALSE)) -> 1 | AM62: 1 | AN62: =IF(VLOOKUP($B62,Formulacion!$A:$BE,MATCH(AN$1,Formulacion!$1:$1,0),FALSE)="NA","NA",IF(D62=0,"",VLOOKUP($B62,Formulacion!$A:$BE,MATCH(AN$1,Formulacion!$1:$1,0),FALSE))) -> 02081106 | AO62: TRMB345T | AP62: 0150IP | AV62: NA | AW62: =IF(VLOOKUP($B62,Formulacion!$A:$BE,MATCH(AW$1,Formulacion!$1:$1,0),FALSE)="NA","NA",HLOOKUP(VLOOKUP($B62,Formulacion!$A:$BE,MATCH(AW$1,Formulacion!$1:$1,0),FALSE),$Q:$Z,ROW(AW62),FALSE)) -> 2 | AX62: NA | AY62: 1 | AZ62: =IF(VLOOKUP($B62,Formulacion!$A:$BE,MATCH(AZ$1,Formulacion!$1:$1,0),FALSE)="NA",1,VLOOKUP($B62,Formulacion!$A:$BE,MATCH(AZ$1,Formulacion!$1:$1,0),FALSE)) -> 0.9 | BA62: =IF(VLOOKUP($B62,Formulacion!$A:$BE,MATCH(BA$1,Formulacion!$1:$1,0),FALSE)="NA",1,VLOOKUP($B62,Formulacion!$A:$BE,MATCH(BA$1,Formulacion!$1:$1,0),FALSE)) -> 1 | BB62: 50163.3
A63: Edechi Proy con cta 2022 I | B63: DTRMB-34,5 | C63: GRALNVOSUMCALARQ | D63: DTRMB345T10300IG001 | E63: 2022-06-30 | F63: Chiriqui | H63: 54542.08 | I63: 21199.69 | K63: 0 | N63: 76178.73 | P63: 0 | Q63: =IF(OR(VLOOKUP($B63,Formulacion!$A:$BE,MATCH(Q$1,Formulacion!$1:$1,0),FALSE)="NA",$D63=0),"NA",IF($B63="DLABT",MID($D63,PosteInicioBT,PosteFinBT-PosteInicioBT+1)*1,MID($D63,PosteInicio,PosteFin-PosteInicio+1)*1)) -> NA | R63: =IF(OR(VLOOKUP($B63,Formulacion!$A:$BE,MATCH(R$1,Formulacion!$1:$1,0),FALSE)="NA",$D63=0),"NA",IF(OR($B63="DLABT",$B63="DLSBT"),MID($D63,CondInicioBT,CondFinBT-CondInicioBT+1)*1,MID($D63,CondInicio,CondFin-CondInicio+1)*1)) -> NA | S63: NA | T63: =IF(OR(VLOOKUP($B63,Formulacion!$A:$BE,MATCH(T$1,Formulacion!$1:$1,0),FALSE)="NA",$D63=0),"NA",IF($B63="DLSBT",MID($D63,ZanjaInicioBT,ZanjaFinBT-ZanjaInicioBT+1)*1,MID($D63,ZanjaInicio,ZanjaFin-ZanjaInicio+1)*1)) -> NA | U63: 1 | V63: =IF(OR(VLOOKUP($B63,Formulacion!$A:$BE,MATCH(V$1,Formulacion!$1:$1,0),FALSE)="NA",$D63=0),"NA",MID($D63,m2Inicio+INDIRECT(B63),m2Fin-m2Inicio+1)*1) -> NA | W63: =IF(OR(VLOOKUP($B63,Formulacion!$A:$BE,MATCH(W$1,Formulacion!$1:$1,0),FALSE)="NA",$D63=0),"NA",RIGHT($D63,4)*1) -> NA | X63: =IF(OR(VLOOKUP($B63,Formulacion!$A:$BE,MATCH(X$1,Formulacion!$1:$1,0),FALSE)="NA",$D63=0),"NA",RIGHT($D63,3)*1) -> 1 | Y63: 1 | Z63: =IF(VLOOKUP($B63,Formulacion!$A:$BE,MATCH(Z$1,Formulacion!$1:$1,0),FALSE)="NA",1,IF(V63<=m2Min,0,1)) -> 1 | AA63: =IF(VLOOKUP($B63,Formulacion!$A:$BE,MATCH(AA$1,Formulacion!$1:$1,0),FALSE)="NA",1,IF(OR(E63<=FechaMin,E63>FechaMax),0,1)) -> 1 | AB63: =IF(VLOOKUP($B63,Formulacion!$A:$BE,MATCH(AB$1,Formulacion!$1:$1,0),FALSE)="NA",1,IF(H63<=MaterialesMin,0,1)) -> 1 | AC63: =IF(VLOOKUP($B63,Formulacion!$A:$BE,MATCH(AC$1,Formulacion!$1:$1,0),FALSE)="NA",1,IF(N63=0,0,IF(OR(I63/N63<=MObraMin,I63/N63>=MObraMax),MDOmin,1))) -> 1 | AD63: =IF(VLOOKUP($B63,Formulacion!$A:$BE,MATCH(AD$1,Formulacion!$1:$1,0),FALSE)="NA",1,IF(N63<=CostoTotalMin,0,1)) -> 1 | AE63: =IF(VLOOKUP($B63,Formulacion!$A:$BE,MATCH(AE$1,Formulacion!$1:$1,0),FALSE)="NA",1,IF(Q63<=PostesMin,0,1)) -> 1 | AF63: =IF(VLOOKUP($B63,Formulacion!$A:$BE,MATCH(AF$1,Formulacion!$1:$1,0),FALSE)="NA",1,IF(R63<=INDIRECT(VLOOKUP(B63,Formulacion!$A:$BE,2,FALSE)),0,1)) -> 1 | AG63: 1 | AH63: 76178.73 | AI63: 1 | AJ63: =IF(VLOOKUP($B63,Formulacion!$A:$BE,MATCH(AJ$1,Formulacion!$1:$1,0),FALSE)="NA","NA",HLOOKUP(VLOOKUP($B63,Formulacion!$A:$BE,MATCH(AJ$1,Formulacion!$1:$1,0),FALSE),$Q:$Z,ROW(AJ63),FALSE)) -> NA | AK63: =IF(VLOOKUP($B63,Formulacion!$A:$BE,MATCH(AK$1,Formulacion!$1:$1,0),FALSE)="NA",1,VLOOKUP($B63,Formulacion!$A:$BE,MATCH(AK$1,Formulacion!$1:$1,0),FALSE)) -> 1 | AL63: =IF(VLOOKUP($B63,Formulacion!$A:$BE,MATCH(AL$1,Formulacion!$1:$1,0),FALSE)="NA",1,VLOOKUP($B63,Formulacion!$A:$BE,MATCH(AL$1,Formulacion!$1:$1,0),FALSE)) -> 1 | AM63: 1 | AN63: =IF(VLOOKUP($B63,Formulacion!$A:$BE,MATCH(AN$1,Formulacion!$1:$1,0),FALSE)="NA","NA",IF(D63=0,"",VLOOKUP($B63,Formulacion!$A:$BE,MATCH(AN$1,Formulacion!$1:$1,0),FALSE))) -> 02081106 | AO63: TRMB345T | AP63: 0300IG | AV63: NA | AW63: =IF(VLOOKUP($B63,Formulacion!$A:$BE,MATCH(AW$1,Formulacion!$1:$1,0),FALSE)="NA","NA",HLOOKUP(VLOOKUP($B63,Formulacion!$A:$BE,MATCH(AW$1,Formulacion!$1:$1,0),FALSE),$Q:$Z,ROW(AW63),FALSE)) -> 1 | AX63: NA | AY63: 1 | AZ63: =IF(VLOOKUP($B63,Formulacion!$A:$BE,MATCH(AZ$1,Formulacion!$1:$1,0),FALSE)="NA",1,VLOOKUP($B63,Formulacion!$A:$BE,MATCH(AZ$1,Formulacion!$1:$1,0),FALSE)) -> 0.9 | BA63: =IF(VLOOKUP($B63,Formulacion!$A:$BE,MATCH(BA$1,Formulacion!$1:$1,0),FALSE)="NA",1,VLOOKUP($B63,Formulacion!$A:$BE,MATCH(BA$1,Formulacion!$1:$1,0),FALSE)) -> 1 | BB63: 68560.857
A64: Edechi Proy con cta 2022 I | B64: DTRMB-34,5 | C64: GRALNVOSUMCALARQ | D64: DTRMB345T10500IG000 | E64: 2022-06-30 | F64: Chiriqui | H64: 25584.8 | I64: 9944.43 | K64: 0 | N64: 35734.2 | P64: 0 | Q64: =IF(OR(VLOOKUP($B64,Formulacion!$A:$BE,MATCH(Q$1,Formulacion!$1:$1,0),FALSE)="NA",$D64=0),"NA",IF($B64="DLABT",MID($D64,PosteInicioBT,PosteFinBT-PosteInicioBT+1)*1,MID($D64,PosteInicio,PosteFin-PosteInicio+1)*1)) -> NA | R64: =IF(OR(VLOOKUP($B64,Formulacion!$A:$BE,MATCH(R$1,Formulacion!$1:$1,0),FALSE)="NA",$D64=0),"NA",IF(OR($B64="DLABT",$B64="DLSBT"),MID($D64,CondInicioBT,CondFinBT-CondInicioBT+1)*1,MID($D64,CondInicio,CondFin-CondInicio+1)*1)) -> NA | S64: NA | T64: =IF(OR(VLOOKUP($B64,Formulacion!$A:$BE,MATCH(T$1,Formulacion!$1:$1,0),FALSE)="NA",$D64=0),"NA",IF($B64="DLSBT",MID($D64,ZanjaInicioBT,ZanjaFinBT-ZanjaInicioBT+1)*1,MID($D64,ZanjaInicio,ZanjaFin-ZanjaInicio+1)*1)) -> NA | U64: 1 | V64: =IF(OR(VLOOKUP($B64,Formulacion!$A:$BE,MATCH(V$1,Formulacion!$1:$1,0),FALSE)="NA",$D64=0),"NA",MID($D64,m2Inicio+INDIRECT(B64),m2Fin-m2Inicio+1)*1) -> NA | W64: =IF(OR(VLOOKUP($B64,Formulacion!$A:$BE,MATCH(W$1,Formulacion!$1:$1,0),FALSE)="NA",$D64=0),"NA",RIGHT($D64,4)*1) -> NA | X64: =IF(OR(VLOOKUP($B64,Formulacion!$A:$BE,MATCH(X$1,Formulacion!$1:$1,0),FALSE)="NA",$D64=0),"NA",RIGHT($D64,3)*1) -> 0 | Y64: 0 | Z64: =IF(VLOOKUP($B64,Formulacion!$A:$BE,MATCH(Z$1,Formulacion!$1:$1,0),FALSE)="NA",1,IF(V64<=m2Min,0,1)) -> 1 | AA64: =IF(VLOOKUP($B64,Formulacion!$A:$BE,MATCH(AA$1,Formulacion!$1:$1,0),FALSE)="NA",1,IF(OR(E64<=FechaMin,E64>FechaMax),0,1)) -> 1 | AB64: =IF(VLOOKUP($B64,Formulacion!$A:$BE,MATCH(AB$1,Formulacion!$1:$1,0),FALSE)="NA",1,IF(H64<=MaterialesMin,0,1)) -> 1 | AC64: =IF(VLOOKUP($B64,Formulacion!$A:$BE,MATCH(AC$1,Formulacion!$1:$1,0),FALSE)="NA",1,IF(N64=0,0,IF(OR(I64/N64<=MObraMin,I64/N64>=MObraMax),MDOmin,1))) -> 1 | AD64: =IF(VLOOKUP($B64,Formulacion!$A:$BE,MATCH(AD$1,Formulacion!$1:$1,0),FALSE)="NA",1,IF(N64<=CostoTotalMin,0,1)) -> 1 | AE64: =IF(VLOOKUP($B64,Formulacion!$A:$BE,MATCH(AE$1,Formulacion!$1:$1,0),FALSE)="NA",1,IF(Q64<=PostesMin,0,1)) -> 1 | AF64: =IF(VLOOKUP($B64,Formulacion!$A:$BE,MATCH(AF$1,Formulacion!$1:$1,0),FALSE)="NA",1,IF(R64<=INDIRECT(VLOOKUP(B64,Formulacion!$A:$BE,2,FALSE)),0,1)) -> 1 | AG64: 0 | AH64: 0 | AI64: 1 | AJ64: =IF(VLOOKUP($B64,Formulacion!$A:$BE,MATCH(AJ$1,Formulacion!$1:$1,0),FALSE)="NA","NA",HLOOKUP(VLOOKUP($B64,Formulacion!$A:$BE,MATCH(AJ$1,Formulacion!$1:$1,0),FALSE),$Q:$Z,ROW(AJ64),FALSE)) -> NA | AK64: =IF(VLOOKUP($B64,Formulacion!$A:$BE,MATCH(AK$1,Formulacion!$1:$1,0),FALSE)="NA",1,VLOOKUP($B64,Formulacion!$A:$BE,MATCH(AK$1,Formulacion!$1:$1,0),FALSE)) -> 1 | AL64: =IF(VLOOKUP($B64,Formulacion!$A:$BE,MATCH(AL$1,Formulacion!$1:$1,0),FALSE)="NA",1,VLOOKUP($B64,Formulacion!$A:$BE,MATCH(AL$1,Formulacion!$1:$1,0),FALSE)) -> 1 | AM64: 1 | AN64: =IF(VLOOKUP($B64,Formulacion!$A:$BE,MATCH(AN$1,Formulacion!$1:$1,0),FALSE)="NA","NA",IF(D64=0,"",VLOOKUP($B64,Formulacion!$A:$BE,MATCH(AN$1,Formulacion!$1:$1,0),FALSE))) -> 02081106 | AO64: TRMB345T | AP64: 0500IG | AV64: NA | AW64: =IF(VLOOKUP($B64,Formulacion!$A:$BE,MATCH(AW$1,Formulacion!$1:$1,0),FALSE)="NA","NA",HLOOKUP(VLOOKUP($B64,Formulacion!$A:$BE,MATCH(AW$1,Formulacion!$1:$1,0),FALSE),$Q:$Z,ROW(AW64),FALSE)) -> 0 | AX64: NA | AY64: 1 | AZ64: =IF(VLOOKUP($B64,Formulacion!$A:$BE,MATCH(AZ$1,Formulacion!$1:$1,0),FALSE)="NA",1,VLOOKUP($B64,Formulacion!$A:$BE,MATCH(AZ$1,Formulacion!$1:$1,0),FALSE)) -> 0.9 | BA64: =IF(VLOOKUP($B64,Formulacion!$A:$BE,MATCH(BA$1,Formulacion!$1:$1,0),FALSE)="NA",1,VLOOKUP($B64,Formulacion!$A:$BE,MATCH(BA$1,Formulacion!$1:$1,0),FALSE)) -> 1 | BB64: 0
A65: Edechi Proy con cta 2022 I | B65: AINAP | C65: AINAPCHILED | D65: AINAPL999A00000000 | E65: 2022-06-30 | F65: CHIRIQUI | H65: 140218.96 | I65: 30779.76 | K65: 0 | N65: 170998.72 | P65: 0 | Q65: =IF(OR(VLOOKUP($B65,Formulacion!$A:$BE,MATCH(Q$1,Formulacion!$1:$1,0),FALSE)="NA",$D65=0),"NA",IF($B65="DLABT",MID($D65,PosteInicioBT,PosteFinBT-PosteInicioBT+1)*1,MID($D65,PosteInicio,PosteFin-PosteInicio+1)*1)) -> NA | R65: =IF(OR(VLOOKUP($B65,Formulacion!$A:$BE,MATCH(R$1,Formulacion!$1:$1,0),FALSE)="NA",$D65=0),"NA",IF(OR($B65="DLABT",$B65="DLSBT"),MID($D65,CondInicioBT,CondFinBT-CondInicioBT+1)*1,MID($D65,CondInicio,CondFin-CondInicio+1)*1)) -> NA | S65: NA | T65: =IF(OR(VLOOKUP($B65,Formulacion!$A:$BE,MATCH(T$1,Formulacion!$1:$1,0),FALSE)="NA",$D65=0),"NA",IF($B65="DLSBT",MID($D65,ZanjaInicioBT,ZanjaFinBT-ZanjaInicioBT+1)*1,MID($D65,ZanjaInicio,ZanjaFin-ZanjaInicio+1)*1)) -> NA | U65: 1 | V65: =IF(OR(VLOOKUP($B65,Formulacion!$A:$BE,MATCH(V$1,Formulacion!$1:$1,0),FALSE)="NA",$D65=0),"NA",MID($D65,m2Inicio+INDIRECT(B65),m2Fin-m2Inicio+1)*1) -> NA | W65: =IF(OR(VLOOKUP($B65,Formulacion!$A:$BE,MATCH(W$1,Formulacion!$1:$1,0),FALSE)="NA",$D65=0),"NA",RIGHT($D65,4)*1) -> NA | X65: =IF(OR(VLOOKUP($B65,Formulacion!$A:$BE,MATCH(X$1,Formulacion!$1:$1,0),FALSE)="NA",$D65=0),"NA",RIGHT($D65,3)*1) -> NA | Y65: 1 | Z65: =IF(VLOOKUP($B65,Formulacion!$A:$BE,MATCH(Z$1,Formulacion!$1:$1,0),FALSE)="NA",1,IF(V65<=m2Min,0,1)) -> 1 | AA65: =IF(VLOOKUP($B65,Formulacion!$A:$BE,MATCH(AA$1,Formulacion!$1:$1,0),FALSE)="NA",1,IF(OR(E65<=FechaMin,E65>FechaMax),0,1)) -> 1 | AB65: =IF(VLOOKUP($B65,Formulacion!$A:$BE,MATCH(AB$1,Formulacion!$1:$1,0),FALSE)="NA",1,IF(H65<=MaterialesMin,0,1)) -> 1 | AC65: =IF(VLOOKUP($B65,Formulacion!$A:$BE,MATCH(AC$1,Formulacion!$1:$1,0),FALSE)="NA",1,IF(N65=0,0,IF(OR(I65/N65<=MObraMin,I65/N65>=MObraMax),MDOmin,1))) -> 1 | AD65: =IF(VLOOKUP($B65,Formulacion!$A:$BE,MATCH(AD$1,Formulacion!$1:$1,0),FALSE)="NA",1,IF(N65<=CostoTotalMin,0,1)) -> 1 | AE65: =IF(VLOOKUP($B65,Formulacion!$A:$BE,MATCH(AE$1,Formulacion!$1:$1,0),FALSE)="NA",1,IF(Q65<=PostesMin,0,1)) -> 1 | AF65: =IF(VLOOKUP($B65,Formulacion!$A:$BE,MATCH(AF$1,Formulacion!$1:$1,0),FALSE)="NA",1,IF(R65<=INDIRECT(VLOOKUP(B65,Formulacion!$A:$BE,2,FALSE)),0,1)) -> 1 | AG65: 1 | AH65: 170998.72 | AI65: 1 | AJ65: =IF(VLOOKUP($B65,Formulacion!$A:$BE,MATCH(AJ$1,Formulacion!$1:$1,0),FALSE)="NA","NA",HLOOKUP(VLOOKUP($B65,Formulacion!$A:$BE,MATCH(AJ$1,Formulacion!$1:$1,0),FALSE),$Q:$Z,ROW(AJ65),FALSE)) -> NA | AK65: =IF(VLOOKUP($B65,Formulacion!$A:$BE,MATCH(AK$1,Formulacion!$1:$1,0),FALSE)="NA",1,VLOOKUP($B65,Formulacion!$A:$BE,MATCH(AK$1,Formulacion!$1:$1,0),FALSE)) -> 1 | AL65: =IF(VLOOKUP($B65,Formulacion!$A:$BE,MATCH(AL$1,Formulacion!$1:$1,0),FALSE)="NA",1,VLOOKUP($B65,Formulacion!$A:$BE,MATCH(AL$1,Formulacion!$1:$1,0),FALSE)) -> 1 | AM65: 1 | AN65: =IF(VLOOKUP($B65,Formulacion!$A:$BE,MATCH(AN$1,Formulacion!$1:$1,0),FALSE)="NA","NA",IF(D65=0,"",VLOOKUP($B65,Formulacion!$A:$BE,MATCH(AN$1,Formulacion!$1:$1,0),FALSE))) -> NA | AO65: X | AV65: NA | AW65: =IF(VLOOKUP($B65,Formulacion!$A:$BE,MATCH(AW$1,Formulacion!$1:$1,0),FALSE)="NA","NA",HLOOKUP(VLOOKUP($B65,Formulacion!$A:$BE,MATCH(AW$1,Formulacion!$1:$1,0),FALSE),$Q:$Z,ROW(AW65),FALSE)) -> NA | AX65: NA | AY65: 1 | AZ65: =IF(VLOOKUP($B65,Formulacion!$A:$BE,MATCH(AZ$1,Formulacion!$1:$1,0),FALSE)="NA",1,VLOOKUP($B65,Formulacion!$A:$BE,MATCH(AZ$1,Formulacion!$1:$1,0),FALSE)) -> 0.9 | BA65: =IF(VLOOKUP($B65,Formulacion!$A:$BE,MATCH(BA$1,Formulacion!$1:$1,0),FALSE)="NA",1,VLOOKUP($B65,Formulacion!$A:$BE,MATCH(BA$1,Formulacion!$1:$1,0),FALSE)) -> 1 | BB65: 153898.848
A66: Edechi Proy con cta 2022 I | B66: AINAP | C66: AINAPCHILED | D66: AINAPL314A00000000 | E66: 2022-06-30 | F66: CHIRIQUI | H66: 44072.83 | I66: 9674.52 | K66: 0 | N66: 53747.35 | P66: 0 | Q66: =IF(OR(VLOOKUP($B66,Formulacion!$A:$BE,MATCH(Q$1,Formulacion!$1:$1,0),FALSE)="NA",$D66=0),"NA",IF($B66="DLABT",MID($D66,PosteInicioBT,PosteFinBT-PosteInicioBT+1)*1,MID($D66,PosteInicio,PosteFin-PosteInicio+1)*1)) -> NA | R66: =IF(OR(VLOOKUP($B66,Formulacion!$A:$BE,MATCH(R$1,Formulacion!$1:$1,0),FALSE)="NA",$D66=0),"NA",IF(OR($B66="DLABT",$B66="DLSBT"),MID($D66,CondInicioBT,CondFinBT-CondInicioBT+1)*1,MID($D66,CondInicio,CondFin-CondInicio+1)*1)) -> NA | S66: NA | T66: =IF(OR(VLOOKUP($B66,Formulacion!$A:$BE,MATCH(T$1,Formulacion!$1:$1,0),FALSE)="NA",$D66=0),"NA",IF($B66="DLSBT",MID($D66,ZanjaInicioBT,ZanjaFinBT-ZanjaInicioBT+1)*1,MID($D66,ZanjaInicio,ZanjaFin-ZanjaInicio+1)*1)) -> NA | U66: 1 | V66: =IF(OR(VLOOKUP($B66,Formulacion!$A:$BE,MATCH(V$1,Formulacion!$1:$1,0),FALSE)="NA",$D66=0),"NA",MID($D66,m2Inicio+INDIRECT(B66),m2Fin-m2Inicio+1)*1) -> NA | W66: =IF(OR(VLOOKUP($B66,Formulacion!$A:$BE,MATCH(W$1,Formulacion!$1:$1,0),FALSE)="NA",$D66=0),"NA",RIGHT($D66,4)*1) -> NA | X66: =IF(OR(VLOOKUP($B66,Formulacion!$A:$BE,MATCH(X$1,Formulacion!$1:$1,0),FALSE)="NA",$D66=0),"NA",RIGHT($D66,3)*1) -> NA | Y66: 1 | Z66: =IF(VLOOKUP($B66,Formulacion!$A:$BE,MATCH(Z$1,Formulacion!$1:$1,0),FALSE)="NA",1,IF(V66<=m2Min,0,1)) -> 1 | AA66: =IF(VLOOKUP($B66,Formulacion!$A:$BE,MATCH(AA$1,Formulacion!$1:$1,0),FALSE)="NA",1,IF(OR(E66<=FechaMin,E66>FechaMax),0,1)) -> 1 | AB66: =IF(VLOOKUP($B66,Formulacion!$A:$BE,MATCH(AB$1,Formulacion!$1:$1,0),FALSE)="NA",1,IF(H66<=MaterialesMin,0,1)) -> 1 | AC66: =IF(VLOOKUP($B66,Formulacion!$A:$BE,MATCH(AC$1,Formulacion!$1:$1,0),FALSE)="NA",1,IF(N66=0,0,IF(OR(I66/N66<=MObraMin,I66/N66>=MObraMax),MDOmin,1))) -> 1 | AD66: =IF(VLOOKUP($B66,Formulacion!$A:$BE,MATCH(AD$1,Formulacion!$1:$1,0),FALSE)="NA",1,IF(N66<=CostoTotalMin,0,1)) -> 1 | AE66: =IF(VLOOKUP($B66,Formulacion!$A:$BE,MATCH(AE$1,Formulacion!$1:$1,0),FALSE)="NA",1,IF(Q66<=PostesMin,0,1)) -> 1 | AF66: =IF(VLOOKUP($B66,Formulacion!$A:$BE,MATCH(AF$1,Formulacion!$1:$1,0),FALSE)="NA",1,IF(R66<=INDIRECT(VLOOKUP(B66,Formulacion!$A:$BE,2,FALSE)),0,1)) -> 1 | AG66: 1 | AH66: 53747.35 | AI66: =IF(OR(E66<=FechaMin,E66>FechaMax),0,1) -> 1 | AJ66: =IF(VLOOKUP($B66,Formulacion!$A:$BE,MATCH(AJ$1,Formulacion!$1:$1,0),FALSE)="NA","NA",HLOOKUP(VLOOKUP($B66,Formulacion!$A:$BE,MATCH(AJ$1,Formulacion!$1:$1,0),FALSE),$Q:$Z,ROW(AJ66),FALSE)) -> NA | AK66: =IF(VLOOKUP($B66,Formulacion!$A:$BE,MATCH(AK$1,Formulacion!$1:$1,0),FALSE)="NA",1,VLOOKUP($B66,Formulacion!$A:$BE,MATCH(AK$1,Formulacion!$1:$1,0),FALSE)) -> 1 | AL66: =IF(VLOOKUP($B66,Formulacion!$A:$BE,MATCH(AL$1,Formulacion!$1:$1,0),FALSE)="NA",1,VLOOKUP($B66,Formulacion!$A:$BE,MATCH(AL$1,Formulacion!$1:$1,0),FALSE)) -> 1 | AM66: 1 | AN66: =IF(VLOOKUP($B66,Formulacion!$A:$BE,MATCH(AN$1,Formulacion!$1:$1,0),FALSE)="NA","NA",IF(D66=0,"",VLOOKUP($B66,Formulacion!$A:$BE,MATCH(AN$1,Formulacion!$1:$1,0),FALSE))) -> NA | AO66: X | AV66: NA | AW66: =IF(VLOOKUP($B66,Formulacion!$A:$BE,MATCH(AW$1,Formulacion!$1:$1,0),FALSE)="NA","NA",HLOOKUP(VLOOKUP($B66,Formulacion!$A:$BE,MATCH(AW$1,Formulacion!$1:$1,0),FALSE),$Q:$Z,ROW(AW66),FALSE)) -> NA | AX66: NA | AY66: 1 | AZ66: =IF(VLOOKUP($B66,Formulacion!$A:$BE,MATCH(AZ$1,Formulacion!$1:$1,0),FALSE)="NA",1,VLOOKUP($B66,Formulacion!$A:$BE,MATCH(AZ$1,Formulacion!$1:$1,0),FALSE)) -> 0.9 | BA66: =IF(VLOOKUP($B66,Formulacion!$A:$BE,MATCH(BA$1,Formulacion!$1:$1,0),FALSE)="NA",1,VLOOKUP($B66,Formulacion!$A:$BE,MATCH(BA$1,Formulacion!$1:$1,0),FALSE)) -> 1 | BB66: 48372.615
A67: Edechi Proy con cta 2022 I | B67: CMEDI | C67: EC-CMEDI-CHIRIQUI | D67: CMEDIMBSNO999 | E67: 2022-06-30 | F67: Chiriqui | H67: 41751.15 | I67: 13797.16 | K67: 0 | N67: 55548.31 | P67: 0 | Q67: =IF(OR(VLOOKUP($B67,Formulacion!$A:$BE,MATCH(Q$1,Formulacion!$1:$1,0),FALSE)="NA",$D67=0),"NA",IF($B67="DLABT",MID($D67,PosteInicioBT,PosteFinBT-PosteInicioBT+1)*1,MID($D67,PosteInicio,PosteFin-PosteInicio+1)*1)) -> NA | R67: =IF(OR(VLOOKUP($B67,Formulacion!$A:$BE,MATCH(R$1,Formulacion!$1:$1,0),FALSE)="NA",$D67=0),"NA",IF(OR($B67="DLABT",$B67="DLSBT"),MID($D67,CondInicioBT,CondFinBT-CondInicioBT+1)*1,MID($D67,CondInicio,CondFin-CondInicio+1)*1)) -> NA | S67: =IF(Q67="NA","NA",IF(Q67=0,"SP",R67/Q67)) -> NA | T67: =IF(OR(VLOOKUP($B67,Formulacion!$A:$BE,MATCH(T$1,Formulacion!$1:$1,0),FALSE)="NA",$D67=0),"NA",IF($B67="DLSBT",MID($D67,ZanjaInicioBT,ZanjaFinBT-ZanjaInicioBT+1)*1,MID($D67,ZanjaInicio,ZanjaFin-ZanjaInicio+1)*1)) -> NA | U67: 1 | V67: =IF(OR(VLOOKUP($B67,Formulacion!$A:$BE,MATCH(V$1,Formulacion!$1:$1,0),FALSE)="NA",$D67=0),"NA",MID($D67,m2Inicio+INDIRECT(B67),m2Fin-m2Inicio+1)*1) -> NA | W67: =IF(OR(VLOOKUP($B67,Formulacion!$A:$BE,MATCH(W$1,Formulacion!$1:$1,0),FALSE)="NA",$D67=0),"NA",RIGHT($D67,4)*1) -> NA | X67: =IF(OR(VLOOKUP($B67,Formulacion!$A:$BE,MATCH(X$1,Formulacion!$1:$1,0),FALSE)="NA",$D67=0),"NA",RIGHT($D67,3)*1) -> 999 | Y67: =IF(OR(AND(W67="NA",X67="NA"),AND(W67="NA",X67>CantTrbtOtCMin),AND(W67>CantTrbtOtCMin,X67="NA")),1,0) -> 1 | Z67: =IF(VLOOKUP($B67,Formulacion!$A:$BE,MATCH(Z$1,Formulacion!$1:$1,0),FALSE)="NA",1,IF(V67<=m2Min,0,1)) -> 1 | AA67: =IF(VLOOKUP($B67,Formulacion!$A:$BE,MATCH(AA$1,Formulacion!$1:$1,0),FALSE)="NA",1,IF(OR(E67<=FechaMin,E67>FechaMax),0,1)) -> 1 | AB67: =IF(VLOOKUP($B67,Formulacion!$A:$BE,MATCH(AB$1,Formulacion!$1:$1,0),FALSE)="NA",1,IF(H67<=MaterialesMin,0,1)) -> 1 | AC67: =IF(VLOOKUP($B67,Formulacion!$A:$BE,MATCH(AC$1,Formulacion!$1:$1,0),FALSE)="NA",1,IF(N67=0,0,IF(OR(I67/N67<=MObraMin,I67/N67>=MObraMax),MDOmin,1))) -> 1 | AD67: =IF(VLOOKUP($B67,Formulacion!$A:$BE,MATCH(AD$1,Formulacion!$1:$1,0),FALSE)="NA",1,IF(N67<=CostoTotalMin,0,1)) -> 1 | AE67: =IF(VLOOKUP($B67,Formulacion!$A:$BE,MATCH(AE$1,Formulacion!$1:$1,0),FALSE)="NA",1,IF(Q67<=PostesMin,0,1)) -> 1 | AF67: =IF(VLOOKUP($B67,Formulacion!$A:$BE,MATCH(AF$1,Formulacion!$1:$1,0),FALSE)="NA",1,IF(R67<=INDIRECT(VLOOKUP(B67,Formulacion!$A:$BE,2,FALSE)),0,1)) -> 1 | AG67: =Y67*Z67*AA67*AB67*AC67*AD67*MAX(AE67,AF67) -> 1 | AH67: =N67*AG67 -> 55548.31 | AI67: 1 | AJ67: =IF(VLOOKUP($B67,Formulacion!$A:$BE,MATCH(AJ$1,Formulacion!$1:$1,0),FALSE)="NA","NA",HLOOKUP(VLOOKUP($B67,Formulacion!$A:$BE,MATCH(AJ$1,Formulacion!$1:$1,0),FALSE),$Q:$Z,ROW(AJ67),FALSE)) -> NA | AK67: =IF(VLOOKUP($B67,Formulacion!$A:$BE,MATCH(AK$1,Formulacion!$1:$1,0),FALSE)="NA",1,VLOOKUP($B67,Formulacion!$A:$BE,MATCH(AK$1,Formulacion!$1:$1,0),FALSE)) -> 1 | AL67: =IF(VLOOKUP($B67,Formulacion!$A:$BE,MATCH(AL$1,Formulacion!$1:$1,0),FALSE)="NA",1,VLOOKUP($B67,Formulacion!$A:$BE,MATCH(AL$1,Formulacion!$1:$1,0),FALSE)) -> 1 | AM67: =IF(AJ67="NA",1,IF(AJ67<=AK67*(1+AL67),"CU","NC")) -> 1 | AN67: =IF(VLOOKUP($B67,Formulacion!$A:$BE,MATCH(AN$1,Formulacion!$1:$1,0),FALSE)="NA","NA",IF(D67=0,"",VLOOKUP($B67,Formulacion!$A:$BE,MATCH(AN$1,Formulacion!$1:$1,0),FALSE))) -> NA | AO67: =IF(OR(MID(AN67,1,2)="",MID(AN67,1,2)="NA"),"X",MID(D67,MID(AN67,1,2),MID(AN67,3,2))) -> X | AP67: =IF(MID(AN67,5,2)="","",MID(D67,MID(AN67,5,2),MID(AN67,7,2))) ->  | AQ67: =IF(MID(AN67,9,2)="","",MID(D67,MID(AN67,9,2),MID(AN67,11,2))) ->  | AR67: =IF(MID(AN67,13,2)="","",MID(D67,MID(AN67,13,2),MID(AN67,15,2))) ->  | AS67: =IF(MID(AN67,17,2)="","",MID(D67,MID(AN67,17,2),MID(AN67,19,2))) ->  | AT67: =IF(MID(AN67,21,2)="","",MID(D67,MID(AN67,21,2),MID(AN67,23,2))) ->  | AU67: =IF(MID(AN67,25,2)="","",MID(D67,MID(AN67,25,2),MID(AN67,27,2))) ->  | AV67: NA | AW67: =IF(VLOOKUP($B67,Formulacion!$A:$BE,MATCH(AW$1,Formulacion!$1:$1,0),FALSE)="NA","NA",HLOOKUP(VLOOKUP($B67,Formulacion!$A:$BE,MATCH(AW$1,Formulacion!$1:$1,0),FALSE),$Q:$Z,ROW(AW67),FALSE)) -> NA | AX67: =IF(AV67="NA","NA",IF(AW67=0,0,N67/AW67)) -> NA | AY67: 1 | AZ67: =IF(VLOOKUP($B67,Formulacion!$A:$BE,MATCH(AZ$1,Formulacion!$1:$1,0),FALSE)="NA",1,VLOOKUP($B67,Formulacion!$A:$BE,MATCH(AZ$1,Formulacion!$1:$1,0),FALSE)) -> 0.9 | BA67: =IF(VLOOKUP($B67,Formulacion!$A:$BE,MATCH(BA$1,Formulacion!$1:$1,0),FALSE)="NA",1,VLOOKUP($B67,Formulacion!$A:$BE,MATCH(BA$1,Formulacion!$1:$1,0),FALSE)) -> 1 | BB67: =AH67*AY67*AZ67*BA67 -> 49993.479
A68: Edechi Proy con cta 2022 I | B68: CMEDI | C68: EC-CMEDI-CHIRIQUI | D68: CMEDIMBSNO999 | E68: 2022-06-30 | F68: Chiriqui | H68: 41751.15 | I68: 13797.16 | K68: 0 | N68: 55548.31 | P68: 0 | Q68: =IF(OR(VLOOKUP($B68,Formulacion!$A:$BE,MATCH(Q$1,Formulacion!$1:$1,0),FALSE)="NA",$D68=0),"NA",IF($B68="DLABT",MID($D68,PosteInicioBT,PosteFinBT-PosteInicioBT+1)*1,MID($D68,PosteInicio,PosteFin-PosteInicio+1)*1)) -> NA | R68: =IF(OR(VLOOKUP($B68,Formulacion!$A:$BE,MATCH(R$1,Formulacion!$1:$1,0),FALSE)="NA",$D68=0),"NA",IF(OR($B68="DLABT",$B68="DLSBT"),MID($D68,CondInicioBT,CondFinBT-CondInicioBT+1)*1,MID($D68,CondInicio,CondFin-CondInicio+1)*1)) -> NA | S68: NA | T68: =IF(OR(VLOOKUP($B68,Formulacion!$A:$BE,MATCH(T$1,Formulacion!$1:$1,0),FALSE)="NA",$D68=0),"NA",IF($B68="DLSBT",MID($D68,ZanjaInicioBT,ZanjaFinBT-ZanjaInicioBT+1)*1,MID($D68,ZanjaInicio,ZanjaFin-ZanjaInicio+1)*1)) -> NA | U68: 1 | V68: =IF(OR(VLOOKUP($B68,Formulacion!$A:$BE,MATCH(V$1,Formulacion!$1:$1,0),FALSE)="NA",$D68=0),"NA",MID($D68,m2Inicio+INDIRECT(B68),m2Fin-m2Inicio+1)*1) -> NA | W68: =IF(OR(VLOOKUP($B68,Formulacion!$A:$BE,MATCH(W$1,Formulacion!$1:$1,0),FALSE)="NA",$D68=0),"NA",RIGHT($D68,4)*1) -> NA | X68: =IF(OR(VLOOKUP($B68,Formulacion!$A:$BE,MATCH(X$1,Formulacion!$1:$1,0),FALSE)="NA",$D68=0),"NA",RIGHT($D68,3)*1) -> 999 | Y68: 1 | Z68: =IF(VLOOKUP($B68,Formulacion!$A:$BE,MATCH(Z$1,Formulacion!$1:$1,0),FALSE)="NA",1,IF(V68<=m2Min,0,1)) -> 1 | AA68: =IF(VLOOKUP($B68,Formulacion!$A:$BE,MATCH(AA$1,Formulacion!$1:$1,0),FALSE)="NA",1,IF(OR(E68<=FechaMin,E68>FechaMax),0,1)) -> 1 | AB68: =IF(VLOOKUP($B68,Formulacion!$A:$BE,MATCH(AB$1,Formulacion!$1:$1,0),FALSE)="NA",1,IF(H68<=MaterialesMin,0,1)) -> 1 | AC68: =IF(VLOOKUP($B68,Formulacion!$A:$BE,MATCH(AC$1,Formulacion!$1:$1,0),FALSE)="NA",1,IF(N68=0,0,IF(OR(I68/N68<=MObraMin,I68/N68>=MObraMax),MDOmin,1))) -> 1 | AD68: =IF(VLOOKUP($B68,Formulacion!$A:$BE,MATCH(AD$1,Formulacion!$1:$1,0),FALSE)="NA",1,IF(N68<=CostoTotalMin,0,1)) -> 1 | AE68: =IF(VLOOKUP($B68,Formulacion!$A:$BE,MATCH(AE$1,Formulacion!$1:$1,0),FALSE)="NA",1,IF(Q68<=PostesMin,0,1)) -> 1 | AF68: =IF(VLOOKUP($B68,Formulacion!$A:$BE,MATCH(AF$1,Formulacion!$1:$1,0),FALSE)="NA",1,IF(R68<=INDIRECT(VLOOKUP(B68,Formulacion!$A:$BE,2,FALSE)),0,1)) -> 1 | AG68: 1 | AH68: 55548.31 | AI68: 1 | AJ68: =IF(VLOOKUP($B68,Formulacion!$A:$BE,MATCH(AJ$1,Formulacion!$1:$1,0),FALSE)="NA","NA",HLOOKUP(VLOOKUP($B68,Formulacion!$A:$BE,MATCH(AJ$1,Formulacion!$1:$1,0),FALSE),$Q:$Z,ROW(AJ68),FALSE)) -> NA | AK68: =IF(VLOOKUP($B68,Formulacion!$A:$BE,MATCH(AK$1,Formulacion!$1:$1,0),FALSE)="NA",1,VLOOKUP($B68,Formulacion!$A:$BE,MATCH(AK$1,Formulacion!$1:$1,0),FALSE)) -> 1 | AL68: =IF(VLOOKUP($B68,Formulacion!$A:$BE,MATCH(AL$1,Formulacion!$1:$1,0),FALSE)="NA",1,VLOOKUP($B68,Formulacion!$A:$BE,MATCH(AL$1,Formulacion!$1:$1,0),FALSE)) -> 1 | AM68: 1 | AN68: =IF(VLOOKUP($B68,Formulacion!$A:$BE,MATCH(AN$1,Formulacion!$1:$1,0),FALSE)="NA","NA",IF(D68=0,"",VLOOKUP($B68,Formulacion!$A:$BE,MATCH(AN$1,Formulacion!$1:$1,0),FALSE))) -> NA | AO68: X | AV68: NA | AW68: =IF(VLOOKUP($B68,Formulacion!$A:$BE,MATCH(AW$1,Formulacion!$1:$1,0),FALSE)="NA","NA",HLOOKUP(VLOOKUP($B68,Formulacion!$A:$BE,MATCH(AW$1,Formulacion!$1:$1,0),FALSE),$Q:$Z,ROW(AW68),FALSE)) -> NA | AX68: NA | AY68: =AY67 -> 1 | AZ68: =IF(VLOOKUP($B68,Formulacion!$A:$BE,MATCH(AZ$1,Formulacion!$1:$1,0),FALSE)="NA",1,VLOOKUP($B68,Formulacion!$A:$BE,MATCH(AZ$1,Formulacion!$1:$1,0),FALSE)) -> 0.9 | BA68: =IF(VLOOKUP($B68,Formulacion!$A:$BE,MATCH(BA$1,Formulacion!$1:$1,0),FALSE)="NA",1,VLOOKUP($B68,Formulacion!$A:$BE,MATCH(BA$1,Formulacion!$1:$1,0),FALSE)) -> 1 | BB68: 49993.479
A69: Edechi Proy con cta 2022 I | B69: CMEDI | C69: EC-CMEDI-CHIRIQUI | D69: CMEDIMBSNO999 | E69: 2022-06-30 | F69: Chiriqui | H69: 41751.15 | I69: 13797.16 | K69: 0 | N69: 55548.31 | P69: 0 | Q69: =IF(OR(VLOOKUP($B69,Formulacion!$A:$BE,MATCH(Q$1,Formulacion!$1:$1,0),FALSE)="NA",$D69=0),"NA",IF($B69="DLABT",MID($D69,PosteInicioBT,PosteFinBT-PosteInicioBT+1)*1,MID($D69,PosteInicio,PosteFin-PosteInicio+1)*1)) -> NA | R69: =IF(OR(VLOOKUP($B69,Formulacion!$A:$BE,MATCH(R$1,Formulacion!$1:$1,0),FALSE)="NA",$D69=0),"NA",IF(OR($B69="DLABT",$B69="DLSBT"),MID($D69,CondInicioBT,CondFinBT-CondInicioBT+1)*1,MID($D69,CondInicio,CondFin-CondInicio+1)*1)) -> NA | S69: NA | T69: =IF(OR(VLOOKUP($B69,Formulacion!$A:$BE,MATCH(T$1,Formulacion!$1:$1,0),FALSE)="NA",$D69=0),"NA",IF($B69="DLSBT",MID($D69,ZanjaInicioBT,ZanjaFinBT-ZanjaInicioBT+1)*1,MID($D69,ZanjaInicio,ZanjaFin-ZanjaInicio+1)*1)) -> NA | U69: 1 | V69: =IF(OR(VLOOKUP($B69,Formulacion!$A:$BE,MATCH(V$1,Formulacion!$1:$1,0),FALSE)="NA",$D69=0),"NA",MID($D69,m2Inicio+INDIRECT(B69),m2Fin-m2Inicio+1)*1) -> NA | W69: =IF(OR(VLOOKUP($B69,Formulacion!$A:$BE,MATCH(W$1,Formulacion!$1:$1,0),FALSE)="NA",$D69=0),"NA",RIGHT($D69,4)*1) -> NA | X69: =IF(OR(VLOOKUP($B69,Formulacion!$A:$BE,MATCH(X$1,Formulacion!$1:$1,0),FALSE)="NA",$D69=0),"NA",RIGHT($D69,3)*1) -> 999 | Y69: 1 | Z69: =IF(VLOOKUP($B69,Formulacion!$A:$BE,MATCH(Z$1,Formulacion!$1:$1,0),FALSE)="NA",1,IF(V69<=m2Min,0,1)) -> 1 | AA69: =IF(VLOOKUP($B69,Formulacion!$A:$BE,MATCH(AA$1,Formulacion!$1:$1,0),FALSE)="NA",1,IF(OR(E69<=FechaMin,E69>FechaMax),0,1)) -> 1 | AB69: =IF(VLOOKUP($B69,Formulacion!$A:$BE,MATCH(AB$1,Formulacion!$1:$1,0),FALSE)="NA",1,IF(H69<=MaterialesMin,0,1)) -> 1 | AC69: =IF(VLOOKUP($B69,Formulacion!$A:$BE,MATCH(AC$1,Formulacion!$1:$1,0),FALSE)="NA",1,IF(N69=0,0,IF(OR(I69/N69<=MObraMin,I69/N69>=MObraMax),MDOmin,1))) -> 1 | AD69: =IF(VLOOKUP($B69,Formulacion!$A:$BE,MATCH(AD$1,Formulacion!$1:$1,0),FALSE)="NA",1,IF(N69<=CostoTotalMin,0,1)) -> 1 | AE69: =IF(VLOOKUP($B69,Formulacion!$A:$BE,MATCH(AE$1,Formulacion!$1:$1,0),FALSE)="NA",1,IF(Q69<=PostesMin,0,1)) -> 1 | AF69: =IF(VLOOKUP($B69,Formulacion!$A:$BE,MATCH(AF$1,Formulacion!$1:$1,0),FALSE)="NA",1,IF(R69<=INDIRECT(VLOOKUP(B69,Formulacion!$A:$BE,2,FALSE)),0,1)) -> 1 | AG69: 1 | AH69: 55548.31 | AI69: 1 | AJ69: =IF(VLOOKUP($B69,Formulacion!$A:$BE,MATCH(AJ$1,Formulacion!$1:$1,0),FALSE)="NA","NA",HLOOKUP(VLOOKUP($B69,Formulacion!$A:$BE,MATCH(AJ$1,Formulacion!$1:$1,0),FALSE),$Q:$Z,ROW(AJ69),FALSE)) -> NA | AK69: =IF(VLOOKUP($B69,Formulacion!$A:$BE,MATCH(AK$1,Formulacion!$1:$1,0),FALSE)="NA",1,VLOOKUP($B69,Formulacion!$A:$BE,MATCH(AK$1,Formulacion!$1:$1,0),FALSE)) -> 1 | AL69: =IF(VLOOKUP($B69,Formulacion!$A:$BE,MATCH(AL$1,Formulacion!$1:$1,0),FALSE)="NA",1,VLOOKUP($B69,Formulacion!$A:$BE,MATCH(AL$1,Formulacion!$1:$1,0),FALSE)) -> 1 | AM69: 1 | AN69: =IF(VLOOKUP($B69,Formulacion!$A:$BE,MATCH(AN$1,Formulacion!$1:$1,0),FALSE)="NA","NA",IF(D69=0,"",VLOOKUP($B69,Formulacion!$A:$BE,MATCH(AN$1,Formulacion!$1:$1,0),FALSE))) -> NA | AO69: X | AV69: NA | AW69: =IF(VLOOKUP($B69,Formulacion!$A:$BE,MATCH(AW$1,Formulacion!$1:$1,0),FALSE)="NA","NA",HLOOKUP(VLOOKUP($B69,Formulacion!$A:$BE,MATCH(AW$1,Formulacion!$1:$1,0),FALSE),$Q:$Z,ROW(AW69),FALSE)) -> NA | AX69: NA | AY69: 1 | AZ69: =IF(VLOOKUP($B69,Formulacion!$A:$BE,MATCH(AZ$1,Formulacion!$1:$1,0),FALSE)="NA",1,VLOOKUP($B69,Formulacion!$A:$BE,MATCH(AZ$1,Formulacion!$1:$1,0),FALSE)) -> 0.9 | BA69: =IF(VLOOKUP($B69,Formulacion!$A:$BE,MATCH(BA$1,Formulacion!$1:$1,0),FALSE)="NA",1,VLOOKUP($B69,Formulacion!$A:$BE,MATCH(BA$1,Formulacion!$1:$1,0),FALSE)) -> 1 | BB69: 49993.479
A70: Edechi Proy con cta 2022 I | B70: CMEDI | C70: EC-CMEDI-CHIRIQUI | D70: CMEDIMBSNO999 | E70: 2022-06-30 | F70: Chiriqui | H70: 41751.15 | I70: 13797.16 | K70: 0 | N70: 55548.31 | P70: 0 | Q70: =IF(OR(VLOOKUP($B70,Formulacion!$A:$BE,MATCH(Q$1,Formulacion!$1:$1,0),FALSE)="NA",$D70=0),"NA",IF($B70="DLABT",MID($D70,PosteInicioBT,PosteFinBT-PosteInicioBT+1)*1,MID($D70,PosteInicio,PosteFin-PosteInicio+1)*1)) -> NA | R70: =IF(OR(VLOOKUP($B70,Formulacion!$A:$BE,MATCH(R$1,Formulacion!$1:$1,0),FALSE)="NA",$D70=0),"NA",IF(OR($B70="DLABT",$B70="DLSBT"),MID($D70,CondInicioBT,CondFinBT-CondInicioBT+1)*1,MID($D70,CondInicio,CondFin-CondInicio+1)*1)) -> NA | S70: NA | T70: =IF(OR(VLOOKUP($B70,Formulacion!$A:$BE,MATCH(T$1,Formulacion!$1:$1,0),FALSE)="NA",$D70=0),"NA",IF($B70="DLSBT",MID($D70,ZanjaInicioBT,ZanjaFinBT-ZanjaInicioBT+1)*1,MID($D70,ZanjaInicio,ZanjaFin-ZanjaInicio+1)*1)) -> NA | U70: 1 | V70: =IF(OR(VLOOKUP($B70,Formulacion!$A:$BE,MATCH(V$1,Formulacion!$1:$1,0),FALSE)="NA",$D70=0),"NA",MID($D70,m2Inicio+INDIRECT(B70),m2Fin-m2Inicio+1)*1) -> NA | W70: =IF(OR(VLOOKUP($B70,Formulacion!$A:$BE,MATCH(W$1,Formulacion!$1:$1,0),FALSE)="NA",$D70=0),"NA",RIGHT($D70,4)*1) -> NA | X70: =IF(OR(VLOOKUP($B70,Formulacion!$A:$BE,MATCH(X$1,Formulacion!$1:$1,0),FALSE)="NA",$D70=0),"NA",RIGHT($D70,3)*1) -> 999 | Y70: 1 | Z70: =IF(VLOOKUP($B70,Formulacion!$A:$BE,MATCH(Z$1,Formulacion!$1:$1,0),FALSE)="NA",1,IF(V70<=m2Min,0,1)) -> 1 | AA70: =IF(VLOOKUP($B70,Formulacion!$A:$BE,MATCH(AA$1,Formulacion!$1:$1,0),FALSE)="NA",1,IF(OR(E70<=FechaMin,E70>FechaMax),0,1)) -> 1 | AB70: =IF(VLOOKUP($B70,Formulacion!$A:$BE,MATCH(AB$1,Formulacion!$1:$1,0),FALSE)="NA",1,IF(H70<=MaterialesMin,0,1)) -> 1 | AC70: =IF(VLOOKUP($B70,Formulacion!$A:$BE,MATCH(AC$1,Formulacion!$1:$1,0),FALSE)="NA",1,IF(N70=0,0,IF(OR(I70/N70<=MObraMin,I70/N70>=MObraMax),MDOmin,1))) -> 1 | AD70: =IF(VLOOKUP($B70,Formulacion!$A:$BE,MATCH(AD$1,Formulacion!$1:$1,0),FALSE)="NA",1,IF(N70<=CostoTotalMin,0,1)) -> 1 | AE70: =IF(VLOOKUP($B70,Formulacion!$A:$BE,MATCH(AE$1,Formulacion!$1:$1,0),FALSE)="NA",1,IF(Q70<=PostesMin,0,1)) -> 1 | AF70: =IF(VLOOKUP($B70,Formulacion!$A:$BE,MATCH(AF$1,Formulacion!$1:$1,0),FALSE)="NA",1,IF(R70<=INDIRECT(VLOOKUP(B70,Formulacion!$A:$BE,2,FALSE)),0,1)) -> 1 | AG70: 1 | AH70: 55548.31 | AI70: 1 | AJ70: =IF(VLOOKUP($B70,Formulacion!$A:$BE,MATCH(AJ$1,Formulacion!$1:$1,0),FALSE)="NA","NA",HLOOKUP(VLOOKUP($B70,Formulacion!$A:$BE,MATCH(AJ$1,Formulacion!$1:$1,0),FALSE),$Q:$Z,ROW(AJ70),FALSE)) -> NA | AK70: =IF(VLOOKUP($B70,Formulacion!$A:$BE,MATCH(AK$1,Formulacion!$1:$1,0),FALSE)="NA",1,VLOOKUP($B70,Formulacion!$A:$BE,MATCH(AK$1,Formulacion!$1:$1,0),FALSE)) -> 1 | AL70: =IF(VLOOKUP($B70,Formulacion!$A:$BE,MATCH(AL$1,Formulacion!$1:$1,0),FALSE)="NA",1,VLOOKUP($B70,Formulacion!$A:$BE,MATCH(AL$1,Formulacion!$1:$1,0),FALSE)) -> 1 | AM70: 1 | AN70: =IF(VLOOKUP($B70,Formulacion!$A:$BE,MATCH(AN$1,Formulacion!$1:$1,0),FALSE)="NA","NA",IF(D70=0,"",VLOOKUP($B70,Formulacion!$A:$BE,MATCH(AN$1,Formulacion!$1:$1,0),FALSE))) -> NA | AO70: X | AV70: NA | AW70: =IF(VLOOKUP($B70,Formulacion!$A:$BE,MATCH(AW$1,Formulacion!$1:$1,0),FALSE)="NA","NA",HLOOKUP(VLOOKUP($B70,Formulacion!$A:$BE,MATCH(AW$1,Formulacion!$1:$1,0),FALSE),$Q:$Z,ROW(AW70),FALSE)) -> NA | AX70: NA | AY70: 1 | AZ70: =IF(VLOOKUP($B70,Formulacion!$A:$BE,MATCH(AZ$1,Formulacion!$1:$1,0),FALSE)="NA",1,VLOOKUP($B70,Formulacion!$A:$BE,MATCH(AZ$1,Formulacion!$1:$1,0),FALSE)) -> 0.9 | BA70: =IF(VLOOKUP($B70,Formulacion!$A:$BE,MATCH(BA$1,Formulacion!$1:$1,0),FALSE)="NA",1,VLOOKUP($B70,Formulacion!$A:$BE,MATCH(BA$1,Formulacion!$1:$1,0),FALSE)) -> 1 | BB70: 49993.479
A71: Edechi Proy con cta 2022 I | B71: CMEDI | C71: EC-CMEDI-CHIRIQUI | D71: CMEDIMBSNO999 | E71: 2022-06-30 | F71: Chiriqui | H71: 41751.15 | I71: 13797.16 | K71: 0 | N71: 55548.31 | P71: 0 | Q71: =IF(OR(VLOOKUP($B71,Formulacion!$A:$BE,MATCH(Q$1,Formulacion!$1:$1,0),FALSE)="NA",$D71=0),"NA",IF($B71="DLABT",MID($D71,PosteInicioBT,PosteFinBT-PosteInicioBT+1)*1,MID($D71,PosteInicio,PosteFin-PosteInicio+1)*1)) -> NA | R71: =IF(OR(VLOOKUP($B71,Formulacion!$A:$BE,MATCH(R$1,Formulacion!$1:$1,0),FALSE)="NA",$D71=0),"NA",IF(OR($B71="DLABT",$B71="DLSBT"),MID($D71,CondInicioBT,CondFinBT-CondInicioBT+1)*1,MID($D71,CondInicio,CondFin-CondInicio+1)*1)) -> NA | S71: NA | T71: =IF(OR(VLOOKUP($B71,Formulacion!$A:$BE,MATCH(T$1,Formulacion!$1:$1,0),FALSE)="NA",$D71=0),"NA",IF($B71="DLSBT",MID($D71,ZanjaInicioBT,ZanjaFinBT-ZanjaInicioBT+1)*1,MID($D71,ZanjaInicio,ZanjaFin-ZanjaInicio+1)*1)) -> NA | U71: 1 | V71: =IF(OR(VLOOKUP($B71,Formulacion!$A:$BE,MATCH(V$1,Formulacion!$1:$1,0),FALSE)="NA",$D71=0),"NA",MID($D71,m2Inicio+INDIRECT(B71),m2Fin-m2Inicio+1)*1) -> NA | W71: =IF(OR(VLOOKUP($B71,Formulacion!$A:$BE,MATCH(W$1,Formulacion!$1:$1,0),FALSE)="NA",$D71=0),"NA",RIGHT($D71,4)*1) -> NA | X71: =IF(OR(VLOOKUP($B71,Formulacion!$A:$BE,MATCH(X$1,Formulacion!$1:$1,0),FALSE)="NA",$D71=0),"NA",RIGHT($D71,3)*1) -> 999 | Y71: 1 | Z71: =IF(VLOOKUP($B71,Formulacion!$A:$BE,MATCH(Z$1,Formulacion!$1:$1,0),FALSE)="NA",1,IF(V71<=m2Min,0,1)) -> 1 | AA71: =IF(VLOOKUP($B71,Formulacion!$A:$BE,MATCH(AA$1,Formulacion!$1:$1,0),FALSE)="NA",1,IF(OR(E71<=FechaMin,E71>FechaMax),0,1)) -> 1 | AB71: =IF(VLOOKUP($B71,Formulacion!$A:$BE,MATCH(AB$1,Formulacion!$1:$1,0),FALSE)="NA",1,IF(H71<=MaterialesMin,0,1)) -> 1 | AC71: =IF(VLOOKUP($B71,Formulacion!$A:$BE,MATCH(AC$1,Formulacion!$1:$1,0),FALSE)="NA",1,IF(N71=0,0,IF(OR(I71/N71<=MObraMin,I71/N71>=MObraMax),MDOmin,1))) -> 1 | AD71: =IF(VLOOKUP($B71,Formulacion!$A:$BE,MATCH(AD$1,Formulacion!$1:$1,0),FALSE)="NA",1,IF(N71<=CostoTotalMin,0,1)) -> 1 | AE71: =IF(VLOOKUP($B71,Formulacion!$A:$BE,MATCH(AE$1,Formulacion!$1:$1,0),FALSE)="NA",1,IF(Q71<=PostesMin,0,1)) -> 1 | AF71: =IF(VLOOKUP($B71,Formulacion!$A:$BE,MATCH(AF$1,Formulacion!$1:$1,0),FALSE)="NA",1,IF(R71<=INDIRECT(VLOOKUP(B71,Formulacion!$A:$BE,2,FALSE)),0,1)) -> 1 | AG71: 1 | AH71: 55548.31 | AI71: 1 | AJ71: =IF(VLOOKUP($B71,Formulacion!$A:$BE,MATCH(AJ$1,Formulacion!$1:$1,0),FALSE)="NA","NA",HLOOKUP(VLOOKUP($B71,Formulacion!$A:$BE,MATCH(AJ$1,Formulacion!$1:$1,0),FALSE),$Q:$Z,ROW(AJ71),FALSE)) -> NA | AK71: =IF(VLOOKUP($B71,Formulacion!$A:$BE,MATCH(AK$1,Formulacion!$1:$1,0),FALSE)="NA",1,VLOOKUP($B71,Formulacion!$A:$BE,MATCH(AK$1,Formulacion!$1:$1,0),FALSE)) -> 1 | AL71: =IF(VLOOKUP($B71,Formulacion!$A:$BE,MATCH(AL$1,Formulacion!$1:$1,0),FALSE)="NA",1,VLOOKUP($B71,Formulacion!$A:$BE,MATCH(AL$1,Formulacion!$1:$1,0),FALSE)) -> 1 | AM71: 1 | AN71: =IF(VLOOKUP($B71,Formulacion!$A:$BE,MATCH(AN$1,Formulacion!$1:$1,0),FALSE)="NA","NA",IF(D71=0,"",VLOOKUP($B71,Formulacion!$A:$BE,MATCH(AN$1,Formulacion!$1:$1,0),FALSE))) -> NA | AO71: X | AV71: NA | AW71: =IF(VLOOKUP($B71,Formulacion!$A:$BE,MATCH(AW$1,Formulacion!$1:$1,0),FALSE)="NA","NA",HLOOKUP(VLOOKUP($B71,Formulacion!$A:$BE,MATCH(AW$1,Formulacion!$1:$1,0),FALSE),$Q:$Z,ROW(AW71),FALSE)) -> NA | AX71: NA | AY71: 1 | AZ71: =IF(VLOOKUP($B71,Formulacion!$A:$BE,MATCH(AZ$1,Formulacion!$1:$1,0),FALSE)="NA",1,VLOOKUP($B71,Formulacion!$A:$BE,MATCH(AZ$1,Formulacion!$1:$1,0),FALSE)) -> 0.9 | BA71: =IF(VLOOKUP($B71,Formulacion!$A:$BE,MATCH(BA$1,Formulacion!$1:$1,0),FALSE)="NA",1,VLOOKUP($B71,Formulacion!$A:$BE,MATCH(BA$1,Formulacion!$1:$1,0),FALSE)) -> 1 | BB71: 49993.479
A72: Edechi Proy con cta 2022 I | B72: CMEDI | C72: EC-CMEDI-CHIRIQUI | D72: CMEDIMBSNO053 | E72: 2022-06-30 | F72: Chiriqui | H72: 2215.03 | I72: 731.98 | K72: 0 | N72: 2947.01 | P72: 0 | Q72: =IF(OR(VLOOKUP($B72,Formulacion!$A:$BE,MATCH(Q$1,Formulacion!$1:$1,0),FALSE)="NA",$D72=0),"NA",IF($B72="DLABT",MID($D72,PosteInicioBT,PosteFinBT-PosteInicioBT+1)*1,MID($D72,PosteInicio,PosteFin-PosteInicio+1)*1)) -> NA | R72: =IF(OR(VLOOKUP($B72,Formulacion!$A:$BE,MATCH(R$1,Formulacion!$1:$1,0),FALSE)="NA",$D72=0),"NA",IF(OR($B72="DLABT",$B72="DLSBT"),MID($D72,CondInicioBT,CondFinBT-CondInicioBT+1)*1,MID($D72,CondInicio,CondFin-CondInicio+1)*1)) -> NA | S72: NA | T72: =IF(OR(VLOOKUP($B72,Formulacion!$A:$BE,MATCH(T$1,Formulacion!$1:$1,0),FALSE)="NA",$D72=0),"NA",IF($B72="DLSBT",MID($D72,ZanjaInicioBT,ZanjaFinBT-ZanjaInicioBT+1)*1,MID($D72,ZanjaInicio,ZanjaFin-ZanjaInicio+1)*1)) -> NA | U72: 1 | V72: =IF(OR(VLOOKUP($B72,Formulacion!$A:$BE,MATCH(V$1,Formulacion!$1:$1,0),FALSE)="NA",$D72=0),"NA",MID($D72,m2Inicio+INDIRECT(B72),m2Fin-m2Inicio+1)*1) -> NA | W72: =IF(OR(VLOOKUP($B72,Formulacion!$A:$BE,MATCH(W$1,Formulacion!$1:$1,0),FALSE)="NA",$D72=0),"NA",RIGHT($D72,4)*1) -> NA | X72: =IF(OR(VLOOKUP($B72,Formulacion!$A:$BE,MATCH(X$1,Formulacion!$1:$1,0),FALSE)="NA",$D72=0),"NA",RIGHT($D72,3)*1) -> 53 | Y72: 1 | Z72: =IF(VLOOKUP($B72,Formulacion!$A:$BE,MATCH(Z$1,Formulacion!$1:$1,0),FALSE)="NA",1,IF(V72<=m2Min,0,1)) -> 1 | AA72: =IF(VLOOKUP($B72,Formulacion!$A:$BE,MATCH(AA$1,Formulacion!$1:$1,0),FALSE)="NA",1,IF(OR(E72<=FechaMin,E72>FechaMax),0,1)) -> 1 | AB72: =IF(VLOOKUP($B72,Formulacion!$A:$BE,MATCH(AB$1,Formulacion!$1:$1,0),FALSE)="NA",1,IF(H72<=MaterialesMin,0,1)) -> 1 | AC72: =IF(VLOOKUP($B72,Formulacion!$A:$BE,MATCH(AC$1,Formulacion!$1:$1,0),FALSE)="NA",1,IF(N72=0,0,IF(OR(I72/N72<=MObraMin,I72/N72>=MObraMax),MDOmin,1))) -> 1 | AD72: =IF(VLOOKUP($B72,Formulacion!$A:$BE,MATCH(AD$1,Formulacion!$1:$1,0),FALSE)="NA",1,IF(N72<=CostoTotalMin,0,1)) -> 1 | AE72: =IF(VLOOKUP($B72,Formulacion!$A:$BE,MATCH(AE$1,Formulacion!$1:$1,0),FALSE)="NA",1,IF(Q72<=PostesMin,0,1)) -> 1 | AF72: =IF(VLOOKUP($B72,Formulacion!$A:$BE,MATCH(AF$1,Formulacion!$1:$1,0),FALSE)="NA",1,IF(R72<=INDIRECT(VLOOKUP(B72,Formulacion!$A:$BE,2,FALSE)),0,1)) -> 1 | AG72: 1 | AH72: 2947.01 | AI72: 1 | AJ72: =IF(VLOOKUP($B72,Formulacion!$A:$BE,MATCH(AJ$1,Formulacion!$1:$1,0),FALSE)="NA","NA",HLOOKUP(VLOOKUP($B72,Formulacion!$A:$BE,MATCH(AJ$1,Formulacion!$1:$1,0),FALSE),$Q:$Z,ROW(AJ72),FALSE)) -> NA | AK72: =IF(VLOOKUP($B72,Formulacion!$A:$BE,MATCH(AK$1,Formulacion!$1:$1,0),FALSE)="NA",1,VLOOKUP($B72,Formulacion!$A:$BE,MATCH(AK$1,Formulacion!$1:$1,0),FALSE)) -> 1 | AL72: =IF(VLOOKUP($B72,Formulacion!$A:$BE,MATCH(AL$1,Formulacion!$1:$1,0),FALSE)="NA",1,VLOOKUP($B72,Formulacion!$A:$BE,MATCH(AL$1,Formulacion!$1:$1,0),FALSE)) -> 1 | AM72: 1 | AN72: =IF(VLOOKUP($B72,Formulacion!$A:$BE,MATCH(AN$1,Formulacion!$1:$1,0),FALSE)="NA","NA",IF(D72=0,"",VLOOKUP($B72,Formulacion!$A:$BE,MATCH(AN$1,Formulacion!$1:$1,0),FALSE))) -> NA | AO72: X | AV72: NA | AW72: =IF(VLOOKUP($B72,Formulacion!$A:$BE,MATCH(AW$1,Formulacion!$1:$1,0),FALSE)="NA","NA",HLOOKUP(VLOOKUP($B72,Formulacion!$A:$BE,MATCH(AW$1,Formulacion!$1:$1,0),FALSE),$Q:$Z,ROW(AW72),FALSE)) -> NA | AX72: NA | AY72: 1 | AZ72: =IF(VLOOKUP($B72,Formulacion!$A:$BE,MATCH(AZ$1,Formulacion!$1:$1,0),FALSE)="NA",1,VLOOKUP($B72,Formulacion!$A:$BE,MATCH(AZ$1,Formulacion!$1:$1,0),FALSE)) -> 0.9 | BA72: =IF(VLOOKUP($B72,Formulacion!$A:$BE,MATCH(BA$1,Formulacion!$1:$1,0),FALSE)="NA",1,VLOOKUP($B72,Formulacion!$A:$BE,MATCH(BA$1,Formulacion!$1:$1,0),FALSE)) -> 1 | BB72: 2652.309
A73: Edechi Proy con cta 2022 I | B73: CMEDI | C73: EC-CMEDI-CHIRIQUI | D73: CMEDIMBDNO024 | E73: 2022-06-30 | F73: Chiriqui | H73: 13144.28 | I73: 335.72 | K73: 0 | N73: 13480 | P73: 0 | Q73: =IF(OR(VLOOKUP($B73,Formulacion!$A:$BE,MATCH(Q$1,Formulacion!$1:$1,0),FALSE)="NA",$D73=0),"NA",IF($B73="DLABT",MID($D73,PosteInicioBT,PosteFinBT-PosteInicioBT+1)*1,MID($D73,PosteInicio,PosteFin-PosteInicio+1)*1)) -> NA | R73: =IF(OR(VLOOKUP($B73,Formulacion!$A:$BE,MATCH(R$1,Formulacion!$1:$1,0),FALSE)="NA",$D73=0),"NA",IF(OR($B73="DLABT",$B73="DLSBT"),MID($D73,CondInicioBT,CondFinBT-CondInicioBT+1)*1,MID($D73,CondInicio,CondFin-CondInicio+1)*1)) -> NA | S73: NA | T73: =IF(OR(VLOOKUP($B73,Formulacion!$A:$BE,MATCH(T$1,Formulacion!$1:$1,0),FALSE)="NA",$D73=0),"NA",IF($B73="DLSBT",MID($D73,ZanjaInicioBT,ZanjaFinBT-ZanjaInicioBT+1)*1,MID($D73,ZanjaInicio,ZanjaFin-ZanjaInicio+1)*1)) -> NA | U73: 1 | V73: =IF(OR(VLOOKUP($B73,Formulacion!$A:$BE,MATCH(V$1,Formulacion!$1:$1,0),FALSE)="NA",$D73=0),"NA",MID($D73,m2Inicio+INDIRECT(B73),m2Fin-m2Inicio+1)*1) -> NA | W73: =IF(OR(VLOOKUP($B73,Formulacion!$A:$BE,MATCH(W$1,Formulacion!$1:$1,0),FALSE)="NA",$D73=0),"NA",RIGHT($D73,4)*1) -> NA | X73: =IF(OR(VLOOKUP($B73,Formulacion!$A:$BE,MATCH(X$1,Formulacion!$1:$1,0),FALSE)="NA",$D73=0),"NA",RIGHT($D73,3)*1) -> 24 | Y73: 1 | Z73: =IF(VLOOKUP($B73,Formulacion!$A:$BE,MATCH(Z$1,Formulacion!$1:$1,0),FALSE)="NA",1,IF(V73<=m2Min,0,1)) -> 1 | AA73: =IF(VLOOKUP($B73,Formulacion!$A:$BE,MATCH(AA$1,Formulacion!$1:$1,0),FALSE)="NA",1,IF(OR(E73<=FechaMin,E73>FechaMax),0,1)) -> 1 | AB73: =IF(VLOOKUP($B73,Formulacion!$A:$BE,MATCH(AB$1,Formulacion!$1:$1,0),FALSE)="NA",1,IF(H73<=MaterialesMin,0,1)) -> 1 | AC73: =IF(VLOOKUP($B73,Formulacion!$A:$BE,MATCH(AC$1,Formulacion!$1:$1,0),FALSE)="NA",1,IF(N73=0,0,IF(OR(I73/N73<=MObraMin,I73/N73>=MObraMax),MDOmin,1))) -> 1 | AD73: =IF(VLOOKUP($B73,Formulacion!$A:$BE,MATCH(AD$1,Formulacion!$1:$1,0),FALSE)="NA",1,IF(N73<=CostoTotalMin,0,1)) -> 1 | AE73: =IF(VLOOKUP($B73,Formulacion!$A:$BE,MATCH(AE$1,Formulacion!$1:$1,0),FALSE)="NA",1,IF(Q73<=PostesMin,0,1)) -> 1 | AF73: =IF(VLOOKUP($B73,Formulacion!$A:$BE,MATCH(AF$1,Formulacion!$1:$1,0),FALSE)="NA",1,IF(R73<=INDIRECT(VLOOKUP(B73,Formulacion!$A:$BE,2,FALSE)),0,1)) -> 1 | AG73: 1 | AH73: 13480 | AI73: 1 | AJ73: =IF(VLOOKUP($B73,Formulacion!$A:$BE,MATCH(AJ$1,Formulacion!$1:$1,0),FALSE)="NA","NA",HLOOKUP(VLOOKUP($B73,Formulacion!$A:$BE,MATCH(AJ$1,Formulacion!$1:$1,0),FALSE),$Q:$Z,ROW(AJ73),FALSE)) -> NA | AK73: =IF(VLOOKUP($B73,Formulacion!$A:$BE,MATCH(AK$1,Formulacion!$1:$1,0),FALSE)="NA",1,VLOOKUP($B73,Formulacion!$A:$BE,MATCH(AK$1,Formulacion!$1:$1,0),FALSE)) -> 1 | AL73: =IF(VLOOKUP($B73,Formulacion!$A:$BE,MATCH(AL$1,Formulacion!$1:$1,0),FALSE)="NA",1,VLOOKUP($B73,Formulacion!$A:$BE,MATCH(AL$1,Formulacion!$1:$1,0),FALSE)) -> 1 | AM73: 1 | AN73: =IF(VLOOKUP($B73,Formulacion!$A:$BE,MATCH(AN$1,Formulacion!$1:$1,0),FALSE)="NA","NA",IF(D73=0,"",VLOOKUP($B73,Formulacion!$A:$BE,MATCH(AN$1,Formulacion!$1:$1,0),FALSE))) -> NA | AO73: X | AV73: NA | AW73: =IF(VLOOKUP($B73,Formulacion!$A:$BE,MATCH(AW$1,Formulacion!$1:$1,0),FALSE)="NA","NA",HLOOKUP(VLOOKUP($B73,Formulacion!$A:$BE,MATCH(AW$1,Formulacion!$1:$1,0),FALSE),$Q:$Z,ROW(AW73),FALSE)) -> NA | AX73: NA | AY73: 1 | AZ73: =IF(VLOOKUP($B73,Formulacion!$A:$BE,MATCH(AZ$1,Formulacion!$1:$1,0),FALSE)="NA",1,VLOOKUP($B73,Formulacion!$A:$BE,MATCH(AZ$1,Formulacion!$1:$1,0),FALSE)) -> 0.9 | BA73: =IF(VLOOKUP($B73,Formulacion!$A:$BE,MATCH(BA$1,Formulacion!$1:$1,0),FALSE)="NA",1,VLOOKUP($B73,Formulacion!$A:$BE,MATCH(BA$1,Formulacion!$1:$1,0),FALSE)) -> 1 | BB73: 12132
A74: Edechi Proy con cta 2022 I | B74: CMEDI | C74: EC-CMEDI-CHIRIQUI | D74: CMEDITBDTI081 | E74: 2022-06-30 | F74: Chiriqui | H74: 87705.78 | I74: 3386.22 | K74: 0 | N74: 91092 | P74: 0 | Q74: =IF(OR(VLOOKUP($B74,Formulacion!$A:$BE,MATCH(Q$1,Formulacion!$1:$1,0),FALSE)="NA",$D74=0),"NA",IF($B74="DLABT",MID($D74,PosteInicioBT,PosteFinBT-PosteInicioBT+1)*1,MID($D74,PosteInicio,PosteFin-PosteInicio+1)*1)) -> NA | R74: =IF(OR(VLOOKUP($B74,Formulacion!$A:$BE,MATCH(R$1,Formulacion!$1:$1,0),FALSE)="NA",$D74=0),"NA",IF(OR($B74="DLABT",$B74="DLSBT"),MID($D74,CondInicioBT,CondFinBT-CondInicioBT+1)*1,MID($D74,CondInicio,CondFin-CondInicio+1)*1)) -> NA | S74: NA | T74: =IF(OR(VLOOKUP($B74,Formulacion!$A:$BE,MATCH(T$1,Formulacion!$1:$1,0),FALSE)="NA",$D74=0),"NA",IF($B74="DLSBT",MID($D74,ZanjaInicioBT,ZanjaFinBT-ZanjaInicioBT+1)*1,MID($D74,ZanjaInicio,ZanjaFin-ZanjaInicio+1)*1)) -> NA | U74: 1 | V74: =IF(OR(VLOOKUP($B74,Formulacion!$A:$BE,MATCH(V$1,Formulacion!$1:$1,0),FALSE)="NA",$D74=0),"NA",MID($D74,m2Inicio+INDIRECT(B74),m2Fin-m2Inicio+1)*1) -> NA | W74: =IF(OR(VLOOKUP($B74,Formulacion!$A:$BE,MATCH(W$1,Formulacion!$1:$1,0),FALSE)="NA",$D74=0),"NA",RIGHT($D74,4)*1) -> NA | X74: =IF(OR(VLOOKUP($B74,Formulacion!$A:$BE,MATCH(X$1,Formulacion!$1:$1,0),FALSE)="NA",$D74=0),"NA",RIGHT($D74,3)*1) -> 81 | Y74: 1 | Z74: =IF(VLOOKUP($B74,Formulacion!$A:$BE,MATCH(Z$1,Formulacion!$1:$1,0),FALSE)="NA",1,IF(V74<=m2Min,0,1)) -> 1 | AA74: =IF(VLOOKUP($B74,Formulacion!$A:$BE,MATCH(AA$1,Formulacion!$1:$1,0),FALSE)="NA",1,IF(OR(E74<=FechaMin,E74>FechaMax),0,1)) -> 1 | AB74: =IF(VLOOKUP($B74,Formulacion!$A:$BE,MATCH(AB$1,Formulacion!$1:$1,0),FALSE)="NA",1,IF(H74<=MaterialesMin,0,1)) -> 1 | AC74: =IF(VLOOKUP($B74,Formulacion!$A:$BE,MATCH(AC$1,Formulacion!$1:$1,0),FALSE)="NA",1,IF(N74=0,0,IF(OR(I74/N74<=MObraMin,I74/N74>=MObraMax),MDOmin,1))) -> 1 | AD74: =IF(VLOOKUP($B74,Formulacion!$A:$BE,MATCH(AD$1,Formulacion!$1:$1,0),FALSE)="NA",1,IF(N74<=CostoTotalMin,0,1)) -> 1 | AE74: =IF(VLOOKUP($B74,Formulacion!$A:$BE,MATCH(AE$1,Formulacion!$1:$1,0),FALSE)="NA",1,IF(Q74<=PostesMin,0,1)) -> 1 | AF74: =IF(VLOOKUP($B74,Formulacion!$A:$BE,MATCH(AF$1,Formulacion!$1:$1,0),FALSE)="NA",1,IF(R74<=INDIRECT(VLOOKUP(B74,Formulacion!$A:$BE,2,FALSE)),0,1)) -> 1 | AG74: 1 | AH74: 91092 | AI74: 1 | AJ74: =IF(VLOOKUP($B74,Formulacion!$A:$BE,MATCH(AJ$1,Formulacion!$1:$1,0),FALSE)="NA","NA",HLOOKUP(VLOOKUP($B74,Formulacion!$A:$BE,MATCH(AJ$1,Formulacion!$1:$1,0),FALSE),$Q:$Z,ROW(AJ74),FALSE)) -> NA | AK74: =IF(VLOOKUP($B74,Formulacion!$A:$BE,MATCH(AK$1,Formulacion!$1:$1,0),FALSE)="NA",1,VLOOKUP($B74,Formulacion!$A:$BE,MATCH(AK$1,Formulacion!$1:$1,0),FALSE)) -> 1 | AL74: =IF(VLOOKUP($B74,Formulacion!$A:$BE,MATCH(AL$1,Formulacion!$1:$1,0),FALSE)="NA",1,VLOOKUP($B74,Formulacion!$A:$BE,MATCH(AL$1,Formulacion!$1:$1,0),FALSE)) -> 1 | AM74: 1 | AN74: =IF(VLOOKUP($B74,Formulacion!$A:$BE,MATCH(AN$1,Formulacion!$1:$1,0),FALSE)="NA","NA",IF(D74=0,"",VLOOKUP($B74,Formulacion!$A:$BE,MATCH(AN$1,Formulacion!$1:$1,0),FALSE))) -> NA | AO74: X | AV74: NA | AW74: =IF(VLOOKUP($B74,Formulacion!$A:$BE,MATCH(AW$1,Formulacion!$1:$1,0),FALSE)="NA","NA",HLOOKUP(VLOOKUP($B74,Formulacion!$A:$BE,MATCH(AW$1,Formulacion!$1:$1,0),FALSE),$Q:$Z,ROW(AW74),FALSE)) -> NA | AX74: NA | AY74: 1 | AZ74: =IF(VLOOKUP($B74,Formulacion!$A:$BE,MATCH(AZ$1,Formulacion!$1:$1,0),FALSE)="NA",1,VLOOKUP($B74,Formulacion!$A:$BE,MATCH(AZ$1,Formulacion!$1:$1,0),FALSE)) -> 0.9 | BA74: =IF(VLOOKUP($B74,Formulacion!$A:$BE,MATCH(BA$1,Formulacion!$1:$1,0),FALSE)="NA",1,VLOOKUP($B74,Formulacion!$A:$BE,MATCH(BA$1,Formulacion!$1:$1,0),FALSE)) -> 1 | BB74: 81982.8
A75: Edechi Proy con cta 2022 I | B75: CMEDI | C75: EC-CMEDI-CHIRIQUI | D75: CMEDITMTTT016 | E75: 2022-06-30 | F75: Chiriqui | H75: 184234.66 | I75: 7366.34 | K75: 0 | N75: 191601 | P75: 0 | Q75: =IF(OR(VLOOKUP($B75,Formulacion!$A:$BE,MATCH(Q$1,Formulacion!$1:$1,0),FALSE)="NA",$D75=0),"NA",IF($B75="DLABT",MID($D75,PosteInicioBT,PosteFinBT-PosteInicioBT+1)*1,MID($D75,PosteInicio,PosteFin-PosteInicio+1)*1)) -> NA | R75: =IF(OR(VLOOKUP($B75,Formulacion!$A:$BE,MATCH(R$1,Formulacion!$1:$1,0),FALSE)="NA",$D75=0),"NA",IF(OR($B75="DLABT",$B75="DLSBT"),MID($D75,CondInicioBT,CondFinBT-CondInicioBT+1)*1,MID($D75,CondInicio,CondFin-CondInicio+1)*1)) -> NA | S75: NA | T75: =IF(OR(VLOOKUP($B75,Formulacion!$A:$BE,MATCH(T$1,Formulacion!$1:$1,0),FALSE)="NA",$D75=0),"NA",IF($B75="DLSBT",MID($D75,ZanjaInicioBT,ZanjaFinBT-ZanjaInicioBT+1)*1,MID($D75,ZanjaInicio,ZanjaFin-ZanjaInicio+1)*1)) -> NA | U75: 1 | V75: =IF(OR(VLOOKUP($B75,Formulacion!$A:$BE,MATCH(V$1,Formulacion!$1:$1,0),FALSE)="NA",$D75=0),"NA",MID($D75,m2Inicio+INDIRECT(B75),m2Fin-m2Inicio+1)*1) -> NA | W75: =IF(OR(VLOOKUP($B75,Formulacion!$A:$BE,MATCH(W$1,Formulacion!$1:$1,0),FALSE)="NA",$D75=0),"NA",RIGHT($D75,4)*1) -> NA | X75: =IF(OR(VLOOKUP($B75,Formulacion!$A:$BE,MATCH(X$1,Formulacion!$1:$1,0),FALSE)="NA",$D75=0),"NA",RIGHT($D75,3)*1) -> 16 | Y75: 1 | Z75: =IF(VLOOKUP($B75,Formulacion!$A:$BE,MATCH(Z$1,Formulacion!$1:$1,0),FALSE)="NA",1,IF(V75<=m2Min,0,1)) -> 1 | AA75: =IF(VLOOKUP($B75,Formulacion!$A:$BE,MATCH(AA$1,Formulacion!$1:$1,0),FALSE)="NA",1,IF(OR(E75<=FechaMin,E75>FechaMax),0,1)) -> 1 | AB75: =IF(VLOOKUP($B75,Formulacion!$A:$BE,MATCH(AB$1,Formulacion!$1:$1,0),FALSE)="NA",1,IF(H75<=MaterialesMin,0,1)) -> 1 | AC75: =IF(VLOOKUP($B75,Formulacion!$A:$BE,MATCH(AC$1,Formulacion!$1:$1,0),FALSE)="NA",1,IF(N75=0,0,IF(OR(I75/N75<=MObraMin,I75/N75>=MObraMax),MDOmin,1))) -> 1 | AD75: =IF(VLOOKUP($B75,Formulacion!$A:$BE,MATCH(AD$1,Formulacion!$1:$1,0),FALSE)="NA",1,IF(N75<=CostoTotalMin,0,1)) -> 1 | AE75: =IF(VLOOKUP($B75,Formulacion!$A:$BE,MATCH(AE$1,Formulacion!$1:$1,0),FALSE)="NA",1,IF(Q75<=PostesMin,0,1)) -> 1 | AF75: =IF(VLOOKUP($B75,Formulacion!$A:$BE,MATCH(AF$1,Formulacion!$1:$1,0),FALSE)="NA",1,IF(R75<=INDIRECT(VLOOKUP(B75,Formulacion!$A:$BE,2,FALSE)),0,1)) -> 1 | AG75: 1 | AH75: 191601 | AI75: 1 | AJ75: =IF(VLOOKUP($B75,Formulacion!$A:$BE,MATCH(AJ$1,Formulacion!$1:$1,0),FALSE)="NA","NA",HLOOKUP(VLOOKUP($B75,Formulacion!$A:$BE,MATCH(AJ$1,Formulacion!$1:$1,0),FALSE),$Q:$Z,ROW(AJ75),FALSE)) -> NA | AK75: =IF(VLOOKUP($B75,Formulacion!$A:$BE,MATCH(AK$1,Formulacion!$1:$1,0),FALSE)="NA",1,VLOOKUP($B75,Formulacion!$A:$BE,MATCH(AK$1,Formulacion!$1:$1,0),FALSE)) -> 1 | AL75: =IF(VLOOKUP($B75,Formulacion!$A:$BE,MATCH(AL$1,Formulacion!$1:$1,0),FALSE)="NA",1,VLOOKUP($B75,Formulacion!$A:$BE,MATCH(AL$1,Formulacion!$1:$1,0),FALSE)) -> 1 | AM75: 1 | AN75: =IF(VLOOKUP($B75,Formulacion!$A:$BE,MATCH(AN$1,Formulacion!$1:$1,0),FALSE)="NA","NA",IF(D75=0,"",VLOOKUP($B75,Formulacion!$A:$BE,MATCH(AN$1,Formulacion!$1:$1,0),FALSE))) -> NA | AO75: X | AV75: NA | AW75: =IF(VLOOKUP($B75,Formulacion!$A:$BE,MATCH(AW$1,Formulacion!$1:$1,0),FALSE)="NA","NA",HLOOKUP(VLOOKUP($B75,Formulacion!$A:$BE,MATCH(AW$1,Formulacion!$1:$1,0),FALSE),$Q:$Z,ROW(AW75),FALSE)) -> NA | AX75: NA | AY75: 1 | AZ75: =IF(VLOOKUP($B75,Formulacion!$A:$BE,MATCH(AZ$1,Formulacion!$1:$1,0),FALSE)="NA",1,VLOOKUP($B75,Formulacion!$A:$BE,MATCH(AZ$1,Formulacion!$1:$1,0),FALSE)) -> 0.9 | BA75: =IF(VLOOKUP($B75,Formulacion!$A:$BE,MATCH(BA$1,Formulacion!$1:$1,0),FALSE)="NA",1,VLOOKUP($B75,Formulacion!$A:$BE,MATCH(BA$1,Formulacion!$1:$1,0),FALSE)) -> 1 | BB75: 172440.9
A76: Edechi Proy con cta 2022 I | B76: CMEDI | C76: EC-CMEDI-CHIRIQUI | D76: CMEDITMTTT020 | E76: 2022-06-30 | F76: Chiriqui | H76: 79075.92 | I76: 2224.08 | K76: 0 | N76: 81300 | P76: 0 | Q76: =IF(OR(VLOOKUP($B76,Formulacion!$A:$BE,MATCH(Q$1,Formulacion!$1:$1,0),FALSE)="NA",$D76=0),"NA",IF($B76="DLABT",MID($D76,PosteInicioBT,PosteFinBT-PosteInicioBT+1)*1,MID($D76,PosteInicio,PosteFin-PosteInicio+1)*1)) -> NA | R76: =IF(OR(VLOOKUP($B76,Formulacion!$A:$BE,MATCH(R$1,Formulacion!$1:$1,0),FALSE)="NA",$D76=0),"NA",IF(OR($B76="DLABT",$B76="DLSBT"),MID($D76,CondInicioBT,CondFinBT-CondInicioBT+1)*1,MID($D76,CondInicio,CondFin-CondInicio+1)*1)) -> NA | S76: NA | T76: =IF(OR(VLOOKUP($B76,Formulacion!$A:$BE,MATCH(T$1,Formulacion!$1:$1,0),FALSE)="NA",$D76=0),"NA",IF($B76="DLSBT",MID($D76,ZanjaInicioBT,ZanjaFinBT-ZanjaInicioBT+1)*1,MID($D76,ZanjaInicio,ZanjaFin-ZanjaInicio+1)*1)) -> NA | U76: 1 | V76: =IF(OR(VLOOKUP($B76,Formulacion!$A:$BE,MATCH(V$1,Formulacion!$1:$1,0),FALSE)="NA",$D76=0),"NA",MID($D76,m2Inicio+INDIRECT(B76),m2Fin-m2Inicio+1)*1) -> NA | W76: =IF(OR(VLOOKUP($B76,Formulacion!$A:$BE,MATCH(W$1,Formulacion!$1:$1,0),FALSE)="NA",$D76=0),"NA",RIGHT($D76,4)*1) -> NA | X76: =IF(OR(VLOOKUP($B76,Formulacion!$A:$BE,MATCH(X$1,Formulacion!$1:$1,0),FALSE)="NA",$D76=0),"NA",RIGHT($D76,3)*1) -> 20 | Y76: 1 | Z76: =IF(VLOOKUP($B76,Formulacion!$A:$BE,MATCH(Z$1,Formulacion!$1:$1,0),FALSE)="NA",1,IF(V76<=m2Min,0,1)) -> 1 | AA76: =IF(VLOOKUP($B76,Formulacion!$A:$BE,MATCH(AA$1,Formulacion!$1:$1,0),FALSE)="NA",1,IF(OR(E76<=FechaMin,E76>FechaMax),0,1)) -> 1 | AB76: =IF(VLOOKUP($B76,Formulacion!$A:$BE,MATCH(AB$1,Formulacion!$1:$1,0),FALSE)="NA",1,IF(H76<=MaterialesMin,0,1)) -> 1 | AC76: =IF(VLOOKUP($B76,Formulacion!$A:$BE,MATCH(AC$1,Formulacion!$1:$1,0),FALSE)="NA",1,IF(N76=0,0,IF(OR(I76/N76<=MObraMin,I76/N76>=MObraMax),MDOmin,1))) -> 1 | AD76: =IF(VLOOKUP($B76,Formulacion!$A:$BE,MATCH(AD$1,Formulacion!$1:$1,0),FALSE)="NA",1,IF(N76<=CostoTotalMin,0,1)) -> 1 | AE76: =IF(VLOOKUP($B76,Formulacion!$A:$BE,MATCH(AE$1,Formulacion!$1:$1,0),FALSE)="NA",1,IF(Q76<=PostesMin,0,1)) -> 1 | AF76: =IF(VLOOKUP($B76,Formulacion!$A:$BE,MATCH(AF$1,Formulacion!$1:$1,0),FALSE)="NA",1,IF(R76<=INDIRECT(VLOOKUP(B76,Formulacion!$A:$BE,2,FALSE)),0,1)) -> 1 | AG76: 1 | AH76: 81300 | AI76: 1 | AJ76: =IF(VLOOKUP($B76,Formulacion!$A:$BE,MATCH(AJ$1,Formulacion!$1:$1,0),FALSE)="NA","NA",HLOOKUP(VLOOKUP($B76,Formulacion!$A:$BE,MATCH(AJ$1,Formulacion!$1:$1,0),FALSE),$Q:$Z,ROW(AJ76),FALSE)) -> NA | AK76: =IF(VLOOKUP($B76,Formulacion!$A:$BE,MATCH(AK$1,Formulacion!$1:$1,0),FALSE)="NA",1,VLOOKUP($B76,Formulacion!$A:$BE,MATCH(AK$1,Formulacion!$1:$1,0),FALSE)) -> 1 | AL76: =IF(VLOOKUP($B76,Formulacion!$A:$BE,MATCH(AL$1,Formulacion!$1:$1,0),FALSE)="NA",1,VLOOKUP($B76,Formulacion!$A:$BE,MATCH(AL$1,Formulacion!$1:$1,0),FALSE)) -> 1 | AM76: 1 | AN76: =IF(VLOOKUP($B76,Formulacion!$A:$BE,MATCH(AN$1,Formulacion!$1:$1,0),FALSE)="NA","NA",IF(D76=0,"",VLOOKUP($B76,Formulacion!$A:$BE,MATCH(AN$1,Formulacion!$1:$1,0),FALSE))) -> NA | AO76: X | AV76: NA | AW76: =IF(VLOOKUP($B76,Formulacion!$A:$BE,MATCH(AW$1,Formulacion!$1:$1,0),FALSE)="NA","NA",HLOOKUP(VLOOKUP($B76,Formulacion!$A:$BE,MATCH(AW$1,Formulacion!$1:$1,0),FALSE),$Q:$Z,ROW(AW76),FALSE)) -> NA | AX76: NA | AY76: 1 | AZ76: =IF(VLOOKUP($B76,Formulacion!$A:$BE,MATCH(AZ$1,Formulacion!$1:$1,0),FALSE)="NA",1,VLOOKUP($B76,Formulacion!$A:$BE,MATCH(AZ$1,Formulacion!$1:$1,0),FALSE)) -> 0.9 | BA76: =IF(VLOOKUP($B76,Formulacion!$A:$BE,MATCH(BA$1,Formulacion!$1:$1,0),FALSE)="NA",1,VLOOKUP($B76,Formulacion!$A:$BE,MATCH(BA$1,Formulacion!$1:$1,0),FALSE)) -> 1 | BB76: 73170
A77: Edechi Proy con cta 2022 I | B77: PPLIN | C77: EC-1500-02 | D77: PPLINAI | E77: 2022-06-30 | F77: Chiriqui | H77: 152032.06 | I77: 0 | K77: 0 | N77: 152032.06 | P77: 0 | Q77: =IF(OR(VLOOKUP($B77,Formulacion!$A:$BE,MATCH(Q$1,Formulacion!$1:$1,0),FALSE)="NA",$D77=0),"NA",IF($B77="DLABT",MID($D77,PosteInicioBT,PosteFinBT-PosteInicioBT+1)*1,MID($D77,PosteInicio,PosteFin-PosteInicio+1)*1)) -> NA | R77: =IF(OR(VLOOKUP($B77,Formulacion!$A:$BE,MATCH(R$1,Formulacion!$1:$1,0),FALSE)="NA",$D77=0),"NA",IF(OR($B77="DLABT",$B77="DLSBT"),MID($D77,CondInicioBT,CondFinBT-CondInicioBT+1)*1,MID($D77,CondInicio,CondFin-CondInicio+1)*1)) -> NA | S77: NA | T77: =IF(OR(VLOOKUP($B77,Formulacion!$A:$BE,MATCH(T$1,Formulacion!$1:$1,0),FALSE)="NA",$D77=0),"NA",IF($B77="DLSBT",MID($D77,ZanjaInicioBT,ZanjaFinBT-ZanjaInicioBT+1)*1,MID($D77,ZanjaInicio,ZanjaFin-ZanjaInicio+1)*1)) -> NA | U77: 1 | V77: =IF(OR(VLOOKUP($B77,Formulacion!$A:$BE,MATCH(V$1,Formulacion!$1:$1,0),FALSE)="NA",$D77=0),"NA",MID($D77,m2Inicio+INDIRECT(B77),m2Fin-m2Inicio+1)*1) -> NA | W77: =IF(OR(VLOOKUP($B77,Formulacion!$A:$BE,MATCH(W$1,Formulacion!$1:$1,0),FALSE)="NA",$D77=0),"NA",RIGHT($D77,4)*1) -> NA | X77: =IF(OR(VLOOKUP($B77,Formulacion!$A:$BE,MATCH(X$1,Formulacion!$1:$1,0),FALSE)="NA",$D77=0),"NA",RIGHT($D77,3)*1) -> NA | Y77: 1 | Z77: =IF(VLOOKUP($B77,Formulacion!$A:$BE,MATCH(Z$1,Formulacion!$1:$1,0),FALSE)="NA",1,IF(V77<=m2Min,0,1)) -> 1 | AA77: =IF(VLOOKUP($B77,Formulacion!$A:$BE,MATCH(AA$1,Formulacion!$1:$1,0),FALSE)="NA",1,IF(OR(E77<=FechaMin,E77>FechaMax),0,1)) -> 1 | AB77: =IF(VLOOKUP($B77,Formulacion!$A:$BE,MATCH(AB$1,Formulacion!$1:$1,0),FALSE)="NA",1,IF(H77<=MaterialesMin,0,1)) -> 1 | AC77: =IF(VLOOKUP($B77,Formulacion!$A:$BE,MATCH(AC$1,Formulacion!$1:$1,0),FALSE)="NA",1,IF(N77=0,0,IF(OR(I77/N77<=MObraMin,I77/N77>=MObraMax),MDOmin,1))) -> 1 | AD77: =IF(VLOOKUP($B77,Formulacion!$A:$BE,MATCH(AD$1,Formulacion!$1:$1,0),FALSE)="NA",1,IF(N77<=CostoTotalMin,0,1)) -> 1 | AE77: =IF(VLOOKUP($B77,Formulacion!$A:$BE,MATCH(AE$1,Formulacion!$1:$1,0),FALSE)="NA",1,IF(Q77<=PostesMin,0,1)) -> 1 | AF77: =IF(VLOOKUP($B77,Formulacion!$A:$BE,MATCH(AF$1,Formulacion!$1:$1,0),FALSE)="NA",1,IF(R77<=INDIRECT(VLOOKUP(B77,Formulacion!$A:$BE,2,FALSE)),0,1)) -> 1 | AG77: 1 | AH77: 152032.06 | AI77: 1 | AJ77: =IF(VLOOKUP($B77,Formulacion!$A:$BE,MATCH(AJ$1,Formulacion!$1:$1,0),FALSE)="NA","NA",HLOOKUP(VLOOKUP($B77,Formulacion!$A:$BE,MATCH(AJ$1,Formulacion!$1:$1,0),FALSE),$Q:$Z,ROW(AJ77),FALSE)) -> NA | AK77: =IF(VLOOKUP($B77,Formulacion!$A:$BE,MATCH(AK$1,Formulacion!$1:$1,0),FALSE)="NA",1,VLOOKUP($B77,Formulacion!$A:$BE,MATCH(AK$1,Formulacion!$1:$1,0),FALSE)) -> 1 | AL77: =IF(VLOOKUP($B77,Formulacion!$A:$BE,MATCH(AL$1,Formulacion!$1:$1,0),FALSE)="NA",1,VLOOKUP($B77,Formulacion!$A:$BE,MATCH(AL$1,Formulacion!$1:$1,0),FALSE)) -> 1 | AM77: 1 | AN77: =IF(VLOOKUP($B77,Formulacion!$A:$BE,MATCH(AN$1,Formulacion!$1:$1,0),FALSE)="NA","NA",IF(D77=0,"",VLOOKUP($B77,Formulacion!$A:$BE,MATCH(AN$1,Formulacion!$1:$1,0),FALSE))) -> NA | AO77: X | AV77: NA | AW77: =IF(VLOOKUP($B77,Formulacion!$A:$BE,MATCH(AW$1,Formulacion!$1:$1,0),FALSE)="NA","NA",HLOOKUP(VLOOKUP($B77,Formulacion!$A:$BE,MATCH(AW$1,Formulacion!$1:$1,0),FALSE),$Q:$Z,ROW(AW77),FALSE)) -> NA | AX77: NA | AY77: 1 | AZ77: =IF(VLOOKUP($B77,Formulacion!$A:$BE,MATCH(AZ$1,Formulacion!$1:$1,0),FALSE)="NA",1,VLOOKUP($B77,Formulacion!$A:$BE,MATCH(AZ$1,Formulacion!$1:$1,0),FALSE)) -> 0.9 | BA77: =IF(VLOOKUP($B77,Formulacion!$A:$BE,MATCH(BA$1,Formulacion!$1:$1,0),FALSE)="NA",1,VLOOKUP($B77,Formulacion!$A:$BE,MATCH(BA$1,Formulacion!$1:$1,0),FALSE)) -> 1 | BB77: 136828.854
A78: Edechi Proy con cta 2022 I | B78: PEDYM | C78: EC-6110-01 | D78: PEDYM000080814F02070 | E78: 2022-06-30 | F78: Chiriqui | H78: 17368.86 | I78: 0 | K78: 0 | N78: 17368.86 | P78: 0 | Q78: =IF(OR(VLOOKUP($B78,Formulacion!$A:$BE,MATCH(Q$1,Formulacion!$1:$1,0),FALSE)="NA",$D78=0),"NA",IF($B78="DLABT",MID($D78,PosteInicioBT,PosteFinBT-PosteInicioBT+1)*1,MID($D78,PosteInicio,PosteFin-PosteInicio+1)*1)) -> NA | R78: =IF(OR(VLOOKUP($B78,Formulacion!$A:$BE,MATCH(R$1,Formulacion!$1:$1,0),FALSE)="NA",$D78=0),"NA",IF(OR($B78="DLABT",$B78="DLSBT"),MID($D78,CondInicioBT,CondFinBT-CondInicioBT+1)*1,MID($D78,CondInicio,CondFin-CondInicio+1)*1)) -> NA | S78: NA | T78: =IF(OR(VLOOKUP($B78,Formulacion!$A:$BE,MATCH(T$1,Formulacion!$1:$1,0),FALSE)="NA",$D78=0),"NA",IF($B78="DLSBT",MID($D78,ZanjaInicioBT,ZanjaFinBT-ZanjaInicioBT+1)*1,MID($D78,ZanjaInicio,ZanjaFin-ZanjaInicio+1)*1)) -> NA | U78: 1 | V78: =IF(OR(VLOOKUP($B78,Formulacion!$A:$BE,MATCH(V$1,Formulacion!$1:$1,0),FALSE)="NA",$D78=0),"NA",MID($D78,m2Inicio+INDIRECT(B78),m2Fin-m2Inicio+1)*1) -> 2070 | W78: =IF(OR(VLOOKUP($B78,Formulacion!$A:$BE,MATCH(W$1,Formulacion!$1:$1,0),FALSE)="NA",$D78=0),"NA",RIGHT($D78,4)*1) -> NA | X78: =IF(OR(VLOOKUP($B78,Formulacion!$A:$BE,MATCH(X$1,Formulacion!$1:$1,0),FALSE)="NA",$D78=0),"NA",RIGHT($D78,3)*1) -> NA | Y78: 1 | Z78: =IF(VLOOKUP($B78,Formulacion!$A:$BE,MATCH(Z$1,Formulacion!$1:$1,0),FALSE)="NA",1,IF(V78<=m2Min,0,1)) -> 1 | AA78: =IF(VLOOKUP($B78,Formulacion!$A:$BE,MATCH(AA$1,Formulacion!$1:$1,0),FALSE)="NA",1,IF(OR(E78<=FechaMin,E78>FechaMax),0,1)) -> 1 | AB78: =IF(VLOOKUP($B78,Formulacion!$A:$BE,MATCH(AB$1,Formulacion!$1:$1,0),FALSE)="NA",1,IF(H78<=MaterialesMin,0,1)) -> 1 | AC78: =IF(VLOOKUP($B78,Formulacion!$A:$BE,MATCH(AC$1,Formulacion!$1:$1,0),FALSE)="NA",1,IF(N78=0,0,IF(OR(I78/N78<=MObraMin,I78/N78>=MObraMax),MDOmin,1))) -> 1 | AD78: =IF(VLOOKUP($B78,Formulacion!$A:$BE,MATCH(AD$1,Formulacion!$1:$1,0),FALSE)="NA",1,IF(N78<=CostoTotalMin,0,1)) -> 1 | AE78: =IF(VLOOKUP($B78,Formulacion!$A:$BE,MATCH(AE$1,Formulacion!$1:$1,0),FALSE)="NA",1,IF(Q78<=PostesMin,0,1)) -> 1 | AF78: =IF(VLOOKUP($B78,Formulacion!$A:$BE,MATCH(AF$1,Formulacion!$1:$1,0),FALSE)="NA",1,IF(R78<=INDIRECT(VLOOKUP(B78,Formulacion!$A:$BE,2,FALSE)),0,1)) -> 1 | AG78: 1 | AH78: 17368.86 | AI78: 1 | AJ78: =IF(VLOOKUP($B78,Formulacion!$A:$BE,MATCH(AJ$1,Formulacion!$1:$1,0),FALSE)="NA","NA",HLOOKUP(VLOOKUP($B78,Formulacion!$A:$BE,MATCH(AJ$1,Formulacion!$1:$1,0),FALSE),$Q:$Z,ROW(AJ78),FALSE)) -> NA | AK78: =IF(VLOOKUP($B78,Formulacion!$A:$BE,MATCH(AK$1,Formulacion!$1:$1,0),FALSE)="NA",1,VLOOKUP($B78,Formulacion!$A:$BE,MATCH(AK$1,Formulacion!$1:$1,0),FALSE)) -> 1 | AL78: =IF(VLOOKUP($B78,Formulacion!$A:$BE,MATCH(AL$1,Formulacion!$1:$1,0),FALSE)="NA",1,VLOOKUP($B78,Formulacion!$A:$BE,MATCH(AL$1,Formulacion!$1:$1,0),FALSE)) -> 1 | AM78: 1 | AN78: =IF(VLOOKUP($B78,Formulacion!$A:$BE,MATCH(AN$1,Formulacion!$1:$1,0),FALSE)="NA","NA",IF(D78=0,"",VLOOKUP($B78,Formulacion!$A:$BE,MATCH(AN$1,Formulacion!$1:$1,0),FALSE))) -> NA | AO78: X | AV78: NA | AW78: =IF(VLOOKUP($B78,Formulacion!$A:$BE,MATCH(AW$1,Formulacion!$1:$1,0),FALSE)="NA","NA",HLOOKUP(VLOOKUP($B78,Formulacion!$A:$BE,MATCH(AW$1,Formulacion!$1:$1,0),FALSE),$Q:$Z,ROW(AW78),FALSE)) -> NA | AX78: NA | AY78: 1 | AZ78: =IF(VLOOKUP($B78,Formulacion!$A:$BE,MATCH(AZ$1,Formulacion!$1:$1,0),FALSE)="NA",1,VLOOKUP($B78,Formulacion!$A:$BE,MATCH(AZ$1,Formulacion!$1:$1,0),FALSE)) -> 0.9 | BA78: =IF(VLOOKUP($B78,Formulacion!$A:$BE,MATCH(BA$1,Formulacion!$1:$1,0),FALSE)="NA",1,VLOOKUP($B78,Formulacion!$A:$BE,MATCH(BA$1,Formulacion!$1:$1,0),FALSE)) -> 1 | BB78: 15631.974

Sheet EfectosFactores (hidden)
B1: =Datos!Y1 -> Cant | C1: =Datos!Z1 -> m2 | D1: =Datos!AA1 -> Fecha | E1: =Datos!AB1 -> Materiales | F1: =Datos!AC1 -> Mobra | G1: =Datos!AD1 -> CostoTotal | H1: =Datos!AE1&Datos!AF1 -> PostesConductor
A2: =Formulacion!A2 -> AINAP | B2: =SUMIFS(Datos!$N:$N,Datos!$B:$B,$A2,Datos!Y:Y,0)/SUM(Datos!$N:$N) -> 0 | C2: =SUMIFS(Datos!$N:$N,Datos!$B:$B,$A2,Datos!Z:Z,0)/SUM(Datos!$N:$N) -> 0 | D2: =SUMIFS(Datos!$N:$N,Datos!$B:$B,$A2,Datos!AA:AA,0)/SUM(Datos!$N:$N) -> 0 | E2: =SUMIFS(Datos!$N:$N,Datos!$B:$B,$A2,Datos!AB:AB,0)/SUM(Datos!$N:$N) -> 0 | F2: =SUMIFS(Datos!$N:$N,Datos!$B:$B,$A2,Datos!AC:AC,0)/SUM(Datos!$N:$N) -> 0 | G2: =SUMIFS(Datos!$N:$N,Datos!$B:$B,$A2,Datos!AD:AD,0)/SUM(Datos!$N:$N) -> 0 | H2: =SUMIFS(Datos!$N:$N,Datos!$B:$B,$A2,Datos!AE:AE,0,Datos!AF:AF,0)/SUM(Datos!$N:$N) -> 0
A3: =Formulacion!A3 -> CEQOT | B3: =SUMIFS(Datos!$N:$N,Datos!$B:$B,$A3,Datos!Y:Y,0)/SUM(Datos!$N:$N) -> 0 | C3: =SUMIFS(Datos!$N:$N,Datos!$B:$B,$A3,Datos!Z:Z,0)/SUM(Datos!$N:$N) -> 0 | D3: =SUMIFS(Datos!$N:$N,Datos!$B:$B,$A3,Datos!AA:AA,0)/SUM(Datos!$N:$N) -> 0 | E3: =SUMIFS(Datos!$N:$N,Datos!$B:$B,$A3,Datos!AB:AB,0)/SUM(Datos!$N:$N) -> 0 | F3: =SUMIFS(Datos!$N:$N,Datos!$B:$B,$A3,Datos!AC:AC,0)/SUM(Datos!$N:$N) -> 0 | G3: =SUMIFS(Datos!$N:$N,Datos!$B:$B,$A3,Datos!AD:AD,0)/SUM(Datos!$N:$N) -> 0 | H3: =SUMIFS(Datos!$N:$N,Datos!$B:$B,$A3,Datos!AE:AE,0,Datos!AF:AF,0)/SUM(Datos!$N:$N) -> 0
A4: =Formulacion!A4 -> CMEDI | B4: =SUMIFS(Datos!$N:$N,Datos!$B:$B,$A4,Datos!Y:Y,0)/SUM(Datos!$N:$N) -> 0 | C4: =SUMIFS(Datos!$N:$N,Datos!$B:$B,$A4,Datos!Z:Z,0)/SUM(Datos!$N:$N) -> 0 | D4: =SUMIFS(Datos!$N:$N,Datos!$B:$B,$A4,Datos!AA:AA,0)/SUM(Datos!$N:$N) -> 0 | E4: =SUMIFS(Datos!$N:$N,Datos!$B:$B,$A4,Datos!AB:AB,0)/SUM(Datos!$N:$N) -> 0 | F4: =SUMIFS(Datos!$N:$N,Datos!$B:$B,$A4,Datos!AC:AC,0)/SUM(Datos!$N:$N) -> 0 | G4: =SUMIFS(Datos!$N:$N,Datos!$B:$B,$A4,Datos!AD:AD,0)/SUM(Datos!$N:$N) -> 0 | H4: =SUMIFS(Datos!$N:$N,Datos!$B:$B,$A4,Datos!AE:AE,0,Datos!AF:AF,0)/SUM(Datos!$N:$N) -> 0
A5: =Formulacion!A5 -> CMESM | B5: =SUMIFS(Datos!$N:$N,Datos!$B:$B,$A5,Datos!Y:Y,0)/SUM(Datos!$N:$N) -> 0 | C5: =SUMIFS(Datos!$N:$N,Datos!$B:$B,$A5,Datos!Z:Z,0)/SUM(Datos!$N:$N) -> 0 | D5: =SUMIFS(Datos!$N:$N,Datos!$B:$B,$A5,Datos!AA:AA,0)/SUM(Datos!$N:$N) -> 0 | E5: =SUMIFS(Datos!$N:$N,Datos!$B:$B,$A5,Datos!AB:AB,0)/SUM(Datos!$N:$N) -> 0 | F5: =SUMIFS(Datos!$N:$N,Datos!$B:$B,$A5,Datos!AC:AC,0)/SUM(Datos!$N:$N) -> 0 | G5: =SUMIFS(Datos!$N:$N,Datos!$B:$B,$A5,Datos!AD:AD,0)/SUM(Datos!$N:$N) -> 0 | H5: =SUMIFS(Datos!$N:$N,Datos!$B:$B,$A5,Datos!AE:AE,0,Datos!AF:AF,0)/SUM(Datos!$N:$N) -> 0
A6: =Formulacion!A6 -> DACBT | B6: =SUMIFS(Datos!$N:$N,Datos!$B:$B,$A6,Datos!Y:Y,0)/SUM(Datos!$N:$N) -> 0 | C6: =SUMIFS(Datos!$N:$N,Datos!$B:$B,$A6,Datos!Z:Z,0)/SUM(Datos!$N:$N) -> 0 | D6: =SUMIFS(Datos!$N:$N,Datos!$B:$B,$A6,Datos!AA:AA,0)/SUM(Datos!$N:$N) -> 0 | E6: =SUMIFS(Datos!$N:$N,Datos!$B:$B,$A6,Datos!AB:AB,0)/SUM(Datos!$N:$N) -> 0 | F6: =SUMIFS(Datos!$N:$N,Datos!$B:$B,$A6,Datos!AC:AC,0)/SUM(Datos!$N:$N) -> 0 | G6: =SUMIFS(Datos!$N:$N,Datos!$B:$B,$A6,Datos!AD:AD,0)/SUM(Datos!$N:$N) -> 0 | H6: =SUMIFS(Datos!$N:$N,Datos!$B:$B,$A6,Datos!AE:AE,0,Datos!AF:AF,0)/SUM(Datos!$N:$N) -> 0
A7: =Formulacion!A7 -> DCRMM | B7: =SUMIFS(Datos!$N:$N,Datos!$B:$B,$A7,Datos!Y:Y,0)/SUM(Datos!$N:$N) -> 0 | C7: =SUMIFS(Datos!$N:$N,Datos!$B:$B,$A7,Datos!Z:Z,0)/SUM(Datos!$N:$N) -> 0 | D7: =SUMIFS(Datos!$N:$N,Datos!$B:$B,$A7,Datos!AA:AA,0)/SUM(Datos!$N:$N) -> 0 | E7: =SUMIFS(Datos!$N:$N,Datos!$B:$B,$A7,Datos!AB:AB,0)/SUM(Datos!$N:$N) -> 0 | F7: =SUMIFS(Datos!$N:$N,Datos!$B:$B,$A7,Datos!AC:AC,0)/SUM(Datos!$N:$N) -> 0 | G7: =SUMIFS(Datos!$N:$N,Datos!$B:$B,$A7,Datos!AD:AD,0)/SUM(Datos!$N:$N) -> 0 | H7: =SUMIFS(Datos!$N:$N,Datos!$B:$B,$A7,Datos!AE:AE,0,Datos!AF:AF,0)/SUM(Datos!$N:$N) -> 0
A8: =Formulacion!A8 -> DEQDM | B8: =SUMIFS(Datos!$N:$N,Datos!$B:$B,$A8,Datos!Y:Y,0)/SUM(Datos!$N:$N) -> 0 | C8: =SUMIFS(Datos!$N:$N,Datos!$B:$B,$A8,Datos!Z:Z,0)/SUM(Datos!$N:$N) -> 0 | D8: =SUMIFS(Datos!$N:$N,Datos!$B:$B,$A8,Datos!AA:AA,0)/SUM(Datos!$N:$N) -> 0 | E8: =SUMIFS(Datos!$N:$N,Datos!$B:$B,$A8,Datos!AB:AB,0)/SUM(Datos!$N:$N) -> 0 | F8: =SUMIFS(Datos!$N:$N,Datos!$B:$B,$A8,Datos!AC:AC,0)/SUM(Datos!$N:$N) -> 0 | G8: =SUMIFS(Datos!$N:$N,Datos!$B:$B,$A8,Datos!AD:AD,0)/SUM(Datos!$N:$N) -> 0 | H8: =SUMIFS(Datos!$N:$N,Datos!$B:$B,$A8,Datos!AE:AE,0,Datos!AF:AF,0)/SUM(Datos!$N:$N) -> 0
A9: =Formulacion!A9 -> DEQMC | B9: =SUMIFS(Datos!$N:$N,Datos!$B:$B,$A9,Datos!Y:Y,0)/SUM(Datos!$N:$N) -> 0 | C9: =SUMIFS(Datos!$N:$N,Datos!$B:$B,$A9,Datos!Z:Z,0)/SUM(Datos!$N:$N) -> 0 | D9: =SUMIFS(Datos!$N:$N,Datos!$B:$B,$A9,Datos!AA:AA,0)/SUM(Datos!$N:$N) -> 0 | E9: =SUMIFS(Datos!$N:$N,Datos!$B:$B,$A9,Datos!AB:AB,0)/SUM(Datos!$N:$N) -> 0 | F9: =SUMIFS(Datos!$N:$N,Datos!$B:$B,$A9,Datos!AC:AC,0)/SUM(Datos!$N:$N) -> 0 | G9: =SUMIFS(Datos!$N:$N,Datos!$B:$B,$A9,Datos!AD:AD,0)/SUM(Datos!$N:$N) -> 0 | H9: =SUMIFS(Datos!$N:$N,Datos!$B:$B,$A9,Datos!AE:AE,0,Datos!AF:AF,0)/SUM(Datos!$N:$N) -> 0
A10: =Formulacion!A10 -> DEQOT | B10: =SUMIFS(Datos!$N:$N,Datos!$B:$B,$A10,Datos!Y:Y,0)/SUM(Datos!$N:$N) -> 0 | C10: =SUMIFS(Datos!$N:$N,Datos!$B:$B,$A10,Datos!Z:Z,0)/SUM(Datos!$N:$N) -> 0 | D10: =SUMIFS(Datos!$N:$N,Datos!$B:$B,$A10,Datos!AA:AA,0)/SUM(Datos!$N:$N) -> 0 | E10: =SUMIFS(Datos!$N:$N,Datos!$B:$B,$A10,Datos!AB:AB,0)/SUM(Datos!$N:$N) -> 0 | F10: =SUMIFS(Datos!$N:$N,Datos!$B:$B,$A10,Datos!AC:AC,0)/SUM(Datos!$N:$N) -> 0 | G10: =SUMIFS(Datos!$N:$N,Datos!$B:$B,$A10,Datos!AD:AD,0)/SUM(Datos!$N:$N) -> 0 | H10: =SUMIFS(Datos!$N:$N,Datos!$B:$B,$A10,Datos!AE:AE,0,Datos!AF:AF,0)/SUM(Datos!$N:$N) -> 0
A11: =Formulacion!A11 -> DLAAT-115 | B11: =SUMIFS(Datos!$N:$N,Datos!$B:$B,$A11,Datos!Y:Y,0)/SUM(Datos!$N:$N) -> 0 | C11: =SUMIFS(Datos!$N:$N,Datos!$B:$B,$A11,Datos!Z:Z,0)/SUM(Datos!$N:$N) -> 0 | D11: =SUMIFS(Datos!$N:$N,Datos!$B:$B,$A11,Datos!AA:AA,0)/SUM(Datos!$N:$N) -> 0 | E11: =SUMIFS(Datos!$N:$N,Datos!$B:$B,$A11,Datos!AB:AB,0)/SUM(Datos!$N:$N) -> 0 | F11: =SUMIFS(Datos!$N:$N,Datos!$B:$B,$A11,Datos!AC:AC,0)/SUM(Datos!$N:$N) -> 0 | G11: =SUMIFS(Datos!$N:$N,Datos!$B:$B,$A11,Datos!AD:AD,0)/SUM(Datos!$N:$N) -> 0 | H11: =SUMIFS(Datos!$N:$N,Datos!$B:$B,$A11,Datos!AE:AE,0,Datos!AF:AF,0)/SUM(Datos!$N:$N) -> 0
A12: =Formulacion!A12 -> DLAAT-230 | B12: =SUMIFS(Datos!$N:$N,Datos!$B:$B,$A12,Datos!Y:Y,0)/SUM(Datos!$N:$N) -> 0 | C12: =SUMIFS(Datos!$N:$N,Datos!$B:$B,$A12,Datos!Z:Z,0)/SUM(Datos!$N:$N) -> 0 | D12: =SUMIFS(Datos!$N:$N,Datos!$B:$B,$A12,Datos!AA:AA,0)/SUM(Datos!$N:$N) -> 0 | E12: =SUMIFS(Datos!$N:$N,Datos!$B:$B,$A12,Datos!AB:AB,0)/SUM(Datos!$N:$N) -> 0 | F12: =SUMIFS(Datos!$N:$N,Datos!$B:$B,$A12,Datos!AC:AC,0)/SUM(Datos!$N:$N) -> 0 | G12: =SUMIFS(Datos!$N:$N,Datos!$B:$B,$A12,Datos!AD:AD,0)/SUM(Datos!$N:$N) -> 0 | H12: =SUMIFS(Datos!$N:$N,Datos!$B:$B,$A12,Datos!AE:AE,0,Datos!AF:AF,0)/SUM(Datos!$N:$N) -> 0
A13: =Formulacion!A13 -> DLABT | B13: =SUMIFS(Datos!$N:$N,Datos!$B:$B,$A13,Datos!Y:Y,0)/SUM(Datos!$N:$N) -> 0 | C13: =SUMIFS(Datos!$N:$N,Datos!$B:$B,$A13,Datos!Z:Z,0)/SUM(Datos!$N:$N) -> 0 | D13: =SUMIFS(Datos!$N:$N,Datos!$B:$B,$A13,Datos!AA:AA,0)/SUM(Datos!$N:$N) -> 0 | E13: =SUMIFS(Datos!$N:$N,Datos!$B:$B,$A13,Datos!AB:AB,0)/SUM(Datos!$N:$N) -> 0 | F13: =SUMIFS(Datos!$N:$N,Datos!$B:$B,$A13,Datos!AC:AC,0)/SUM(Datos!$N:$N) -> 0 | G13: =SUMIFS(Datos!$N:$N,Datos!$B:$B,$A13,Datos!AD:AD,0)/SUM(Datos!$N:$N) -> 0 | H13: =SUMIFS(Datos!$N:$N,Datos!$B:$B,$A13,Datos!AE:AE,0,Datos!AF:AF,0)/SUM(Datos!$N:$N) -> 0
